Workbook

Sheet Summary 2017
A1: Montana-Dakota Utilities Co.
A2: Gas Utility - South Dakota
A3: Conservation Portfolio Summary
A4: 2017 Actual
C7: 2017 | K7: Lifetime
A8: Programs | C8: Participants | E8: Cost | G8: Dk Savings | I8: Cost/Dk | K8: Dk Savings
A9: Residential Program
A10: Furnaces - 95+% AFUE - New | C10: =+'Total Program Inputs'!C10 -> 192 | E10: =+'Total Program Inputs'!M10 -> 60966 | G10: =+'Total Program Inputs'!E10 -> 1418 | I10: =+ROUND(E10/G10,2) -> 42.99 | K10: =+'Res .95+% Res Furnace - NEW'!M36 -> 28360
A11: Furnaces - 95+% AFUE - Repl. | C11: =+'Total Program Inputs'!C11 -> 241 | E11: =+'Total Program Inputs'!M11 -> 76524 | G11: =+'Total Program Inputs'!E11 -> 3170 | I11: =+ROUND(E11/G11,2) -> 24.14 | K11: =+'Res .95+% Res Furnace - Replace'!M36 -> 63400
A12: Programmable Thermostats | C12: =+'Total Program Inputs'!C12 -> 217 | E12: =+'Total Program Inputs'!M12 -> 4593 | G12: =+'Total Program Inputs'!E12 -> 629 | I12: 7.3 | K12: =+'Programmable Thermostats'!M36 -> 6290
A13: Energy Audits | C13: =+'Total Program Inputs'!C23 -> 27 | E13: =+'Total Program Inputs'!M23 -> 9768
A14: Total Residential | C14: =SUM(C10:C13) -> 677 | E14: =SUM(E10:E13) -> 151851 | G14: =SUM(G10:G13) -> 5217 | I14: 29.11 | K14: =SUM(K10:K13) -> 98050
A16: Commercial Program
A17: Furnaces - 95+% AFUE - New | C17: =+'Total Program Inputs'!C16 -> 2 | E17: =+'Total Program Inputs'!M16 -> 635 | G17: =+'Total Program Inputs'!E16 -> 24 | I17: 26.46 | K17: =+'Comm 95+ Furnace - New'!M36 -> 480
A18: Furnaces - 95+% AFUE - Repl. | C18: =+'Total Program Inputs'!C17 -> 11 | E18: =+'Total Program Inputs'!M17 -> 3493 | G18: =+'Total Program Inputs'!E17 -> 257 | I18: 13.59 | K18: =+'Comm 95+% Furnace - Replace'!M36 -> 5140
A19: Custom Efficiency | C19: =+'Total Program Inputs'!C18 -> 1 | E19: =+'Total Program Inputs'!M18 -> 635 | G19: =+'Total Program Inputs'!E18 -> 1106 | I19: =+ROUND(E19/G19,2) -> 0.57 | K19: =+Custom!M36 -> 16590
A20: Total Commercial | C20: =SUM(C17:C19) -> 14 | E20: =SUM(E17:E19) -> 4763 | G20: =SUM(G17:G19) -> 1387 | I20: =+ROUND(E20/G20,2) -> 3.43 | K20: =SUM(K17:K19) -> 22210
A22: Total Programs | C22: =+C14+C20 -> 691 | E22: =+E14+E20 -> 156614 | G22: =+G14+G20 -> 6604 | I22: =+ROUND(E22/G22,2) -> 23.72 | K22: =+K14+K20 -> 120260

Sheet Database Inputs
A1: South Dakota Natural Gas DSM Programs
A2: Technical Assumptions
I3: Cost Assumptions
D4: Technical Assumptions
B5: Participation | H5: Average
C6: Number of | F6: Average | G6: Average | H6: Non-Energy | L6: Average
B7: Customer | C7: Participants | D7: Project | E7: Baseline | F7: High | G7: dk Saved | H7: Benefits | I7: Cost | J7: Cost High | K7: incremental | L7: Incentive
A8: 2017 Program Year | B8: Class | C8: 2017 | D8: Life | E8: Efficiency | F8: Efficiency | G8: / part | H8: / Part 1/ | I8: Std Equip | J8: Eff Equip | K8: Cost | L8: / Part | M8: Technical Notes
A9: Residential
A10: Furnace Tier 2 - 95%+ AFUE - New | B10: Residential | C10: =+'Total Program Inputs'!C10 -> 192 | D10: 20 | E10: 90 | F10: 95 | G10: =+'Total Program Inputs'!Q10 -> 7.4 | H10: 732 | I10: 1380 | J10: 2000 | K10: 302 | L10: 300 | M10: 75,000 btuh Average | O10: 0
A11: Furnace Tier 2 - 95%+ AFUE - Replacement | B11: Residential | C11: =+'Total Program Inputs'!C11 -> 241 | D11: 20 | E11: 80 | F11: 95 | G11: =+'Total Program Inputs'!Q11 -> 13.2 | H11: 732 | I11: 880 | J11: 2000 | K11: 650 | L11: 300 | M11: 75,000 btuh Average | O11: 75,000 btuh Avg.
A12: Programmable Thermostats | B12: Residential | C12: =+'Total Program Inputs'!C12 -> 217 | D12: 10 | E12: NA | F12: NA | G12: =+'Total Program Inputs'!Q12 -> 2.9 | H12: 0 | K12: 60 | L12: 20
A13: Energy Audit | B13: Residential | C13: =+'Total Program Inputs'!C23 -> 27 | K13: 50
A15: Commercial
A16: Furnace Tier 2 - 95%+ AFUE - New | B16: Commercial | C16: =+'Total Program Inputs'!C16 -> 2 | D16: 20 | E16: 90 | F16: 95 | G16: =+'Total Program Inputs'!Q16 -> 12 | H16: 732 | I16: 880 | J16: 2000 | K16: 302 | L16: 300 | M16: 75,000 btuh Average
A17: Furnace Tier 2 - 95%+ AFUE - Replacement | B17: Commercial | C17: =+'Total Program Inputs'!C17 -> 11 | D17: 20 | E17: 80 | F17: 95 | G17: =+'Total Program Inputs'!Q17 -> 23.4 | H17: 732 | I17: 880 | J17: 2000 | K17: 650 | L17: 300 | M17: 75,000 btuh Average
A18: Custom Efficiency | B18: Commercial | C18: =+'Total Program Inputs'!C18 -> 1 | D18: 15 | E18: NA | F18: NA | G18: =+'Total Program Inputs'!Q18 -> 1106 | H18: 0 | I18: NA | J18: NA | K18: 3000 | L18: 600
A19: Totals | C19: =SUM(C10:C18) -> 691
E23: 1/ Non-gas fuel savings for furnaces is derived from the Minnesota Technical Reference
E24: Manual Version No. 1.2. Formula is shown below:
E26: Total kWh savings (blower motor) = Heating savings + Cooling savings + Shoulder Season savings
E28: Heating savings = 418 kWh
E29: Cooling savings = 263 kWh
E30: Shoulder Season savings = 51 Kwh
E31: Total KWh savings = 732

Sheet Total Program Inputs
A1: Montana-Dakota Utilities Co.
A2: Gas Utility - South Dakota
A3: DSM Summary
A4: 2017 Actual
G7: Incentive | I7: Admin | K7: Admin | M7: Total
C8: Participants | E8: Dk Savings | G8: Expense | I8: Allocation | K8: Expense 1/ | M8: Expense | O8: Incentive | Q8: dk/part.
A9: Residential
A10: High Efficiency Furnace - 95%+ (new) | C10: 192 | E10: 1418 | G10: 57600 | I10: =+ROUND(G10/$G$25,4)-0.0001 -> 0.3892 | K10: =+ROUND(I10*$C$31,0)+1 -> 3366 | M10: =+G10+K10 -> 60966 | O10: 300 | Q10: =ROUND(+E10/C10,1) -> 7.4
A11: High Efficiency Furnace - 95%+ (replacement) | C11: 241 | E11: 3170 | G11: 72300 | I11: =+ROUND(G11/$G$25,4) -> 0.4886 | K11: =+ROUND(I11*$C$31,0) -> 4224 | M11: 76524 | O11: 300 | Q11: =ROUND(+E11/C11,1) -> 13.2
A12: Programmable Thermostats | C12: 217 | E12: 629 | G12: 4340 | I12: 0.0293 | K12: =+ROUND(I12*$C$31,0) -> 253 | M12: 4593 | O12: 20 | Q12: =ROUND(+E12/C12,1) -> 2.9
A13: Total Residential | C13: =SUM(C10:C12) -> 650 | E13: =SUM(E10:E12) -> 5217 | G13: =SUM(G10:G12) -> 134240 | I13: =SUM(I10:I12) -> 0.9071 | K13: =SUM(K10:K12) -> 7843 | M13: =SUM(M10:M12) -> 142083
A15: Commmercial & Industrial
A16: High Efficiency Furnace - 95%+ (new) | C16: 2 | E16: 24 | G16: 600 | I16: =+ROUND(G16/$G$25,4) -> 0.0041 | K16: =+ROUND(I16*$C$31,0) -> 35 | M16: =+G16+K16 -> 635 | O16: 300 | Q16: =ROUND(+E16/C16,1) -> 12
A17: High Efficiency Furnace - 95%+ (replacement) | C17: 11 | E17: 257 | G17: 3300 | I17: =+ROUND(G17/$G$25,4) -> 0.0223 | K17: =+ROUND(I17*$C$31,0) -> 193 | M17: =+G17+K17 -> 3493 | O17: 300 | Q17: =ROUND(+E17/C17,1) -> 23.4
A18: Custom | C18: 1 | E18: 1106 | G18: 600 | I18: 0.0041 | K18: =+ROUND(I18*$C$31,0) -> 35 | M18: =+G18+K18 -> 635 | O18: 600 | Q18: =ROUND(+E18/C18,1) -> 1106
A19: Total Commercial and Industrial | C19: =SUM(C16:C18) -> 14 | E19: =SUM(E16:E18) -> 1387 | G19: =SUM(G16:G18) -> 4500 | I19: =SUM(I16:I18) -> 0.0305 | K19: =SUM(K16:K18) -> 263 | M19: =SUM(M16:M18) -> 4763
A21: Subtotal | C21: =+C19+C13 -> 664 | E21: =+E19+E13 -> 6604 | G21: =+G19+G13 -> 138740 | I21: =+I19+I13 -> 0.9376 | K21: =+K19+K13 -> 8106 | M21: =+M19+M13 -> 146846
A23: Energy Audits | C23: 27 | E23: 0 | G23: 9228 | I23: =+ROUND(G23/$G$25,4) -> 0.0624 | K23: =+ROUND(I23*$C$31,0) -> 540 | M23: =+G23+K23 -> 9768
A25: Total South Dakota | C25: =+C23+C21 -> 691 | E25: =+E23+E21 -> 6604 | G25: =+G23+G21 -> 147968 | I25: =+I23+I21 -> 1 | K25: =+K23+K21 -> 8646 | M25: =+M23+M21 -> 156614
A28: 1/ Administration expense allocated on incentive and program costs.
A31: Admin costs | C31: =2129+6517 -> 8646

Sheet Summary of Ratios
A1: Montana-Dakota Utilities Co.
A2: South Dakota Gas DSM Program Summary
A3: Benefit/Cost Ratios
A4: Actual 2017
G6: Total
B7: Customer | G7: Resource
A8: Program | B8: Class | C8: RIM | D8: Utility | E8: Societal | F8: Participant | G8: Cost
A9: Total Portfolio | C9: ='Total Program'!G42 -> 1.37 | D9: ='Total Program'!G43 -> 2.41 | E9: ='Total Program'!G44 -> 2.73 | F9: ='Total Program'!G45 -> 5.106623939 | G9: ='Total Program'!G46 -> 1.92
A11: Furnace (95+%) - New | B11: Residential | C11: =+'Res .95+% Res Furnace - NEW'!G42 -> 0.91 | D11: =+'Res .95+% Res Furnace - NEW'!G43 -> 1.34 | E11: =+'Res .95+% Res Furnace - NEW'!G44 -> 3.1 | F11: =+'Res .95+% Res Furnace - NEW'!G45 -> 7.338386451 | G11: =+'Res .95+% Res Furnace - NEW'!G46 -> 2.17
A12: Furnace (95+%) - Replacement | B12: Residential | C12: ='Res .95+% Res Furnace - Replace'!G42 -> 1.3 | D12: ='Res .95+% Res Furnace - Replace'!G43 -> 2.38 | E12: ='Res .95+% Res Furnace - Replace'!G44 -> 2.21 | F12: ='Res .95+% Res Furnace - Replace'!G45 -> 4.137663581 | G12: ='Res .95+% Res Furnace - Replace'!G46 -> 1.54
A13: Programmable Thermostats | B13: Residential | C13: ='Programmable Thermostats'!G42 -> 1.83 | D13: ='Programmable Thermostats'!G43 -> 4.75 | E13: ='Programmable Thermostats'!G44 -> 2.08 | F13: ='Programmable Thermostats'!G45 -> 2.901152074 | G13: ='Programmable Thermostats'!G46 -> 1.64
A14: Furnace (95+%) - New | B14: Commercial | C14: =+'Comm 95+ Furnace - New'!G42 -> 1.48 | D14: =+'Comm 95+ Furnace - New'!G43 -> 2.06 | E14: =+'Comm 95+ Furnace - New'!G44 -> 4.18 | F14: =+'Comm 95+ Furnace - New'!G45 -> 7.842715232 | G14: =+'Comm 95+ Furnace - New'!G46 -> 2.9
A15: Furnace (95+%) - Replacement | B15: Commercial | C15: ='Comm 95+% Furnace - Replace'!G42 -> 2.41 | D15: ='Comm 95+% Furnace - Replace'!G43 -> 4.24 | E15: ='Comm 95+% Furnace - Replace'!G44 -> 3.51 | F15: ='Comm 95+% Furnace - Replace'!G45 -> 4.869090909 | G15: ='Comm 95+% Furnace - Replace'!G46 -> 2.42
A16: Custom Efficiency | B16: Commercial | C16: =+Custom!G42 -> 5.28 | D16: =+Custom!G43 -> 82.34 | E16: =+Custom!G44 -> 23.51 | F16: =+Custom!G45 -> 22.154 | G16: =+Custom!G46 -> 17.23

Sheet Gas Input Table Summary
A1: Montana-Dakota Utilities Co.
A2: 2017 Input Data Summary
A3: South Dakota Natural Gas Conservation Model - Authorized 2017
A6: Input No. | B6: Input Data Description | C6: Information Source | D6: SD Res. | E6: SD Comm.
B7: Retail Rate ($/dk) | C7: Weighted Average of SD retail rate using projected 2018 gas costs & February 2018 pipeline and distribution | D7: =+'Gas Costs'!C10 -> 6.21 | E7: =+'Gas Costs'!E10 -> 5.299
B8: Escalation Rate | D8: 0.035 | E8: 0.035
A9: 2 | B9: Non-Gas Fuel Retail ($/fuel/unit) | C9: Average retail cost of non gas fuel if measures also saves kWh, gallons of water, etc. (for analysis purposes, used electric as Non-Gas Fuel Retail Rate) | D9: =+'Gas Costs'!G38 -> 0.13546 | E9: =+'Gas Costs'!G51 -> 0.12698
B10: Escalation Rate | D10: 0.035 | E10: 0.035
B11: Non-Gas Fuel Units (ie. kWh, Gallons, etc) | D11: Kwh | E11: Kwh
A12: 3 | B12: Commodity Cost ($/dk) | C12: Estimated 2018 gas costs and February 2018 pipeline commodity | D12: =+'Gas Costs'!E15 -> 2.571 | E12: =+D12 -> 2.571
B13: Escalation Rate | D13: 0.035 | E13: 0.035
A14: 4 | B14: Demand Cost ($/dk/Yr) | C14: Annual cost of firm capacity on pipeline - Feburary 2018 PGA | D14: =+'Gas Costs'!C22 -> 141.95 | E14: =+D14 -> 141.95
B15: Escalation Rate | D15: 0.01 | E15: 0.01
A16: 5 | B16: Peak Reduction Factor | C16: Estimated average peak day reduction factor caused by implementing the measure (s) | D16: 0.01 | E16: 0.01
A17: 6 | B17: Variable O&M ($/dk) | C17: Estimated variable O&M that will be avoided due the implementing the measure | D17: 0 | E17: 0
B18: Escalation Rate | D18: 0 | E18: 0
A19: 7 | B19: Non-Gas Fuel Cost ($/Fuel Unit) | C19: Average commodity cost of non gas fuel if measures also saves kWh, gallons of water, etc. (for analysis purposes, used electric as Non-Gas Fuel Cost) | D19: =+'Gas Costs'!C54 -> 0.02174 | E19: =+D19 -> 0.02174
B20: Escalation Rate | D20: 0.035 | E20: 0.035
A21: 8 | B21: Non-Gas Fuel Loss Factor | C21: Non-Gas fuel loss factor (for analysis purposes, used Montana-Dakota 12 month ending July 2014loss factor) | D21: 0.051 | E21: =+D21 -> 0.051
A22: 9 | B22: Gas Environmental Damage Factor | C22: Per the 2013-2015 CIP triennium from Minnesota approved by the Minnesota Division of Energy Resources Staff | D22: 0.35 | E22: =+D22 -> 0.35
B23: Escalation Rate | D23: 0.023 | E23: 0.023
A24: 10 | B24: Non Gas Fuel Environmental Damage Factor | C24: Not Applicable | D24: 0 | E24: 0
B25: Escalation Rate | D25: 0 | E25: 0
A26: 11 | B26: Participant Discount Rate | D26: 0.1 | E26: 0.1
A27: 12 | B27: Utility Discount Rate | C27: Montana-Dakota's authorized average cost of capital NG15-005 | D27: 0.07216 | E27: =+D27 -> 0.07216
A28: 13 | B28: Societal Discount Rate | C28: Equal to the 30 year T-Bill rate average for Twelve Months Ending September 16, 2014 | D28: 0.0356 | E28: =+D28 -> 0.0356
A29: 14 | B29: General Input Data Year = | C29: Year data was input | D29: 2014 | E29: 2014
A30: 15 | B30: Project Analysis Year | C30: Year(s) program will be implemented | D30: 2015 | E30: 2015
D31: 2016 | E31: 2016
D32: 2017 | E32: 2017
A33: 16 | B33: Utility Project Costs | C33: Total direct cost to the utility caused by implementing the program(s)
A34: 17 | B34: Direct Participant Costs ($/Part.) | C34: Direct costs that the participant would have to participate in the program
A35: 18 | B35: Participant Non-Energy Costs (Annual $/Part.) Yr. 1 | C35: Annual participant non-energy costs if applicable caused by implementing the measure (Not Applicable) | D35: 0 | E35: 0
B36: Yr. 2 | D36: 0 | E36: 0
B37: Yr. 3 | D37: 0 | E37: 0
B38: Escalation Rate Yr. 1 | D38: 0 | E38: 0
B39: Escalation Rate Yr. 2 | D39: 0 | E39: 0
B40: Escalation Rate Yr. 3 | D40: 0 | E40: 0
A41: 19 | B41: Participant Non-Energy Savings (Annual $/Part) Yr. 1 | C41: Participant non energy savings if applicable caused by implementing the measure (Not Applicable) | D41: 0 | E41: 0
B42: Yr. 2 | D42: 0 | E42: 0
B43: Yr. 3 | D43: 0 | E43: 0
B44: Escalation Rate Yr. 1 | D44: 0 | E44: 0
B45: Escalation Rate Yr. 2 | D45: 0 | E45: 0
B46: Escalation Rate Yr. 3 | D46: 0.014 | E46: 0.014
A47: 20 | B47: Project Life (Years) | C47: Based on the estimated useful life of the energy saving equipment (20 years maximum)
A48: 21 | B48: Avg. Dk/Part. Saved | C48: Avg energy reduction (Dk) caused by the program(s)
A49: 22 | B49: Avg Non-Gas Fuel Units/Part. Saved Yr. 1 | C49: Average non-gas fuel units saved or added due to implementing the measure (for analysis purposes, used Kwh)
B50: Yr. 2 | D50: 0 | E50: 0
B51: Yr. 3 | D51: 0 | E51: 0
A52: 22a | B52: Avg Additional Non-Gas Fuel Units/ Part. Used Yr. 1 | D52: 0 | E52: 0
B53: Yr. 2 | D53: 0 | E53: 0
B54: Yr. 3 | D54: 0 | E54: 0
A55: 23 | B55: Number of Participants | C55: Total number of expected participants is the program(s)
A56: 24 | B56: Total Annual Dk Saved | C56: Total Dk saved from the program in the year implemented
A57: 25 | B57: Incentive/Participant | C57: Incentive provided to the participant
A58: 26 | B58: Distribution Delivery Charge | C58: Weighted Average of Montana-Dakota's Distribution Delivery Charge | D58: =+'Gas Costs'!C9 -> 1.891 | E58: =+'Gas Costs'!E9 -> 0.98
A59: 27 | B59: Effective Fed & State Income Tax Rate | C59: Montana-Dakota's effective tax rate | D59: 0.35 | E59: 0.35

Sheet Total Program
A1: NATURAL GAS CONSERVATION PROGRAMS/DEMAND-SIDE MANAGEMENT | K1: Table 1 | AD1: Table 2 | AP1: Table 3 | BG1: Table 4 | BV1: Table 5
A2: BEN/COST ANALYSIS FOR GAS CONSERVATION | K2: Ratepayer Impact Measure Test | AD2: Utility Cost Test | AP2: Societal Test | BG2: Participant Test | BV2: Total Resource Cost Test
A4: Company: | B4: Montana-Dakota Utilities Co. | K4: Company: | M4: =B4 -> Montana-Dakota Utilities Co. | AD4: Company: | AF4: =B4 -> Montana-Dakota Utilities Co. | AP4: Company: | AR4: =AF4 -> Montana-Dakota Utilities Co. | BH4: Company: | BI4: =AR4 -> Montana-Dakota Utilities Co. | BW4: Company: | BX4: =BI4 -> Montana-Dakota Utilities Co.
A5: Project: | B5: Total South Dakota Program | K5: Project: | M5: =$B$5 -> Total South Dakota Program | AD5: Project: | AF5: =$B$5 -> Total South Dakota Program | AP5: Project: | AR5: =$B$5 -> Total South Dakota Program | BH5: Project: | BI5: =$B$5 -> Total South Dakota Program | BW5: Project: | BX5: =$B$5 -> Total South Dakota Program
A6: Program Years: | B6: 2017 Actual
N7: Benefits | X7: Costs | AF7: Benefits | AJ7: Costs | AR7: Benefits | BB7: Costs | BI7: Benefits | BR7: Costs | BX7: Benefits | CC7: Costs
A8: Input Data | F8: 2017 | AB8: Annual | AN8: Annual | AT8: Non-Gas | BE8: Annual | BT8: Annual | CG8: Annual
M9: Total | N9: Gas | O9: Gas | P9: Variable | Q9: Variable | R9: Total | S9: Peak Dk | T9: Dmd | U9: Total | W9: Distribution | Y9: Program | AA9: Total | AB9: Benefits | AF9: Total | AG9: Total | AH9: Annual | AJ9: Program | AL9: Utility | AN9: Benefits | AR9: Total | AS9: Total | AT9: Energy | AU9: Non-Gas | AV9: Environmental | AW9: Environmental | AZ9: Annual | BB9: Utility | BC9: Participants' | BD9: Annual | BE9: Benefits | BJ9: Total | BL9: Gas | BM9: Non-Gas | BN9: Non-Gas | BP9: Total | BR9: Direct | BT9: Benefits | BX9: Total | BY9: Total | BZ9: Non-Gas | CA9: Total | CC9: Utility | CD9: Participants' | CG9: Benefits
A10: 1) Retail Rate ($/Dk) = | E10: 16) Utility Project Costs | M10: Energy | N10: Commodity | O10: Commodity | P10: O & M | Q10: O & M | R10: Energy | S10: Demand | T10: Savings | U10: Demand | V10: Total | W10: Delivery | X10: Lost | Y10: Admin | Z10: Incentive | AA10: Program | AB10: Less | AF10: Energy | AG10: Demand | AH10: Total | AJ10: Admin | AK10: Incentive | AL10: Program | AN10: Less | AR10: Energy | AS10: Demand | AT10: Savings | AU10: Energy | AV10: Damage | AW10: Damage | AZ10: Total | BB10: Program | BC10: Costs Net | BD10: Total | BE10: Less | BI10: Incentives | BJ10: Energy | BK10: Retail | BL10: Bill | BM10: Fuel | BN10: Energy | BP10: Annual | BR10: Participant | BT10: Less | BX10: Energy | BY10: Demand | BZ10: Energy | CA10: Annual | CC10: Program | CD10: Costs Net | CE10: Total | CG10: Less
A11: Escalation Rate = | E11: 16a) Administrative & Operating Costs | F11: =+'Res .95+% Res Furnace - NEW'!F11+'Res .95+% Res Furnace - Replace'!F11+'Programmable Thermostats'!F11+'Comm 95+ Furnace - New'!F11+'Comm 95+% Furnace - Replace'!F11 -> 8071 | J11: t | M11: Reduction | N11: Cost/Dk | O11: Savings | P11: Cost/Dk | Q11: Savings | R11: Savings | S11: Reduction | T11: '/ Unit | U11: Savings | V11: Savings | W11: Charge | X11: Margin | Y11: Costs | Z11: Costs | AA11: Costs | AB11: Costs | AF11: Savings | AG11: Savings | AH11: Savings | AJ11: Costs | AK11: Costs | AL11: Costs | AN11: Costs | AR11: Savings | AS11: Savings | AT11: ($/Part.) | AU11: Savings | AV11: Savings/Dk | AW11: Savings | AZ11: Savings | BB11: Costs | BC11: of Rebate | BD11: Costs | BE11: Costs | BI11: Received | BJ11: Reduction | BK11: Rate | BL11: Savings | BM11: Retail Rate | BN11: Savings | BP11: Benefits | BR11: Costs | BT11: Costs | BX11: Savings | BY11: Savings | BZ11: Savings | CA11: Benefits | CC11: Costs | CD11: of Rebate | CE11: Costs | CG11: Costs
E12: 16b) Incentive Costs = | F12: =+'Res .95+% Res Furnace - NEW'!F12+'Res .95+% Res Furnace - Replace'!F12+'Programmable Thermostats'!F12+'Comm 95+ Furnace - New'!F12+'Comm 95+% Furnace - Replace'!F12 -> 138140 | L12: Year | M12: (A) | N12: (B) | O12: (C) | P12: (D) | Q12: (E) | R12: (F) | S12: (G) | T12: (H) | U12: (I) | V12: (J) | W12: (K) | X12: (L) | Y12: (M) | Z12: (N) | AA12: (O) | AB12: (P) | AE12: Year | AF12: (A) | AG12: (B) | AH12: (C) | AJ12: (D) | AK12: (E) | AL12: (F) | AN12: (G) | AQ12: Year | AR12: (A) | AS12: (B) | AT12: (C) | AU12: (D) | AV12: (E) | AW12: (F) | AZ12: (G) | BB12: (H) | BC12: (I) | BD12: (J) | BE12: (K) | BH12: Year | BI12: (A) | BJ12: (B) | BK12: (C) | BL12: (D) | BM12: (E) | BN12: (F) | BP12: (G) | BR12: (H) | BT12: (I) | BW12: Year | BX12: (A) | BY12: (B) | BZ12: (C) | CA12: (D) | CC12: (E) | CD12: (F) | CE12: (G) | CG12: (H)
A13: 2) Non-Gas Fuel Retail Rate ($/Fuel Unit) = | E13: 16c) Total Utility Project Costs = | F13: =SUM(F11:F12) -> 146211
A14: Escalation Rate = | J14: =$C$47-$C$45 -> 2 | L14: =$C$47 -> 2016 | M14: =+ROUND('Res .95+% Res Furnace - NEW'!M14+'Res .95+% Res Furnace - Replace'!M14+'Programmable Thermostats'!M14+'Comm 95+ Furnace - New'!M14+'Comm 95+% Furnace - Replace'!M14+Custom!M14,0) -> 6604 | O14: =+ROUND('Res .95+% Res Furnace - NEW'!O14+'Res .95+% Res Furnace - Replace'!O14+'Programmable Thermostats'!O14+'Comm 95+ Furnace - New'!O14+'Comm 95+% Furnace - Replace'!O14+Custom!O14,0) -> 16980 | Q14: =+ROUND('Res .95+% Res Furnace - NEW'!Q14+'Res .95+% Res Furnace - Replace'!Q14+'Programmable Thermostats'!Q14+'Comm 95+ Furnace - New'!Q14+'Comm 95+% Furnace - Replace'!Q14+Custom!Q14,0) -> 0 | R14: =O14+Q14 -> 16980 | S14: =+ROUND('Res .95+% Res Furnace - NEW'!S14+'Res .95+% Res Furnace - Replace'!S14+'Programmable Thermostats'!S14+'Comm 95+ Furnace - New'!S14+'Comm 95+% Furnace - Replace'!S14+Custom!S14,0) -> 66 | U14: =+ROUND('Res .95+% Res Furnace - NEW'!U14+'Res .95+% Res Furnace - Replace'!U14+'Programmable Thermostats'!U14+'Comm 95+ Furnace - New'!U14+'Comm 95+% Furnace - Replace'!U14+Custom!U14,0) -> 9385 | V14: =ROUND(+U14+R14,0) -> 26365 | X14: =+ROUND('Res .95+% Res Furnace - NEW'!X14+'Res .95+% Res Furnace - Replace'!X14+'Programmable Thermostats'!X14+'Comm 95+ Furnace - New'!X14+'Comm 95+% Furnace - Replace'!X14+Custom!X14,0) -> 8091 | Y14: =+ROUND('Res .95+% Res Furnace - NEW'!Y14+'Res .95+% Res Furnace - Replace'!Y14+'Programmable Thermostats'!Y14+'Comm 95+ Furnace - New'!Y14+'Comm 95+% Furnace - Replace'!Y14+Custom!Y14,0) -> 8106 | Z14: =+ROUND('Res .95+% Res Furnace - NEW'!Z14+'Res .95+% Res Furnace - Replace'!Z14+'Programmable Thermostats'!Z14+'Comm 95+ Furnace - New'!Z14+'Comm 95+% Furnace - Replace'!Z14+Custom!Z14,0) -> 138740 | AA14: =SUM(X14:Z14) -> 154937 | AB14: =V14-AA14 -> -128572 | AE14: =$C$47 -> 2016 | AF14: =+R14 -> 16980 | AG14: =+U14 -> 9385 | AH14: =+AG14+AF14 -> 26365 | AJ14: =ROUND(Y14,0) -> 8106 | AK14: =ROUND(Z14,0) -> 138740 | AL14: =SUM(AJ14:AK14) -> 146846 | AN14: =+AH14-AL14 -> -120481 | AQ14: =$C$47 -> 2016 | AR14: =AF14 -> 16980 | AS14: =+AG14 -> 9385 | AU14: =+ROUND('Res .95+% Res Furnace - NEW'!AT14+'Res .95+% Res Furnace - Replace'!AU14+'Programmable Thermostats'!AU14+'Comm 95+ Furnace - New'!AU14+'Comm 95+% Furnace - Replace'!AU14+Custom!AU14,0) -> 8162 | AW14: =+ROUND('Res .95+% Res Furnace - NEW'!AV14+'Res .95+% Res Furnace - Replace'!AW14+'Programmable Thermostats'!AW14+'Comm 95+ Furnace - New'!AW14+'Comm 95+% Furnace - Replace'!AW14+Custom!AW14,0) -> 2477 | AZ14: =ROUND(AR14+AS14+AU14+AW14+AY14,0) -> 37004 | BB14: =+ROUND('Res .95+% Res Furnace - NEW'!BA14+'Res .95+% Res Furnace - Replace'!BB14+'Programmable Thermostats'!BB14+'Comm 95+ Furnace - New'!BB14+'Comm 95+% Furnace - Replace'!BB14+Custom!BB14,0) -> 146846 | BC14: =+ROUND('Res .95+% Res Furnace - NEW'!BB14+'Res .95+% Res Furnace - Replace'!BC14+'Programmable Thermostats'!BC14+'Comm 95+ Furnace - New'!BC14+'Comm 95+% Furnace - Replace'!BC14+Custom!BC14,0) -> 99668 | BD14: =BB14+BC14 -> 246514 | BE14: =AZ14-BD14 -> -209510 | BH14: =$C$47 -> 2016 | BI14: =+ROUND('Res .95+% Res Furnace - NEW'!BH14+'Res .95+% Res Furnace - Replace'!BI14+'Programmable Thermostats'!BI14+'Comm 95+ Furnace - New'!BI14+'Comm 95+% Furnace - Replace'!BI14+Custom!BI14,0) -> 138740 | BJ14: =+ROUND('Res .95+% Res Furnace - NEW'!BI14+'Res .95+% Res Furnace - Replace'!BJ14+'Programmable Thermostats'!BJ14+'Comm 95+ Furnace - New'!BJ14+'Comm 95+% Furnace - Replace'!BJ14+Custom!BJ14,0) -> 6604 | BL14: =+ROUND('Res .95+% Res Furnace - NEW'!BK14+'Res .95+% Res Furnace - Replace'!BL14+'Programmable Thermostats'!BL14+'Comm 95+ Furnace - New'!BL14+'Comm 95+% Furnace - Replace'!BL14+Custom!BL14,0) -> 44068 | BN14: =+ROUND('Res .95+% Res Furnace - NEW'!BM14+'Res .95+% Res Furnace - Replace'!BN14+'Programmable Thermostats'!BN14+'Comm 95+ Furnace - New'!BN14+'Comm 95+% Furnace - Replace'!BN14+Custom!BN14,0) -> 48885 | BP14: =BI14+BL14+BN14+BO14 -> 231693 | BR14: =+ROUND('Res .95+% Res Furnace - NEW'!BQ14+'Res .95+% Res Furnace - Replace'!BR14+'Programmable Thermostats'!BR14+'Comm 95+ Furnace - New'!BR14+'Comm 95+% Furnace - Replace'!BR14+Custom!BR14,0) -> 238408 | BT14: =BP14-BR14 -> -6715 | BW14: =$C$47 -> 2016 | BX14: =$R14 -> 16980 | BY14: =U14 -> 9385 | BZ14: =AU14 -> 8162 | CA14: =SUM(BX14:BZ14) -> 34527 | CC14: =BB14 -> 146846 | CD14: =BC14 -> 99668 | CE14: =SUM(CC14:CD14) -> 246514 | CG14: =CA14-CE14 -> -211987
A15: Non-Gas Fuel Units (ie. kWh,Gallons, etc) = | E15: 17) Direct Participant Costs ($/Part.) = | J15: =J14+1 -> 3 | L15: =L14+1 -> 2017 | M15: =+ROUND('Res .95+% Res Furnace - NEW'!M15+'Res .95+% Res Furnace - Replace'!M15+'Programmable Thermostats'!M15+'Comm 95+ Furnace - New'!M15+'Comm 95+% Furnace - Replace'!M15+Custom!M15,0) -> 6604 | O15: =+ROUND('Res .95+% Res Furnace - NEW'!O15+'Res .95+% Res Furnace - Replace'!O15+'Programmable Thermostats'!O15+'Comm 95+ Furnace - New'!O15+'Comm 95+% Furnace - Replace'!O15+Custom!O15,0) -> 18828 | Q15: =+ROUND('Res .95+% Res Furnace - NEW'!Q15+'Res .95+% Res Furnace - Replace'!Q15+'Programmable Thermostats'!Q15+'Comm 95+ Furnace - New'!Q15+'Comm 95+% Furnace - Replace'!Q15+Custom!Q15,0) -> 0 | R15: 18828 | S15: =+ROUND('Res .95+% Res Furnace - NEW'!S15+'Res .95+% Res Furnace - Replace'!S15+'Programmable Thermostats'!S15+'Comm 95+ Furnace - New'!S15+'Comm 95+% Furnace - Replace'!S15+Custom!S15,0) -> 66 | U15: =+ROUND('Res .95+% Res Furnace - NEW'!U15+'Res .95+% Res Furnace - Replace'!U15+'Programmable Thermostats'!U15+'Comm 95+ Furnace - New'!U15+'Comm 95+% Furnace - Replace'!U15+Custom!U15,0) -> 9651 | V15: =ROUND(+U15+R15,0) -> 28479 | X15: =+ROUND('Res .95+% Res Furnace - NEW'!X15+'Res .95+% Res Furnace - Replace'!X15+'Programmable Thermostats'!X15+'Comm 95+ Furnace - New'!X15+'Comm 95+% Furnace - Replace'!X15+Custom!X15,0) -> 8373 | Y15: =+ROUND('Res .95+% Res Furnace - NEW'!Y15+'Res .95+% Res Furnace - Replace'!Y15+'Programmable Thermostats'!Y15+'Comm 95+ Furnace - New'!Y15+'Comm 95+% Furnace - Replace'!Y15+Custom!Y15,0) -> 0 | Z15: =+ROUND('Res .95+% Res Furnace - NEW'!Z15+'Res .95+% Res Furnace - Replace'!Z15+'Programmable Thermostats'!Z15+'Comm 95+ Furnace - New'!Z15+'Comm 95+% Furnace - Replace'!Z15+Custom!Z15,0) -> 0 | AA15: =SUM(X15:Z15) -> 8373 | AB15: =V15-AA15 -> 20106 | AE15: =AE14+1 -> 2017 | AF15: 18828 | AG15: 9651 | AH15: =+AG15+AF15 -> 28479 | AJ15: =ROUND(Y15,0) -> 0 | AK15: 0 | AL15: 0 | AN15: 28479 | AQ15: =AQ14+1 -> 2017 | AR15: 18828 | AS15: 9651 | AU15: =+ROUND('Res .95+% Res Furnace - NEW'!AT15+'Res .95+% Res Furnace - Replace'!AU15+'Programmable Thermostats'!AU15+'Comm 95+ Furnace - New'!AU15+'Comm 95+% Furnace - Replace'!AU15+Custom!AU15,0) -> 8488 | AW15: =+ROUND('Res .95+% Res Furnace - NEW'!AV15+'Res .95+% Res Furnace - Replace'!AW15+'Programmable Thermostats'!AW15+'Comm 95+ Furnace - New'!AW15+'Comm 95+% Furnace - Replace'!AW15+Custom!AW15,0) -> 2529 | AZ15: =ROUND(AR15+AS15+AU15+AW15+AY15,0) -> 39496 | BB15: =+ROUND('Res .95+% Res Furnace - NEW'!BA15+'Res .95+% Res Furnace - Replace'!BB15+'Programmable Thermostats'!BB15+'Comm 95+ Furnace - New'!BB15+'Comm 95+% Furnace - Replace'!BB15+Custom!BB15,0) -> 0 | BC15: =+ROUND('Res .95+% Res Furnace - NEW'!BB15+'Res .95+% Res Furnace - Replace'!BC15+'Programmable Thermostats'!BC15+'Comm 95+ Furnace - New'!BC15+'Comm 95+% Furnace - Replace'!BC15+Custom!BC15,0) -> 0 | BD15: =BB15+BC15 -> 0 | BE15: 39496 | BH15: =BH14+1 -> 2017 | BI15: =+ROUND('Res .95+% Res Furnace - NEW'!BH15+'Res .95+% Res Furnace - Replace'!BI15+'Programmable Thermostats'!BI15+'Comm 95+ Furnace - New'!BI15+'Comm 95+% Furnace - Replace'!BI15+Custom!BI15,0) -> 0 | BJ15: =+ROUND('Res .95+% Res Furnace - NEW'!BI15+'Res .95+% Res Furnace - Replace'!BJ15+'Programmable Thermostats'!BJ15+'Comm 95+ Furnace - New'!BJ15+'Comm 95+% Furnace - Replace'!BJ15+Custom!BJ15,0) -> 6604 | BL15: =+ROUND('Res .95+% Res Furnace - NEW'!BK15+'Res .95+% Res Furnace - Replace'!BL15+'Programmable Thermostats'!BL15+'Comm 95+ Furnace - New'!BL15+'Comm 95+% Furnace - Replace'!BL15+Custom!BL15,0) -> 45611 | BN15: =+ROUND('Res .95+% Res Furnace - NEW'!BM15+'Res .95+% Res Furnace - Replace'!BN15+'Programmable Thermostats'!BN15+'Comm 95+ Furnace - New'!BN15+'Comm 95+% Furnace - Replace'!BN15+Custom!BN15,0) -> 50518 | BP15: 96129 | BR15: =+ROUND('Res .95+% Res Furnace - NEW'!BQ15+'Res .95+% Res Furnace - Replace'!BR15+'Programmable Thermostats'!BR15+'Comm 95+ Furnace - New'!BR15+'Comm 95+% Furnace - Replace'!BR15+Custom!BR15,0) -> 0 | BT15: =BP15-BR15 -> 96129 | BW15: =BW14+1 -> 2017 | BX15: 18828 | BY15: =U15 -> 9651 | BZ15: =AU15 -> 8488 | CA15: =SUM(BX15:BZ15) -> 36967 | CC15: =BB15 -> 0 | CD15: 0 | CE15: =SUM(CC15:CD15) -> 0 | CG15: =CA15-CE15 -> 36967
J16: 4 | L16: 2018 | M16: =+ROUND('Res .95+% Res Furnace - NEW'!M16+'Res .95+% Res Furnace - Replace'!M16+'Programmable Thermostats'!M16+'Comm 95+ Furnace - New'!M16+'Comm 95+% Furnace - Replace'!M16+Custom!M16,0) -> 6604 | O16: =+ROUND('Res .95+% Res Furnace - NEW'!O16+'Res .95+% Res Furnace - Replace'!O16+'Programmable Thermostats'!O16+'Comm 95+ Furnace - New'!O16+'Comm 95+% Furnace - Replace'!O16+Custom!O16,0) -> 19483 | Q16: =+ROUND('Res .95+% Res Furnace - NEW'!Q16+'Res .95+% Res Furnace - Replace'!Q16+'Programmable Thermostats'!Q16+'Comm 95+ Furnace - New'!Q16+'Comm 95+% Furnace - Replace'!Q16+Custom!Q16,0) -> 0 | R16: 19483 | S16: =+ROUND('Res .95+% Res Furnace - NEW'!S16+'Res .95+% Res Furnace - Replace'!S16+'Programmable Thermostats'!S16+'Comm 95+ Furnace - New'!S16+'Comm 95+% Furnace - Replace'!S16+Custom!S16,0) -> 66 | U16: =+ROUND('Res .95+% Res Furnace - NEW'!U16+'Res .95+% Res Furnace - Replace'!U16+'Programmable Thermostats'!U16+'Comm 95+ Furnace - New'!U16+'Comm 95+% Furnace - Replace'!U16+Custom!U16,0) -> 9784 | V16: 29267 | X16: =+ROUND('Res .95+% Res Furnace - NEW'!X16+'Res .95+% Res Furnace - Replace'!X16+'Programmable Thermostats'!X16+'Comm 95+ Furnace - New'!X16+'Comm 95+% Furnace - Replace'!X16+Custom!X16,0) -> 8665 | Y16: =+ROUND('Res .95+% Res Furnace - NEW'!Y16+'Res .95+% Res Furnace - Replace'!Y16+'Programmable Thermostats'!Y16+'Comm 95+ Furnace - New'!Y16+'Comm 95+% Furnace - Replace'!Y16+Custom!Y16,0) -> 0 | Z16: =+ROUND('Res .95+% Res Furnace - NEW'!Z16+'Res .95+% Res Furnace - Replace'!Z16+'Programmable Thermostats'!Z16+'Comm 95+ Furnace - New'!Z16+'Comm 95+% Furnace - Replace'!Z16+Custom!Z16,0) -> 0 | AA16: 8665 | AB16: 20602 | AE16: 2018 | AF16: 19483 | AG16: 9784 | AH16: =+AG16+AF16 -> 29267 | AJ16: 0 | AK16: 0 | AL16: 0 | AN16: 29267 | AQ16: 2018 | AR16: 19483 | AS16: 9784 | AU16: =+ROUND('Res .95+% Res Furnace - NEW'!AT16+'Res .95+% Res Furnace - Replace'!AU16+'Programmable Thermostats'!AU16+'Comm 95+ Furnace - New'!AU16+'Comm 95+% Furnace - Replace'!AU16+Custom!AU16,0) -> 8815 | AW16: =+ROUND('Res .95+% Res Furnace - NEW'!AV16+'Res .95+% Res Furnace - Replace'!AW16+'Programmable Thermostats'!AW16+'Comm 95+ Furnace - New'!AW16+'Comm 95+% Furnace - Replace'!AW16+Custom!AW16,0) -> 2590 | AZ16: 40672 | BB16: =+ROUND('Res .95+% Res Furnace - NEW'!BA16+'Res .95+% Res Furnace - Replace'!BB16+'Programmable Thermostats'!BB16+'Comm 95+ Furnace - New'!BB16+'Comm 95+% Furnace - Replace'!BB16+Custom!BB16,0) -> 0 | BC16: =+ROUND('Res .95+% Res Furnace - NEW'!BB16+'Res .95+% Res Furnace - Replace'!BC16+'Programmable Thermostats'!BC16+'Comm 95+ Furnace - New'!BC16+'Comm 95+% Furnace - Replace'!BC16+Custom!BC16,0) -> 0 | BD16: 0 | BE16: 40672 | BH16: 2018 | BI16: =+ROUND('Res .95+% Res Furnace - NEW'!BH16+'Res .95+% Res Furnace - Replace'!BI16+'Programmable Thermostats'!BI16+'Comm 95+ Furnace - New'!BI16+'Comm 95+% Furnace - Replace'!BI16+Custom!BI16,0) -> 0 | BJ16: =+ROUND('Res .95+% Res Furnace - NEW'!BI16+'Res .95+% Res Furnace - Replace'!BJ16+'Programmable Thermostats'!BJ16+'Comm 95+ Furnace - New'!BJ16+'Comm 95+% Furnace - Replace'!BJ16+Custom!BJ16,0) -> 6604 | BL16: =+ROUND('Res .95+% Res Furnace - NEW'!BK16+'Res .95+% Res Furnace - Replace'!BL16+'Programmable Thermostats'!BL16+'Comm 95+ Furnace - New'!BL16+'Comm 95+% Furnace - Replace'!BL16+Custom!BL16,0) -> 47211 | BN16: =+ROUND('Res .95+% Res Furnace - NEW'!BM16+'Res .95+% Res Furnace - Replace'!BN16+'Programmable Thermostats'!BN16+'Comm 95+ Furnace - New'!BN16+'Comm 95+% Furnace - Replace'!BN16+Custom!BN16,0) -> 52467 | BP16: 99678 | BR16: =+ROUND('Res .95+% Res Furnace - NEW'!BQ16+'Res .95+% Res Furnace - Replace'!BR16+'Programmable Thermostats'!BR16+'Comm 95+ Furnace - New'!BR16+'Comm 95+% Furnace - Replace'!BR16+Custom!BR16,0) -> 0 | BT16: 99678 | BW16: 2018 | BX16: 19483 | BY16: 9784 | BZ16: 8815 | CA16: 38082 | CC16: 0 | CD16: 0 | CE16: 0 | CG16: 38082
A17: 3) Commodity Cost ($/Dk) = | E17: 18) Participant Non-Energy Costs (Annual $/Part.) = | J17: 5 | L17: 2019 | M17: =+ROUND('Res .95+% Res Furnace - NEW'!M17+'Res .95+% Res Furnace - Replace'!M17+'Programmable Thermostats'!M17+'Comm 95+ Furnace - New'!M17+'Comm 95+% Furnace - Replace'!M17+Custom!M17,0) -> 6604 | O17: =+ROUND('Res .95+% Res Furnace - NEW'!O17+'Res .95+% Res Furnace - Replace'!O17+'Programmable Thermostats'!O17+'Comm 95+ Furnace - New'!O17+'Comm 95+% Furnace - Replace'!O17+Custom!O17,0) -> 20169 | Q17: =+ROUND('Res .95+% Res Furnace - NEW'!Q17+'Res .95+% Res Furnace - Replace'!Q17+'Programmable Thermostats'!Q17+'Comm 95+ Furnace - New'!Q17+'Comm 95+% Furnace - Replace'!Q17+Custom!Q17,0) -> 0 | R17: 20169 | S17: =+ROUND('Res .95+% Res Furnace - NEW'!S17+'Res .95+% Res Furnace - Replace'!S17+'Programmable Thermostats'!S17+'Comm 95+ Furnace - New'!S17+'Comm 95+% Furnace - Replace'!S17+Custom!S17,0) -> 66 | U17: =+ROUND('Res .95+% Res Furnace - NEW'!U17+'Res .95+% Res Furnace - Replace'!U17+'Programmable Thermostats'!U17+'Comm 95+ Furnace - New'!U17+'Comm 95+% Furnace - Replace'!U17+Custom!U17,0) -> 9849 | V17: 30018 | X17: =+ROUND('Res .95+% Res Furnace - NEW'!X17+'Res .95+% Res Furnace - Replace'!X17+'Programmable Thermostats'!X17+'Comm 95+ Furnace - New'!X17+'Comm 95+% Furnace - Replace'!X17+Custom!X17,0) -> 8971 | Y17: =+ROUND('Res .95+% Res Furnace - NEW'!Y17+'Res .95+% Res Furnace - Replace'!Y17+'Programmable Thermostats'!Y17+'Comm 95+ Furnace - New'!Y17+'Comm 95+% Furnace - Replace'!Y17+Custom!Y17,0) -> 0 | Z17: =+ROUND('Res .95+% Res Furnace - NEW'!Z17+'Res .95+% Res Furnace - Replace'!Z17+'Programmable Thermostats'!Z17+'Comm 95+ Furnace - New'!Z17+'Comm 95+% Furnace - Replace'!Z17+Custom!Z17,0) -> 0 | AA17: 8971 | AB17: 21047 | AE17: 2019 | AF17: 20169 | AG17: 9849 | AH17: 30018 | AJ17: 0 | AK17: 0 | AL17: 0 | AN17: 30018 | AQ17: 2019 | AR17: 20169 | AS17: 9849 | AU17: =+ROUND('Res .95+% Res Furnace - NEW'!AT17+'Res .95+% Res Furnace - Replace'!AU17+'Programmable Thermostats'!AU17+'Comm 95+ Furnace - New'!AU17+'Comm 95+% Furnace - Replace'!AU17+Custom!AU17,0) -> 9141 | AW17: =+ROUND('Res .95+% Res Furnace - NEW'!AV17+'Res .95+% Res Furnace - Replace'!AW17+'Programmable Thermostats'!AW17+'Comm 95+ Furnace - New'!AW17+'Comm 95+% Furnace - Replace'!AW17+Custom!AW17,0) -> 2649 | AZ17: 41808 | BB17: =+ROUND('Res .95+% Res Furnace - NEW'!BA17+'Res .95+% Res Furnace - Replace'!BB17+'Programmable Thermostats'!BB17+'Comm 95+ Furnace - New'!BB17+'Comm 95+% Furnace - Replace'!BB17+Custom!BB17,0) -> 0 | BC17: =+ROUND('Res .95+% Res Furnace - NEW'!BB17+'Res .95+% Res Furnace - Replace'!BC17+'Programmable Thermostats'!BC17+'Comm 95+ Furnace - New'!BC17+'Comm 95+% Furnace - Replace'!BC17+Custom!BC17,0) -> 0 | BD17: 0 | BE17: 41808 | BH17: 2019 | BI17: =+ROUND('Res .95+% Res Furnace - NEW'!BH17+'Res .95+% Res Furnace - Replace'!BI17+'Programmable Thermostats'!BI17+'Comm 95+ Furnace - New'!BI17+'Comm 95+% Furnace - Replace'!BI17+Custom!BI17,0) -> 0 | BJ17: =+ROUND('Res .95+% Res Furnace - NEW'!BI17+'Res .95+% Res Furnace - Replace'!BJ17+'Programmable Thermostats'!BJ17+'Comm 95+ Furnace - New'!BJ17+'Comm 95+% Furnace - Replace'!BJ17+Custom!BJ17,0) -> 6604 | BL17: =+ROUND('Res .95+% Res Furnace - NEW'!BK17+'Res .95+% Res Furnace - Replace'!BL17+'Programmable Thermostats'!BL17+'Comm 95+ Furnace - New'!BL17+'Comm 95+% Furnace - Replace'!BL17+Custom!BL17,0) -> 48861 | BN17: =+ROUND('Res .95+% Res Furnace - NEW'!BM17+'Res .95+% Res Furnace - Replace'!BN17+'Programmable Thermostats'!BN17+'Comm 95+ Furnace - New'!BN17+'Comm 95+% Furnace - Replace'!BN17+Custom!BN17,0) -> 54416 | BP17: 103277 | BR17: =+ROUND('Res .95+% Res Furnace - NEW'!BQ17+'Res .95+% Res Furnace - Replace'!BR17+'Programmable Thermostats'!BR17+'Comm 95+ Furnace - New'!BR17+'Comm 95+% Furnace - Replace'!BR17+Custom!BR17,0) -> 0 | BT17: 103277 | BW17: 2019 | BX17: 20169 | BY17: 9849 | BZ17: 9141 | CA17: 39159 | CC17: 0 | CD17: 0 | CE17: 0 | CG17: 39159
A18: Escalation Rate = | E18: Escalation Rate = | J18: 6 | L18: 2020 | M18: =+ROUND('Res .95+% Res Furnace - NEW'!M18+'Res .95+% Res Furnace - Replace'!M18+'Programmable Thermostats'!M18+'Comm 95+ Furnace - New'!M18+'Comm 95+% Furnace - Replace'!M18+Custom!M18,0) -> 6604 | O18: =+ROUND('Res .95+% Res Furnace - NEW'!O18+'Res .95+% Res Furnace - Replace'!O18+'Programmable Thermostats'!O18+'Comm 95+ Furnace - New'!O18+'Comm 95+% Furnace - Replace'!O18+Custom!O18,0) -> 20869 | Q18: =+ROUND('Res .95+% Res Furnace - NEW'!Q18+'Res .95+% Res Furnace - Replace'!Q18+'Programmable Thermostats'!Q18+'Comm 95+ Furnace - New'!Q18+'Comm 95+% Furnace - Replace'!Q18+Custom!Q18,0) -> 0 | R18: 20869 | S18: =+ROUND('Res .95+% Res Furnace - NEW'!S18+'Res .95+% Res Furnace - Replace'!S18+'Programmable Thermostats'!S18+'Comm 95+ Furnace - New'!S18+'Comm 95+% Furnace - Replace'!S18+Custom!S18,0) -> 66 | U18: =+ROUND('Res .95+% Res Furnace - NEW'!U18+'Res .95+% Res Furnace - Replace'!U18+'Programmable Thermostats'!U18+'Comm 95+ Furnace - New'!U18+'Comm 95+% Furnace - Replace'!U18+Custom!U18,0) -> 9981 | V18: 30850 | X18: =+ROUND('Res .95+% Res Furnace - NEW'!X18+'Res .95+% Res Furnace - Replace'!X18+'Programmable Thermostats'!X18+'Comm 95+ Furnace - New'!X18+'Comm 95+% Furnace - Replace'!X18+Custom!X18,0) -> 9283 | Y18: =+ROUND('Res .95+% Res Furnace - NEW'!Y18+'Res .95+% Res Furnace - Replace'!Y18+'Programmable Thermostats'!Y18+'Comm 95+ Furnace - New'!Y18+'Comm 95+% Furnace - Replace'!Y18+Custom!Y18,0) -> 0 | Z18: =+ROUND('Res .95+% Res Furnace - NEW'!Z18+'Res .95+% Res Furnace - Replace'!Z18+'Programmable Thermostats'!Z18+'Comm 95+ Furnace - New'!Z18+'Comm 95+% Furnace - Replace'!Z18+Custom!Z18,0) -> 0 | AA18: 9283 | AB18: 21567 | AE18: 2020 | AF18: 20869 | AG18: 9981 | AH18: 30850 | AJ18: 0 | AK18: 0 | AL18: 0 | AN18: 30850 | AQ18: 2020 | AR18: 20869 | AS18: 9981 | AU18: =+ROUND('Res .95+% Res Furnace - NEW'!AT18+'Res .95+% Res Furnace - Replace'!AU18+'Programmable Thermostats'!AU18+'Comm 95+ Furnace - New'!AU18+'Comm 95+% Furnace - Replace'!AU18+Custom!AU18,0) -> 9468 | AW18: =+ROUND('Res .95+% Res Furnace - NEW'!AV18+'Res .95+% Res Furnace - Replace'!AW18+'Programmable Thermostats'!AW18+'Comm 95+ Furnace - New'!AW18+'Comm 95+% Furnace - Replace'!AW18+Custom!AW18,0) -> 2707 | AZ18: 43025 | BB18: =+ROUND('Res .95+% Res Furnace - NEW'!BA18+'Res .95+% Res Furnace - Replace'!BB18+'Programmable Thermostats'!BB18+'Comm 95+ Furnace - New'!BB18+'Comm 95+% Furnace - Replace'!BB18+Custom!BB18,0) -> 0 | BC18: =+ROUND('Res .95+% Res Furnace - NEW'!BB18+'Res .95+% Res Furnace - Replace'!BC18+'Programmable Thermostats'!BC18+'Comm 95+ Furnace - New'!BC18+'Comm 95+% Furnace - Replace'!BC18+Custom!BC18,0) -> 0 | BD18: 0 | BE18: 43025 | BH18: 2020 | BI18: =+ROUND('Res .95+% Res Furnace - NEW'!BH18+'Res .95+% Res Furnace - Replace'!BI18+'Programmable Thermostats'!BI18+'Comm 95+ Furnace - New'!BI18+'Comm 95+% Furnace - Replace'!BI18+Custom!BI18,0) -> 0 | BJ18: =+ROUND('Res .95+% Res Furnace - NEW'!BI18+'Res .95+% Res Furnace - Replace'!BJ18+'Programmable Thermostats'!BJ18+'Comm 95+ Furnace - New'!BJ18+'Comm 95+% Furnace - Replace'!BJ18+Custom!BJ18,0) -> 6604 | BL18: =+ROUND('Res .95+% Res Furnace - NEW'!BK18+'Res .95+% Res Furnace - Replace'!BL18+'Programmable Thermostats'!BL18+'Comm 95+ Furnace - New'!BL18+'Comm 95+% Furnace - Replace'!BL18+Custom!BL18,0) -> 50572 | BN18: =+ROUND('Res .95+% Res Furnace - NEW'!BM18+'Res .95+% Res Furnace - Replace'!BN18+'Programmable Thermostats'!BN18+'Comm 95+ Furnace - New'!BN18+'Comm 95+% Furnace - Replace'!BN18+Custom!BN18,0) -> 56058 | BP18: 106630 | BR18: =+ROUND('Res .95+% Res Furnace - NEW'!BQ18+'Res .95+% Res Furnace - Replace'!BR18+'Programmable Thermostats'!BR18+'Comm 95+ Furnace - New'!BR18+'Comm 95+% Furnace - Replace'!BR18+Custom!BR18,0) -> 0 | BT18: 106630 | BW18: 2020 | BX18: 20869 | BY18: 9981 | BZ18: 9468 | CA18: 40318 | CC18: 0 | CD18: 0 | CE18: 0 | CG18: 40318 | DB18: t
J19: 7 | L19: 2021 | M19: =+ROUND('Res .95+% Res Furnace - NEW'!M19+'Res .95+% Res Furnace - Replace'!M19+'Programmable Thermostats'!M19+'Comm 95+ Furnace - New'!M19+'Comm 95+% Furnace - Replace'!M19+Custom!M19,0) -> 6604 | O19: =+ROUND('Res .95+% Res Furnace - NEW'!O19+'Res .95+% Res Furnace - Replace'!O19+'Programmable Thermostats'!O19+'Comm 95+ Furnace - New'!O19+'Comm 95+% Furnace - Replace'!O19+Custom!O19,0) -> 21602 | Q19: =+ROUND('Res .95+% Res Furnace - NEW'!Q19+'Res .95+% Res Furnace - Replace'!Q19+'Programmable Thermostats'!Q19+'Comm 95+ Furnace - New'!Q19+'Comm 95+% Furnace - Replace'!Q19+Custom!Q19,0) -> 0 | R19: 21602 | S19: =+ROUND('Res .95+% Res Furnace - NEW'!S19+'Res .95+% Res Furnace - Replace'!S19+'Programmable Thermostats'!S19+'Comm 95+ Furnace - New'!S19+'Comm 95+% Furnace - Replace'!S19+Custom!S19,0) -> 66 | U19: =+ROUND('Res .95+% Res Furnace - NEW'!U19+'Res .95+% Res Furnace - Replace'!U19+'Programmable Thermostats'!U19+'Comm 95+ Furnace - New'!U19+'Comm 95+% Furnace - Replace'!U19+Custom!U19,0) -> 10046 | V19: 31648 | X19: =+ROUND('Res .95+% Res Furnace - NEW'!X19+'Res .95+% Res Furnace - Replace'!X19+'Programmable Thermostats'!X19+'Comm 95+ Furnace - New'!X19+'Comm 95+% Furnace - Replace'!X19+Custom!X19,0) -> 9606 | Y19: =+ROUND('Res .95+% Res Furnace - NEW'!Y19+'Res .95+% Res Furnace - Replace'!Y19+'Programmable Thermostats'!Y19+'Comm 95+ Furnace - New'!Y19+'Comm 95+% Furnace - Replace'!Y19+Custom!Y19,0) -> 0 | Z19: =+ROUND('Res .95+% Res Furnace - NEW'!Z19+'Res .95+% Res Furnace - Replace'!Z19+'Programmable Thermostats'!Z19+'Comm 95+ Furnace - New'!Z19+'Comm 95+% Furnace - Replace'!Z19+Custom!Z19,0) -> 0 | AA19: 9606 | AB19: 22042 | AE19: 2021 | AF19: 21602 | AG19: 10046 | AH19: 31648 | AJ19: 0 | AK19: 0 | AL19: 0 | AN19: 31648 | AQ19: 2021 | AR19: 21602 | AS19: 10046 | AU19: =+ROUND('Res .95+% Res Furnace - NEW'!AT19+'Res .95+% Res Furnace - Replace'!AU19+'Programmable Thermostats'!AU19+'Comm 95+ Furnace - New'!AU19+'Comm 95+% Furnace - Replace'!AU19+Custom!AU19,0) -> 9794 | AW19: =+ROUND('Res .95+% Res Furnace - NEW'!AV19+'Res .95+% Res Furnace - Replace'!AW19+'Programmable Thermostats'!AW19+'Comm 95+ Furnace - New'!AW19+'Comm 95+% Furnace - Replace'!AW19+Custom!AW19,0) -> 2774 | AZ19: 44216 | BB19: =+ROUND('Res .95+% Res Furnace - NEW'!BA19+'Res .95+% Res Furnace - Replace'!BB19+'Programmable Thermostats'!BB19+'Comm 95+ Furnace - New'!BB19+'Comm 95+% Furnace - Replace'!BB19+Custom!BB19,0) -> 0 | BC19: =+ROUND('Res .95+% Res Furnace - NEW'!BB19+'Res .95+% Res Furnace - Replace'!BC19+'Programmable Thermostats'!BC19+'Comm 95+ Furnace - New'!BC19+'Comm 95+% Furnace - Replace'!BC19+Custom!BC19,0) -> 0 | BD19: 0 | BE19: 44216 | BH19: 2021 | BI19: =+ROUND('Res .95+% Res Furnace - NEW'!BH19+'Res .95+% Res Furnace - Replace'!BI19+'Programmable Thermostats'!BI19+'Comm 95+ Furnace - New'!BI19+'Comm 95+% Furnace - Replace'!BI19+Custom!BI19,0) -> 0 | BJ19: =+ROUND('Res .95+% Res Furnace - NEW'!BI19+'Res .95+% Res Furnace - Replace'!BJ19+'Programmable Thermostats'!BJ19+'Comm 95+ Furnace - New'!BJ19+'Comm 95+% Furnace - Replace'!BJ19+Custom!BJ19,0) -> 6604 | BL19: =+ROUND('Res .95+% Res Furnace - NEW'!BK19+'Res .95+% Res Furnace - Replace'!BL19+'Programmable Thermostats'!BL19+'Comm 95+ Furnace - New'!BL19+'Comm 95+% Furnace - Replace'!BL19+Custom!BL19,0) -> 52337 | BN19: =+ROUND('Res .95+% Res Furnace - NEW'!BM19+'Res .95+% Res Furnace - Replace'!BN19+'Programmable Thermostats'!BN19+'Comm 95+ Furnace - New'!BN19+'Comm 95+% Furnace - Replace'!BN19+Custom!BN19,0) -> 58007 | BP19: 110344 | BR19: =+ROUND('Res .95+% Res Furnace - NEW'!BQ19+'Res .95+% Res Furnace - Replace'!BR19+'Programmable Thermostats'!BR19+'Comm 95+ Furnace - New'!BR19+'Comm 95+% Furnace - Replace'!BR19+Custom!BR19,0) -> 0 | BT19: 110344 | BW19: 2021 | BX19: 21602 | BY19: 10046 | BZ19: 9794 | CA19: 41442 | CC19: 0 | CD19: 0 | CE19: 0 | CG19: 41442
A20: 4) Demand Cost ($/Unit/Yr) = | E20: 19) Participant Non-Energy Savings (Annual $/Part) = | J20: 8 | L20: 2022 | M20: =+ROUND('Res .95+% Res Furnace - NEW'!M20+'Res .95+% Res Furnace - Replace'!M20+'Programmable Thermostats'!M20+'Comm 95+ Furnace - New'!M20+'Comm 95+% Furnace - Replace'!M20+Custom!M20,0) -> 6604 | O20: =+ROUND('Res .95+% Res Furnace - NEW'!O20+'Res .95+% Res Furnace - Replace'!O20+'Programmable Thermostats'!O20+'Comm 95+ Furnace - New'!O20+'Comm 95+% Furnace - Replace'!O20+Custom!O20,0) -> 22361 | Q20: =+ROUND('Res .95+% Res Furnace - NEW'!Q20+'Res .95+% Res Furnace - Replace'!Q20+'Programmable Thermostats'!Q20+'Comm 95+ Furnace - New'!Q20+'Comm 95+% Furnace - Replace'!Q20+Custom!Q20,0) -> 0 | R20: 22361 | S20: =+ROUND('Res .95+% Res Furnace - NEW'!S20+'Res .95+% Res Furnace - Replace'!S20+'Programmable Thermostats'!S20+'Comm 95+ Furnace - New'!S20+'Comm 95+% Furnace - Replace'!S20+Custom!S20,0) -> 66 | U20: =+ROUND('Res .95+% Res Furnace - NEW'!U20+'Res .95+% Res Furnace - Replace'!U20+'Programmable Thermostats'!U20+'Comm 95+ Furnace - New'!U20+'Comm 95+% Furnace - Replace'!U20+Custom!U20,0) -> 10179 | V20: 32540 | X20: =+ROUND('Res .95+% Res Furnace - NEW'!X20+'Res .95+% Res Furnace - Replace'!X20+'Programmable Thermostats'!X20+'Comm 95+ Furnace - New'!X20+'Comm 95+% Furnace - Replace'!X20+Custom!X20,0) -> 9943 | Y20: =+ROUND('Res .95+% Res Furnace - NEW'!Y20+'Res .95+% Res Furnace - Replace'!Y20+'Programmable Thermostats'!Y20+'Comm 95+ Furnace - New'!Y20+'Comm 95+% Furnace - Replace'!Y20+Custom!Y20,0) -> 0 | Z20: =+ROUND('Res .95+% Res Furnace - NEW'!Z20+'Res .95+% Res Furnace - Replace'!Z20+'Programmable Thermostats'!Z20+'Comm 95+ Furnace - New'!Z20+'Comm 95+% Furnace - Replace'!Z20+Custom!Z20,0) -> 0 | AA20: 9943 | AB20: 22597 | AE20: 2022 | AF20: 22361 | AG20: 10179 | AH20: 32540 | AJ20: 0 | AK20: 0 | AL20: 0 | AN20: 32540 | AQ20: 2022 | AR20: 22361 | AS20: 10179 | AU20: =+ROUND('Res .95+% Res Furnace - NEW'!AT20+'Res .95+% Res Furnace - Replace'!AU20+'Programmable Thermostats'!AU20+'Comm 95+ Furnace - New'!AU20+'Comm 95+% Furnace - Replace'!AU20+Custom!AU20,0) -> 10121 | AW20: =+ROUND('Res .95+% Res Furnace - NEW'!AV20+'Res .95+% Res Furnace - Replace'!AW20+'Programmable Thermostats'!AW20+'Comm 95+ Furnace - New'!AW20+'Comm 95+% Furnace - Replace'!AW20+Custom!AW20,0) -> 2832 | AZ20: 45493 | BB20: =+ROUND('Res .95+% Res Furnace - NEW'!BA20+'Res .95+% Res Furnace - Replace'!BB20+'Programmable Thermostats'!BB20+'Comm 95+ Furnace - New'!BB20+'Comm 95+% Furnace - Replace'!BB20+Custom!BB20,0) -> 0 | BC20: =+ROUND('Res .95+% Res Furnace - NEW'!BB20+'Res .95+% Res Furnace - Replace'!BC20+'Programmable Thermostats'!BC20+'Comm 95+ Furnace - New'!BC20+'Comm 95+% Furnace - Replace'!BC20+Custom!BC20,0) -> 0 | BD20: 0 | BE20: 45493 | BH20: 2022 | BI20: =+ROUND('Res .95+% Res Furnace - NEW'!BH20+'Res .95+% Res Furnace - Replace'!BI20+'Programmable Thermostats'!BI20+'Comm 95+ Furnace - New'!BI20+'Comm 95+% Furnace - Replace'!BI20+Custom!BI20,0) -> 0 | BJ20: =+ROUND('Res .95+% Res Furnace - NEW'!BI20+'Res .95+% Res Furnace - Replace'!BJ20+'Programmable Thermostats'!BJ20+'Comm 95+ Furnace - New'!BJ20+'Comm 95+% Furnace - Replace'!BJ20+Custom!BJ20,0) -> 6604 | BL20: =+ROUND('Res .95+% Res Furnace - NEW'!BK20+'Res .95+% Res Furnace - Replace'!BL20+'Programmable Thermostats'!BL20+'Comm 95+ Furnace - New'!BL20+'Comm 95+% Furnace - Replace'!BL20+Custom!BL20,0) -> 54174 | BN20: =+ROUND('Res .95+% Res Furnace - NEW'!BM20+'Res .95+% Res Furnace - Replace'!BN20+'Programmable Thermostats'!BN20+'Comm 95+ Furnace - New'!BN20+'Comm 95+% Furnace - Replace'!BN20+Custom!BN20,0) -> 60283 | BP20: 114457 | BR20: =+ROUND('Res .95+% Res Furnace - NEW'!BQ20+'Res .95+% Res Furnace - Replace'!BR20+'Programmable Thermostats'!BR20+'Comm 95+ Furnace - New'!BR20+'Comm 95+% Furnace - Replace'!BR20+Custom!BR20,0) -> 0 | BT20: 114457 | BW20: 2022 | BX20: 22361 | BY20: 10179 | BZ20: 10121 | CA20: 42661 | CC20: 0 | CD20: 0 | CE20: 0 | CG20: 42661
A21: Escalation Rate = | E21: Escalation Rate = | J21: 9 | L21: 2023 | M21: =+ROUND('Res .95+% Res Furnace - NEW'!M21+'Res .95+% Res Furnace - Replace'!M21+'Programmable Thermostats'!M21+'Comm 95+ Furnace - New'!M21+'Comm 95+% Furnace - Replace'!M21+Custom!M21,0) -> 6604 | O21: =+ROUND('Res .95+% Res Furnace - NEW'!O21+'Res .95+% Res Furnace - Replace'!O21+'Programmable Thermostats'!O21+'Comm 95+ Furnace - New'!O21+'Comm 95+% Furnace - Replace'!O21+Custom!O21,0) -> 23141 | Q21: =+ROUND('Res .95+% Res Furnace - NEW'!Q21+'Res .95+% Res Furnace - Replace'!Q21+'Programmable Thermostats'!Q21+'Comm 95+ Furnace - New'!Q21+'Comm 95+% Furnace - Replace'!Q21+Custom!Q21,0) -> 0 | R21: 23141 | S21: =+ROUND('Res .95+% Res Furnace - NEW'!S21+'Res .95+% Res Furnace - Replace'!S21+'Programmable Thermostats'!S21+'Comm 95+ Furnace - New'!S21+'Comm 95+% Furnace - Replace'!S21+Custom!S21,0) -> 66 | U21: =+ROUND('Res .95+% Res Furnace - NEW'!U21+'Res .95+% Res Furnace - Replace'!U21+'Programmable Thermostats'!U21+'Comm 95+ Furnace - New'!U21+'Comm 95+% Furnace - Replace'!U21+Custom!U21,0) -> 10247 | V21: 33388 | X21: =+ROUND('Res .95+% Res Furnace - NEW'!X21+'Res .95+% Res Furnace - Replace'!X21+'Programmable Thermostats'!X21+'Comm 95+ Furnace - New'!X21+'Comm 95+% Furnace - Replace'!X21+Custom!X21,0) -> 10290 | Y21: =+ROUND('Res .95+% Res Furnace - NEW'!Y21+'Res .95+% Res Furnace - Replace'!Y21+'Programmable Thermostats'!Y21+'Comm 95+ Furnace - New'!Y21+'Comm 95+% Furnace - Replace'!Y21+Custom!Y21,0) -> 0 | Z21: =+ROUND('Res .95+% Res Furnace - NEW'!Z21+'Res .95+% Res Furnace - Replace'!Z21+'Programmable Thermostats'!Z21+'Comm 95+ Furnace - New'!Z21+'Comm 95+% Furnace - Replace'!Z21+Custom!Z21,0) -> 0 | AA21: 10290 | AB21: 23098 | AE21: 2023 | AF21: 23141 | AG21: 10247 | AH21: 33388 | AJ21: 0 | AK21: 0 | AL21: 0 | AN21: 33388 | AQ21: 2023 | AR21: 23141 | AS21: 10247 | AU21: =+ROUND('Res .95+% Res Furnace - NEW'!AT21+'Res .95+% Res Furnace - Replace'!AU21+'Programmable Thermostats'!AU21+'Comm 95+ Furnace - New'!AU21+'Comm 95+% Furnace - Replace'!AU21+Custom!AU21,0) -> 10447 | AW21: =+ROUND('Res .95+% Res Furnace - NEW'!AV21+'Res .95+% Res Furnace - Replace'!AW21+'Programmable Thermostats'!AW21+'Comm 95+ Furnace - New'!AW21+'Comm 95+% Furnace - Replace'!AW21+Custom!AW21,0) -> 2901 | AZ21: 46736 | BB21: =+ROUND('Res .95+% Res Furnace - NEW'!BA21+'Res .95+% Res Furnace - Replace'!BB21+'Programmable Thermostats'!BB21+'Comm 95+ Furnace - New'!BB21+'Comm 95+% Furnace - Replace'!BB21+Custom!BB21,0) -> 0 | BC21: =+ROUND('Res .95+% Res Furnace - NEW'!BB21+'Res .95+% Res Furnace - Replace'!BC21+'Programmable Thermostats'!BC21+'Comm 95+ Furnace - New'!BC21+'Comm 95+% Furnace - Replace'!BC21+Custom!BC21,0) -> 0 | BD21: 0 | BE21: 46736 | BH21: 2023 | BI21: =+ROUND('Res .95+% Res Furnace - NEW'!BH21+'Res .95+% Res Furnace - Replace'!BI21+'Programmable Thermostats'!BI21+'Comm 95+ Furnace - New'!BI21+'Comm 95+% Furnace - Replace'!BI21+Custom!BI21,0) -> 0 | BJ21: =+ROUND('Res .95+% Res Furnace - NEW'!BI21+'Res .95+% Res Furnace - Replace'!BJ21+'Programmable Thermostats'!BJ21+'Comm 95+ Furnace - New'!BJ21+'Comm 95+% Furnace - Replace'!BJ21+Custom!BJ21,0) -> 6604 | BL21: =+ROUND('Res .95+% Res Furnace - NEW'!BK21+'Res .95+% Res Furnace - Replace'!BL21+'Programmable Thermostats'!BL21+'Comm 95+ Furnace - New'!BL21+'Comm 95+% Furnace - Replace'!BL21+Custom!BL21,0) -> 56068 | BN21: =+ROUND('Res .95+% Res Furnace - NEW'!BM21+'Res .95+% Res Furnace - Replace'!BN21+'Programmable Thermostats'!BN21+'Comm 95+ Furnace - New'!BN21+'Comm 95+% Furnace - Replace'!BN21+Custom!BN21,0) -> 62242 | BP21: 118310 | BR21: =+ROUND('Res .95+% Res Furnace - NEW'!BQ21+'Res .95+% Res Furnace - Replace'!BR21+'Programmable Thermostats'!BR21+'Comm 95+ Furnace - New'!BR21+'Comm 95+% Furnace - Replace'!BR21+Custom!BR21,0) -> 0 | BT21: 118310 | BW21: 2023 | BX21: 23141 | BY21: 10247 | BZ21: 10447 | CA21: 43835 | CC21: 0 | CD21: 0 | CE21: 0 | CG21: 43835 | DB21: =$J14 -> 2
J22: 10 | L22: 2024 | M22: =+ROUND('Res .95+% Res Furnace - NEW'!M22+'Res .95+% Res Furnace - Replace'!M22+'Programmable Thermostats'!M22+'Comm 95+ Furnace - New'!M22+'Comm 95+% Furnace - Replace'!M22+Custom!M22,0) -> 6604 | O22: =+ROUND('Res .95+% Res Furnace - NEW'!O22+'Res .95+% Res Furnace - Replace'!O22+'Programmable Thermostats'!O22+'Comm 95+ Furnace - New'!O22+'Comm 95+% Furnace - Replace'!O22+Custom!O22,0) -> 23952 | Q22: =+ROUND('Res .95+% Res Furnace - NEW'!Q22+'Res .95+% Res Furnace - Replace'!Q22+'Programmable Thermostats'!Q22+'Comm 95+ Furnace - New'!Q22+'Comm 95+% Furnace - Replace'!Q22+Custom!Q22,0) -> 0 | R22: 23952 | S22: =+ROUND('Res .95+% Res Furnace - NEW'!S22+'Res .95+% Res Furnace - Replace'!S22+'Programmable Thermostats'!S22+'Comm 95+ Furnace - New'!S22+'Comm 95+% Furnace - Replace'!S22+Custom!S22,0) -> 66 | U22: =+ROUND('Res .95+% Res Furnace - NEW'!U22+'Res .95+% Res Furnace - Replace'!U22+'Programmable Thermostats'!U22+'Comm 95+ Furnace - New'!U22+'Comm 95+% Furnace - Replace'!U22+Custom!U22,0) -> 10377 | V22: 34329 | X22: =+ROUND('Res .95+% Res Furnace - NEW'!X22+'Res .95+% Res Furnace - Replace'!X22+'Programmable Thermostats'!X22+'Comm 95+ Furnace - New'!X22+'Comm 95+% Furnace - Replace'!X22+Custom!X22,0) -> 10653 | Y22: =+ROUND('Res .95+% Res Furnace - NEW'!Y22+'Res .95+% Res Furnace - Replace'!Y22+'Programmable Thermostats'!Y22+'Comm 95+ Furnace - New'!Y22+'Comm 95+% Furnace - Replace'!Y22+Custom!Y22,0) -> 0 | Z22: =+ROUND('Res .95+% Res Furnace - NEW'!Z22+'Res .95+% Res Furnace - Replace'!Z22+'Programmable Thermostats'!Z22+'Comm 95+ Furnace - New'!Z22+'Comm 95+% Furnace - Replace'!Z22+Custom!Z22,0) -> 0 | AA22: 10653 | AB22: 23676 | AE22: 2024 | AF22: 23952 | AG22: 10377 | AH22: 34329 | AJ22: 0 | AK22: 0 | AL22: 0 | AN22: 34329 | AQ22: 2024 | AR22: 23952 | AS22: 10377 | AU22: =+ROUND('Res .95+% Res Furnace - NEW'!AT22+'Res .95+% Res Furnace - Replace'!AU22+'Programmable Thermostats'!AU22+'Comm 95+ Furnace - New'!AU22+'Comm 95+% Furnace - Replace'!AU22+Custom!AU22,0) -> 10774 | AW22: =+ROUND('Res .95+% Res Furnace - NEW'!AV22+'Res .95+% Res Furnace - Replace'!AW22+'Programmable Thermostats'!AW22+'Comm 95+ Furnace - New'!AW22+'Comm 95+% Furnace - Replace'!AW22+Custom!AW22,0) -> 2965 | AZ22: 48068 | BB22: =+ROUND('Res .95+% Res Furnace - NEW'!BA22+'Res .95+% Res Furnace - Replace'!BB22+'Programmable Thermostats'!BB22+'Comm 95+ Furnace - New'!BB22+'Comm 95+% Furnace - Replace'!BB22+Custom!BB22,0) -> 0 | BC22: =+ROUND('Res .95+% Res Furnace - NEW'!BB22+'Res .95+% Res Furnace - Replace'!BC22+'Programmable Thermostats'!BC22+'Comm 95+ Furnace - New'!BC22+'Comm 95+% Furnace - Replace'!BC22+Custom!BC22,0) -> 0 | BD22: 0 | BE22: 48068 | BH22: 2024 | BI22: =+ROUND('Res .95+% Res Furnace - NEW'!BH22+'Res .95+% Res Furnace - Replace'!BI22+'Programmable Thermostats'!BI22+'Comm 95+ Furnace - New'!BI22+'Comm 95+% Furnace - Replace'!BI22+Custom!BI22,0) -> 0 | BJ22: =+ROUND('Res .95+% Res Furnace - NEW'!BI22+'Res .95+% Res Furnace - Replace'!BJ22+'Programmable Thermostats'!BJ22+'Comm 95+ Furnace - New'!BJ22+'Comm 95+% Furnace - Replace'!BJ22+Custom!BJ22,0) -> 6604 | BL22: =+ROUND('Res .95+% Res Furnace - NEW'!BK22+'Res .95+% Res Furnace - Replace'!BL22+'Programmable Thermostats'!BL22+'Comm 95+ Furnace - New'!BL22+'Comm 95+% Furnace - Replace'!BL22+Custom!BL22,0) -> 58028 | BN22: =+ROUND('Res .95+% Res Furnace - NEW'!BM22+'Res .95+% Res Furnace - Replace'!BN22+'Programmable Thermostats'!BN22+'Comm 95+ Furnace - New'!BN22+'Comm 95+% Furnace - Replace'!BN22+Custom!BN22,0) -> 64519 | BP22: 122547 | BR22: =+ROUND('Res .95+% Res Furnace - NEW'!BQ22+'Res .95+% Res Furnace - Replace'!BR22+'Programmable Thermostats'!BR22+'Comm 95+ Furnace - New'!BR22+'Comm 95+% Furnace - Replace'!BR22+Custom!BR22,0) -> 0 | BT22: 122547 | BW22: 2024 | BX22: 23952 | BY22: 10377 | BZ22: 10774 | CA22: 45103 | CC22: 0 | CD22: 0 | CE22: 0 | CG22: 45103 | DB22: =$J15 -> 3
A23: 5) Peak Reduction Factor = | E23: 20) Project Life (Years) = | J23: 11 | L23: 2025 | M23: =+ROUND('Res .95+% Res Furnace - NEW'!M23+'Res .95+% Res Furnace - Replace'!M23+'Programmable Thermostats'!M23+'Comm 95+ Furnace - New'!M23+'Comm 95+% Furnace - Replace'!M23+Custom!M23,0) -> 6604 | O23: =+ROUND('Res .95+% Res Furnace - NEW'!O23+'Res .95+% Res Furnace - Replace'!O23+'Programmable Thermostats'!O23+'Comm 95+ Furnace - New'!O23+'Comm 95+% Furnace - Replace'!O23+Custom!O23,0) -> 24791 | Q23: =+ROUND('Res .95+% Res Furnace - NEW'!Q23+'Res .95+% Res Furnace - Replace'!Q23+'Programmable Thermostats'!Q23+'Comm 95+ Furnace - New'!Q23+'Comm 95+% Furnace - Replace'!Q23+Custom!Q23,0) -> 0 | R23: 24791 | S23: =+ROUND('Res .95+% Res Furnace - NEW'!S23+'Res .95+% Res Furnace - Replace'!S23+'Programmable Thermostats'!S23+'Comm 95+ Furnace - New'!S23+'Comm 95+% Furnace - Replace'!S23+Custom!S23,0) -> 66 | U23: =+ROUND('Res .95+% Res Furnace - NEW'!U23+'Res .95+% Res Furnace - Replace'!U23+'Programmable Thermostats'!U23+'Comm 95+ Furnace - New'!U23+'Comm 95+% Furnace - Replace'!U23+Custom!U23,0) -> 10445 | V23: 35236 | X23: =+ROUND('Res .95+% Res Furnace - NEW'!X23+'Res .95+% Res Furnace - Replace'!X23+'Programmable Thermostats'!X23+'Comm 95+ Furnace - New'!X23+'Comm 95+% Furnace - Replace'!X23+Custom!X23,0) -> 11023 | Y23: =+ROUND('Res .95+% Res Furnace - NEW'!Y23+'Res .95+% Res Furnace - Replace'!Y23+'Programmable Thermostats'!Y23+'Comm 95+ Furnace - New'!Y23+'Comm 95+% Furnace - Replace'!Y23+Custom!Y23,0) -> 0 | Z23: =+ROUND('Res .95+% Res Furnace - NEW'!Z23+'Res .95+% Res Furnace - Replace'!Z23+'Programmable Thermostats'!Z23+'Comm 95+ Furnace - New'!Z23+'Comm 95+% Furnace - Replace'!Z23+Custom!Z23,0) -> 0 | AA23: 11023 | AB23: 24213 | AE23: 2025 | AF23: 24791 | AG23: 10445 | AH23: 35236 | AJ23: 0 | AK23: 0 | AL23: 0 | AN23: 35236 | AQ23: 2025 | AR23: 24791 | AS23: 10445 | AU23: =+ROUND('Res .95+% Res Furnace - NEW'!AT23+'Res .95+% Res Furnace - Replace'!AU23+'Programmable Thermostats'!AU23+'Comm 95+ Furnace - New'!AU23+'Comm 95+% Furnace - Replace'!AU23+Custom!AU23,0) -> 11426 | AW23: =+ROUND('Res .95+% Res Furnace - NEW'!AV23+'Res .95+% Res Furnace - Replace'!AW23+'Programmable Thermostats'!AW23+'Comm 95+ Furnace - New'!AW23+'Comm 95+% Furnace - Replace'!AW23+Custom!AW23,0) -> 3037 | AZ23: 49699 | BB23: =+ROUND('Res .95+% Res Furnace - NEW'!BA23+'Res .95+% Res Furnace - Replace'!BB23+'Programmable Thermostats'!BB23+'Comm 95+ Furnace - New'!BB23+'Comm 95+% Furnace - Replace'!BB23+Custom!BB23,0) -> 0 | BC23: =+ROUND('Res .95+% Res Furnace - NEW'!BB23+'Res .95+% Res Furnace - Replace'!BC23+'Programmable Thermostats'!BC23+'Comm 95+ Furnace - New'!BC23+'Comm 95+% Furnace - Replace'!BC23+Custom!BC23,0) -> 0 | BD23: 0 | BE23: 49699 | BH23: 2025 | BI23: =+ROUND('Res .95+% Res Furnace - NEW'!BH23+'Res .95+% Res Furnace - Replace'!BI23+'Programmable Thermostats'!BI23+'Comm 95+ Furnace - New'!BI23+'Comm 95+% Furnace - Replace'!BI23+Custom!BI23,0) -> 0 | BJ23: =+ROUND('Res .95+% Res Furnace - NEW'!BI23+'Res .95+% Res Furnace - Replace'!BJ23+'Programmable Thermostats'!BJ23+'Comm 95+ Furnace - New'!BJ23+'Comm 95+% Furnace - Replace'!BJ23+Custom!BJ23,0) -> 6604 | BL23: =+ROUND('Res .95+% Res Furnace - NEW'!BK23+'Res .95+% Res Furnace - Replace'!BL23+'Programmable Thermostats'!BL23+'Comm 95+ Furnace - New'!BL23+'Comm 95+% Furnace - Replace'!BL23+Custom!BL23,0) -> 60063 | BN23: =+ROUND('Res .95+% Res Furnace - NEW'!BM23+'Res .95+% Res Furnace - Replace'!BN23+'Programmable Thermostats'!BN23+'Comm 95+ Furnace - New'!BN23+'Comm 95+% Furnace - Replace'!BN23+Custom!BN23,0) -> 66803 | BP23: 126866 | BR23: =+ROUND('Res .95+% Res Furnace - NEW'!BQ23+'Res .95+% Res Furnace - Replace'!BR23+'Programmable Thermostats'!BR23+'Comm 95+ Furnace - New'!BR23+'Comm 95+% Furnace - Replace'!BR23+Custom!BR23,0) -> 0 | BT23: 126866 | BW23: 2025 | BX23: 24791 | BY23: 10445 | BZ23: 11426 | CA23: 46662 | CC23: 0 | CD23: 0 | CE23: 0 | CG23: 46662 | DB23: =$J16 -> 4
J24: 12 | L24: 2026 | M24: =+ROUND('Res .95+% Res Furnace - NEW'!M24+'Res .95+% Res Furnace - Replace'!M24+'Programmable Thermostats'!M24+'Comm 95+ Furnace - New'!M24+'Comm 95+% Furnace - Replace'!M24+Custom!M24,0) -> 5975 | O24: =+ROUND('Res .95+% Res Furnace - NEW'!O24+'Res .95+% Res Furnace - Replace'!O24+'Programmable Thermostats'!O24+'Comm 95+ Furnace - New'!O24+'Comm 95+% Furnace - Replace'!O24+Custom!O24,0) -> 23212 | Q24: =+ROUND('Res .95+% Res Furnace - NEW'!Q24+'Res .95+% Res Furnace - Replace'!Q24+'Programmable Thermostats'!Q24+'Comm 95+ Furnace - New'!Q24+'Comm 95+% Furnace - Replace'!Q24+Custom!Q24,0) -> 0 | R24: 23212 | S24: =+ROUND('Res .95+% Res Furnace - NEW'!S24+'Res .95+% Res Furnace - Replace'!S24+'Programmable Thermostats'!S24+'Comm 95+ Furnace - New'!S24+'Comm 95+% Furnace - Replace'!S24+Custom!S24,0) -> 60 | U24: =+ROUND('Res .95+% Res Furnace - NEW'!U24+'Res .95+% Res Furnace - Replace'!U24+'Programmable Thermostats'!U24+'Comm 95+ Furnace - New'!U24+'Comm 95+% Furnace - Replace'!U24+Custom!U24,0) -> 9568 | V24: 32780 | X24: =+ROUND('Res .95+% Res Furnace - NEW'!X24+'Res .95+% Res Furnace - Replace'!X24+'Programmable Thermostats'!X24+'Comm 95+ Furnace - New'!X24+'Comm 95+% Furnace - Replace'!X24+Custom!X24,0) -> 10200 | Y24: =+ROUND('Res .95+% Res Furnace - NEW'!Y24+'Res .95+% Res Furnace - Replace'!Y24+'Programmable Thermostats'!Y24+'Comm 95+ Furnace - New'!Y24+'Comm 95+% Furnace - Replace'!Y24+Custom!Y24,0) -> 0 | Z24: =+ROUND('Res .95+% Res Furnace - NEW'!Z24+'Res .95+% Res Furnace - Replace'!Z24+'Programmable Thermostats'!Z24+'Comm 95+ Furnace - New'!Z24+'Comm 95+% Furnace - Replace'!Z24+Custom!Z24,0) -> 0 | AA24: 10200 | AB24: 22580 | AE24: 2026 | AF24: 23212 | AG24: 9568 | AH24: 32780 | AJ24: 0 | AK24: 0 | AL24: 0 | AN24: 32780 | AQ24: 2026 | AR24: 23212 | AS24: 9568 | AU24: =+ROUND('Res .95+% Res Furnace - NEW'!AT24+'Res .95+% Res Furnace - Replace'!AU24+'Programmable Thermostats'!AU24+'Comm 95+ Furnace - New'!AU24+'Comm 95+% Furnace - Replace'!AU24+Custom!AU24,0) -> 11754 | AW24: =+ROUND('Res .95+% Res Furnace - NEW'!AV24+'Res .95+% Res Furnace - Replace'!AW24+'Programmable Thermostats'!AW24+'Comm 95+ Furnace - New'!AW24+'Comm 95+% Furnace - Replace'!AW24+Custom!AW24,0) -> 2808 | AZ24: 47342 | BB24: =+ROUND('Res .95+% Res Furnace - NEW'!BA24+'Res .95+% Res Furnace - Replace'!BB24+'Programmable Thermostats'!BB24+'Comm 95+ Furnace - New'!BB24+'Comm 95+% Furnace - Replace'!BB24+Custom!BB24,0) -> 0 | BC24: =+ROUND('Res .95+% Res Furnace - NEW'!BB24+'Res .95+% Res Furnace - Replace'!BC24+'Programmable Thermostats'!BC24+'Comm 95+ Furnace - New'!BC24+'Comm 95+% Furnace - Replace'!BC24+Custom!BC24,0) -> 0 | BD24: 0 | BE24: 47342 | BH24: 2026 | BI24: =+ROUND('Res .95+% Res Furnace - NEW'!BH24+'Res .95+% Res Furnace - Replace'!BI24+'Programmable Thermostats'!BI24+'Comm 95+ Furnace - New'!BI24+'Comm 95+% Furnace - Replace'!BI24+Custom!BI24,0) -> 0 | BJ24: =+ROUND('Res .95+% Res Furnace - NEW'!BI24+'Res .95+% Res Furnace - Replace'!BJ24+'Programmable Thermostats'!BJ24+'Comm 95+ Furnace - New'!BJ24+'Comm 95+% Furnace - Replace'!BJ24+Custom!BJ24,0) -> 5975 | BL24: =+ROUND('Res .95+% Res Furnace - NEW'!BK24+'Res .95+% Res Furnace - Replace'!BL24+'Programmable Thermostats'!BL24+'Comm 95+ Furnace - New'!BL24+'Comm 95+% Furnace - Replace'!BL24+Custom!BL24,0) -> 56053 | BN24: =+ROUND('Res .95+% Res Furnace - NEW'!BM24+'Res .95+% Res Furnace - Replace'!BN24+'Programmable Thermostats'!BN24+'Comm 95+ Furnace - New'!BN24+'Comm 95+% Furnace - Replace'!BN24+Custom!BN24,0) -> 69087 | BP24: 125140 | BR24: =+ROUND('Res .95+% Res Furnace - NEW'!BQ24+'Res .95+% Res Furnace - Replace'!BR24+'Programmable Thermostats'!BR24+'Comm 95+ Furnace - New'!BR24+'Comm 95+% Furnace - Replace'!BR24+Custom!BR24,0) -> 0 | BT24: 125140 | BW24: 2026 | BX24: 23212 | BY24: 9568 | BZ24: 11754 | CA24: 44534 | CC24: 0 | CD24: 0 | CE24: 0 | CG24: 44534 | DB24: =$J17 -> 5
A25: 6) Variable O&M ($/Dk) = | E25: 21) Avg. Dk/Part. Saved = | J25: 13 | L25: 2027 | M25: =+ROUND('Res .95+% Res Furnace - NEW'!M25+'Res .95+% Res Furnace - Replace'!M25+'Programmable Thermostats'!M25+'Comm 95+ Furnace - New'!M25+'Comm 95+% Furnace - Replace'!M25+Custom!M25,0) -> 5975 | O25: =+ROUND('Res .95+% Res Furnace - NEW'!O25+'Res .95+% Res Furnace - Replace'!O25+'Programmable Thermostats'!O25+'Comm 95+ Furnace - New'!O25+'Comm 95+% Furnace - Replace'!O25+Custom!O25,0) -> 24026 | Q25: =+ROUND('Res .95+% Res Furnace - NEW'!Q25+'Res .95+% Res Furnace - Replace'!Q25+'Programmable Thermostats'!Q25+'Comm 95+ Furnace - New'!Q25+'Comm 95+% Furnace - Replace'!Q25+Custom!Q25,0) -> 0 | R25: 24026 | S25: =+ROUND('Res .95+% Res Furnace - NEW'!S25+'Res .95+% Res Furnace - Replace'!S25+'Programmable Thermostats'!S25+'Comm 95+ Furnace - New'!S25+'Comm 95+% Furnace - Replace'!S25+Custom!S25,0) -> 60 | U25: =+ROUND('Res .95+% Res Furnace - NEW'!U25+'Res .95+% Res Furnace - Replace'!U25+'Programmable Thermostats'!U25+'Comm 95+ Furnace - New'!U25+'Comm 95+% Furnace - Replace'!U25+Custom!U25,0) -> 9686 | V25: 33712 | X25: =+ROUND('Res .95+% Res Furnace - NEW'!X25+'Res .95+% Res Furnace - Replace'!X25+'Programmable Thermostats'!X25+'Comm 95+ Furnace - New'!X25+'Comm 95+% Furnace - Replace'!X25+Custom!X25,0) -> 10558 | Y25: =+ROUND('Res .95+% Res Furnace - NEW'!Y25+'Res .95+% Res Furnace - Replace'!Y25+'Programmable Thermostats'!Y25+'Comm 95+ Furnace - New'!Y25+'Comm 95+% Furnace - Replace'!Y25+Custom!Y25,0) -> 0 | Z25: =+ROUND('Res .95+% Res Furnace - NEW'!Z25+'Res .95+% Res Furnace - Replace'!Z25+'Programmable Thermostats'!Z25+'Comm 95+ Furnace - New'!Z25+'Comm 95+% Furnace - Replace'!Z25+Custom!Z25,0) -> 0 | AA25: 10558 | AB25: 23154 | AE25: 2027 | AF25: 24026 | AG25: 9686 | AH25: 33712 | AJ25: 0 | AK25: 0 | AL25: 0 | AN25: 33712 | AQ25: 2027 | AR25: 24026 | AS25: 9686 | AU25: =+ROUND('Res .95+% Res Furnace - NEW'!AT25+'Res .95+% Res Furnace - Replace'!AU25+'Programmable Thermostats'!AU25+'Comm 95+ Furnace - New'!AU25+'Comm 95+% Furnace - Replace'!AU25+Custom!AU25,0) -> 12079 | AW25: =+ROUND('Res .95+% Res Furnace - NEW'!AV25+'Res .95+% Res Furnace - Replace'!AW25+'Programmable Thermostats'!AW25+'Comm 95+ Furnace - New'!AW25+'Comm 95+% Furnace - Replace'!AW25+Custom!AW25,0) -> 2875 | AZ25: 48666 | BB25: =+ROUND('Res .95+% Res Furnace - NEW'!BA25+'Res .95+% Res Furnace - Replace'!BB25+'Programmable Thermostats'!BB25+'Comm 95+ Furnace - New'!BB25+'Comm 95+% Furnace - Replace'!BB25+Custom!BB25,0) -> 0 | BC25: =+ROUND('Res .95+% Res Furnace - NEW'!BB25+'Res .95+% Res Furnace - Replace'!BC25+'Programmable Thermostats'!BC25+'Comm 95+ Furnace - New'!BC25+'Comm 95+% Furnace - Replace'!BC25+Custom!BC25,0) -> 0 | BD25: 0 | BE25: 48666 | BH25: 2027 | BI25: =+ROUND('Res .95+% Res Furnace - NEW'!BH25+'Res .95+% Res Furnace - Replace'!BI25+'Programmable Thermostats'!BI25+'Comm 95+ Furnace - New'!BI25+'Comm 95+% Furnace - Replace'!BI25+Custom!BI25,0) -> 0 | BJ25: =+ROUND('Res .95+% Res Furnace - NEW'!BI25+'Res .95+% Res Furnace - Replace'!BJ25+'Programmable Thermostats'!BJ25+'Comm 95+ Furnace - New'!BJ25+'Comm 95+% Furnace - Replace'!BJ25+Custom!BJ25,0) -> 5975 | BL25: =+ROUND('Res .95+% Res Furnace - NEW'!BK25+'Res .95+% Res Furnace - Replace'!BL25+'Programmable Thermostats'!BL25+'Comm 95+ Furnace - New'!BL25+'Comm 95+% Furnace - Replace'!BL25+Custom!BL25,0) -> 58015 | BN25: =+ROUND('Res .95+% Res Furnace - NEW'!BM25+'Res .95+% Res Furnace - Replace'!BN25+'Programmable Thermostats'!BN25+'Comm 95+ Furnace - New'!BN25+'Comm 95+% Furnace - Replace'!BN25+Custom!BN25,0) -> 71374 | BP25: 129389 | BR25: =+ROUND('Res .95+% Res Furnace - NEW'!BQ25+'Res .95+% Res Furnace - Replace'!BR25+'Programmable Thermostats'!BR25+'Comm 95+ Furnace - New'!BR25+'Comm 95+% Furnace - Replace'!BR25+Custom!BR25,0) -> 0 | BT25: 129389 | BW25: 2027 | BX25: 24026 | BY25: 9686 | BZ25: 12079 | CA25: 45791 | CC25: 0 | CD25: 0 | CE25: 0 | CG25: 45791
A26: Escalation Rate = | J26: 14 | L26: 2028 | M26: =+ROUND('Res .95+% Res Furnace - NEW'!M26+'Res .95+% Res Furnace - Replace'!M26+'Programmable Thermostats'!M26+'Comm 95+ Furnace - New'!M26+'Comm 95+% Furnace - Replace'!M26+Custom!M26,0) -> 5975 | O26: =+ROUND('Res .95+% Res Furnace - NEW'!O26+'Res .95+% Res Furnace - Replace'!O26+'Programmable Thermostats'!O26+'Comm 95+ Furnace - New'!O26+'Comm 95+% Furnace - Replace'!O26+Custom!O26,0) -> 24869 | Q26: =+ROUND('Res .95+% Res Furnace - NEW'!Q26+'Res .95+% Res Furnace - Replace'!Q26+'Programmable Thermostats'!Q26+'Comm 95+ Furnace - New'!Q26+'Comm 95+% Furnace - Replace'!Q26+Custom!Q26,0) -> 0 | R26: 24869 | S26: =+ROUND('Res .95+% Res Furnace - NEW'!S26+'Res .95+% Res Furnace - Replace'!S26+'Programmable Thermostats'!S26+'Comm 95+ Furnace - New'!S26+'Comm 95+% Furnace - Replace'!S26+Custom!S26,0) -> 60 | U26: =+ROUND('Res .95+% Res Furnace - NEW'!U26+'Res .95+% Res Furnace - Replace'!U26+'Programmable Thermostats'!U26+'Comm 95+ Furnace - New'!U26+'Comm 95+% Furnace - Replace'!U26+Custom!U26,0) -> 9748 | V26: 34617 | X26: =+ROUND('Res .95+% Res Furnace - NEW'!X26+'Res .95+% Res Furnace - Replace'!X26+'Programmable Thermostats'!X26+'Comm 95+ Furnace - New'!X26+'Comm 95+% Furnace - Replace'!X26+Custom!X26,0) -> 10928 | Y26: =+ROUND('Res .95+% Res Furnace - NEW'!Y26+'Res .95+% Res Furnace - Replace'!Y26+'Programmable Thermostats'!Y26+'Comm 95+ Furnace - New'!Y26+'Comm 95+% Furnace - Replace'!Y26+Custom!Y26,0) -> 0 | Z26: =+ROUND('Res .95+% Res Furnace - NEW'!Z26+'Res .95+% Res Furnace - Replace'!Z26+'Programmable Thermostats'!Z26+'Comm 95+ Furnace - New'!Z26+'Comm 95+% Furnace - Replace'!Z26+Custom!Z26,0) -> 0 | AA26: 10928 | AB26: 23689 | AE26: 2028 | AF26: 24869 | AG26: 9748 | AH26: 34617 | AJ26: 0 | AK26: 0 | AL26: 0 | AN26: 34617 | AQ26: 2028 | AR26: 24869 | AS26: 9748 | AU26: =+ROUND('Res .95+% Res Furnace - NEW'!AT26+'Res .95+% Res Furnace - Replace'!AU26+'Programmable Thermostats'!AU26+'Comm 95+ Furnace - New'!AU26+'Comm 95+% Furnace - Replace'!AU26+Custom!AU26,0) -> 12407 | AW26: =+ROUND('Res .95+% Res Furnace - NEW'!AV26+'Res .95+% Res Furnace - Replace'!AW26+'Programmable Thermostats'!AW26+'Comm 95+ Furnace - New'!AW26+'Comm 95+% Furnace - Replace'!AW26+Custom!AW26,0) -> 2940 | AZ26: 49964 | BB26: =+ROUND('Res .95+% Res Furnace - NEW'!BA26+'Res .95+% Res Furnace - Replace'!BB26+'Programmable Thermostats'!BB26+'Comm 95+ Furnace - New'!BB26+'Comm 95+% Furnace - Replace'!BB26+Custom!BB26,0) -> 0 | BC26: =+ROUND('Res .95+% Res Furnace - NEW'!BB26+'Res .95+% Res Furnace - Replace'!BC26+'Programmable Thermostats'!BC26+'Comm 95+ Furnace - New'!BC26+'Comm 95+% Furnace - Replace'!BC26+Custom!BC26,0) -> 0 | BD26: 0 | BE26: 49964 | BH26: 2028 | BI26: =+ROUND('Res .95+% Res Furnace - NEW'!BH26+'Res .95+% Res Furnace - Replace'!BI26+'Programmable Thermostats'!BI26+'Comm 95+ Furnace - New'!BI26+'Comm 95+% Furnace - Replace'!BI26+Custom!BI26,0) -> 0 | BJ26: =+ROUND('Res .95+% Res Furnace - NEW'!BI26+'Res .95+% Res Furnace - Replace'!BJ26+'Programmable Thermostats'!BJ26+'Comm 95+ Furnace - New'!BJ26+'Comm 95+% Furnace - Replace'!BJ26+Custom!BJ26,0) -> 5975 | BL26: =+ROUND('Res .95+% Res Furnace - NEW'!BK26+'Res .95+% Res Furnace - Replace'!BL26+'Programmable Thermostats'!BL26+'Comm 95+ Furnace - New'!BL26+'Comm 95+% Furnace - Replace'!BL26+Custom!BL26,0) -> 60048 | BN26: =+ROUND('Res .95+% Res Furnace - NEW'!BM26+'Res .95+% Res Furnace - Replace'!BN26+'Programmable Thermostats'!BN26+'Comm 95+ Furnace - New'!BN26+'Comm 95+% Furnace - Replace'!BN26+Custom!BN26,0) -> 73976 | BP26: 134024 | BR26: =+ROUND('Res .95+% Res Furnace - NEW'!BQ26+'Res .95+% Res Furnace - Replace'!BR26+'Programmable Thermostats'!BR26+'Comm 95+ Furnace - New'!BR26+'Comm 95+% Furnace - Replace'!BR26+Custom!BR26,0) -> 0 | BT26: 134024 | BW26: 2028 | BX26: 24869 | BY26: 9748 | BZ26: 12407 | CA26: 47024 | CC26: 0 | CD26: 0 | CE26: 0 | CG26: 47024
E27: 22) Avg Non-Gas Fuel Units/Part. Saved = | J27: 15 | L27: 2029 | M27: =+ROUND('Res .95+% Res Furnace - NEW'!M27+'Res .95+% Res Furnace - Replace'!M27+'Programmable Thermostats'!M27+'Comm 95+ Furnace - New'!M27+'Comm 95+% Furnace - Replace'!M27+Custom!M27,0) -> 5975 | O27: =+ROUND('Res .95+% Res Furnace - NEW'!O27+'Res .95+% Res Furnace - Replace'!O27+'Programmable Thermostats'!O27+'Comm 95+ Furnace - New'!O27+'Comm 95+% Furnace - Replace'!O27+Custom!O27,0) -> 25734 | Q27: =+ROUND('Res .95+% Res Furnace - NEW'!Q27+'Res .95+% Res Furnace - Replace'!Q27+'Programmable Thermostats'!Q27+'Comm 95+ Furnace - New'!Q27+'Comm 95+% Furnace - Replace'!Q27+Custom!Q27,0) -> 0 | R27: 25734 | S27: =+ROUND('Res .95+% Res Furnace - NEW'!S27+'Res .95+% Res Furnace - Replace'!S27+'Programmable Thermostats'!S27+'Comm 95+ Furnace - New'!S27+'Comm 95+% Furnace - Replace'!S27+Custom!S27,0) -> 60 | U27: =+ROUND('Res .95+% Res Furnace - NEW'!U27+'Res .95+% Res Furnace - Replace'!U27+'Programmable Thermostats'!U27+'Comm 95+ Furnace - New'!U27+'Comm 95+% Furnace - Replace'!U27+Custom!U27,0) -> 9868 | V27: 35602 | X27: =+ROUND('Res .95+% Res Furnace - NEW'!X27+'Res .95+% Res Furnace - Replace'!X27+'Programmable Thermostats'!X27+'Comm 95+ Furnace - New'!X27+'Comm 95+% Furnace - Replace'!X27+Custom!X27,0) -> 11310 | Y27: =+ROUND('Res .95+% Res Furnace - NEW'!Y27+'Res .95+% Res Furnace - Replace'!Y27+'Programmable Thermostats'!Y27+'Comm 95+ Furnace - New'!Y27+'Comm 95+% Furnace - Replace'!Y27+Custom!Y27,0) -> 0 | Z27: =+ROUND('Res .95+% Res Furnace - NEW'!Z27+'Res .95+% Res Furnace - Replace'!Z27+'Programmable Thermostats'!Z27+'Comm 95+ Furnace - New'!Z27+'Comm 95+% Furnace - Replace'!Z27+Custom!Z27,0) -> 0 | AA27: 11310 | AB27: 24292 | AE27: 2029 | AF27: 25734 | AG27: 9868 | AH27: 35602 | AJ27: 0 | AK27: 0 | AL27: 0 | AN27: 35602 | AQ27: 2029 | AR27: 25734 | AS27: 9868 | AU27: =+ROUND('Res .95+% Res Furnace - NEW'!AT27+'Res .95+% Res Furnace - Replace'!AU27+'Programmable Thermostats'!AU27+'Comm 95+ Furnace - New'!AU27+'Comm 95+% Furnace - Replace'!AU27+Custom!AU27,0) -> 13059 | AW27: =+ROUND('Res .95+% Res Furnace - NEW'!AV27+'Res .95+% Res Furnace - Replace'!AW27+'Programmable Thermostats'!AW27+'Comm 95+ Furnace - New'!AW27+'Comm 95+% Furnace - Replace'!AW27+Custom!AW27,0) -> 3012 | AZ27: 51673 | BB27: =+ROUND('Res .95+% Res Furnace - NEW'!BA27+'Res .95+% Res Furnace - Replace'!BB27+'Programmable Thermostats'!BB27+'Comm 95+ Furnace - New'!BB27+'Comm 95+% Furnace - Replace'!BB27+Custom!BB27,0) -> 0 | BC27: =+ROUND('Res .95+% Res Furnace - NEW'!BB27+'Res .95+% Res Furnace - Replace'!BC27+'Programmable Thermostats'!BC27+'Comm 95+ Furnace - New'!BC27+'Comm 95+% Furnace - Replace'!BC27+Custom!BC27,0) -> 0 | BD27: 0 | BE27: 51673 | BH27: 2029 | BI27: =+ROUND('Res .95+% Res Furnace - NEW'!BH27+'Res .95+% Res Furnace - Replace'!BI27+'Programmable Thermostats'!BI27+'Comm 95+ Furnace - New'!BI27+'Comm 95+% Furnace - Replace'!BI27+Custom!BI27,0) -> 0 | BJ27: =+ROUND('Res .95+% Res Furnace - NEW'!BI27+'Res .95+% Res Furnace - Replace'!BJ27+'Programmable Thermostats'!BJ27+'Comm 95+ Furnace - New'!BJ27+'Comm 95+% Furnace - Replace'!BJ27+Custom!BJ27,0) -> 5975 | BL27: =+ROUND('Res .95+% Res Furnace - NEW'!BK27+'Res .95+% Res Furnace - Replace'!BL27+'Programmable Thermostats'!BL27+'Comm 95+ Furnace - New'!BL27+'Comm 95+% Furnace - Replace'!BL27+Custom!BL27,0) -> 62148 | BN27: =+ROUND('Res .95+% Res Furnace - NEW'!BM27+'Res .95+% Res Furnace - Replace'!BN27+'Programmable Thermostats'!BN27+'Comm 95+ Furnace - New'!BN27+'Comm 95+% Furnace - Replace'!BN27+Custom!BN27,0) -> 76578 | BP27: 138726 | BR27: =+ROUND('Res .95+% Res Furnace - NEW'!BQ27+'Res .95+% Res Furnace - Replace'!BR27+'Programmable Thermostats'!BR27+'Comm 95+ Furnace - New'!BR27+'Comm 95+% Furnace - Replace'!BR27+Custom!BR27,0) -> 0 | BT27: 138726 | BW27: 2029 | BX27: 25734 | BY27: 9868 | BZ27: 13059 | CA27: 48661 | CC27: 0 | CD27: 0 | CE27: 0 | CG27: 48661
A28: 7) Non-Gas Fuel Cost ($/Fuel Unit) = | E28: 22a) Avg Additional Non-Gas Fuel Units/ Part. Used = | J28: 16 | L28: 2030 | M28: =+ROUND('Res .95+% Res Furnace - NEW'!M28+'Res .95+% Res Furnace - Replace'!M28+'Programmable Thermostats'!M28+'Comm 95+ Furnace - New'!M28+'Comm 95+% Furnace - Replace'!M28+Custom!M28,0) -> 5975 | O28: =+ROUND('Res .95+% Res Furnace - NEW'!O28+'Res .95+% Res Furnace - Replace'!O28+'Programmable Thermostats'!O28+'Comm 95+ Furnace - New'!O28+'Comm 95+% Furnace - Replace'!O28+Custom!O28,0) -> 26637 | Q28: =+ROUND('Res .95+% Res Furnace - NEW'!Q28+'Res .95+% Res Furnace - Replace'!Q28+'Programmable Thermostats'!Q28+'Comm 95+ Furnace - New'!Q28+'Comm 95+% Furnace - Replace'!Q28+Custom!Q28,0) -> 0 | R28: 26637 | S28: =+ROUND('Res .95+% Res Furnace - NEW'!S28+'Res .95+% Res Furnace - Replace'!S28+'Programmable Thermostats'!S28+'Comm 95+ Furnace - New'!S28+'Comm 95+% Furnace - Replace'!S28+Custom!S28,0) -> 60 | U28: =+ROUND('Res .95+% Res Furnace - NEW'!U28+'Res .95+% Res Furnace - Replace'!U28+'Programmable Thermostats'!U28+'Comm 95+ Furnace - New'!U28+'Comm 95+% Furnace - Replace'!U28+Custom!U28,0) -> 9927 | V28: 36564 | X28: =+ROUND('Res .95+% Res Furnace - NEW'!X28+'Res .95+% Res Furnace - Replace'!X28+'Programmable Thermostats'!X28+'Comm 95+ Furnace - New'!X28+'Comm 95+% Furnace - Replace'!X28+Custom!X28,0) -> 11707 | Y28: =+ROUND('Res .95+% Res Furnace - NEW'!Y28+'Res .95+% Res Furnace - Replace'!Y28+'Programmable Thermostats'!Y28+'Comm 95+ Furnace - New'!Y28+'Comm 95+% Furnace - Replace'!Y28+Custom!Y28,0) -> 0 | Z28: =+ROUND('Res .95+% Res Furnace - NEW'!Z28+'Res .95+% Res Furnace - Replace'!Z28+'Programmable Thermostats'!Z28+'Comm 95+ Furnace - New'!Z28+'Comm 95+% Furnace - Replace'!Z28+Custom!Z28,0) -> 0 | AA28: 11707 | AB28: 24857 | AE28: 2030 | AF28: 26637 | AG28: 9927 | AH28: 36564 | AJ28: 0 | AK28: 0 | AL28: 0 | AN28: 36564 | AQ28: 2030 | AR28: 26637 | AS28: 9927 | AU28: =+ROUND('Res .95+% Res Furnace - NEW'!AT28+'Res .95+% Res Furnace - Replace'!AU28+'Programmable Thermostats'!AU28+'Comm 95+ Furnace - New'!AU28+'Comm 95+% Furnace - Replace'!AU28+Custom!AU28,0) -> 13385 | AW28: =+ROUND('Res .95+% Res Furnace - NEW'!AV28+'Res .95+% Res Furnace - Replace'!AW28+'Programmable Thermostats'!AW28+'Comm 95+ Furnace - New'!AW28+'Comm 95+% Furnace - Replace'!AW28+Custom!AW28,0) -> 3077 | AZ28: 53026 | BB28: =+ROUND('Res .95+% Res Furnace - NEW'!BA28+'Res .95+% Res Furnace - Replace'!BB28+'Programmable Thermostats'!BB28+'Comm 95+ Furnace - New'!BB28+'Comm 95+% Furnace - Replace'!BB28+Custom!BB28,0) -> 0 | BC28: =+ROUND('Res .95+% Res Furnace - NEW'!BB28+'Res .95+% Res Furnace - Replace'!BC28+'Programmable Thermostats'!BC28+'Comm 95+ Furnace - New'!BC28+'Comm 95+% Furnace - Replace'!BC28+Custom!BC28,0) -> 0 | BD28: 0 | BE28: 53026 | BH28: 2030 | BI28: =+ROUND('Res .95+% Res Furnace - NEW'!BH28+'Res .95+% Res Furnace - Replace'!BI28+'Programmable Thermostats'!BI28+'Comm 95+ Furnace - New'!BI28+'Comm 95+% Furnace - Replace'!BI28+Custom!BI28,0) -> 0 | BJ28: =+ROUND('Res .95+% Res Furnace - NEW'!BI28+'Res .95+% Res Furnace - Replace'!BJ28+'Programmable Thermostats'!BJ28+'Comm 95+ Furnace - New'!BJ28+'Comm 95+% Furnace - Replace'!BJ28+Custom!BJ28,0) -> 5975 | BL28: =+ROUND('Res .95+% Res Furnace - NEW'!BK28+'Res .95+% Res Furnace - Replace'!BL28+'Programmable Thermostats'!BL28+'Comm 95+ Furnace - New'!BL28+'Comm 95+% Furnace - Replace'!BL28+Custom!BL28,0) -> 64324 | BN28: =+ROUND('Res .95+% Res Furnace - NEW'!BM28+'Res .95+% Res Furnace - Replace'!BN28+'Programmable Thermostats'!BN28+'Comm 95+ Furnace - New'!BN28+'Comm 95+% Furnace - Replace'!BN28+Custom!BN28,0) -> 79190 | BP28: 143514 | BR28: =+ROUND('Res .95+% Res Furnace - NEW'!BQ28+'Res .95+% Res Furnace - Replace'!BR28+'Programmable Thermostats'!BR28+'Comm 95+ Furnace - New'!BR28+'Comm 95+% Furnace - Replace'!BR28+Custom!BR28,0) -> 0 | BT28: 143514 | BW28: 2030 | BX28: 26637 | BY28: 9927 | BZ28: 13385 | CA28: 49949 | CC28: 0 | CD28: 0 | CE28: 0 | CG28: 49949
A29: Escalation Rate = | J29: 17 | L29: 2031 | M29: =+ROUND('Res .95+% Res Furnace - NEW'!M29+'Res .95+% Res Furnace - Replace'!M29+'Programmable Thermostats'!M29+'Comm 95+ Furnace - New'!M29+'Comm 95+% Furnace - Replace'!M29+Custom!M29,0) -> 4869 | O29: =+ROUND('Res .95+% Res Furnace - NEW'!O29+'Res .95+% Res Furnace - Replace'!O29+'Programmable Thermostats'!O29+'Comm 95+ Furnace - New'!O29+'Comm 95+% Furnace - Replace'!O29+Custom!O29,0) -> 22466 | Q29: =+ROUND('Res .95+% Res Furnace - NEW'!Q29+'Res .95+% Res Furnace - Replace'!Q29+'Programmable Thermostats'!Q29+'Comm 95+ Furnace - New'!Q29+'Comm 95+% Furnace - Replace'!Q29+Custom!Q29,0) -> 0 | R29: 22466 | S29: =+ROUND('Res .95+% Res Furnace - NEW'!S29+'Res .95+% Res Furnace - Replace'!S29+'Programmable Thermostats'!S29+'Comm 95+ Furnace - New'!S29+'Comm 95+% Furnace - Replace'!S29+Custom!S29,0) -> 49 | U29: =+ROUND('Res .95+% Res Furnace - NEW'!U29+'Res .95+% Res Furnace - Replace'!U29+'Programmable Thermostats'!U29+'Comm 95+ Furnace - New'!U29+'Comm 95+% Furnace - Replace'!U29+Custom!U29,0) -> 8183 | V29: 30649 | X29: =+ROUND('Res .95+% Res Furnace - NEW'!X29+'Res .95+% Res Furnace - Replace'!X29+'Programmable Thermostats'!X29+'Comm 95+ Furnace - New'!X29+'Comm 95+% Furnace - Replace'!X29+Custom!X29,0) -> 10809 | Y29: =+ROUND('Res .95+% Res Furnace - NEW'!Y29+'Res .95+% Res Furnace - Replace'!Y29+'Programmable Thermostats'!Y29+'Comm 95+ Furnace - New'!Y29+'Comm 95+% Furnace - Replace'!Y29+Custom!Y29,0) -> 0 | Z29: =+ROUND('Res .95+% Res Furnace - NEW'!Z29+'Res .95+% Res Furnace - Replace'!Z29+'Programmable Thermostats'!Z29+'Comm 95+ Furnace - New'!Z29+'Comm 95+% Furnace - Replace'!Z29+Custom!Z29,0) -> 0 | AA29: 10809 | AB29: 19840 | AE29: 2031 | AF29: 22466 | AG29: 8183 | AH29: 30649 | AJ29: 0 | AK29: 0 | AL29: 0 | AN29: 30649 | AQ29: 2031 | AR29: 22466 | AS29: 8183 | AU29: =+ROUND('Res .95+% Res Furnace - NEW'!AT29+'Res .95+% Res Furnace - Replace'!AU29+'Programmable Thermostats'!AU29+'Comm 95+ Furnace - New'!AU29+'Comm 95+% Furnace - Replace'!AU29+Custom!AU29,0) -> 14038 | AW29: =+ROUND('Res .95+% Res Furnace - NEW'!AV29+'Res .95+% Res Furnace - Replace'!AW29+'Programmable Thermostats'!AW29+'Comm 95+ Furnace - New'!AW29+'Comm 95+% Furnace - Replace'!AW29+Custom!AW29,0) -> 2566 | AZ29: 47253 | BB29: =+ROUND('Res .95+% Res Furnace - NEW'!BA29+'Res .95+% Res Furnace - Replace'!BB29+'Programmable Thermostats'!BB29+'Comm 95+ Furnace - New'!BB29+'Comm 95+% Furnace - Replace'!BB29+Custom!BB29,0) -> 0 | BC29: =+ROUND('Res .95+% Res Furnace - NEW'!BB29+'Res .95+% Res Furnace - Replace'!BC29+'Programmable Thermostats'!BC29+'Comm 95+ Furnace - New'!BC29+'Comm 95+% Furnace - Replace'!BC29+Custom!BC29,0) -> 0 | BD29: 0 | BE29: 47253 | BH29: 2031 | BI29: =+ROUND('Res .95+% Res Furnace - NEW'!BH29+'Res .95+% Res Furnace - Replace'!BI29+'Programmable Thermostats'!BI29+'Comm 95+ Furnace - New'!BI29+'Comm 95+% Furnace - Replace'!BI29+Custom!BI29,0) -> 0 | BJ29: =+ROUND('Res .95+% Res Furnace - NEW'!BI29+'Res .95+% Res Furnace - Replace'!BJ29+'Programmable Thermostats'!BJ29+'Comm 95+ Furnace - New'!BJ29+'Comm 95+% Furnace - Replace'!BJ29+Custom!BJ29,0) -> 4869 | BL29: =+ROUND('Res .95+% Res Furnace - NEW'!BK29+'Res .95+% Res Furnace - Replace'!BL29+'Programmable Thermostats'!BL29+'Comm 95+ Furnace - New'!BL29+'Comm 95+% Furnace - Replace'!BL29+Custom!BL29,0) -> 55689 | BN29: =+ROUND('Res .95+% Res Furnace - NEW'!BM29+'Res .95+% Res Furnace - Replace'!BN29+'Programmable Thermostats'!BN29+'Comm 95+ Furnace - New'!BN29+'Comm 95+% Furnace - Replace'!BN29+Custom!BN29,0) -> 82119 | BP29: 137808 | BR29: =+ROUND('Res .95+% Res Furnace - NEW'!BQ29+'Res .95+% Res Furnace - Replace'!BR29+'Programmable Thermostats'!BR29+'Comm 95+ Furnace - New'!BR29+'Comm 95+% Furnace - Replace'!BR29+Custom!BR29,0) -> 0 | BT29: 137808 | BW29: 2031 | BX29: 22466 | BY29: 8183 | BZ29: 14038 | CA29: 44687 | CC29: 0 | CD29: 0 | CE29: 0 | CG29: 44687
E30: 23) Number of Participants = | F30: =+'Res .95+% Res Furnace - NEW'!F30+'Res .95+% Res Furnace - Replace'!F30+'Programmable Thermostats'!F30+'Comm 95+ Furnace - New'!F30+'Comm 95+% Furnace - Replace'!F30+Custom!F30 -> 664 | J30: 18 | L30: 2032 | M30: =+ROUND('Res .95+% Res Furnace - NEW'!M30+'Res .95+% Res Furnace - Replace'!M30+'Programmable Thermostats'!M30+'Comm 95+ Furnace - New'!M30+'Comm 95+% Furnace - Replace'!M30+Custom!M30,0) -> 4869 | O30: =+ROUND('Res .95+% Res Furnace - NEW'!O30+'Res .95+% Res Furnace - Replace'!O30+'Programmable Thermostats'!O30+'Comm 95+ Furnace - New'!O30+'Comm 95+% Furnace - Replace'!O30+Custom!O30,0) -> 23254 | Q30: =+ROUND('Res .95+% Res Furnace - NEW'!Q30+'Res .95+% Res Furnace - Replace'!Q30+'Programmable Thermostats'!Q30+'Comm 95+ Furnace - New'!Q30+'Comm 95+% Furnace - Replace'!Q30+Custom!Q30,0) -> 0 | R30: 23254 | S30: =+ROUND('Res .95+% Res Furnace - NEW'!S30+'Res .95+% Res Furnace - Replace'!S30+'Programmable Thermostats'!S30+'Comm 95+ Furnace - New'!S30+'Comm 95+% Furnace - Replace'!S30+Custom!S30,0) -> 49 | U30: =+ROUND('Res .95+% Res Furnace - NEW'!U30+'Res .95+% Res Furnace - Replace'!U30+'Programmable Thermostats'!U30+'Comm 95+ Furnace - New'!U30+'Comm 95+% Furnace - Replace'!U30+Custom!U30,0) -> 8279 | V30: 31533 | X30: =+ROUND('Res .95+% Res Furnace - NEW'!X30+'Res .95+% Res Furnace - Replace'!X30+'Programmable Thermostats'!X30+'Comm 95+ Furnace - New'!X30+'Comm 95+% Furnace - Replace'!X30+Custom!X30,0) -> 11184 | Y30: =+ROUND('Res .95+% Res Furnace - NEW'!Y30+'Res .95+% Res Furnace - Replace'!Y30+'Programmable Thermostats'!Y30+'Comm 95+ Furnace - New'!Y30+'Comm 95+% Furnace - Replace'!Y30+Custom!Y30,0) -> 0 | Z30: =+ROUND('Res .95+% Res Furnace - NEW'!Z30+'Res .95+% Res Furnace - Replace'!Z30+'Programmable Thermostats'!Z30+'Comm 95+ Furnace - New'!Z30+'Comm 95+% Furnace - Replace'!Z30+Custom!Z30,0) -> 0 | AA30: 11184 | AB30: 20349 | AE30: 2032 | AF30: 23254 | AG30: 8279 | AH30: 31533 | AJ30: 0 | AK30: 0 | AL30: 0 | AN30: 31533 | AQ30: 2032 | AR30: 23254 | AS30: 8279 | AU30: =+ROUND('Res .95+% Res Furnace - NEW'!AT30+'Res .95+% Res Furnace - Replace'!AU30+'Programmable Thermostats'!AU30+'Comm 95+ Furnace - New'!AU30+'Comm 95+% Furnace - Replace'!AU30+Custom!AU30,0) -> 14364 | AW30: =+ROUND('Res .95+% Res Furnace - NEW'!AV30+'Res .95+% Res Furnace - Replace'!AW30+'Programmable Thermostats'!AW30+'Comm 95+ Furnace - New'!AW30+'Comm 95+% Furnace - Replace'!AW30+Custom!AW30,0) -> 2625 | AZ30: 48522 | BB30: =+ROUND('Res .95+% Res Furnace - NEW'!BA30+'Res .95+% Res Furnace - Replace'!BB30+'Programmable Thermostats'!BB30+'Comm 95+ Furnace - New'!BB30+'Comm 95+% Furnace - Replace'!BB30+Custom!BB30,0) -> 0 | BC30: =+ROUND('Res .95+% Res Furnace - NEW'!BB30+'Res .95+% Res Furnace - Replace'!BC30+'Programmable Thermostats'!BC30+'Comm 95+ Furnace - New'!BC30+'Comm 95+% Furnace - Replace'!BC30+Custom!BC30,0) -> 0 | BD30: 0 | BE30: 48522 | BH30: 2032 | BI30: =+ROUND('Res .95+% Res Furnace - NEW'!BH30+'Res .95+% Res Furnace - Replace'!BI30+'Programmable Thermostats'!BI30+'Comm 95+ Furnace - New'!BI30+'Comm 95+% Furnace - Replace'!BI30+Custom!BI30,0) -> 0 | BJ30: =+ROUND('Res .95+% Res Furnace - NEW'!BI30+'Res .95+% Res Furnace - Replace'!BJ30+'Programmable Thermostats'!BJ30+'Comm 95+ Furnace - New'!BJ30+'Comm 95+% Furnace - Replace'!BJ30+Custom!BJ30,0) -> 4869 | BL30: =+ROUND('Res .95+% Res Furnace - NEW'!BK30+'Res .95+% Res Furnace - Replace'!BL30+'Programmable Thermostats'!BL30+'Comm 95+ Furnace - New'!BL30+'Comm 95+% Furnace - Replace'!BL30+Custom!BL30,0) -> 57639 | BN30: =+ROUND('Res .95+% Res Furnace - NEW'!BM30+'Res .95+% Res Furnace - Replace'!BN30+'Programmable Thermostats'!BN30+'Comm 95+ Furnace - New'!BN30+'Comm 95+% Furnace - Replace'!BN30+Custom!BN30,0) -> 84730 | BP30: 142369 | BR30: =+ROUND('Res .95+% Res Furnace - NEW'!BQ30+'Res .95+% Res Furnace - Replace'!BR30+'Programmable Thermostats'!BR30+'Comm 95+ Furnace - New'!BR30+'Comm 95+% Furnace - Replace'!BR30+Custom!BR30,0) -> 0 | BT30: 142369 | BW30: 2032 | BX30: 23254 | BY30: 8279 | BZ30: 14364 | CA30: 45897 | CC30: 0 | CD30: 0 | CE30: 0 | CG30: 45897 | DB30: =$J18 -> 6
A31: 8) Non-Gas Fuel Loss Factor | J31: 19 | L31: 2033 | M31: =+ROUND('Res .95+% Res Furnace - NEW'!M31+'Res .95+% Res Furnace - Replace'!M31+'Programmable Thermostats'!M31+'Comm 95+ Furnace - New'!M31+'Comm 95+% Furnace - Replace'!M31+Custom!M31,0) -> 4869 | O31: =+ROUND('Res .95+% Res Furnace - NEW'!O31+'Res .95+% Res Furnace - Replace'!O31+'Programmable Thermostats'!O31+'Comm 95+ Furnace - New'!O31+'Comm 95+% Furnace - Replace'!O31+Custom!O31,0) -> 24067 | Q31: =+ROUND('Res .95+% Res Furnace - NEW'!Q31+'Res .95+% Res Furnace - Replace'!Q31+'Programmable Thermostats'!Q31+'Comm 95+ Furnace - New'!Q31+'Comm 95+% Furnace - Replace'!Q31+Custom!Q31,0) -> 0 | R31: 24067 | S31: =+ROUND('Res .95+% Res Furnace - NEW'!S31+'Res .95+% Res Furnace - Replace'!S31+'Programmable Thermostats'!S31+'Comm 95+ Furnace - New'!S31+'Comm 95+% Furnace - Replace'!S31+Custom!S31,0) -> 49 | U31: =+ROUND('Res .95+% Res Furnace - NEW'!U31+'Res .95+% Res Furnace - Replace'!U31+'Programmable Thermostats'!U31+'Comm 95+ Furnace - New'!U31+'Comm 95+% Furnace - Replace'!U31+Custom!U31,0) -> 8328 | V31: 32395 | X31: =+ROUND('Res .95+% Res Furnace - NEW'!X31+'Res .95+% Res Furnace - Replace'!X31+'Programmable Thermostats'!X31+'Comm 95+ Furnace - New'!X31+'Comm 95+% Furnace - Replace'!X31+Custom!X31,0) -> 11578 | Y31: =+ROUND('Res .95+% Res Furnace - NEW'!Y31+'Res .95+% Res Furnace - Replace'!Y31+'Programmable Thermostats'!Y31+'Comm 95+ Furnace - New'!Y31+'Comm 95+% Furnace - Replace'!Y31+Custom!Y31,0) -> 0 | Z31: =+ROUND('Res .95+% Res Furnace - NEW'!Z31+'Res .95+% Res Furnace - Replace'!Z31+'Programmable Thermostats'!Z31+'Comm 95+ Furnace - New'!Z31+'Comm 95+% Furnace - Replace'!Z31+Custom!Z31,0) -> 0 | AA31: 11578 | AB31: 20817 | AE31: 2033 | AF31: 24067 | AG31: 8328 | AH31: 32395 | AJ31: 0 | AK31: 0 | AL31: 0 | AN31: 32395 | AQ31: 2033 | AR31: 24067 | AS31: 8328 | AU31: =+ROUND('Res .95+% Res Furnace - NEW'!AT31+'Res .95+% Res Furnace - Replace'!AU31+'Programmable Thermostats'!AU31+'Comm 95+ Furnace - New'!AU31+'Comm 95+% Furnace - Replace'!AU31+Custom!AU31,0) -> 15017 | AW31: =+ROUND('Res .95+% Res Furnace - NEW'!AV31+'Res .95+% Res Furnace - Replace'!AW31+'Programmable Thermostats'!AW31+'Comm 95+ Furnace - New'!AW31+'Comm 95+% Furnace - Replace'!AW31+Custom!AW31,0) -> 2688 | AZ31: 50100 | BB31: =+ROUND('Res .95+% Res Furnace - NEW'!BA31+'Res .95+% Res Furnace - Replace'!BB31+'Programmable Thermostats'!BB31+'Comm 95+ Furnace - New'!BB31+'Comm 95+% Furnace - Replace'!BB31+Custom!BB31,0) -> 0 | BC31: =+ROUND('Res .95+% Res Furnace - NEW'!BB31+'Res .95+% Res Furnace - Replace'!BC31+'Programmable Thermostats'!BC31+'Comm 95+ Furnace - New'!BC31+'Comm 95+% Furnace - Replace'!BC31+Custom!BC31,0) -> 0 | BD31: 0 | BE31: 50100 | BH31: 2033 | BI31: =+ROUND('Res .95+% Res Furnace - NEW'!BH31+'Res .95+% Res Furnace - Replace'!BI31+'Programmable Thermostats'!BI31+'Comm 95+ Furnace - New'!BI31+'Comm 95+% Furnace - Replace'!BI31+Custom!BI31,0) -> 0 | BJ31: =+ROUND('Res .95+% Res Furnace - NEW'!BI31+'Res .95+% Res Furnace - Replace'!BJ31+'Programmable Thermostats'!BJ31+'Comm 95+ Furnace - New'!BJ31+'Comm 95+% Furnace - Replace'!BJ31+Custom!BJ31,0) -> 4869 | BL31: =+ROUND('Res .95+% Res Furnace - NEW'!BK31+'Res .95+% Res Furnace - Replace'!BL31+'Programmable Thermostats'!BL31+'Comm 95+ Furnace - New'!BL31+'Comm 95+% Furnace - Replace'!BL31+Custom!BL31,0) -> 59657 | BN31: =+ROUND('Res .95+% Res Furnace - NEW'!BM31+'Res .95+% Res Furnace - Replace'!BN31+'Programmable Thermostats'!BN31+'Comm 95+ Furnace - New'!BN31+'Comm 95+% Furnace - Replace'!BN31+Custom!BN31,0) -> 87985 | BP31: 147642 | BR31: =+ROUND('Res .95+% Res Furnace - NEW'!BQ31+'Res .95+% Res Furnace - Replace'!BR31+'Programmable Thermostats'!BR31+'Comm 95+ Furnace - New'!BR31+'Comm 95+% Furnace - Replace'!BR31+Custom!BR31,0) -> 0 | BT31: 147642 | BW31: 2033 | BX31: 24067 | BY31: 8328 | BZ31: 15017 | CA31: 47412 | CC31: 0 | CD31: 0 | CE31: 0 | CG31: 47412 | DB31: =$J19 -> 7
E32: 24) Total Annual Dk Saved = | F32: =+'Res .95+% Res Furnace - NEW'!F32+'Res .95+% Res Furnace - Replace'!F32+'Programmable Thermostats'!F32+'Comm 95+ Furnace - New'!F32+'Comm 95+% Furnace - Replace'!F32+Custom!F32 -> 6604 | J32: 20 | L32: 2034 | M32: =+ROUND('Res .95+% Res Furnace - NEW'!M32+'Res .95+% Res Furnace - Replace'!M32+'Programmable Thermostats'!M32+'Comm 95+ Furnace - New'!M32+'Comm 95+% Furnace - Replace'!M32+Custom!M32,0) -> 4869 | O32: =+ROUND('Res .95+% Res Furnace - NEW'!O32+'Res .95+% Res Furnace - Replace'!O32+'Programmable Thermostats'!O32+'Comm 95+ Furnace - New'!O32+'Comm 95+% Furnace - Replace'!O32+Custom!O32,0) -> 24910 | Q32: =+ROUND('Res .95+% Res Furnace - NEW'!Q32+'Res .95+% Res Furnace - Replace'!Q32+'Programmable Thermostats'!Q32+'Comm 95+ Furnace - New'!Q32+'Comm 95+% Furnace - Replace'!Q32+Custom!Q32,0) -> 0 | R32: 24910 | S32: =+ROUND('Res .95+% Res Furnace - NEW'!S32+'Res .95+% Res Furnace - Replace'!S32+'Programmable Thermostats'!S32+'Comm 95+ Furnace - New'!S32+'Comm 95+% Furnace - Replace'!S32+Custom!S32,0) -> 49 | U32: =+ROUND('Res .95+% Res Furnace - NEW'!U32+'Res .95+% Res Furnace - Replace'!U32+'Programmable Thermostats'!U32+'Comm 95+ Furnace - New'!U32+'Comm 95+% Furnace - Replace'!U32+Custom!U32,0) -> 8426 | V32: 33336 | X32: =+ROUND('Res .95+% Res Furnace - NEW'!X32+'Res .95+% Res Furnace - Replace'!X32+'Programmable Thermostats'!X32+'Comm 95+ Furnace - New'!X32+'Comm 95+% Furnace - Replace'!X32+Custom!X32,0) -> 11981 | Y32: =+ROUND('Res .95+% Res Furnace - NEW'!Y32+'Res .95+% Res Furnace - Replace'!Y32+'Programmable Thermostats'!Y32+'Comm 95+ Furnace - New'!Y32+'Comm 95+% Furnace - Replace'!Y32+Custom!Y32,0) -> 0 | Z32: =+ROUND('Res .95+% Res Furnace - NEW'!Z32+'Res .95+% Res Furnace - Replace'!Z32+'Programmable Thermostats'!Z32+'Comm 95+ Furnace - New'!Z32+'Comm 95+% Furnace - Replace'!Z32+Custom!Z32,0) -> 0 | AA32: 11981 | AB32: 21355 | AE32: 2034 | AF32: 24910 | AG32: 8426 | AH32: 33336 | AJ32: 0 | AK32: 0 | AL32: 0 | AN32: 33336 | AQ32: 2034 | AR32: 24910 | AS32: 8426 | AU32: =+ROUND('Res .95+% Res Furnace - NEW'!AT32+'Res .95+% Res Furnace - Replace'!AU32+'Programmable Thermostats'!AU32+'Comm 95+ Furnace - New'!AU32+'Comm 95+% Furnace - Replace'!AU32+Custom!AU32,0) -> 15344 | AW32: =+ROUND('Res .95+% Res Furnace - NEW'!AV32+'Res .95+% Res Furnace - Replace'!AW32+'Programmable Thermostats'!AW32+'Comm 95+ Furnace - New'!AW32+'Comm 95+% Furnace - Replace'!AW32+Custom!AW32,0) -> 2747 | AZ32: 51427 | BB32: =+ROUND('Res .95+% Res Furnace - NEW'!BA32+'Res .95+% Res Furnace - Replace'!BB32+'Programmable Thermostats'!BB32+'Comm 95+ Furnace - New'!BB32+'Comm 95+% Furnace - Replace'!BB32+Custom!BB32,0) -> 0 | BC32: =+ROUND('Res .95+% Res Furnace - NEW'!BB32+'Res .95+% Res Furnace - Replace'!BC32+'Programmable Thermostats'!BC32+'Comm 95+ Furnace - New'!BC32+'Comm 95+% Furnace - Replace'!BC32+Custom!BC32,0) -> 0 | BD32: 0 | BE32: 51427 | BH32: 2034 | BI32: =+ROUND('Res .95+% Res Furnace - NEW'!BH32+'Res .95+% Res Furnace - Replace'!BI32+'Programmable Thermostats'!BI32+'Comm 95+ Furnace - New'!BI32+'Comm 95+% Furnace - Replace'!BI32+Custom!BI32,0) -> 0 | BJ32: =+ROUND('Res .95+% Res Furnace - NEW'!BI32+'Res .95+% Res Furnace - Replace'!BJ32+'Programmable Thermostats'!BJ32+'Comm 95+ Furnace - New'!BJ32+'Comm 95+% Furnace - Replace'!BJ32+Custom!BJ32,0) -> 4869 | BL32: =+ROUND('Res .95+% Res Furnace - NEW'!BK32+'Res .95+% Res Furnace - Replace'!BL32+'Programmable Thermostats'!BL32+'Comm 95+ Furnace - New'!BL32+'Comm 95+% Furnace - Replace'!BL32+Custom!BL32,0) -> 61743 | BN32: =+ROUND('Res .95+% Res Furnace - NEW'!BM32+'Res .95+% Res Furnace - Replace'!BN32+'Programmable Thermostats'!BN32+'Comm 95+ Furnace - New'!BN32+'Comm 95+% Furnace - Replace'!BN32+Custom!BN32,0) -> 90925 | BP32: 152668 | BR32: =+ROUND('Res .95+% Res Furnace - NEW'!BQ32+'Res .95+% Res Furnace - Replace'!BR32+'Programmable Thermostats'!BR32+'Comm 95+ Furnace - New'!BR32+'Comm 95+% Furnace - Replace'!BR32+Custom!BR32,0) -> 0 | BT32: 152668 | BW32: 2034 | BX32: 24910 | BY32: 8426 | BZ32: 15344 | CA32: 48680 | CC32: 0 | CD32: 0 | CE32: 0 | CG32: 48680 | DB32: =$J20 -> 8
A33: 9) Gas Environmental Damage Factor = | J33: 21 | L33: 2035 | M33: =+ROUND('Res .95+% Res Furnace - NEW'!M33+'Res .95+% Res Furnace - Replace'!M33+'Programmable Thermostats'!M33+'Comm 95+ Furnace - New'!M33+'Comm 95+% Furnace - Replace'!M33+Custom!M33,0) -> 4869 | O33: =+ROUND('Res .95+% Res Furnace - NEW'!O33+'Res .95+% Res Furnace - Replace'!O33+'Programmable Thermostats'!O33+'Comm 95+ Furnace - New'!O33+'Comm 95+% Furnace - Replace'!O33+Custom!O33,0) -> 25781 | Q33: =+ROUND('Res .95+% Res Furnace - NEW'!Q33+'Res .95+% Res Furnace - Replace'!Q33+'Programmable Thermostats'!Q33+'Comm 95+ Furnace - New'!Q33+'Comm 95+% Furnace - Replace'!Q33+Custom!Q33,0) -> 0 | R33: 25781 | S33: =+ROUND('Res .95+% Res Furnace - NEW'!S33+'Res .95+% Res Furnace - Replace'!S33+'Programmable Thermostats'!S33+'Comm 95+ Furnace - New'!S33+'Comm 95+% Furnace - Replace'!S33+Custom!S33,0) -> 49 | U33: =+ROUND('Res .95+% Res Furnace - NEW'!U33+'Res .95+% Res Furnace - Replace'!U33+'Programmable Thermostats'!U33+'Comm 95+ Furnace - New'!U33+'Comm 95+% Furnace - Replace'!U33+Custom!U33,0) -> 8523 | V33: 34304 | X33: =+ROUND('Res .95+% Res Furnace - NEW'!X33+'Res .95+% Res Furnace - Replace'!X33+'Programmable Thermostats'!X33+'Comm 95+ Furnace - New'!X33+'Comm 95+% Furnace - Replace'!X33+Custom!X33,0) -> 12403 | Y33: =+ROUND('Res .95+% Res Furnace - NEW'!Y33+'Res .95+% Res Furnace - Replace'!Y33+'Programmable Thermostats'!Y33+'Comm 95+ Furnace - New'!Y33+'Comm 95+% Furnace - Replace'!Y33+Custom!Y33,0) -> 0 | Z33: =+ROUND('Res .95+% Res Furnace - NEW'!Z33+'Res .95+% Res Furnace - Replace'!Z33+'Programmable Thermostats'!Z33+'Comm 95+ Furnace - New'!Z33+'Comm 95+% Furnace - Replace'!Z33+Custom!Z33,0) -> 0 | AA33: 12403 | AB33: 21901 | AE33: 2035 | AF33: 25781 | AG33: 8523 | AH33: 34304 | AJ33: 0 | AK33: 0 | AL33: 0 | AN33: 34304 | AQ33: 2035 | AR33: 25781 | AS33: 8523 | AU33: =+ROUND('Res .95+% Res Furnace - NEW'!AT33+'Res .95+% Res Furnace - Replace'!AU33+'Programmable Thermostats'!AU33+'Comm 95+ Furnace - New'!AU33+'Comm 95+% Furnace - Replace'!AU33+Custom!AU33,0) -> 15998 | AW33: =+ROUND('Res .95+% Res Furnace - NEW'!AV33+'Res .95+% Res Furnace - Replace'!AW33+'Programmable Thermostats'!AW33+'Comm 95+ Furnace - New'!AW33+'Comm 95+% Furnace - Replace'!AW33+Custom!AW33,0) -> 2809 | AZ33: 53111 | BB33: =+ROUND('Res .95+% Res Furnace - NEW'!BA33+'Res .95+% Res Furnace - Replace'!BB33+'Programmable Thermostats'!BB33+'Comm 95+ Furnace - New'!BB33+'Comm 95+% Furnace - Replace'!BB33+Custom!BB33,0) -> 0 | BC33: =+ROUND('Res .95+% Res Furnace - NEW'!BB33+'Res .95+% Res Furnace - Replace'!BC33+'Programmable Thermostats'!BC33+'Comm 95+ Furnace - New'!BC33+'Comm 95+% Furnace - Replace'!BC33+Custom!BC33,0) -> 0 | BD33: 0 | BE33: 53111 | BH33: 2035 | BI33: =+ROUND('Res .95+% Res Furnace - NEW'!BH33+'Res .95+% Res Furnace - Replace'!BI33+'Programmable Thermostats'!BI33+'Comm 95+ Furnace - New'!BI33+'Comm 95+% Furnace - Replace'!BI33+Custom!BI33,0) -> 0 | BJ33: =+ROUND('Res .95+% Res Furnace - NEW'!BI33+'Res .95+% Res Furnace - Replace'!BJ33+'Programmable Thermostats'!BJ33+'Comm 95+ Furnace - New'!BJ33+'Comm 95+% Furnace - Replace'!BJ33+Custom!BJ33,0) -> 4869 | BL33: =+ROUND('Res .95+% Res Furnace - NEW'!BK33+'Res .95+% Res Furnace - Replace'!BL33+'Programmable Thermostats'!BL33+'Comm 95+ Furnace - New'!BL33+'Comm 95+% Furnace - Replace'!BL33+Custom!BL33,0) -> 63905 | BN33: =+ROUND('Res .95+% Res Furnace - NEW'!BM33+'Res .95+% Res Furnace - Replace'!BN33+'Programmable Thermostats'!BN33+'Comm 95+ Furnace - New'!BN33+'Comm 95+% Furnace - Replace'!BN33+Custom!BN33,0) -> 94179 | BP33: 158084 | BR33: =+ROUND('Res .95+% Res Furnace - NEW'!BQ33+'Res .95+% Res Furnace - Replace'!BR33+'Programmable Thermostats'!BR33+'Comm 95+ Furnace - New'!BR33+'Comm 95+% Furnace - Replace'!BR33+Custom!BR33,0) -> 0 | BT33: 158084 | BW33: 2035 | BX33: 25781 | BY33: 8523 | BZ33: 15998 | CA33: 50302 | CC33: 0 | CD33: 0 | CE33: 0 | CG33: 50302
A34: Escalation Rate = | E34: 25) Incentive/Participant = | J34: 22 | L34: 2036 | M34: =+ROUND('Res .95+% Res Furnace - NEW'!M34+'Res .95+% Res Furnace - Replace'!M34+'Programmable Thermostats'!M34+'Comm 95+ Furnace - New'!M34+'Comm 95+% Furnace - Replace'!M34+Custom!M34,0) -> 0 | O34: =+ROUND('Res .95+% Res Furnace - NEW'!O34+'Res .95+% Res Furnace - Replace'!O34+'Programmable Thermostats'!O34+'Comm 95+ Furnace - New'!O34+'Comm 95+% Furnace - Replace'!O34+Custom!O34,0) -> 0 | Q34: =+ROUND('Res .95+% Res Furnace - NEW'!Q34+'Res .95+% Res Furnace - Replace'!Q34+'Programmable Thermostats'!Q34+'Comm 95+ Furnace - New'!Q34+'Comm 95+% Furnace - Replace'!Q34+Custom!Q34,0) -> 0 | R34: 0 | S34: =+ROUND('Res .95+% Res Furnace - NEW'!S34+'Res .95+% Res Furnace - Replace'!S34+'Programmable Thermostats'!S34+'Comm 95+ Furnace - New'!S34+'Comm 95+% Furnace - Replace'!S34+Custom!S34,0) -> 0 | U34: =+ROUND('Res .95+% Res Furnace - NEW'!U34+'Res .95+% Res Furnace - Replace'!U34+'Programmable Thermostats'!U34+'Comm 95+ Furnace - New'!U34+'Comm 95+% Furnace - Replace'!U34+Custom!U34,0) -> 0 | V34: 0 | X34: =+ROUND('Res .95+% Res Furnace - NEW'!X34+'Res .95+% Res Furnace - Replace'!X34+'Programmable Thermostats'!X34+'Comm 95+ Furnace - New'!X34+'Comm 95+% Furnace - Replace'!X34+Custom!X34,0) -> 0 | Y34: =+ROUND('Res .95+% Res Furnace - NEW'!Y34+'Res .95+% Res Furnace - Replace'!Y34+'Programmable Thermostats'!Y34+'Comm 95+ Furnace - New'!Y34+'Comm 95+% Furnace - Replace'!Y34+Custom!Y34,0) -> 0 | Z34: =+ROUND('Res .95+% Res Furnace - NEW'!Z34+'Res .95+% Res Furnace - Replace'!Z34+'Programmable Thermostats'!Z34+'Comm 95+ Furnace - New'!Z34+'Comm 95+% Furnace - Replace'!Z34+Custom!Z34,0) -> 0 | AA34: 0 | AB34: 0 | AE34: 2036 | AF34: 0 | AG34: 0 | AH34: 0 | AJ34: 0 | AK34: 0 | AL34: 0 | AN34: 0 | AQ34: 2036 | AR34: 0 | AS34: 0 | AU34: =+ROUND('Res .95+% Res Furnace - NEW'!AT34+'Res .95+% Res Furnace - Replace'!AU34+'Programmable Thermostats'!AU34+'Comm 95+ Furnace - New'!AU34+'Comm 95+% Furnace - Replace'!AU34+Custom!AU34,0) -> 0 | AW34: =+ROUND('Res .95+% Res Furnace - NEW'!AV34+'Res .95+% Res Furnace - Replace'!AW34+'Programmable Thermostats'!AW34+'Comm 95+ Furnace - New'!AW34+'Comm 95+% Furnace - Replace'!AW34+Custom!AW34,0) -> 0 | AZ34: 0 | BB34: =+ROUND('Res .95+% Res Furnace - NEW'!BA34+'Res .95+% Res Furnace - Replace'!BB34+'Programmable Thermostats'!BB34+'Comm 95+ Furnace - New'!BB34+'Comm 95+% Furnace - Replace'!BB34+Custom!BB34,0) -> 0 | BC34: =+ROUND('Res .95+% Res Furnace - NEW'!BB34+'Res .95+% Res Furnace - Replace'!BC34+'Programmable Thermostats'!BC34+'Comm 95+ Furnace - New'!BC34+'Comm 95+% Furnace - Replace'!BC34+Custom!BC34,0) -> 0 | BD34: 0 | BE34: 0 | BH34: 2036 | BI34: =+ROUND('Res .95+% Res Furnace - NEW'!BH34+'Res .95+% Res Furnace - Replace'!BI34+'Programmable Thermostats'!BI34+'Comm 95+ Furnace - New'!BI34+'Comm 95+% Furnace - Replace'!BI34+Custom!BI34,0) -> 0 | BJ34: =+ROUND('Res .95+% Res Furnace - NEW'!BI34+'Res .95+% Res Furnace - Replace'!BJ34+'Programmable Thermostats'!BJ34+'Comm 95+ Furnace - New'!BJ34+'Comm 95+% Furnace - Replace'!BJ34+Custom!BJ34,0) -> 0 | BL34: =+ROUND('Res .95+% Res Furnace - NEW'!BK34+'Res .95+% Res Furnace - Replace'!BL34+'Programmable Thermostats'!BL34+'Comm 95+ Furnace - New'!BL34+'Comm 95+% Furnace - Replace'!BL34+Custom!BL34,0) -> 0 | BN34: =+ROUND('Res .95+% Res Furnace - NEW'!BM34+'Res .95+% Res Furnace - Replace'!BN34+'Programmable Thermostats'!BN34+'Comm 95+ Furnace - New'!BN34+'Comm 95+% Furnace - Replace'!BN34+Custom!BN34,0) -> 0 | BP34: 0 | BR34: =+ROUND('Res .95+% Res Furnace - NEW'!BQ34+'Res .95+% Res Furnace - Replace'!BR34+'Programmable Thermostats'!BR34+'Comm 95+ Furnace - New'!BR34+'Comm 95+% Furnace - Replace'!BR34+Custom!BR34,0) -> 0 | BT34: 0 | BW34: 2036 | BX34: 0 | BY34: 0 | BZ34: 0 | CA34: 0 | CC34: 0 | CD34: 0 | CE34: 0 | CG34: 0
J35: 23 | L35: 2037 | M35: =+ROUND('Res .95+% Res Furnace - NEW'!M35+'Res .95+% Res Furnace - Replace'!M35+'Programmable Thermostats'!M35+'Comm 95+ Furnace - New'!M35+'Comm 95+% Furnace - Replace'!M35+Custom!M35,0) -> 0 | O35: =+ROUND('Res .95+% Res Furnace - NEW'!O35+'Res .95+% Res Furnace - Replace'!O35+'Programmable Thermostats'!O35+'Comm 95+ Furnace - New'!O35+'Comm 95+% Furnace - Replace'!O35+Custom!O35,0) -> 0 | Q35: =+ROUND('Res .95+% Res Furnace - NEW'!Q35+'Res .95+% Res Furnace - Replace'!Q35+'Programmable Thermostats'!Q35+'Comm 95+ Furnace - New'!Q35+'Comm 95+% Furnace - Replace'!Q35+Custom!Q35,0) -> 0 | R35: 0 | S35: =+ROUND('Res .95+% Res Furnace - NEW'!S35+'Res .95+% Res Furnace - Replace'!S35+'Programmable Thermostats'!S35+'Comm 95+ Furnace - New'!S35+'Comm 95+% Furnace - Replace'!S35+Custom!S35,0) -> 0 | U35: =+ROUND('Res .95+% Res Furnace - NEW'!U35+'Res .95+% Res Furnace - Replace'!U35+'Programmable Thermostats'!U35+'Comm 95+ Furnace - New'!U35+'Comm 95+% Furnace - Replace'!U35+Custom!U35,0) -> 0 | V35: 0 | X35: =+ROUND('Res .95+% Res Furnace - NEW'!X35+'Res .95+% Res Furnace - Replace'!X35+'Programmable Thermostats'!X35+'Comm 95+ Furnace - New'!X35+'Comm 95+% Furnace - Replace'!X35+Custom!X35,0) -> 0 | Y35: =+ROUND('Res .95+% Res Furnace - NEW'!Y35+'Res .95+% Res Furnace - Replace'!Y35+'Programmable Thermostats'!Y35+'Comm 95+ Furnace - New'!Y35+'Comm 95+% Furnace - Replace'!Y35+Custom!Y35,0) -> 0 | Z35: =+ROUND('Res .95+% Res Furnace - NEW'!Z35+'Res .95+% Res Furnace - Replace'!Z35+'Programmable Thermostats'!Z35+'Comm 95+ Furnace - New'!Z35+'Comm 95+% Furnace - Replace'!Z35+Custom!Z35,0) -> 0 | AA35: 0 | AB35: 0 | AE35: 2037 | AF35: =+R35 -> 0 | AG35: =+U35 -> 0 | AH35: =+AG35+AF35 -> 0 | AJ35: =ROUND(Y35,0) -> 0 | AK35: =ROUND(Z35,0) -> 0 | AL35: =SUM(AJ35:AK35) -> 0 | AN35: =+AH35-AL35 -> 0 | AQ35: 2037 | AR35: =AF35 -> 0 | AS35: =+AG35 -> 0 | AU35: =+ROUND('Res .95+% Res Furnace - NEW'!AT35+'Res .95+% Res Furnace - Replace'!AU35+'Programmable Thermostats'!AU35+'Comm 95+ Furnace - New'!AU35+'Comm 95+% Furnace - Replace'!AU35+Custom!AU35,0) -> 0 | AW35: =+ROUND('Res .95+% Res Furnace - NEW'!AV35+'Res .95+% Res Furnace - Replace'!AW35+'Programmable Thermostats'!AW35+'Comm 95+ Furnace - New'!AW35+'Comm 95+% Furnace - Replace'!AW35+Custom!AW35,0) -> 0 | AZ35: =ROUND(AR35+AS35+AU35+AW35+AY35,0) -> 0 | BB35: =+ROUND('Res .95+% Res Furnace - NEW'!BA35+'Res .95+% Res Furnace - Replace'!BB35+'Programmable Thermostats'!BB35+'Comm 95+ Furnace - New'!BB35+'Comm 95+% Furnace - Replace'!BB35+Custom!BB35,0) -> 0 | BC35: =+ROUND('Res .95+% Res Furnace - NEW'!BB35+'Res .95+% Res Furnace - Replace'!BC35+'Programmable Thermostats'!BC35+'Comm 95+ Furnace - New'!BC35+'Comm 95+% Furnace - Replace'!BC35+Custom!BC35,0) -> 0 | BD35: =BB35+BC35 -> 0 | BE35: =AZ35-BD35 -> 0 | BH35: 2037 | BI35: =+ROUND('Res .95+% Res Furnace - NEW'!BH35+'Res .95+% Res Furnace - Replace'!BI35+'Programmable Thermostats'!BI35+'Comm 95+ Furnace - New'!BI35+'Comm 95+% Furnace - Replace'!BI35+Custom!BI35,0) -> 0 | BJ35: =+ROUND('Res .95+% Res Furnace - NEW'!BI35+'Res .95+% Res Furnace - Replace'!BJ35+'Programmable Thermostats'!BJ35+'Comm 95+ Furnace - New'!BJ35+'Comm 95+% Furnace - Replace'!BJ35+Custom!BJ35,0) -> 0 | BL35: =+ROUND('Res .95+% Res Furnace - NEW'!BK35+'Res .95+% Res Furnace - Replace'!BL35+'Programmable Thermostats'!BL35+'Comm 95+ Furnace - New'!BL35+'Comm 95+% Furnace - Replace'!BL35+Custom!BL35,0) -> 0 | BN35: =+ROUND('Res .95+% Res Furnace - NEW'!BM35+'Res .95+% Res Furnace - Replace'!BN35+'Programmable Thermostats'!BN35+'Comm 95+ Furnace - New'!BN35+'Comm 95+% Furnace - Replace'!BN35+Custom!BN35,0) -> 0 | BP35: =BI35+BL35+BN35+BO35 -> 0 | BR35: =+ROUND('Res .95+% Res Furnace - NEW'!BQ35+'Res .95+% Res Furnace - Replace'!BR35+'Programmable Thermostats'!BR35+'Comm 95+ Furnace - New'!BR35+'Comm 95+% Furnace - Replace'!BR35+Custom!BR35,0) -> 0 | BT35: 0 | BW35: 2037 | BX35: 0 | BY35: =U35 -> 0 | BZ35: =AU35 -> 0 | CA35: =SUM(BX35:BZ35) -> 0 | CC35: =BB35 -> 0 | CD35: =BC35 -> 0 | CE35: =SUM(CC35:CD35) -> 0 | CG35: 0 | DB35: =$J21 -> 9
A36: 10) Non Gas Fuel Environmental Damage Factor = | E36: 26) Distribution Delivery Charge
A37: Escalation Rate = | K37: Total = | M37: =SUM(M14:M35) -> 120260 | V37: =SUM(V14:V35) -> 647612 | AA37: =SUM(AA14:AA35) -> 354402 | AB37: =SUM(AB14:AB35) -> 293210 | AD37: Total = | AH37: =SUM(AH14:AH35) -> 647612 | AL37: =SUM(AL14:AL35) -> 146846 | AN37: =SUM(AN14:AN35) -> 500766 | AP37: Total = | AZ37: =SUM(AZ14:AZ35) -> 937301 | BD37: =SUM(BD14:BD35) -> 246514 | BE37: =SUM(BE14:BE35) -> 690787 | BG37: Total = | BJ37: =SUM(BJ14:BJ35) -> 120260 | BP37: =SUM(BP14:BP35) -> 2639295 | BR37: =SUM(BR14:BR35) -> 238408 | BT37: =SUM(BT14:BT35) -> 2400887 | BZ37: Total = | CA37: =SUM(CA14:CA35) -> 881693 | CE37: =SUM(CE14:CE35) -> 246514 | CG37: =SUM(CG14:CG35) -> 635179 | DB37: =$J22 -> 10
E38: 27) Effective Income Tax Rate = | T38: NPV = | V38: =ROUND(V14+NPV($C$41,V15:V35),0) -> 353677 | AA38: =ROUND(AA14+NPV($C$41,AA15:AA35),0) -> 257661 | AB38: =ROUND(AB14+NPV($C$41,AB15:AB35),0) -> 96016 | AG38: NPV = | AH38: =ROUND(AH14+NPV($C$41,AH15:AH35),0) -> 353677 | AL38: =ROUND(AL14+NPV($C$41,AL15:AL35),0) -> 146846 | AN38: =+AH38-AL38 -> 206831 | AW38: NPV = | AZ38: =ROUND(AZ14+NPV($C$43,AZ15:AZ35),0) -> 673974 | BD38: =ROUND(BD14+NPV($C$43,BD15:BD35),0) -> 246514 | BE38: =AZ38-BD38 -> 427460 | BN38: NPV = | BP38: =ROUND(BP14+NPV($C$39,BP15:BP35),0) -> 1217460 | BR38: =ROUND(BR14+NPV($C$39,BR15:BR35),0) -> 238408 | BT38: =ROUND(BT14+NPV($C$39,BT15:BT35),0) -> 979052 | BZ38: NPV = | CA38: =ROUND(CA14+NPV($C$41,CA15:CA35),0) -> 474317 | CE38: =ROUND(CE14+NPV($C$41,CE15:CE35),0) -> 246514 | CG38: =ROUND(CG14+NPV($C$41,CG15:CG35),0) -> 227803
A39: 11) Participant Discount Rate = | C39: =+'Gas Input Table Summary'!D26 -> 0.1 | E39: (Federal & State Taxes)
K40: Total NPV = | N40: =AB38 -> 96016 | AD40: Total NPV = | AG40: =AN38 -> 206831 | AP40: Total NPV = | AS40: =BE38 -> 427460 | BG40: Total NPV = | BJ40: =BT38 -> 979052 | BV40: Total NPV = | BY40: =CG38 -> 227803 | DB40: =$J23 -> 11
A41: 12) Utility Discount Rate = | C41: =+'Gas Input Table Summary'!D27 -> 0.07216 | E41: Test Results | F41: NPV | G41: B/C | K41: Benefit/Cost Ratio = | N41: =ROUND(V38/AA38,2) -> 1.37 | AD41: Benefit/Cost Ratio = | AG41: =ROUND(AH38/AL38,2) -> 2.41 | AP41: Benefit/Cost Ratio = | AS41: =ROUND(AZ38/BD38,2) -> 2.73 | BG41: Benefit/Cost Ratio = | BJ41: =ROUND(BP38/BR38,20) -> 5.106623939 | BV41: Benefit/Cost Ratio = | BY41: =ROUND(CA38/CE38,2) -> 1.92 | DB41: =$J24 -> 12
E42: Ratepayer Impact Measure Test | F42: =N40 -> 96016 | G42: =N41 -> 1.37 | DB42: =$J25 -> 13
A43: 13) Societal Discount Rate = | C43: =+'Gas Input Table Summary'!D28 -> 0.0356 | E43: Utility Cost Test | F43: =AG40 -> 206831 | G43: =AG41 -> 2.41 | BG43: Worksheet Calculations | BV43: Worksheet Calculations | DB43: =$J26 -> 14
E44: Societal Test | F44: =AS40 -> 427460 | G44: =AS41 -> 2.73 | J44: Worksheet Calculations | AD44: Worksheet Calculations | AP44: Worksheet Calculations | BG44: (A) | BH44: = Table 1 (N) | BV44: (A) | BW44: = Table 1 (F)
A45: 14) General Input Data Year = | C45: =+'Gas Input Table Summary'!D29 -> 2014 | E45: Participant Test | F45: =BJ40 -> 979052 | G45: =BJ41 -> 5.106623939 | J45: (A) | K45: = Average Dk/Participant Saved (21) x Number of Participants (23) for Project Life (20) | T45: (I) | U45: = (G) x (H) | AD45: (A) | AE45: = Table 1 (F) | AP45: (A) | AQ45: = Table 1 (F) | AW45: (H) | AZ45: = Table 2 (F) | BG45: (B) | BH45: = Table 1 (A) | BV45: (B) | BW45: = Table 1 (I)
E46: Total Resource Cost Test | F46: =BY40 -> 227803 | G46: =BY41 -> 1.92 | J46: (B) | K46: = Commodity Cost (3) escalated | T46: (J) | U46: = (F) + (I) | AD46: (B) | AE46: = Table 1 (I) | AP46: (G) | AQ46: = Table 1 (I) | AW46: (I) | AZ46: = Direct Part. Costs (17) x No. of Part. (23) - Table 1 (N) | BG46: (C) | BH46: = Retail Rate (1) escalated. | BV46: (C) | BW46: = Table 3 (D)
A47: 15) Project Analysis Year 1 = | C47: 2016 | J47: (C) | K47: = (A) x (B) | T47: (K) | U47: = Distribution Delivery Charge (26) escalated. | AD47: (C) | AE47: = Table 1 (J) | AP47: (C) | AQ47: = Non-Gas Fuel Cost (7), adjusted for losses (8), escalated.. | AW47: (J) | AZ47: = (H) + (I) | BG47: (D) | BH47: =(B) x (C) | BV47: (D) | BW47: = (A) + (B) + (C)
J48: (D) | K48: = Variable O&M Cost (6), escalated | T48: (L) | U48: = (A) x (K) x (1-Inverse of Tax Rate (27) | AD48: (D) | AE48: = Table 1 (M) | AP48: (D) | AQ48: = (C) x [Avg. Non-Gas Fuel Units/Part.Saved (22) x No. of Part. (23) | AW48: (K) | AZ48: = (G) - (J) | BG48: (E) | BH48: = Non-Gas Fuel Retail Rate (2), escalated. | BV48: (E) | BW48: = Table 3 (H)
J49: (E) | K49: = (A) x (D) | T49: (M) | U49: = Admin & Operating Costs (16a) | AD49: (E) | AE49: = Table 1 (N) | AP49: (E) | AQ49: = Gas Environmental Damage Factor (9), escalated | BG49: (F) | BH49: = (E) x [Avg. Non-Gas Fuel Units/Part.Saved (22) x No. of Part. (23) | BV49: (F) | BW49: = Table 3 (I) | DB49: =$J27 -> 15
J50: (F) | K50: = (C) + (E) | T50: (N) | U50: = Incentive Costs (16b) | AD50: (F) | AE50: = (D) + (E) | AP50: (F) | AQ50: = Table 1 (A) x (E) | BG50: (G) | BH50: = (A) + (D) + (F) | BV50: (G) | BW50: = (E) + (F) | DB50: =$J28 -> 16
J51: (G) | K51: = (A) x Peak Reduction Factor (5) | T51: (O) | U51: = (L) + (M) + (N) | AD51: (G) | AE51: = (C) - (F) | AP51: (G) | AQ51: = (A) + (B) + (D) + (F) | BG51: (H) | BH51: = Direct Participant Costs (17) x Number of Participants (23) | BV51: (H) | BW51: = (D) - (G) | DB51: =$J29 -> 17
J52: (H) | K52: = Demand Cost (4) escalated. | T52: (P) | U52: = (J) - (O) | BG52: (I) | BH52: = (G) - (H)

Sheet Total Program Incl EA
A1: NATURAL GAS CONSERVATION PROGRAMS/DEMAND-SIDE MANAGEMENT | K1: Table 1 | AD1: Table 2 | AP1: Table 3 | BG1: Table 4 | BV1: Table 5
A2: BEN/COST ANALYSIS FOR GAS CONSERVATION | K2: Ratepayer Impact Measure Test | AD2: Utility Cost Test | AP2: Societal Test | BG2: Participant Test | BV2: Total Resource Cost Test
A4: Company: | B4: Montana-Dakota Utilities Co. | K4: Company: | M4: =B4 -> Montana-Dakota Utilities Co. | AD4: Company: | AF4: =B4 -> Montana-Dakota Utilities Co. | AP4: Company: | AR4: =AF4 -> Montana-Dakota Utilities Co. | BH4: Company: | BI4: =AR4 -> Montana-Dakota Utilities Co. | BW4: Company: | BX4: =BI4 -> Montana-Dakota Utilities Co.
A5: Project: | B5: Total South Dakota Program | K5: Project: | M5: =$B$5 -> Total South Dakota Program | AD5: Project: | AF5: =$B$5 -> Total South Dakota Program | AP5: Project: | AR5: =$B$5 -> Total South Dakota Program | BH5: Project: | BI5: =$B$5 -> Total South Dakota Program | BW5: Project: | BX5: =$B$5 -> Total South Dakota Program
A6: Program Years: | B6: 2017 Actual - Including Energy Audits
N7: Benefits | X7: Costs | AF7: Benefits | AJ7: Costs | AR7: Benefits | BB7: Costs | BI7: Benefits | BR7: Costs | BX7: Benefits | CC7: Costs
A8: Input Data | F8: 2017 | AB8: Annual | AN8: Annual | AT8: Non-Gas | BE8: Annual | BT8: Annual | CG8: Annual
M9: Total | N9: Gas | O9: Gas | P9: Variable | Q9: Variable | R9: Total | S9: Peak Dk | T9: Dmd | U9: Total | W9: Distribution | Y9: Program | AA9: Total | AB9: Benefits | AF9: Total | AG9: Total | AH9: Annual | AJ9: Program | AL9: Utility | AN9: Benefits | AR9: Total | AS9: Total | AT9: Energy | AU9: Non-Gas | AV9: Environmental | AW9: Environmental | AZ9: Annual | BB9: Utility | BC9: Participants' | BD9: Annual | BE9: Benefits | BJ9: Total | BL9: Gas | BM9: Non-Gas | BN9: Non-Gas | BP9: Total | BR9: Direct | BT9: Benefits | BX9: Total | BY9: Total | BZ9: Non-Gas | CA9: Total | CC9: Utility | CD9: Participants' | CG9: Benefits
A10: 1) Retail Rate ($/Dk) = | E10: 16) Utility Project Costs | M10: Energy | N10: Commodity | O10: Commodity | P10: O & M | Q10: O & M | R10: Energy | S10: Demand | T10: Savings | U10: Demand | V10: Total | W10: Delivery | X10: Lost | Y10: Admin | Z10: Incentive | AA10: Program | AB10: Less | AF10: Energy | AG10: Demand | AH10: Total | AJ10: Admin | AK10: Incentive | AL10: Program | AN10: Less | AR10: Energy | AS10: Demand | AT10: Savings | AU10: Energy | AV10: Damage | AW10: Damage | AZ10: Total | BB10: Program | BC10: Costs Net | BD10: Total | BE10: Less | BI10: Incentives | BJ10: Energy | BK10: Retail | BL10: Bill | BM10: Fuel | BN10: Energy | BP10: Annual | BR10: Participant | BT10: Less | BX10: Energy | BY10: Demand | BZ10: Energy | CA10: Annual | CC10: Program | CD10: Costs Net | CE10: Total | CG10: Less
A11: Escalation Rate = | E11: 16a) Administrative & Operating Costs | F11: =+'Total Program'!F11+'Energy Audits'!F11 -> 8611 | J11: t | M11: Reduction | N11: Cost/Dk | O11: Savings | P11: Cost/Dk | Q11: Savings | R11: Savings | S11: Reduction | T11: '/ Unit | U11: Savings | V11: Savings | W11: Charge | X11: Margin | Y11: Costs | Z11: Costs | AA11: Costs | AB11: Costs | AF11: Savings | AG11: Savings | AH11: Savings | AJ11: Costs | AK11: Costs | AL11: Costs | AN11: Costs | AR11: Savings | AS11: Savings | AT11: ($/Part.) | AU11: Savings | AV11: Savings/Dk | AW11: Savings | AZ11: Savings | BB11: Costs | BC11: of Rebate | BD11: Costs | BE11: Costs | BI11: Received | BJ11: Reduction | BK11: Rate | BL11: Savings | BM11: Retail Rate | BN11: Savings | BP11: Benefits | BR11: Costs | BT11: Costs | BX11: Savings | BY11: Savings | BZ11: Savings | CA11: Benefits | CC11: Costs | CD11: of Rebate | CE11: Costs | CG11: Costs
E12: 16b) Incentive Costs = | F12: =+'Total Program'!F12+'Energy Audits'!F12 -> 147368 | L12: Year | M12: (A) | N12: (B) | O12: (C) | P12: (D) | Q12: (E) | R12: (F) | S12: (G) | T12: (H) | U12: (I) | V12: (J) | W12: (K) | X12: (L) | Y12: (M) | Z12: (N) | AA12: (O) | AB12: (P) | AE12: Year | AF12: (A) | AG12: (B) | AH12: (C) | AJ12: (D) | AK12: (E) | AL12: (F) | AN12: (G) | AQ12: Year | AR12: (A) | AS12: (B) | AT12: (C) | AU12: (D) | AV12: (E) | AW12: (F) | AZ12: (G) | BB12: (H) | BC12: (I) | BD12: (J) | BE12: (K) | BH12: Year | BI12: (A) | BJ12: (B) | BK12: (C) | BL12: (D) | BM12: (E) | BN12: (F) | BP12: (G) | BR12: (H) | BT12: (I) | BW12: Year | BX12: (A) | BY12: (B) | BZ12: (C) | CA12: (D) | CC12: (E) | CD12: (F) | CE12: (G) | CG12: (H)
A13: 2) Non-Gas Fuel Retail Rate ($/Fuel Unit) = | E13: 16c) Total Utility Project Costs = | F13: =SUM(F11:F12) -> 155979
A14: Escalation Rate = | J14: =$C$47-$C$45 -> 2 | L14: =$C$47 -> 2016 | M14: =+ROUND('Res .95+% Res Furnace - NEW'!M14+'Res .95+% Res Furnace - Replace'!M14+'Programmable Thermostats'!M14+'Comm 95+ Furnace - New'!M14+'Comm 95+% Furnace - Replace'!M14+Custom!M14+'Energy Audits'!M14,0) -> 6604 | O14: =+ROUND('Res .95+% Res Furnace - NEW'!O14+'Res .95+% Res Furnace - Replace'!O14+'Programmable Thermostats'!O14+'Comm 95+ Furnace - New'!O14+'Comm 95+% Furnace - Replace'!O14+Custom!O14+'Energy Audits'!O14,0) -> 16980 | Q14: =+ROUND('Res .95+% Res Furnace - NEW'!Q14+'Res .95+% Res Furnace - Replace'!Q14+'Programmable Thermostats'!Q14+'Comm 95+ Furnace - New'!Q14+'Comm 95+% Furnace - Replace'!Q14+Custom!Q14+'Energy Audits'!Q14,0) -> 0 | R14: =O14+Q14 -> 16980 | S14: =+ROUND('Res .95+% Res Furnace - NEW'!S14+'Res .95+% Res Furnace - Replace'!S14+'Programmable Thermostats'!S14+'Comm 95+ Furnace - New'!S14+'Comm 95+% Furnace - Replace'!S14+Custom!S14+'Energy Audits'!S14,0) -> 66 | U14: =+ROUND('Res .95+% Res Furnace - NEW'!U14+'Res .95+% Res Furnace - Replace'!U14+'Programmable Thermostats'!U14+'Comm 95+ Furnace - New'!U14+'Comm 95+% Furnace - Replace'!U14+Custom!U14+'Energy Audits'!U14,0) -> 9385 | V14: =ROUND(+U14+R14,0) -> 26365 | X14: =+ROUND('Res .95+% Res Furnace - NEW'!X14+'Res .95+% Res Furnace - Replace'!X14+'Programmable Thermostats'!X14+'Comm 95+ Furnace - New'!X14+'Comm 95+% Furnace - Replace'!X14+Custom!X14+'Energy Audits'!X14,0) -> 8091 | Y14: =+ROUND('Res .95+% Res Furnace - NEW'!Y14+'Res .95+% Res Furnace - Replace'!Y14+'Programmable Thermostats'!Y14+'Comm 95+ Furnace - New'!Y14+'Comm 95+% Furnace - Replace'!Y14+Custom!Y14+'Energy Audits'!Y14,0) -> 8646 | Z14: =+ROUND('Res .95+% Res Furnace - NEW'!Z14+'Res .95+% Res Furnace - Replace'!Z14+'Programmable Thermostats'!Z14+'Comm 95+ Furnace - New'!Z14+'Comm 95+% Furnace - Replace'!Z14+Custom!Z14+'Energy Audits'!Z14,0) -> 147968 | AA14: =SUM(X14:Z14) -> 164705 | AB14: =V14-AA14 -> -138340 | AE14: =$C$47 -> 2016 | AF14: =+R14 -> 16980 | AG14: =+U14 -> 9385 | AH14: =+AG14+AF14 -> 26365 | AJ14: =ROUND(Y14,0) -> 8646 | AK14: =ROUND(Z14,0) -> 147968 | AL14: =SUM(AJ14:AK14) -> 156614 | AN14: =+AH14-AL14 -> -130249 | AQ14: =$C$47 -> 2016 | AR14: =AF14 -> 16980 | AS14: =+AG14 -> 9385 | AU14: =+ROUND('Res .95+% Res Furnace - NEW'!AT14+'Res .95+% Res Furnace - Replace'!AU14+'Programmable Thermostats'!AU14+'Comm 95+ Furnace - New'!AU14+'Comm 95+% Furnace - Replace'!AU14+Custom!AU14+'Energy Audits'!AU14,0) -> 8162 | AW14: =+ROUND('Res .95+% Res Furnace - NEW'!AV14+'Res .95+% Res Furnace - Replace'!AW14+'Programmable Thermostats'!AW14+'Comm 95+ Furnace - New'!AW14+'Comm 95+% Furnace - Replace'!AW14+Custom!AW14+'Energy Audits'!AW14,0) -> 2477 | AZ14: =ROUND(AR14+AS14+AU14+AW14+AY14,0) -> 37004 | BB14: =+ROUND('Res .95+% Res Furnace - NEW'!BA14+'Res .95+% Res Furnace - Replace'!BB14+'Programmable Thermostats'!BB14+'Comm 95+ Furnace - New'!BB14+'Comm 95+% Furnace - Replace'!BB14+Custom!BB14+'Energy Audits'!BB14,0) -> 156614 | BC14: =+ROUND('Res .95+% Res Furnace - NEW'!BB14+'Res .95+% Res Furnace - Replace'!BC14+'Programmable Thermostats'!BC14+'Comm 95+ Furnace - New'!BC14+'Comm 95+% Furnace - Replace'!BC14+Custom!BC14+'Energy Audits'!BC14,0) -> 101018 | BD14: =BB14+BC14 -> 257632 | BE14: =AZ14-BD14 -> -220628 | BH14: =$C$47 -> 2016 | BI14: =+ROUND('Res .95+% Res Furnace - NEW'!BH14+'Res .95+% Res Furnace - Replace'!BI14+'Programmable Thermostats'!BI14+'Comm 95+ Furnace - New'!BI14+'Comm 95+% Furnace - Replace'!BI14+Custom!BI14,0) -> 138740 | BJ14: =+M14 -> 6604 | BL14: =+ROUND('Res .95+% Res Furnace - NEW'!BK14+'Res .95+% Res Furnace - Replace'!BL14+'Programmable Thermostats'!BL14+'Comm 95+ Furnace - New'!BL14+'Comm 95+% Furnace - Replace'!BL14+Custom!BL14+'Energy Audits'!BL14,0) -> 44068 | BN14: =+ROUND('Res .95+% Res Furnace - NEW'!BM14+'Res .95+% Res Furnace - Replace'!BN14+'Programmable Thermostats'!BN14+'Comm 95+ Furnace - New'!BN14+'Comm 95+% Furnace - Replace'!BN14+Custom!BN14+'Energy Audits'!BN14,0) -> 48885 | BP14: =BI14+BL14+BN14+BO14 -> 231693 | BR14: =+ROUND('Res .95+% Res Furnace - NEW'!BQ14+'Res .95+% Res Furnace - Replace'!BR14+'Programmable Thermostats'!BR14+'Comm 95+ Furnace - New'!BR14+'Comm 95+% Furnace - Replace'!BR14+Custom!BR14+'Energy Audits'!BR14,0) -> 239758 | BT14: =BP14-BR14 -> -8065 | BW14: =$C$47 -> 2016 | BX14: =$R14 -> 16980 | BY14: =U14 -> 9385 | BZ14: =AU14 -> 8162 | CA14: =SUM(BX14:BZ14) -> 34527 | CC14: =BB14 -> 156614 | CD14: =BC14 -> 101018 | CE14: =SUM(CC14:CD14) -> 257632 | CG14: =CA14-CE14 -> -223105
A15: Non-Gas Fuel Units (ie. kWh,Gallons, etc) = | E15: 17) Direct Participant Costs ($/Part.) = | J15: =J14+1 -> 3 | L15: =L14+1 -> 2017 | M15: =+ROUND('Res .95+% Res Furnace - NEW'!M15+'Res .95+% Res Furnace - Replace'!M15+'Programmable Thermostats'!M15+'Comm 95+ Furnace - New'!M15+'Comm 95+% Furnace - Replace'!M15+Custom!M15+'Energy Audits'!M15,0) -> 6604 | O15: =+ROUND('Res .95+% Res Furnace - NEW'!O15+'Res .95+% Res Furnace - Replace'!O15+'Programmable Thermostats'!O15+'Comm 95+ Furnace - New'!O15+'Comm 95+% Furnace - Replace'!O15+Custom!O15+'Energy Audits'!O15,0) -> 18828 | Q15: =+ROUND('Res .95+% Res Furnace - NEW'!Q15+'Res .95+% Res Furnace - Replace'!Q15+'Programmable Thermostats'!Q15+'Comm 95+ Furnace - New'!Q15+'Comm 95+% Furnace - Replace'!Q15+Custom!Q15+'Energy Audits'!Q15,0) -> 0 | R15: 18828 | S15: =+ROUND('Res .95+% Res Furnace - NEW'!S15+'Res .95+% Res Furnace - Replace'!S15+'Programmable Thermostats'!S15+'Comm 95+ Furnace - New'!S15+'Comm 95+% Furnace - Replace'!S15+Custom!S15+'Energy Audits'!S15,0) -> 66 | U15: =+ROUND('Res .95+% Res Furnace - NEW'!U15+'Res .95+% Res Furnace - Replace'!U15+'Programmable Thermostats'!U15+'Comm 95+ Furnace - New'!U15+'Comm 95+% Furnace - Replace'!U15+Custom!U15+'Energy Audits'!U15,0) -> 9651 | V15: =ROUND(+U15+R15,0) -> 28479 | X15: =+ROUND('Res .95+% Res Furnace - NEW'!X15+'Res .95+% Res Furnace - Replace'!X15+'Programmable Thermostats'!X15+'Comm 95+ Furnace - New'!X15+'Comm 95+% Furnace - Replace'!X15+Custom!X15+'Energy Audits'!X15,0) -> 8373 | Y15: =+ROUND('Res .95+% Res Furnace - NEW'!Y15+'Res .95+% Res Furnace - Replace'!Y15+'Programmable Thermostats'!Y15+'Comm 95+ Furnace - New'!Y15+'Comm 95+% Furnace - Replace'!Y15+Custom!Y15+'Energy Audits'!Y15,0) -> 0 | Z15: =+ROUND('Res .95+% Res Furnace - NEW'!Z15+'Res .95+% Res Furnace - Replace'!Z15+'Programmable Thermostats'!Z15+'Comm 95+ Furnace - New'!Z15+'Comm 95+% Furnace - Replace'!Z15+Custom!Z15+'Energy Audits'!Z15,0) -> 0 | AA15: 8373 | AB15: 20106 | AE15: =AE14+1 -> 2017 | AF15: 18828 | AG15: 9651 | AH15: =+AG15+AF15 -> 28479 | AJ15: =ROUND(Y15,0) -> 0 | AK15: 0 | AL15: 0 | AN15: 28479 | AQ15: =AQ14+1 -> 2017 | AR15: 18828 | AS15: 9651 | AU15: =+ROUND('Res .95+% Res Furnace - NEW'!AT15+'Res .95+% Res Furnace - Replace'!AU15+'Programmable Thermostats'!AU15+'Comm 95+ Furnace - New'!AU15+'Comm 95+% Furnace - Replace'!AU15+Custom!AU15+'Energy Audits'!AU15,0) -> 8488 | AW15: =+ROUND('Res .95+% Res Furnace - NEW'!AV15+'Res .95+% Res Furnace - Replace'!AW15+'Programmable Thermostats'!AW15+'Comm 95+ Furnace - New'!AW15+'Comm 95+% Furnace - Replace'!AW15+Custom!AW15+'Energy Audits'!AW15,0) -> 2529 | AZ15: =ROUND(AR15+AS15+AU15+AW15+AY15,0) -> 39496 | BB15: =+ROUND('Res .95+% Res Furnace - NEW'!BA15+'Res .95+% Res Furnace - Replace'!BB15+'Programmable Thermostats'!BB15+'Comm 95+ Furnace - New'!BB15+'Comm 95+% Furnace - Replace'!BB15+Custom!BB15+'Energy Audits'!BB15,0) -> 0 | BC15: =+ROUND('Res .95+% Res Furnace - NEW'!BB15+'Res .95+% Res Furnace - Replace'!BC15+'Programmable Thermostats'!BC15+'Comm 95+ Furnace - New'!BC15+'Comm 95+% Furnace - Replace'!BC15+Custom!BC15+'Energy Audits'!BC15,0) -> 0 | BD15: =BB15+BC15 -> 0 | BE15: 39496 | BH15: =BH14+1 -> 2017 | BI15: =+ROUND('Res .95+% Res Furnace - NEW'!BH15+'Res .95+% Res Furnace - Replace'!BI15+'Programmable Thermostats'!BI15+'Comm 95+ Furnace - New'!BI15+'Comm 95+% Furnace - Replace'!BI15+Custom!BI15,0) -> 0 | BJ15: =+M15 -> 6604 | BL15: =+ROUND('Res .95+% Res Furnace - NEW'!BK15+'Res .95+% Res Furnace - Replace'!BL15+'Programmable Thermostats'!BL15+'Comm 95+ Furnace - New'!BL15+'Comm 95+% Furnace - Replace'!BL15+Custom!BL15+'Energy Audits'!BL15,0) -> 45611 | BN15: =+ROUND('Res .95+% Res Furnace - NEW'!BM15+'Res .95+% Res Furnace - Replace'!BN15+'Programmable Thermostats'!BN15+'Comm 95+ Furnace - New'!BN15+'Comm 95+% Furnace - Replace'!BN15+Custom!BN15+'Energy Audits'!BN15,0) -> 50518 | BP15: 96129 | BR15: =+ROUND('Res .95+% Res Furnace - NEW'!BQ15+'Res .95+% Res Furnace - Replace'!BR15+'Programmable Thermostats'!BR15+'Comm 95+ Furnace - New'!BR15+'Comm 95+% Furnace - Replace'!BR15+Custom!BR15+'Energy Audits'!BR15,0) -> 0 | BT15: =BP15-BR15 -> 96129 | BW15: =BW14+1 -> 2017 | BX15: 18828 | BY15: =U15 -> 9651 | BZ15: =AU15 -> 8488 | CA15: =SUM(BX15:BZ15) -> 36967 | CC15: =BB15 -> 0 | CD15: 0 | CE15: =SUM(CC15:CD15) -> 0 | CG15: =CA15-CE15 -> 36967
J16: 4 | L16: 2018 | M16: =+ROUND('Res .95+% Res Furnace - NEW'!M16+'Res .95+% Res Furnace - Replace'!M16+'Programmable Thermostats'!M16+'Comm 95+ Furnace - New'!M16+'Comm 95+% Furnace - Replace'!M16+Custom!M16+'Energy Audits'!M16,0) -> 6604 | O16: =+ROUND('Res .95+% Res Furnace - NEW'!O16+'Res .95+% Res Furnace - Replace'!O16+'Programmable Thermostats'!O16+'Comm 95+ Furnace - New'!O16+'Comm 95+% Furnace - Replace'!O16+Custom!O16+'Energy Audits'!O16,0) -> 19483 | Q16: =+ROUND('Res .95+% Res Furnace - NEW'!Q16+'Res .95+% Res Furnace - Replace'!Q16+'Programmable Thermostats'!Q16+'Comm 95+ Furnace - New'!Q16+'Comm 95+% Furnace - Replace'!Q16+Custom!Q16+'Energy Audits'!Q16,0) -> 0 | R16: 19483 | S16: =+ROUND('Res .95+% Res Furnace - NEW'!S16+'Res .95+% Res Furnace - Replace'!S16+'Programmable Thermostats'!S16+'Comm 95+ Furnace - New'!S16+'Comm 95+% Furnace - Replace'!S16+Custom!S16+'Energy Audits'!S16,0) -> 66 | U16: =+ROUND('Res .95+% Res Furnace - NEW'!U16+'Res .95+% Res Furnace - Replace'!U16+'Programmable Thermostats'!U16+'Comm 95+ Furnace - New'!U16+'Comm 95+% Furnace - Replace'!U16+Custom!U16+'Energy Audits'!U16,0) -> 9784 | V16: 29267 | X16: =+ROUND('Res .95+% Res Furnace - NEW'!X16+'Res .95+% Res Furnace - Replace'!X16+'Programmable Thermostats'!X16+'Comm 95+ Furnace - New'!X16+'Comm 95+% Furnace - Replace'!X16+Custom!X16+'Energy Audits'!X16,0) -> 8665 | Y16: =+ROUND('Res .95+% Res Furnace - NEW'!Y16+'Res .95+% Res Furnace - Replace'!Y16+'Programmable Thermostats'!Y16+'Comm 95+ Furnace - New'!Y16+'Comm 95+% Furnace - Replace'!Y16+Custom!Y16+'Energy Audits'!Y16,0) -> 0 | Z16: =+ROUND('Res .95+% Res Furnace - NEW'!Z16+'Res .95+% Res Furnace - Replace'!Z16+'Programmable Thermostats'!Z16+'Comm 95+ Furnace - New'!Z16+'Comm 95+% Furnace - Replace'!Z16+Custom!Z16+'Energy Audits'!Z16,0) -> 0 | AA16: 8665 | AB16: 20602 | AE16: 2018 | AF16: 19483 | AG16: 9784 | AH16: =+AG16+AF16 -> 29267 | AJ16: 0 | AK16: 0 | AL16: 0 | AN16: 29267 | AQ16: 2018 | AR16: 19483 | AS16: 9784 | AU16: =+ROUND('Res .95+% Res Furnace - NEW'!AT16+'Res .95+% Res Furnace - Replace'!AU16+'Programmable Thermostats'!AU16+'Comm 95+ Furnace - New'!AU16+'Comm 95+% Furnace - Replace'!AU16+Custom!AU16+'Energy Audits'!AU16,0) -> 8815 | AW16: =+ROUND('Res .95+% Res Furnace - NEW'!AV16+'Res .95+% Res Furnace - Replace'!AW16+'Programmable Thermostats'!AW16+'Comm 95+ Furnace - New'!AW16+'Comm 95+% Furnace - Replace'!AW16+Custom!AW16+'Energy Audits'!AW16,0) -> 2590 | AZ16: 40672 | BB16: =+ROUND('Res .95+% Res Furnace - NEW'!BA16+'Res .95+% Res Furnace - Replace'!BB16+'Programmable Thermostats'!BB16+'Comm 95+ Furnace - New'!BB16+'Comm 95+% Furnace - Replace'!BB16+Custom!BB16+'Energy Audits'!BB16,0) -> 0 | BC16: =+ROUND('Res .95+% Res Furnace - NEW'!BB16+'Res .95+% Res Furnace - Replace'!BC16+'Programmable Thermostats'!BC16+'Comm 95+ Furnace - New'!BC16+'Comm 95+% Furnace - Replace'!BC16+Custom!BC16+'Energy Audits'!BC16,0) -> 0 | BD16: 0 | BE16: 40672 | BH16: 2018 | BI16: =+ROUND('Res .95+% Res Furnace - NEW'!BH16+'Res .95+% Res Furnace - Replace'!BI16+'Programmable Thermostats'!BI16+'Comm 95+ Furnace - New'!BI16+'Comm 95+% Furnace - Replace'!BI16+Custom!BI16,0) -> 0 | BJ16: 6604 | BL16: =+ROUND('Res .95+% Res Furnace - NEW'!BK16+'Res .95+% Res Furnace - Replace'!BL16+'Programmable Thermostats'!BL16+'Comm 95+ Furnace - New'!BL16+'Comm 95+% Furnace - Replace'!BL16+Custom!BL16+'Energy Audits'!BL16,0) -> 47211 | BN16: =+ROUND('Res .95+% Res Furnace - NEW'!BM16+'Res .95+% Res Furnace - Replace'!BN16+'Programmable Thermostats'!BN16+'Comm 95+ Furnace - New'!BN16+'Comm 95+% Furnace - Replace'!BN16+Custom!BN16+'Energy Audits'!BN16,0) -> 52467 | BP16: 99678 | BR16: =+ROUND('Res .95+% Res Furnace - NEW'!BQ16+'Res .95+% Res Furnace - Replace'!BR16+'Programmable Thermostats'!BR16+'Comm 95+ Furnace - New'!BR16+'Comm 95+% Furnace - Replace'!BR16+Custom!BR16+'Energy Audits'!BR16,0) -> 0 | BT16: 99678 | BW16: 2018 | BX16: 19483 | BY16: 9784 | BZ16: 8815 | CA16: 38082 | CC16: 0 | CD16: 0 | CE16: 0 | CG16: 38082
A17: 3) Commodity Cost ($/Dk) = | E17: 18) Participant Non-Energy Costs (Annual $/Part.) = | J17: 5 | L17: 2019 | M17: =+ROUND('Res .95+% Res Furnace - NEW'!M17+'Res .95+% Res Furnace - Replace'!M17+'Programmable Thermostats'!M17+'Comm 95+ Furnace - New'!M17+'Comm 95+% Furnace - Replace'!M17+Custom!M17+'Energy Audits'!M17,0) -> 6604 | O17: =+ROUND('Res .95+% Res Furnace - NEW'!O17+'Res .95+% Res Furnace - Replace'!O17+'Programmable Thermostats'!O17+'Comm 95+ Furnace - New'!O17+'Comm 95+% Furnace - Replace'!O17+Custom!O17+'Energy Audits'!O17,0) -> 20169 | Q17: =+ROUND('Res .95+% Res Furnace - NEW'!Q17+'Res .95+% Res Furnace - Replace'!Q17+'Programmable Thermostats'!Q17+'Comm 95+ Furnace - New'!Q17+'Comm 95+% Furnace - Replace'!Q17+Custom!Q17+'Energy Audits'!Q17,0) -> 0 | R17: 20169 | S17: =+ROUND('Res .95+% Res Furnace - NEW'!S17+'Res .95+% Res Furnace - Replace'!S17+'Programmable Thermostats'!S17+'Comm 95+ Furnace - New'!S17+'Comm 95+% Furnace - Replace'!S17+Custom!S17+'Energy Audits'!S17,0) -> 66 | U17: =+ROUND('Res .95+% Res Furnace - NEW'!U17+'Res .95+% Res Furnace - Replace'!U17+'Programmable Thermostats'!U17+'Comm 95+ Furnace - New'!U17+'Comm 95+% Furnace - Replace'!U17+Custom!U17+'Energy Audits'!U17,0) -> 9849 | V17: 30018 | X17: =+ROUND('Res .95+% Res Furnace - NEW'!X17+'Res .95+% Res Furnace - Replace'!X17+'Programmable Thermostats'!X17+'Comm 95+ Furnace - New'!X17+'Comm 95+% Furnace - Replace'!X17+Custom!X17+'Energy Audits'!X17,0) -> 8971 | Y17: =+ROUND('Res .95+% Res Furnace - NEW'!Y17+'Res .95+% Res Furnace - Replace'!Y17+'Programmable Thermostats'!Y17+'Comm 95+ Furnace - New'!Y17+'Comm 95+% Furnace - Replace'!Y17+Custom!Y17+'Energy Audits'!Y17,0) -> 0 | Z17: =+ROUND('Res .95+% Res Furnace - NEW'!Z17+'Res .95+% Res Furnace - Replace'!Z17+'Programmable Thermostats'!Z17+'Comm 95+ Furnace - New'!Z17+'Comm 95+% Furnace - Replace'!Z17+Custom!Z17+'Energy Audits'!Z17,0) -> 0 | AA17: 8971 | AB17: 21047 | AE17: 2019 | AF17: 20169 | AG17: 9849 | AH17: 30018 | AJ17: 0 | AK17: 0 | AL17: 0 | AN17: 30018 | AQ17: 2019 | AR17: 20169 | AS17: 9849 | AU17: =+ROUND('Res .95+% Res Furnace - NEW'!AT17+'Res .95+% Res Furnace - Replace'!AU17+'Programmable Thermostats'!AU17+'Comm 95+ Furnace - New'!AU17+'Comm 95+% Furnace - Replace'!AU17+Custom!AU17+'Energy Audits'!AU17,0) -> 9141 | AW17: =+ROUND('Res .95+% Res Furnace - NEW'!AV17+'Res .95+% Res Furnace - Replace'!AW17+'Programmable Thermostats'!AW17+'Comm 95+ Furnace - New'!AW17+'Comm 95+% Furnace - Replace'!AW17+Custom!AW17+'Energy Audits'!AW17,0) -> 2649 | AZ17: 41808 | BB17: =+ROUND('Res .95+% Res Furnace - NEW'!BA17+'Res .95+% Res Furnace - Replace'!BB17+'Programmable Thermostats'!BB17+'Comm 95+ Furnace - New'!BB17+'Comm 95+% Furnace - Replace'!BB17+Custom!BB17+'Energy Audits'!BB17,0) -> 0 | BC17: =+ROUND('Res .95+% Res Furnace - NEW'!BB17+'Res .95+% Res Furnace - Replace'!BC17+'Programmable Thermostats'!BC17+'Comm 95+ Furnace - New'!BC17+'Comm 95+% Furnace - Replace'!BC17+Custom!BC17+'Energy Audits'!BC17,0) -> 0 | BD17: 0 | BE17: 41808 | BH17: 2019 | BI17: =+ROUND('Res .95+% Res Furnace - NEW'!BH17+'Res .95+% Res Furnace - Replace'!BI17+'Programmable Thermostats'!BI17+'Comm 95+ Furnace - New'!BI17+'Comm 95+% Furnace - Replace'!BI17+Custom!BI17,0) -> 0 | BJ17: 6604 | BL17: =+ROUND('Res .95+% Res Furnace - NEW'!BK17+'Res .95+% Res Furnace - Replace'!BL17+'Programmable Thermostats'!BL17+'Comm 95+ Furnace - New'!BL17+'Comm 95+% Furnace - Replace'!BL17+Custom!BL17+'Energy Audits'!BL17,0) -> 48861 | BN17: =+ROUND('Res .95+% Res Furnace - NEW'!BM17+'Res .95+% Res Furnace - Replace'!BN17+'Programmable Thermostats'!BN17+'Comm 95+ Furnace - New'!BN17+'Comm 95+% Furnace - Replace'!BN17+Custom!BN17+'Energy Audits'!BN17,0) -> 54416 | BP17: 103277 | BR17: =+ROUND('Res .95+% Res Furnace - NEW'!BQ17+'Res .95+% Res Furnace - Replace'!BR17+'Programmable Thermostats'!BR17+'Comm 95+ Furnace - New'!BR17+'Comm 95+% Furnace - Replace'!BR17+Custom!BR17+'Energy Audits'!BR17,0) -> 0 | BT17: 103277 | BW17: 2019 | BX17: 20169 | BY17: 9849 | BZ17: 9141 | CA17: 39159 | CC17: 0 | CD17: 0 | CE17: 0 | CG17: 39159
A18: Escalation Rate = | E18: Escalation Rate = | J18: 6 | L18: 2020 | M18: =+ROUND('Res .95+% Res Furnace - NEW'!M18+'Res .95+% Res Furnace - Replace'!M18+'Programmable Thermostats'!M18+'Comm 95+ Furnace - New'!M18+'Comm 95+% Furnace - Replace'!M18+Custom!M18+'Energy Audits'!M18,0) -> 6604 | O18: =+ROUND('Res .95+% Res Furnace - NEW'!O18+'Res .95+% Res Furnace - Replace'!O18+'Programmable Thermostats'!O18+'Comm 95+ Furnace - New'!O18+'Comm 95+% Furnace - Replace'!O18+Custom!O18+'Energy Audits'!O18,0) -> 20869 | Q18: =+ROUND('Res .95+% Res Furnace - NEW'!Q18+'Res .95+% Res Furnace - Replace'!Q18+'Programmable Thermostats'!Q18+'Comm 95+ Furnace - New'!Q18+'Comm 95+% Furnace - Replace'!Q18+Custom!Q18+'Energy Audits'!Q18,0) -> 0 | R18: 20869 | S18: =+ROUND('Res .95+% Res Furnace - NEW'!S18+'Res .95+% Res Furnace - Replace'!S18+'Programmable Thermostats'!S18+'Comm 95+ Furnace - New'!S18+'Comm 95+% Furnace - Replace'!S18+Custom!S18+'Energy Audits'!S18,0) -> 66 | U18: =+ROUND('Res .95+% Res Furnace - NEW'!U18+'Res .95+% Res Furnace - Replace'!U18+'Programmable Thermostats'!U18+'Comm 95+ Furnace - New'!U18+'Comm 95+% Furnace - Replace'!U18+Custom!U18+'Energy Audits'!U18,0) -> 9981 | V18: 30850 | X18: =+ROUND('Res .95+% Res Furnace - NEW'!X18+'Res .95+% Res Furnace - Replace'!X18+'Programmable Thermostats'!X18+'Comm 95+ Furnace - New'!X18+'Comm 95+% Furnace - Replace'!X18+Custom!X18+'Energy Audits'!X18,0) -> 9283 | Y18: =+ROUND('Res .95+% Res Furnace - NEW'!Y18+'Res .95+% Res Furnace - Replace'!Y18+'Programmable Thermostats'!Y18+'Comm 95+ Furnace - New'!Y18+'Comm 95+% Furnace - Replace'!Y18+Custom!Y18+'Energy Audits'!Y18,0) -> 0 | Z18: =+ROUND('Res .95+% Res Furnace - NEW'!Z18+'Res .95+% Res Furnace - Replace'!Z18+'Programmable Thermostats'!Z18+'Comm 95+ Furnace - New'!Z18+'Comm 95+% Furnace - Replace'!Z18+Custom!Z18+'Energy Audits'!Z18,0) -> 0 | AA18: 9283 | AB18: 21567 | AE18: 2020 | AF18: 20869 | AG18: 9981 | AH18: 30850 | AJ18: 0 | AK18: 0 | AL18: 0 | AN18: 30850 | AQ18: 2020 | AR18: 20869 | AS18: 9981 | AU18: =+ROUND('Res .95+% Res Furnace - NEW'!AT18+'Res .95+% Res Furnace - Replace'!AU18+'Programmable Thermostats'!AU18+'Comm 95+ Furnace - New'!AU18+'Comm 95+% Furnace - Replace'!AU18+Custom!AU18+'Energy Audits'!AU18,0) -> 9468 | AW18: =+ROUND('Res .95+% Res Furnace - NEW'!AV18+'Res .95+% Res Furnace - Replace'!AW18+'Programmable Thermostats'!AW18+'Comm 95+ Furnace - New'!AW18+'Comm 95+% Furnace - Replace'!AW18+Custom!AW18+'Energy Audits'!AW18,0) -> 2707 | AZ18: 43025 | BB18: =+ROUND('Res .95+% Res Furnace - NEW'!BA18+'Res .95+% Res Furnace - Replace'!BB18+'Programmable Thermostats'!BB18+'Comm 95+ Furnace - New'!BB18+'Comm 95+% Furnace - Replace'!BB18+Custom!BB18+'Energy Audits'!BB18,0) -> 0 | BC18: =+ROUND('Res .95+% Res Furnace - NEW'!BB18+'Res .95+% Res Furnace - Replace'!BC18+'Programmable Thermostats'!BC18+'Comm 95+ Furnace - New'!BC18+'Comm 95+% Furnace - Replace'!BC18+Custom!BC18+'Energy Audits'!BC18,0) -> 0 | BD18: 0 | BE18: 43025 | BH18: 2020 | BI18: =+ROUND('Res .95+% Res Furnace - NEW'!BH18+'Res .95+% Res Furnace - Replace'!BI18+'Programmable Thermostats'!BI18+'Comm 95+ Furnace - New'!BI18+'Comm 95+% Furnace - Replace'!BI18+Custom!BI18,0) -> 0 | BJ18: 6604 | BL18: =+ROUND('Res .95+% Res Furnace - NEW'!BK18+'Res .95+% Res Furnace - Replace'!BL18+'Programmable Thermostats'!BL18+'Comm 95+ Furnace - New'!BL18+'Comm 95+% Furnace - Replace'!BL18+Custom!BL18+'Energy Audits'!BL18,0) -> 50572 | BN18: =+ROUND('Res .95+% Res Furnace - NEW'!BM18+'Res .95+% Res Furnace - Replace'!BN18+'Programmable Thermostats'!BN18+'Comm 95+ Furnace - New'!BN18+'Comm 95+% Furnace - Replace'!BN18+Custom!BN18+'Energy Audits'!BN18,0) -> 56058 | BP18: 106630 | BR18: =+ROUND('Res .95+% Res Furnace - NEW'!BQ18+'Res .95+% Res Furnace - Replace'!BR18+'Programmable Thermostats'!BR18+'Comm 95+ Furnace - New'!BR18+'Comm 95+% Furnace - Replace'!BR18+Custom!BR18+'Energy Audits'!BR18,0) -> 0 | BT18: 106630 | BW18: 2020 | BX18: 20869 | BY18: 9981 | BZ18: 9468 | CA18: 40318 | CC18: 0 | CD18: 0 | CE18: 0 | CG18: 40318 | DB18: t
J19: 7 | L19: 2021 | M19: =+ROUND('Res .95+% Res Furnace - NEW'!M19+'Res .95+% Res Furnace - Replace'!M19+'Programmable Thermostats'!M19+'Comm 95+ Furnace - New'!M19+'Comm 95+% Furnace - Replace'!M19+Custom!M19+'Energy Audits'!M19,0) -> 6604 | O19: =+ROUND('Res .95+% Res Furnace - NEW'!O19+'Res .95+% Res Furnace - Replace'!O19+'Programmable Thermostats'!O19+'Comm 95+ Furnace - New'!O19+'Comm 95+% Furnace - Replace'!O19+Custom!O19+'Energy Audits'!O19,0) -> 21602 | Q19: =+ROUND('Res .95+% Res Furnace - NEW'!Q19+'Res .95+% Res Furnace - Replace'!Q19+'Programmable Thermostats'!Q19+'Comm 95+ Furnace - New'!Q19+'Comm 95+% Furnace - Replace'!Q19+Custom!Q19+'Energy Audits'!Q19,0) -> 0 | R19: 21602 | S19: =+ROUND('Res .95+% Res Furnace - NEW'!S19+'Res .95+% Res Furnace - Replace'!S19+'Programmable Thermostats'!S19+'Comm 95+ Furnace - New'!S19+'Comm 95+% Furnace - Replace'!S19+Custom!S19+'Energy Audits'!S19,0) -> 66 | U19: =+ROUND('Res .95+% Res Furnace - NEW'!U19+'Res .95+% Res Furnace - Replace'!U19+'Programmable Thermostats'!U19+'Comm 95+ Furnace - New'!U19+'Comm 95+% Furnace - Replace'!U19+Custom!U19+'Energy Audits'!U19,0) -> 10046 | V19: 31648 | X19: =+ROUND('Res .95+% Res Furnace - NEW'!X19+'Res .95+% Res Furnace - Replace'!X19+'Programmable Thermostats'!X19+'Comm 95+ Furnace - New'!X19+'Comm 95+% Furnace - Replace'!X19+Custom!X19+'Energy Audits'!X19,0) -> 9606 | Y19: =+ROUND('Res .95+% Res Furnace - NEW'!Y19+'Res .95+% Res Furnace - Replace'!Y19+'Programmable Thermostats'!Y19+'Comm 95+ Furnace - New'!Y19+'Comm 95+% Furnace - Replace'!Y19+Custom!Y19+'Energy Audits'!Y19,0) -> 0 | Z19: =+ROUND('Res .95+% Res Furnace - NEW'!Z19+'Res .95+% Res Furnace - Replace'!Z19+'Programmable Thermostats'!Z19+'Comm 95+ Furnace - New'!Z19+'Comm 95+% Furnace - Replace'!Z19+Custom!Z19+'Energy Audits'!Z19,0) -> 0 | AA19: 9606 | AB19: 22042 | AE19: 2021 | AF19: 21602 | AG19: 10046 | AH19: 31648 | AJ19: 0 | AK19: 0 | AL19: 0 | AN19: 31648 | AQ19: 2021 | AR19: 21602 | AS19: 10046 | AU19: =+ROUND('Res .95+% Res Furnace - NEW'!AT19+'Res .95+% Res Furnace - Replace'!AU19+'Programmable Thermostats'!AU19+'Comm 95+ Furnace - New'!AU19+'Comm 95+% Furnace - Replace'!AU19+Custom!AU19+'Energy Audits'!AU19,0) -> 9794 | AW19: =+ROUND('Res .95+% Res Furnace - NEW'!AV19+'Res .95+% Res Furnace - Replace'!AW19+'Programmable Thermostats'!AW19+'Comm 95+ Furnace - New'!AW19+'Comm 95+% Furnace - Replace'!AW19+Custom!AW19+'Energy Audits'!AW19,0) -> 2774 | AZ19: 44216 | BB19: =+ROUND('Res .95+% Res Furnace - NEW'!BA19+'Res .95+% Res Furnace - Replace'!BB19+'Programmable Thermostats'!BB19+'Comm 95+ Furnace - New'!BB19+'Comm 95+% Furnace - Replace'!BB19+Custom!BB19+'Energy Audits'!BB19,0) -> 0 | BC19: =+ROUND('Res .95+% Res Furnace - NEW'!BB19+'Res .95+% Res Furnace - Replace'!BC19+'Programmable Thermostats'!BC19+'Comm 95+ Furnace - New'!BC19+'Comm 95+% Furnace - Replace'!BC19+Custom!BC19+'Energy Audits'!BC19,0) -> 0 | BD19: 0 | BE19: 44216 | BH19: 2021 | BI19: =+ROUND('Res .95+% Res Furnace - NEW'!BH19+'Res .95+% Res Furnace - Replace'!BI19+'Programmable Thermostats'!BI19+'Comm 95+ Furnace - New'!BI19+'Comm 95+% Furnace - Replace'!BI19+Custom!BI19,0) -> 0 | BJ19: 6604 | BL19: =+ROUND('Res .95+% Res Furnace - NEW'!BK19+'Res .95+% Res Furnace - Replace'!BL19+'Programmable Thermostats'!BL19+'Comm 95+ Furnace - New'!BL19+'Comm 95+% Furnace - Replace'!BL19+Custom!BL19+'Energy Audits'!BL19,0) -> 52337 | BN19: =+ROUND('Res .95+% Res Furnace - NEW'!BM19+'Res .95+% Res Furnace - Replace'!BN19+'Programmable Thermostats'!BN19+'Comm 95+ Furnace - New'!BN19+'Comm 95+% Furnace - Replace'!BN19+Custom!BN19+'Energy Audits'!BN19,0) -> 58007 | BP19: 110344 | BR19: =+ROUND('Res .95+% Res Furnace - NEW'!BQ19+'Res .95+% Res Furnace - Replace'!BR19+'Programmable Thermostats'!BR19+'Comm 95+ Furnace - New'!BR19+'Comm 95+% Furnace - Replace'!BR19+Custom!BR19+'Energy Audits'!BR19,0) -> 0 | BT19: 110344 | BW19: 2021 | BX19: 21602 | BY19: 10046 | BZ19: 9794 | CA19: 41442 | CC19: 0 | CD19: 0 | CE19: 0 | CG19: 41442
A20: 4) Demand Cost ($/Unit/Yr) = | E20: 19) Participant Non-Energy Savings (Annual $/Part) = | J20: 8 | L20: 2022 | M20: =+ROUND('Res .95+% Res Furnace - NEW'!M20+'Res .95+% Res Furnace - Replace'!M20+'Programmable Thermostats'!M20+'Comm 95+ Furnace - New'!M20+'Comm 95+% Furnace - Replace'!M20+Custom!M20+'Energy Audits'!M20,0) -> 6604 | O20: =+ROUND('Res .95+% Res Furnace - NEW'!O20+'Res .95+% Res Furnace - Replace'!O20+'Programmable Thermostats'!O20+'Comm 95+ Furnace - New'!O20+'Comm 95+% Furnace - Replace'!O20+Custom!O20+'Energy Audits'!O20,0) -> 22361 | Q20: =+ROUND('Res .95+% Res Furnace - NEW'!Q20+'Res .95+% Res Furnace - Replace'!Q20+'Programmable Thermostats'!Q20+'Comm 95+ Furnace - New'!Q20+'Comm 95+% Furnace - Replace'!Q20+Custom!Q20+'Energy Audits'!Q20,0) -> 0 | R20: 22361 | S20: =+ROUND('Res .95+% Res Furnace - NEW'!S20+'Res .95+% Res Furnace - Replace'!S20+'Programmable Thermostats'!S20+'Comm 95+ Furnace - New'!S20+'Comm 95+% Furnace - Replace'!S20+Custom!S20+'Energy Audits'!S20,0) -> 66 | U20: =+ROUND('Res .95+% Res Furnace - NEW'!U20+'Res .95+% Res Furnace - Replace'!U20+'Programmable Thermostats'!U20+'Comm 95+ Furnace - New'!U20+'Comm 95+% Furnace - Replace'!U20+Custom!U20+'Energy Audits'!U20,0) -> 10179 | V20: 32540 | X20: =+ROUND('Res .95+% Res Furnace - NEW'!X20+'Res .95+% Res Furnace - Replace'!X20+'Programmable Thermostats'!X20+'Comm 95+ Furnace - New'!X20+'Comm 95+% Furnace - Replace'!X20+Custom!X20+'Energy Audits'!X20,0) -> 9943 | Y20: =+ROUND('Res .95+% Res Furnace - NEW'!Y20+'Res .95+% Res Furnace - Replace'!Y20+'Programmable Thermostats'!Y20+'Comm 95+ Furnace - New'!Y20+'Comm 95+% Furnace - Replace'!Y20+Custom!Y20+'Energy Audits'!Y20,0) -> 0 | Z20: =+ROUND('Res .95+% Res Furnace - NEW'!Z20+'Res .95+% Res Furnace - Replace'!Z20+'Programmable Thermostats'!Z20+'Comm 95+ Furnace - New'!Z20+'Comm 95+% Furnace - Replace'!Z20+Custom!Z20+'Energy Audits'!Z20,0) -> 0 | AA20: 9943 | AB20: 22597 | AE20: 2022 | AF20: 22361 | AG20: 10179 | AH20: 32540 | AJ20: 0 | AK20: 0 | AL20: 0 | AN20: 32540 | AQ20: 2022 | AR20: 22361 | AS20: 10179 | AU20: =+ROUND('Res .95+% Res Furnace - NEW'!AT20+'Res .95+% Res Furnace - Replace'!AU20+'Programmable Thermostats'!AU20+'Comm 95+ Furnace - New'!AU20+'Comm 95+% Furnace - Replace'!AU20+Custom!AU20+'Energy Audits'!AU20,0) -> 10121 | AW20: =+ROUND('Res .95+% Res Furnace - NEW'!AV20+'Res .95+% Res Furnace - Replace'!AW20+'Programmable Thermostats'!AW20+'Comm 95+ Furnace - New'!AW20+'Comm 95+% Furnace - Replace'!AW20+Custom!AW20+'Energy Audits'!AW20,0) -> 2832 | AZ20: 45493 | BB20: =+ROUND('Res .95+% Res Furnace - NEW'!BA20+'Res .95+% Res Furnace - Replace'!BB20+'Programmable Thermostats'!BB20+'Comm 95+ Furnace - New'!BB20+'Comm 95+% Furnace - Replace'!BB20+Custom!BB20+'Energy Audits'!BB20,0) -> 0 | BC20: =+ROUND('Res .95+% Res Furnace - NEW'!BB20+'Res .95+% Res Furnace - Replace'!BC20+'Programmable Thermostats'!BC20+'Comm 95+ Furnace - New'!BC20+'Comm 95+% Furnace - Replace'!BC20+Custom!BC20+'Energy Audits'!BC20,0) -> 0 | BD20: 0 | BE20: 45493 | BH20: 2022 | BI20: =+ROUND('Res .95+% Res Furnace - NEW'!BH20+'Res .95+% Res Furnace - Replace'!BI20+'Programmable Thermostats'!BI20+'Comm 95+ Furnace - New'!BI20+'Comm 95+% Furnace - Replace'!BI20+Custom!BI20,0) -> 0 | BJ20: 6604 | BL20: =+ROUND('Res .95+% Res Furnace - NEW'!BK20+'Res .95+% Res Furnace - Replace'!BL20+'Programmable Thermostats'!BL20+'Comm 95+ Furnace - New'!BL20+'Comm 95+% Furnace - Replace'!BL20+Custom!BL20+'Energy Audits'!BL20,0) -> 54174 | BN20: =+ROUND('Res .95+% Res Furnace - NEW'!BM20+'Res .95+% Res Furnace - Replace'!BN20+'Programmable Thermostats'!BN20+'Comm 95+ Furnace - New'!BN20+'Comm 95+% Furnace - Replace'!BN20+Custom!BN20+'Energy Audits'!BN20,0) -> 60283 | BP20: 114457 | BR20: =+ROUND('Res .95+% Res Furnace - NEW'!BQ20+'Res .95+% Res Furnace - Replace'!BR20+'Programmable Thermostats'!BR20+'Comm 95+ Furnace - New'!BR20+'Comm 95+% Furnace - Replace'!BR20+Custom!BR20+'Energy Audits'!BR20,0) -> 0 | BT20: 114457 | BW20: 2022 | BX20: 22361 | BY20: 10179 | BZ20: 10121 | CA20: 42661 | CC20: 0 | CD20: 0 | CE20: 0 | CG20: 42661
A21: Escalation Rate = | E21: Escalation Rate = | J21: 9 | L21: 2023 | M21: =+ROUND('Res .95+% Res Furnace - NEW'!M21+'Res .95+% Res Furnace - Replace'!M21+'Programmable Thermostats'!M21+'Comm 95+ Furnace - New'!M21+'Comm 95+% Furnace - Replace'!M21+Custom!M21+'Energy Audits'!M21,0) -> 6604 | O21: =+ROUND('Res .95+% Res Furnace - NEW'!O21+'Res .95+% Res Furnace - Replace'!O21+'Programmable Thermostats'!O21+'Comm 95+ Furnace - New'!O21+'Comm 95+% Furnace - Replace'!O21+Custom!O21+'Energy Audits'!O21,0) -> 23141 | Q21: =+ROUND('Res .95+% Res Furnace - NEW'!Q21+'Res .95+% Res Furnace - Replace'!Q21+'Programmable Thermostats'!Q21+'Comm 95+ Furnace - New'!Q21+'Comm 95+% Furnace - Replace'!Q21+Custom!Q21+'Energy Audits'!Q21,0) -> 0 | R21: 23141 | S21: =+ROUND('Res .95+% Res Furnace - NEW'!S21+'Res .95+% Res Furnace - Replace'!S21+'Programmable Thermostats'!S21+'Comm 95+ Furnace - New'!S21+'Comm 95+% Furnace - Replace'!S21+Custom!S21+'Energy Audits'!S21,0) -> 66 | U21: =+ROUND('Res .95+% Res Furnace - NEW'!U21+'Res .95+% Res Furnace - Replace'!U21+'Programmable Thermostats'!U21+'Comm 95+ Furnace - New'!U21+'Comm 95+% Furnace - Replace'!U21+Custom!U21+'Energy Audits'!U21,0) -> 10247 | V21: 33388 | X21: =+ROUND('Res .95+% Res Furnace - NEW'!X21+'Res .95+% Res Furnace - Replace'!X21+'Programmable Thermostats'!X21+'Comm 95+ Furnace - New'!X21+'Comm 95+% Furnace - Replace'!X21+Custom!X21+'Energy Audits'!X21,0) -> 10290 | Y21: =+ROUND('Res .95+% Res Furnace - NEW'!Y21+'Res .95+% Res Furnace - Replace'!Y21+'Programmable Thermostats'!Y21+'Comm 95+ Furnace - New'!Y21+'Comm 95+% Furnace - Replace'!Y21+Custom!Y21+'Energy Audits'!Y21,0) -> 0 | Z21: =+ROUND('Res .95+% Res Furnace - NEW'!Z21+'Res .95+% Res Furnace - Replace'!Z21+'Programmable Thermostats'!Z21+'Comm 95+ Furnace - New'!Z21+'Comm 95+% Furnace - Replace'!Z21+Custom!Z21+'Energy Audits'!Z21,0) -> 0 | AA21: 10290 | AB21: 23098 | AE21: 2023 | AF21: 23141 | AG21: 10247 | AH21: 33388 | AJ21: 0 | AK21: 0 | AL21: 0 | AN21: 33388 | AQ21: 2023 | AR21: 23141 | AS21: 10247 | AU21: =+ROUND('Res .95+% Res Furnace - NEW'!AT21+'Res .95+% Res Furnace - Replace'!AU21+'Programmable Thermostats'!AU21+'Comm 95+ Furnace - New'!AU21+'Comm 95+% Furnace - Replace'!AU21+Custom!AU21+'Energy Audits'!AU21,0) -> 10447 | AW21: =+ROUND('Res .95+% Res Furnace - NEW'!AV21+'Res .95+% Res Furnace - Replace'!AW21+'Programmable Thermostats'!AW21+'Comm 95+ Furnace - New'!AW21+'Comm 95+% Furnace - Replace'!AW21+Custom!AW21+'Energy Audits'!AW21,0) -> 2901 | AZ21: 46736 | BB21: =+ROUND('Res .95+% Res Furnace - NEW'!BA21+'Res .95+% Res Furnace - Replace'!BB21+'Programmable Thermostats'!BB21+'Comm 95+ Furnace - New'!BB21+'Comm 95+% Furnace - Replace'!BB21+Custom!BB21+'Energy Audits'!BB21,0) -> 0 | BC21: =+ROUND('Res .95+% Res Furnace - NEW'!BB21+'Res .95+% Res Furnace - Replace'!BC21+'Programmable Thermostats'!BC21+'Comm 95+ Furnace - New'!BC21+'Comm 95+% Furnace - Replace'!BC21+Custom!BC21+'Energy Audits'!BC21,0) -> 0 | BD21: 0 | BE21: 46736 | BH21: 2023 | BI21: =+ROUND('Res .95+% Res Furnace - NEW'!BH21+'Res .95+% Res Furnace - Replace'!BI21+'Programmable Thermostats'!BI21+'Comm 95+ Furnace - New'!BI21+'Comm 95+% Furnace - Replace'!BI21+Custom!BI21,0) -> 0 | BJ21: 6604 | BL21: =+ROUND('Res .95+% Res Furnace - NEW'!BK21+'Res .95+% Res Furnace - Replace'!BL21+'Programmable Thermostats'!BL21+'Comm 95+ Furnace - New'!BL21+'Comm 95+% Furnace - Replace'!BL21+Custom!BL21+'Energy Audits'!BL21,0) -> 56068 | BN21: =+ROUND('Res .95+% Res Furnace - NEW'!BM21+'Res .95+% Res Furnace - Replace'!BN21+'Programmable Thermostats'!BN21+'Comm 95+ Furnace - New'!BN21+'Comm 95+% Furnace - Replace'!BN21+Custom!BN21+'Energy Audits'!BN21,0) -> 62242 | BP21: 118310 | BR21: =+ROUND('Res .95+% Res Furnace - NEW'!BQ21+'Res .95+% Res Furnace - Replace'!BR21+'Programmable Thermostats'!BR21+'Comm 95+ Furnace - New'!BR21+'Comm 95+% Furnace - Replace'!BR21+Custom!BR21+'Energy Audits'!BR21,0) -> 0 | BT21: 118310 | BW21: 2023 | BX21: 23141 | BY21: 10247 | BZ21: 10447 | CA21: 43835 | CC21: 0 | CD21: 0 | CE21: 0 | CG21: 43835 | DB21: =$J14 -> 2
J22: 10 | L22: 2024 | M22: =+ROUND('Res .95+% Res Furnace - NEW'!M22+'Res .95+% Res Furnace - Replace'!M22+'Programmable Thermostats'!M22+'Comm 95+ Furnace - New'!M22+'Comm 95+% Furnace - Replace'!M22+Custom!M22+'Energy Audits'!M22,0) -> 6604 | O22: =+ROUND('Res .95+% Res Furnace - NEW'!O22+'Res .95+% Res Furnace - Replace'!O22+'Programmable Thermostats'!O22+'Comm 95+ Furnace - New'!O22+'Comm 95+% Furnace - Replace'!O22+Custom!O22+'Energy Audits'!O22,0) -> 23952 | Q22: =+ROUND('Res .95+% Res Furnace - NEW'!Q22+'Res .95+% Res Furnace - Replace'!Q22+'Programmable Thermostats'!Q22+'Comm 95+ Furnace - New'!Q22+'Comm 95+% Furnace - Replace'!Q22+Custom!Q22+'Energy Audits'!Q22,0) -> 0 | R22: 23952 | S22: =+ROUND('Res .95+% Res Furnace - NEW'!S22+'Res .95+% Res Furnace - Replace'!S22+'Programmable Thermostats'!S22+'Comm 95+ Furnace - New'!S22+'Comm 95+% Furnace - Replace'!S22+Custom!S22+'Energy Audits'!S22,0) -> 66 | U22: =+ROUND('Res .95+% Res Furnace - NEW'!U22+'Res .95+% Res Furnace - Replace'!U22+'Programmable Thermostats'!U22+'Comm 95+ Furnace - New'!U22+'Comm 95+% Furnace - Replace'!U22+Custom!U22+'Energy Audits'!U22,0) -> 10377 | V22: 34329 | X22: =+ROUND('Res .95+% Res Furnace - NEW'!X22+'Res .95+% Res Furnace - Replace'!X22+'Programmable Thermostats'!X22+'Comm 95+ Furnace - New'!X22+'Comm 95+% Furnace - Replace'!X22+Custom!X22+'Energy Audits'!X22,0) -> 10653 | Y22: =+ROUND('Res .95+% Res Furnace - NEW'!Y22+'Res .95+% Res Furnace - Replace'!Y22+'Programmable Thermostats'!Y22+'Comm 95+ Furnace - New'!Y22+'Comm 95+% Furnace - Replace'!Y22+Custom!Y22+'Energy Audits'!Y22,0) -> 0 | Z22: =+ROUND('Res .95+% Res Furnace - NEW'!Z22+'Res .95+% Res Furnace - Replace'!Z22+'Programmable Thermostats'!Z22+'Comm 95+ Furnace - New'!Z22+'Comm 95+% Furnace - Replace'!Z22+Custom!Z22+'Energy Audits'!Z22,0) -> 0 | AA22: 10653 | AB22: 23676 | AE22: 2024 | AF22: 23952 | AG22: 10377 | AH22: 34329 | AJ22: 0 | AK22: 0 | AL22: 0 | AN22: 34329 | AQ22: 2024 | AR22: 23952 | AS22: 10377 | AU22: =+ROUND('Res .95+% Res Furnace - NEW'!AT22+'Res .95+% Res Furnace - Replace'!AU22+'Programmable Thermostats'!AU22+'Comm 95+ Furnace - New'!AU22+'Comm 95+% Furnace - Replace'!AU22+Custom!AU22+'Energy Audits'!AU22,0) -> 10774 | AW22: =+ROUND('Res .95+% Res Furnace - NEW'!AV22+'Res .95+% Res Furnace - Replace'!AW22+'Programmable Thermostats'!AW22+'Comm 95+ Furnace - New'!AW22+'Comm 95+% Furnace - Replace'!AW22+Custom!AW22+'Energy Audits'!AW22,0) -> 2965 | AZ22: 48068 | BB22: =+ROUND('Res .95+% Res Furnace - NEW'!BA22+'Res .95+% Res Furnace - Replace'!BB22+'Programmable Thermostats'!BB22+'Comm 95+ Furnace - New'!BB22+'Comm 95+% Furnace - Replace'!BB22+Custom!BB22+'Energy Audits'!BB22,0) -> 0 | BC22: =+ROUND('Res .95+% Res Furnace - NEW'!BB22+'Res .95+% Res Furnace - Replace'!BC22+'Programmable Thermostats'!BC22+'Comm 95+ Furnace - New'!BC22+'Comm 95+% Furnace - Replace'!BC22+Custom!BC22+'Energy Audits'!BC22,0) -> 0 | BD22: 0 | BE22: 48068 | BH22: 2024 | BI22: =+ROUND('Res .95+% Res Furnace - NEW'!BH22+'Res .95+% Res Furnace - Replace'!BI22+'Programmable Thermostats'!BI22+'Comm 95+ Furnace - New'!BI22+'Comm 95+% Furnace - Replace'!BI22+Custom!BI22,0) -> 0 | BJ22: 6604 | BL22: =+ROUND('Res .95+% Res Furnace - NEW'!BK22+'Res .95+% Res Furnace - Replace'!BL22+'Programmable Thermostats'!BL22+'Comm 95+ Furnace - New'!BL22+'Comm 95+% Furnace - Replace'!BL22+Custom!BL22+'Energy Audits'!BL22,0) -> 58028 | BN22: =+ROUND('Res .95+% Res Furnace - NEW'!BM22+'Res .95+% Res Furnace - Replace'!BN22+'Programmable Thermostats'!BN22+'Comm 95+ Furnace - New'!BN22+'Comm 95+% Furnace - Replace'!BN22+Custom!BN22+'Energy Audits'!BN22,0) -> 64519 | BP22: 122547 | BR22: =+ROUND('Res .95+% Res Furnace - NEW'!BQ22+'Res .95+% Res Furnace - Replace'!BR22+'Programmable Thermostats'!BR22+'Comm 95+ Furnace - New'!BR22+'Comm 95+% Furnace - Replace'!BR22+Custom!BR22+'Energy Audits'!BR22,0) -> 0 | BT22: 122547 | BW22: 2024 | BX22: 23952 | BY22: 10377 | BZ22: 10774 | CA22: 45103 | CC22: 0 | CD22: 0 | CE22: 0 | CG22: 45103 | DB22: =$J15 -> 3
A23: 5) Peak Reduction Factor = | E23: 20) Project Life (Years) = | J23: 11 | L23: 2025 | M23: =+ROUND('Res .95+% Res Furnace - NEW'!M23+'Res .95+% Res Furnace - Replace'!M23+'Programmable Thermostats'!M23+'Comm 95+ Furnace - New'!M23+'Comm 95+% Furnace - Replace'!M23+Custom!M23+'Energy Audits'!M23,0) -> 6604 | O23: =+ROUND('Res .95+% Res Furnace - NEW'!O23+'Res .95+% Res Furnace - Replace'!O23+'Programmable Thermostats'!O23+'Comm 95+ Furnace - New'!O23+'Comm 95+% Furnace - Replace'!O23+Custom!O23+'Energy Audits'!O23,0) -> 24791 | Q23: =+ROUND('Res .95+% Res Furnace - NEW'!Q23+'Res .95+% Res Furnace - Replace'!Q23+'Programmable Thermostats'!Q23+'Comm 95+ Furnace - New'!Q23+'Comm 95+% Furnace - Replace'!Q23+Custom!Q23+'Energy Audits'!Q23,0) -> 0 | R23: 24791 | S23: =+ROUND('Res .95+% Res Furnace - NEW'!S23+'Res .95+% Res Furnace - Replace'!S23+'Programmable Thermostats'!S23+'Comm 95+ Furnace - New'!S23+'Comm 95+% Furnace - Replace'!S23+Custom!S23+'Energy Audits'!S23,0) -> 66 | U23: =+ROUND('Res .95+% Res Furnace - NEW'!U23+'Res .95+% Res Furnace - Replace'!U23+'Programmable Thermostats'!U23+'Comm 95+ Furnace - New'!U23+'Comm 95+% Furnace - Replace'!U23+Custom!U23+'Energy Audits'!U23,0) -> 10445 | V23: 35236 | X23: =+ROUND('Res .95+% Res Furnace - NEW'!X23+'Res .95+% Res Furnace - Replace'!X23+'Programmable Thermostats'!X23+'Comm 95+ Furnace - New'!X23+'Comm 95+% Furnace - Replace'!X23+Custom!X23+'Energy Audits'!X23,0) -> 11023 | Y23: =+ROUND('Res .95+% Res Furnace - NEW'!Y23+'Res .95+% Res Furnace - Replace'!Y23+'Programmable Thermostats'!Y23+'Comm 95+ Furnace - New'!Y23+'Comm 95+% Furnace - Replace'!Y23+Custom!Y23+'Energy Audits'!Y23,0) -> 0 | Z23: =+ROUND('Res .95+% Res Furnace - NEW'!Z23+'Res .95+% Res Furnace - Replace'!Z23+'Programmable Thermostats'!Z23+'Comm 95+ Furnace - New'!Z23+'Comm 95+% Furnace - Replace'!Z23+Custom!Z23+'Energy Audits'!Z23,0) -> 0 | AA23: 11023 | AB23: 24213 | AE23: 2025 | AF23: 24791 | AG23: 10445 | AH23: 35236 | AJ23: 0 | AK23: 0 | AL23: 0 | AN23: 35236 | AQ23: 2025 | AR23: 24791 | AS23: 10445 | AU23: =+ROUND('Res .95+% Res Furnace - NEW'!AT23+'Res .95+% Res Furnace - Replace'!AU23+'Programmable Thermostats'!AU23+'Comm 95+ Furnace - New'!AU23+'Comm 95+% Furnace - Replace'!AU23+Custom!AU23+'Energy Audits'!AU23,0) -> 11426 | AW23: =+ROUND('Res .95+% Res Furnace - NEW'!AV23+'Res .95+% Res Furnace - Replace'!AW23+'Programmable Thermostats'!AW23+'Comm 95+ Furnace - New'!AW23+'Comm 95+% Furnace - Replace'!AW23+Custom!AW23+'Energy Audits'!AW23,0) -> 3037 | AZ23: 49699 | BB23: =+ROUND('Res .95+% Res Furnace - NEW'!BA23+'Res .95+% Res Furnace - Replace'!BB23+'Programmable Thermostats'!BB23+'Comm 95+ Furnace - New'!BB23+'Comm 95+% Furnace - Replace'!BB23+Custom!BB23+'Energy Audits'!BB23,0) -> 0 | BC23: =+ROUND('Res .95+% Res Furnace - NEW'!BB23+'Res .95+% Res Furnace - Replace'!BC23+'Programmable Thermostats'!BC23+'Comm 95+ Furnace - New'!BC23+'Comm 95+% Furnace - Replace'!BC23+Custom!BC23+'Energy Audits'!BC23,0) -> 0 | BD23: 0 | BE23: 49699 | BH23: 2025 | BI23: =+ROUND('Res .95+% Res Furnace - NEW'!BH23+'Res .95+% Res Furnace - Replace'!BI23+'Programmable Thermostats'!BI23+'Comm 95+ Furnace - New'!BI23+'Comm 95+% Furnace - Replace'!BI23+Custom!BI23,0) -> 0 | BJ23: 6604 | BL23: =+ROUND('Res .95+% Res Furnace - NEW'!BK23+'Res .95+% Res Furnace - Replace'!BL23+'Programmable Thermostats'!BL23+'Comm 95+ Furnace - New'!BL23+'Comm 95+% Furnace - Replace'!BL23+Custom!BL23+'Energy Audits'!BL23,0) -> 60063 | BN23: =+ROUND('Res .95+% Res Furnace - NEW'!BM23+'Res .95+% Res Furnace - Replace'!BN23+'Programmable Thermostats'!BN23+'Comm 95+ Furnace - New'!BN23+'Comm 95+% Furnace - Replace'!BN23+Custom!BN23+'Energy Audits'!BN23,0) -> 66803 | BP23: 126866 | BR23: =+ROUND('Res .95+% Res Furnace - NEW'!BQ23+'Res .95+% Res Furnace - Replace'!BR23+'Programmable Thermostats'!BR23+'Comm 95+ Furnace - New'!BR23+'Comm 95+% Furnace - Replace'!BR23+Custom!BR23+'Energy Audits'!BR23,0) -> 0 | BT23: 126866 | BW23: 2025 | BX23: 24791 | BY23: 10445 | BZ23: 11426 | CA23: 46662 | CC23: 0 | CD23: 0 | CE23: 0 | CG23: 46662 | DB23: =$J16 -> 4
J24: 12 | L24: 2026 | M24: =+ROUND('Res .95+% Res Furnace - NEW'!M24+'Res .95+% Res Furnace - Replace'!M24+'Programmable Thermostats'!M24+'Comm 95+ Furnace - New'!M24+'Comm 95+% Furnace - Replace'!M24+Custom!M24+'Energy Audits'!M24,0) -> 5975 | O24: =+ROUND('Res .95+% Res Furnace - NEW'!O24+'Res .95+% Res Furnace - Replace'!O24+'Programmable Thermostats'!O24+'Comm 95+ Furnace - New'!O24+'Comm 95+% Furnace - Replace'!O24+Custom!O24+'Energy Audits'!O24,0) -> 23212 | Q24: =+ROUND('Res .95+% Res Furnace - NEW'!Q24+'Res .95+% Res Furnace - Replace'!Q24+'Programmable Thermostats'!Q24+'Comm 95+ Furnace - New'!Q24+'Comm 95+% Furnace - Replace'!Q24+Custom!Q24+'Energy Audits'!Q24,0) -> 0 | R24: 23212 | S24: =+ROUND('Res .95+% Res Furnace - NEW'!S24+'Res .95+% Res Furnace - Replace'!S24+'Programmable Thermostats'!S24+'Comm 95+ Furnace - New'!S24+'Comm 95+% Furnace - Replace'!S24+Custom!S24+'Energy Audits'!S24,0) -> 60 | U24: =+ROUND('Res .95+% Res Furnace - NEW'!U24+'Res .95+% Res Furnace - Replace'!U24+'Programmable Thermostats'!U24+'Comm 95+ Furnace - New'!U24+'Comm 95+% Furnace - Replace'!U24+Custom!U24+'Energy Audits'!U24,0) -> 9568 | V24: 32780 | X24: =+ROUND('Res .95+% Res Furnace - NEW'!X24+'Res .95+% Res Furnace - Replace'!X24+'Programmable Thermostats'!X24+'Comm 95+ Furnace - New'!X24+'Comm 95+% Furnace - Replace'!X24+Custom!X24+'Energy Audits'!X24,0) -> 10200 | Y24: =+ROUND('Res .95+% Res Furnace - NEW'!Y24+'Res .95+% Res Furnace - Replace'!Y24+'Programmable Thermostats'!Y24+'Comm 95+ Furnace - New'!Y24+'Comm 95+% Furnace - Replace'!Y24+Custom!Y24+'Energy Audits'!Y24,0) -> 0 | Z24: =+ROUND('Res .95+% Res Furnace - NEW'!Z24+'Res .95+% Res Furnace - Replace'!Z24+'Programmable Thermostats'!Z24+'Comm 95+ Furnace - New'!Z24+'Comm 95+% Furnace - Replace'!Z24+Custom!Z24+'Energy Audits'!Z24,0) -> 0 | AA24: 10200 | AB24: 22580 | AE24: 2026 | AF24: 23212 | AG24: 9568 | AH24: 32780 | AJ24: 0 | AK24: 0 | AL24: 0 | AN24: 32780 | AQ24: 2026 | AR24: 23212 | AS24: 9568 | AU24: =+ROUND('Res .95+% Res Furnace - NEW'!AT24+'Res .95+% Res Furnace - Replace'!AU24+'Programmable Thermostats'!AU24+'Comm 95+ Furnace - New'!AU24+'Comm 95+% Furnace - Replace'!AU24+Custom!AU24+'Energy Audits'!AU24,0) -> 11754 | AW24: =+ROUND('Res .95+% Res Furnace - NEW'!AV24+'Res .95+% Res Furnace - Replace'!AW24+'Programmable Thermostats'!AW24+'Comm 95+ Furnace - New'!AW24+'Comm 95+% Furnace - Replace'!AW24+Custom!AW24+'Energy Audits'!AW24,0) -> 2808 | AZ24: 47342 | BB24: =+ROUND('Res .95+% Res Furnace - NEW'!BA24+'Res .95+% Res Furnace - Replace'!BB24+'Programmable Thermostats'!BB24+'Comm 95+ Furnace - New'!BB24+'Comm 95+% Furnace - Replace'!BB24+Custom!BB24+'Energy Audits'!BB24,0) -> 0 | BC24: =+ROUND('Res .95+% Res Furnace - NEW'!BB24+'Res .95+% Res Furnace - Replace'!BC24+'Programmable Thermostats'!BC24+'Comm 95+ Furnace - New'!BC24+'Comm 95+% Furnace - Replace'!BC24+Custom!BC24+'Energy Audits'!BC24,0) -> 0 | BD24: 0 | BE24: 47342 | BH24: 2026 | BI24: =+ROUND('Res .95+% Res Furnace - NEW'!BH24+'Res .95+% Res Furnace - Replace'!BI24+'Programmable Thermostats'!BI24+'Comm 95+ Furnace - New'!BI24+'Comm 95+% Furnace - Replace'!BI24+Custom!BI24,0) -> 0 | BJ24: 5975 | BL24: =+ROUND('Res .95+% Res Furnace - NEW'!BK24+'Res .95+% Res Furnace - Replace'!BL24+'Programmable Thermostats'!BL24+'Comm 95+ Furnace - New'!BL24+'Comm 95+% Furnace - Replace'!BL24+Custom!BL24+'Energy Audits'!BL24,0) -> 56053 | BN24: =+ROUND('Res .95+% Res Furnace - NEW'!BM24+'Res .95+% Res Furnace - Replace'!BN24+'Programmable Thermostats'!BN24+'Comm 95+ Furnace - New'!BN24+'Comm 95+% Furnace - Replace'!BN24+Custom!BN24+'Energy Audits'!BN24,0) -> 69087 | BP24: 125140 | BR24: =+ROUND('Res .95+% Res Furnace - NEW'!BQ24+'Res .95+% Res Furnace - Replace'!BR24+'Programmable Thermostats'!BR24+'Comm 95+ Furnace - New'!BR24+'Comm 95+% Furnace - Replace'!BR24+Custom!BR24+'Energy Audits'!BR24,0) -> 0 | BT24: 125140 | BW24: 2026 | BX24: 23212 | BY24: 9568 | BZ24: 11754 | CA24: 44534 | CC24: 0 | CD24: 0 | CE24: 0 | CG24: 44534 | DB24: =$J17 -> 5
A25: 6) Variable O&M ($/Dk) = | E25: 21) Avg. Dk/Part. Saved = | J25: 13 | L25: 2027 | M25: =+ROUND('Res .95+% Res Furnace - NEW'!M25+'Res .95+% Res Furnace - Replace'!M25+'Programmable Thermostats'!M25+'Comm 95+ Furnace - New'!M25+'Comm 95+% Furnace - Replace'!M25+Custom!M25+'Energy Audits'!M25,0) -> 5975 | O25: =+ROUND('Res .95+% Res Furnace - NEW'!O25+'Res .95+% Res Furnace - Replace'!O25+'Programmable Thermostats'!O25+'Comm 95+ Furnace - New'!O25+'Comm 95+% Furnace - Replace'!O25+Custom!O25+'Energy Audits'!O25,0) -> 24026 | Q25: =+ROUND('Res .95+% Res Furnace - NEW'!Q25+'Res .95+% Res Furnace - Replace'!Q25+'Programmable Thermostats'!Q25+'Comm 95+ Furnace - New'!Q25+'Comm 95+% Furnace - Replace'!Q25+Custom!Q25+'Energy Audits'!Q25,0) -> 0 | R25: 24026 | S25: =+ROUND('Res .95+% Res Furnace - NEW'!S25+'Res .95+% Res Furnace - Replace'!S25+'Programmable Thermostats'!S25+'Comm 95+ Furnace - New'!S25+'Comm 95+% Furnace - Replace'!S25+Custom!S25+'Energy Audits'!S25,0) -> 60 | U25: =+ROUND('Res .95+% Res Furnace - NEW'!U25+'Res .95+% Res Furnace - Replace'!U25+'Programmable Thermostats'!U25+'Comm 95+ Furnace - New'!U25+'Comm 95+% Furnace - Replace'!U25+Custom!U25+'Energy Audits'!U25,0) -> 9686 | V25: 33712 | X25: =+ROUND('Res .95+% Res Furnace - NEW'!X25+'Res .95+% Res Furnace - Replace'!X25+'Programmable Thermostats'!X25+'Comm 95+ Furnace - New'!X25+'Comm 95+% Furnace - Replace'!X25+Custom!X25+'Energy Audits'!X25,0) -> 10558 | Y25: =+ROUND('Res .95+% Res Furnace - NEW'!Y25+'Res .95+% Res Furnace - Replace'!Y25+'Programmable Thermostats'!Y25+'Comm 95+ Furnace - New'!Y25+'Comm 95+% Furnace - Replace'!Y25+Custom!Y25+'Energy Audits'!Y25,0) -> 0 | Z25: =+ROUND('Res .95+% Res Furnace - NEW'!Z25+'Res .95+% Res Furnace - Replace'!Z25+'Programmable Thermostats'!Z25+'Comm 95+ Furnace - New'!Z25+'Comm 95+% Furnace - Replace'!Z25+Custom!Z25+'Energy Audits'!Z25,0) -> 0 | AA25: 10558 | AB25: 23154 | AE25: 2027 | AF25: 24026 | AG25: 9686 | AH25: 33712 | AJ25: 0 | AK25: 0 | AL25: 0 | AN25: 33712 | AQ25: 2027 | AR25: 24026 | AS25: 9686 | AU25: =+ROUND('Res .95+% Res Furnace - NEW'!AT25+'Res .95+% Res Furnace - Replace'!AU25+'Programmable Thermostats'!AU25+'Comm 95+ Furnace - New'!AU25+'Comm 95+% Furnace - Replace'!AU25+Custom!AU25+'Energy Audits'!AU25,0) -> 12079 | AW25: =+ROUND('Res .95+% Res Furnace - NEW'!AV25+'Res .95+% Res Furnace - Replace'!AW25+'Programmable Thermostats'!AW25+'Comm 95+ Furnace - New'!AW25+'Comm 95+% Furnace - Replace'!AW25+Custom!AW25+'Energy Audits'!AW25,0) -> 2875 | AZ25: 48666 | BB25: =+ROUND('Res .95+% Res Furnace - NEW'!BA25+'Res .95+% Res Furnace - Replace'!BB25+'Programmable Thermostats'!BB25+'Comm 95+ Furnace - New'!BB25+'Comm 95+% Furnace - Replace'!BB25+Custom!BB25+'Energy Audits'!BB25,0) -> 0 | BC25: =+ROUND('Res .95+% Res Furnace - NEW'!BB25+'Res .95+% Res Furnace - Replace'!BC25+'Programmable Thermostats'!BC25+'Comm 95+ Furnace - New'!BC25+'Comm 95+% Furnace - Replace'!BC25+Custom!BC25+'Energy Audits'!BC25,0) -> 0 | BD25: 0 | BE25: 48666 | BH25: 2027 | BI25: =+ROUND('Res .95+% Res Furnace - NEW'!BH25+'Res .95+% Res Furnace - Replace'!BI25+'Programmable Thermostats'!BI25+'Comm 95+ Furnace - New'!BI25+'Comm 95+% Furnace - Replace'!BI25+Custom!BI25,0) -> 0 | BJ25: 5975 | BL25: =+ROUND('Res .95+% Res Furnace - NEW'!BK25+'Res .95+% Res Furnace - Replace'!BL25+'Programmable Thermostats'!BL25+'Comm 95+ Furnace - New'!BL25+'Comm 95+% Furnace - Replace'!BL25+Custom!BL25+'Energy Audits'!BL25,0) -> 58015 | BN25: =+ROUND('Res .95+% Res Furnace - NEW'!BM25+'Res .95+% Res Furnace - Replace'!BN25+'Programmable Thermostats'!BN25+'Comm 95+ Furnace - New'!BN25+'Comm 95+% Furnace - Replace'!BN25+Custom!BN25+'Energy Audits'!BN25,0) -> 71374 | BP25: 129389 | BR25: =+ROUND('Res .95+% Res Furnace - NEW'!BQ25+'Res .95+% Res Furnace - Replace'!BR25+'Programmable Thermostats'!BR25+'Comm 95+ Furnace - New'!BR25+'Comm 95+% Furnace - Replace'!BR25+Custom!BR25+'Energy Audits'!BR25,0) -> 0 | BT25: 129389 | BW25: 2027 | BX25: 24026 | BY25: 9686 | BZ25: 12079 | CA25: 45791 | CC25: 0 | CD25: 0 | CE25: 0 | CG25: 45791
A26: Escalation Rate = | J26: 14 | L26: 2028 | M26: =+ROUND('Res .95+% Res Furnace - NEW'!M26+'Res .95+% Res Furnace - Replace'!M26+'Programmable Thermostats'!M26+'Comm 95+ Furnace - New'!M26+'Comm 95+% Furnace - Replace'!M26+Custom!M26+'Energy Audits'!M26,0) -> 5975 | O26: =+ROUND('Res .95+% Res Furnace - NEW'!O26+'Res .95+% Res Furnace - Replace'!O26+'Programmable Thermostats'!O26+'Comm 95+ Furnace - New'!O26+'Comm 95+% Furnace - Replace'!O26+Custom!O26+'Energy Audits'!O26,0) -> 24869 | Q26: =+ROUND('Res .95+% Res Furnace - NEW'!Q26+'Res .95+% Res Furnace - Replace'!Q26+'Programmable Thermostats'!Q26+'Comm 95+ Furnace - New'!Q26+'Comm 95+% Furnace - Replace'!Q26+Custom!Q26+'Energy Audits'!Q26,0) -> 0 | R26: 24869 | S26: =+ROUND('Res .95+% Res Furnace - NEW'!S26+'Res .95+% Res Furnace - Replace'!S26+'Programmable Thermostats'!S26+'Comm 95+ Furnace - New'!S26+'Comm 95+% Furnace - Replace'!S26+Custom!S26+'Energy Audits'!S26,0) -> 60 | U26: =+ROUND('Res .95+% Res Furnace - NEW'!U26+'Res .95+% Res Furnace - Replace'!U26+'Programmable Thermostats'!U26+'Comm 95+ Furnace - New'!U26+'Comm 95+% Furnace - Replace'!U26+Custom!U26+'Energy Audits'!U26,0) -> 9748 | V26: 34617 | X26: =+ROUND('Res .95+% Res Furnace - NEW'!X26+'Res .95+% Res Furnace - Replace'!X26+'Programmable Thermostats'!X26+'Comm 95+ Furnace - New'!X26+'Comm 95+% Furnace - Replace'!X26+Custom!X26+'Energy Audits'!X26,0) -> 10928 | Y26: =+ROUND('Res .95+% Res Furnace - NEW'!Y26+'Res .95+% Res Furnace - Replace'!Y26+'Programmable Thermostats'!Y26+'Comm 95+ Furnace - New'!Y26+'Comm 95+% Furnace - Replace'!Y26+Custom!Y26+'Energy Audits'!Y26,0) -> 0 | Z26: =+ROUND('Res .95+% Res Furnace - NEW'!Z26+'Res .95+% Res Furnace - Replace'!Z26+'Programmable Thermostats'!Z26+'Comm 95+ Furnace - New'!Z26+'Comm 95+% Furnace - Replace'!Z26+Custom!Z26+'Energy Audits'!Z26,0) -> 0 | AA26: 10928 | AB26: 23689 | AE26: 2028 | AF26: 24869 | AG26: 9748 | AH26: 34617 | AJ26: 0 | AK26: 0 | AL26: 0 | AN26: 34617 | AQ26: 2028 | AR26: 24869 | AS26: 9748 | AU26: =+ROUND('Res .95+% Res Furnace - NEW'!AT26+'Res .95+% Res Furnace - Replace'!AU26+'Programmable Thermostats'!AU26+'Comm 95+ Furnace - New'!AU26+'Comm 95+% Furnace - Replace'!AU26+Custom!AU26+'Energy Audits'!AU26,0) -> 12407 | AW26: =+ROUND('Res .95+% Res Furnace - NEW'!AV26+'Res .95+% Res Furnace - Replace'!AW26+'Programmable Thermostats'!AW26+'Comm 95+ Furnace - New'!AW26+'Comm 95+% Furnace - Replace'!AW26+Custom!AW26+'Energy Audits'!AW26,0) -> 2940 | AZ26: 49964 | BB26: =+ROUND('Res .95+% Res Furnace - NEW'!BA26+'Res .95+% Res Furnace - Replace'!BB26+'Programmable Thermostats'!BB26+'Comm 95+ Furnace - New'!BB26+'Comm 95+% Furnace - Replace'!BB26+Custom!BB26+'Energy Audits'!BB26,0) -> 0 | BC26: =+ROUND('Res .95+% Res Furnace - NEW'!BB26+'Res .95+% Res Furnace - Replace'!BC26+'Programmable Thermostats'!BC26+'Comm 95+ Furnace - New'!BC26+'Comm 95+% Furnace - Replace'!BC26+Custom!BC26+'Energy Audits'!BC26,0) -> 0 | BD26: 0 | BE26: 49964 | BH26: 2028 | BI26: =+ROUND('Res .95+% Res Furnace - NEW'!BH26+'Res .95+% Res Furnace - Replace'!BI26+'Programmable Thermostats'!BI26+'Comm 95+ Furnace - New'!BI26+'Comm 95+% Furnace - Replace'!BI26+Custom!BI26,0) -> 0 | BJ26: 5975 | BL26: =+ROUND('Res .95+% Res Furnace - NEW'!BK26+'Res .95+% Res Furnace - Replace'!BL26+'Programmable Thermostats'!BL26+'Comm 95+ Furnace - New'!BL26+'Comm 95+% Furnace - Replace'!BL26+Custom!BL26+'Energy Audits'!BL26,0) -> 60048 | BN26: =+ROUND('Res .95+% Res Furnace - NEW'!BM26+'Res .95+% Res Furnace - Replace'!BN26+'Programmable Thermostats'!BN26+'Comm 95+ Furnace - New'!BN26+'Comm 95+% Furnace - Replace'!BN26+Custom!BN26+'Energy Audits'!BN26,0) -> 73976 | BP26: 134024 | BR26: =+ROUND('Res .95+% Res Furnace - NEW'!BQ26+'Res .95+% Res Furnace - Replace'!BR26+'Programmable Thermostats'!BR26+'Comm 95+ Furnace - New'!BR26+'Comm 95+% Furnace - Replace'!BR26+Custom!BR26+'Energy Audits'!BR26,0) -> 0 | BT26: 134024 | BW26: 2028 | BX26: 24869 | BY26: 9748 | BZ26: 12407 | CA26: 47024 | CC26: 0 | CD26: 0 | CE26: 0 | CG26: 47024
E27: 22) Avg Non-Gas Fuel Units/Part. Saved = | J27: 15 | L27: 2029 | M27: =+ROUND('Res .95+% Res Furnace - NEW'!M27+'Res .95+% Res Furnace - Replace'!M27+'Programmable Thermostats'!M27+'Comm 95+ Furnace - New'!M27+'Comm 95+% Furnace - Replace'!M27+Custom!M27+'Energy Audits'!M27,0) -> 5975 | O27: =+ROUND('Res .95+% Res Furnace - NEW'!O27+'Res .95+% Res Furnace - Replace'!O27+'Programmable Thermostats'!O27+'Comm 95+ Furnace - New'!O27+'Comm 95+% Furnace - Replace'!O27+Custom!O27+'Energy Audits'!O27,0) -> 25734 | Q27: =+ROUND('Res .95+% Res Furnace - NEW'!Q27+'Res .95+% Res Furnace - Replace'!Q27+'Programmable Thermostats'!Q27+'Comm 95+ Furnace - New'!Q27+'Comm 95+% Furnace - Replace'!Q27+Custom!Q27+'Energy Audits'!Q27,0) -> 0 | R27: 25734 | S27: =+ROUND('Res .95+% Res Furnace - NEW'!S27+'Res .95+% Res Furnace - Replace'!S27+'Programmable Thermostats'!S27+'Comm 95+ Furnace - New'!S27+'Comm 95+% Furnace - Replace'!S27+Custom!S27+'Energy Audits'!S27,0) -> 60 | U27: =+ROUND('Res .95+% Res Furnace - NEW'!U27+'Res .95+% Res Furnace - Replace'!U27+'Programmable Thermostats'!U27+'Comm 95+ Furnace - New'!U27+'Comm 95+% Furnace - Replace'!U27+Custom!U27+'Energy Audits'!U27,0) -> 9868 | V27: 35602 | X27: =+ROUND('Res .95+% Res Furnace - NEW'!X27+'Res .95+% Res Furnace - Replace'!X27+'Programmable Thermostats'!X27+'Comm 95+ Furnace - New'!X27+'Comm 95+% Furnace - Replace'!X27+Custom!X27+'Energy Audits'!X27,0) -> 11310 | Y27: =+ROUND('Res .95+% Res Furnace - NEW'!Y27+'Res .95+% Res Furnace - Replace'!Y27+'Programmable Thermostats'!Y27+'Comm 95+ Furnace - New'!Y27+'Comm 95+% Furnace - Replace'!Y27+Custom!Y27+'Energy Audits'!Y27,0) -> 0 | Z27: =+ROUND('Res .95+% Res Furnace - NEW'!Z27+'Res .95+% Res Furnace - Replace'!Z27+'Programmable Thermostats'!Z27+'Comm 95+ Furnace - New'!Z27+'Comm 95+% Furnace - Replace'!Z27+Custom!Z27+'Energy Audits'!Z27,0) -> 0 | AA27: 11310 | AB27: 24292 | AE27: 2029 | AF27: 25734 | AG27: 9868 | AH27: 35602 | AJ27: 0 | AK27: 0 | AL27: 0 | AN27: 35602 | AQ27: 2029 | AR27: 25734 | AS27: 9868 | AU27: =+ROUND('Res .95+% Res Furnace - NEW'!AT27+'Res .95+% Res Furnace - Replace'!AU27+'Programmable Thermostats'!AU27+'Comm 95+ Furnace - New'!AU27+'Comm 95+% Furnace - Replace'!AU27+Custom!AU27+'Energy Audits'!AU27,0) -> 13059 | AW27: =+ROUND('Res .95+% Res Furnace - NEW'!AV27+'Res .95+% Res Furnace - Replace'!AW27+'Programmable Thermostats'!AW27+'Comm 95+ Furnace - New'!AW27+'Comm 95+% Furnace - Replace'!AW27+Custom!AW27+'Energy Audits'!AW27,0) -> 3012 | AZ27: 51673 | BB27: =+ROUND('Res .95+% Res Furnace - NEW'!BA27+'Res .95+% Res Furnace - Replace'!BB27+'Programmable Thermostats'!BB27+'Comm 95+ Furnace - New'!BB27+'Comm 95+% Furnace - Replace'!BB27+Custom!BB27+'Energy Audits'!BB27,0) -> 0 | BC27: =+ROUND('Res .95+% Res Furnace - NEW'!BB27+'Res .95+% Res Furnace - Replace'!BC27+'Programmable Thermostats'!BC27+'Comm 95+ Furnace - New'!BC27+'Comm 95+% Furnace - Replace'!BC27+Custom!BC27+'Energy Audits'!BC27,0) -> 0 | BD27: 0 | BE27: 51673 | BH27: 2029 | BI27: =+ROUND('Res .95+% Res Furnace - NEW'!BH27+'Res .95+% Res Furnace - Replace'!BI27+'Programmable Thermostats'!BI27+'Comm 95+ Furnace - New'!BI27+'Comm 95+% Furnace - Replace'!BI27+Custom!BI27,0) -> 0 | BJ27: 5975 | BL27: =+ROUND('Res .95+% Res Furnace - NEW'!BK27+'Res .95+% Res Furnace - Replace'!BL27+'Programmable Thermostats'!BL27+'Comm 95+ Furnace - New'!BL27+'Comm 95+% Furnace - Replace'!BL27+Custom!BL27+'Energy Audits'!BL27,0) -> 62148 | BN27: =+ROUND('Res .95+% Res Furnace - NEW'!BM27+'Res .95+% Res Furnace - Replace'!BN27+'Programmable Thermostats'!BN27+'Comm 95+ Furnace - New'!BN27+'Comm 95+% Furnace - Replace'!BN27+Custom!BN27+'Energy Audits'!BN27,0) -> 76578 | BP27: 138726 | BR27: =+ROUND('Res .95+% Res Furnace - NEW'!BQ27+'Res .95+% Res Furnace - Replace'!BR27+'Programmable Thermostats'!BR27+'Comm 95+ Furnace - New'!BR27+'Comm 95+% Furnace - Replace'!BR27+Custom!BR27+'Energy Audits'!BR27,0) -> 0 | BT27: 138726 | BW27: 2029 | BX27: 25734 | BY27: 9868 | BZ27: 13059 | CA27: 48661 | CC27: 0 | CD27: 0 | CE27: 0 | CG27: 48661
A28: 7) Non-Gas Fuel Cost ($/Fuel Unit) = | E28: 22a) Avg Additional Non-Gas Fuel Units/ Part. Used = | J28: 16 | L28: 2030 | M28: =+ROUND('Res .95+% Res Furnace - NEW'!M28+'Res .95+% Res Furnace - Replace'!M28+'Programmable Thermostats'!M28+'Comm 95+ Furnace - New'!M28+'Comm 95+% Furnace - Replace'!M28+Custom!M28+'Energy Audits'!M28,0) -> 5975 | O28: =+ROUND('Res .95+% Res Furnace - NEW'!O28+'Res .95+% Res Furnace - Replace'!O28+'Programmable Thermostats'!O28+'Comm 95+ Furnace - New'!O28+'Comm 95+% Furnace - Replace'!O28+Custom!O28+'Energy Audits'!O28,0) -> 26637 | Q28: =+ROUND('Res .95+% Res Furnace - NEW'!Q28+'Res .95+% Res Furnace - Replace'!Q28+'Programmable Thermostats'!Q28+'Comm 95+ Furnace - New'!Q28+'Comm 95+% Furnace - Replace'!Q28+Custom!Q28+'Energy Audits'!Q28,0) -> 0 | R28: 26637 | S28: =+ROUND('Res .95+% Res Furnace - NEW'!S28+'Res .95+% Res Furnace - Replace'!S28+'Programmable Thermostats'!S28+'Comm 95+ Furnace - New'!S28+'Comm 95+% Furnace - Replace'!S28+Custom!S28+'Energy Audits'!S28,0) -> 60 | U28: =+ROUND('Res .95+% Res Furnace - NEW'!U28+'Res .95+% Res Furnace - Replace'!U28+'Programmable Thermostats'!U28+'Comm 95+ Furnace - New'!U28+'Comm 95+% Furnace - Replace'!U28+Custom!U28+'Energy Audits'!U28,0) -> 9927 | V28: 36564 | X28: =+ROUND('Res .95+% Res Furnace - NEW'!X28+'Res .95+% Res Furnace - Replace'!X28+'Programmable Thermostats'!X28+'Comm 95+ Furnace - New'!X28+'Comm 95+% Furnace - Replace'!X28+Custom!X28+'Energy Audits'!X28,0) -> 11707 | Y28: =+ROUND('Res .95+% Res Furnace - NEW'!Y28+'Res .95+% Res Furnace - Replace'!Y28+'Programmable Thermostats'!Y28+'Comm 95+ Furnace - New'!Y28+'Comm 95+% Furnace - Replace'!Y28+Custom!Y28+'Energy Audits'!Y28,0) -> 0 | Z28: =+ROUND('Res .95+% Res Furnace - NEW'!Z28+'Res .95+% Res Furnace - Replace'!Z28+'Programmable Thermostats'!Z28+'Comm 95+ Furnace - New'!Z28+'Comm 95+% Furnace - Replace'!Z28+Custom!Z28+'Energy Audits'!Z28,0) -> 0 | AA28: 11707 | AB28: 24857 | AE28: 2030 | AF28: 26637 | AG28: 9927 | AH28: 36564 | AJ28: 0 | AK28: 0 | AL28: 0 | AN28: 36564 | AQ28: 2030 | AR28: 26637 | AS28: 9927 | AU28: =+ROUND('Res .95+% Res Furnace - NEW'!AT28+'Res .95+% Res Furnace - Replace'!AU28+'Programmable Thermostats'!AU28+'Comm 95+ Furnace - New'!AU28+'Comm 95+% Furnace - Replace'!AU28+Custom!AU28+'Energy Audits'!AU28,0) -> 13385 | AW28: =+ROUND('Res .95+% Res Furnace - NEW'!AV28+'Res .95+% Res Furnace - Replace'!AW28+'Programmable Thermostats'!AW28+'Comm 95+ Furnace - New'!AW28+'Comm 95+% Furnace - Replace'!AW28+Custom!AW28+'Energy Audits'!AW28,0) -> 3077 | AZ28: 53026 | BB28: =+ROUND('Res .95+% Res Furnace - NEW'!BA28+'Res .95+% Res Furnace - Replace'!BB28+'Programmable Thermostats'!BB28+'Comm 95+ Furnace - New'!BB28+'Comm 95+% Furnace - Replace'!BB28+Custom!BB28+'Energy Audits'!BB28,0) -> 0 | BC28: =+ROUND('Res .95+% Res Furnace - NEW'!BB28+'Res .95+% Res Furnace - Replace'!BC28+'Programmable Thermostats'!BC28+'Comm 95+ Furnace - New'!BC28+'Comm 95+% Furnace - Replace'!BC28+Custom!BC28+'Energy Audits'!BC28,0) -> 0 | BD28: 0 | BE28: 53026 | BH28: 2030 | BI28: =+ROUND('Res .95+% Res Furnace - NEW'!BH28+'Res .95+% Res Furnace - Replace'!BI28+'Programmable Thermostats'!BI28+'Comm 95+ Furnace - New'!BI28+'Comm 95+% Furnace - Replace'!BI28+Custom!BI28,0) -> 0 | BJ28: 5975 | BL28: =+ROUND('Res .95+% Res Furnace - NEW'!BK28+'Res .95+% Res Furnace - Replace'!BL28+'Programmable Thermostats'!BL28+'Comm 95+ Furnace - New'!BL28+'Comm 95+% Furnace - Replace'!BL28+Custom!BL28+'Energy Audits'!BL28,0) -> 64324 | BN28: =+ROUND('Res .95+% Res Furnace - NEW'!BM28+'Res .95+% Res Furnace - Replace'!BN28+'Programmable Thermostats'!BN28+'Comm 95+ Furnace - New'!BN28+'Comm 95+% Furnace - Replace'!BN28+Custom!BN28+'Energy Audits'!BN28,0) -> 79190 | BP28: 143514 | BR28: =+ROUND('Res .95+% Res Furnace - NEW'!BQ28+'Res .95+% Res Furnace - Replace'!BR28+'Programmable Thermostats'!BR28+'Comm 95+ Furnace - New'!BR28+'Comm 95+% Furnace - Replace'!BR28+Custom!BR28+'Energy Audits'!BR28,0) -> 0 | BT28: 143514 | BW28: 2030 | BX28: 26637 | BY28: 9927 | BZ28: 13385 | CA28: 49949 | CC28: 0 | CD28: 0 | CE28: 0 | CG28: 49949
A29: Escalation Rate = | J29: 17 | L29: 2031 | M29: =+ROUND('Res .95+% Res Furnace - NEW'!M29+'Res .95+% Res Furnace - Replace'!M29+'Programmable Thermostats'!M29+'Comm 95+ Furnace - New'!M29+'Comm 95+% Furnace - Replace'!M29+Custom!M29+'Energy Audits'!M29,0) -> 4869 | O29: =+ROUND('Res .95+% Res Furnace - NEW'!O29+'Res .95+% Res Furnace - Replace'!O29+'Programmable Thermostats'!O29+'Comm 95+ Furnace - New'!O29+'Comm 95+% Furnace - Replace'!O29+Custom!O29+'Energy Audits'!O29,0) -> 22466 | Q29: =+ROUND('Res .95+% Res Furnace - NEW'!Q29+'Res .95+% Res Furnace - Replace'!Q29+'Programmable Thermostats'!Q29+'Comm 95+ Furnace - New'!Q29+'Comm 95+% Furnace - Replace'!Q29+Custom!Q29+'Energy Audits'!Q29,0) -> 0 | R29: 22466 | S29: =+ROUND('Res .95+% Res Furnace - NEW'!S29+'Res .95+% Res Furnace - Replace'!S29+'Programmable Thermostats'!S29+'Comm 95+ Furnace - New'!S29+'Comm 95+% Furnace - Replace'!S29+Custom!S29+'Energy Audits'!S29,0) -> 49 | U29: =+ROUND('Res .95+% Res Furnace - NEW'!U29+'Res .95+% Res Furnace - Replace'!U29+'Programmable Thermostats'!U29+'Comm 95+ Furnace - New'!U29+'Comm 95+% Furnace - Replace'!U29+Custom!U29+'Energy Audits'!U29,0) -> 8183 | V29: 30649 | X29: =+ROUND('Res .95+% Res Furnace - NEW'!X29+'Res .95+% Res Furnace - Replace'!X29+'Programmable Thermostats'!X29+'Comm 95+ Furnace - New'!X29+'Comm 95+% Furnace - Replace'!X29+Custom!X29+'Energy Audits'!X29,0) -> 10809 | Y29: =+ROUND('Res .95+% Res Furnace - NEW'!Y29+'Res .95+% Res Furnace - Replace'!Y29+'Programmable Thermostats'!Y29+'Comm 95+ Furnace - New'!Y29+'Comm 95+% Furnace - Replace'!Y29+Custom!Y29+'Energy Audits'!Y29,0) -> 0 | Z29: =+ROUND('Res .95+% Res Furnace - NEW'!Z29+'Res .95+% Res Furnace - Replace'!Z29+'Programmable Thermostats'!Z29+'Comm 95+ Furnace - New'!Z29+'Comm 95+% Furnace - Replace'!Z29+Custom!Z29+'Energy Audits'!Z29,0) -> 0 | AA29: 10809 | AB29: 19840 | AE29: 2031 | AF29: 22466 | AG29: 8183 | AH29: 30649 | AJ29: 0 | AK29: 0 | AL29: 0 | AN29: 30649 | AQ29: 2031 | AR29: 22466 | AS29: 8183 | AU29: =+ROUND('Res .95+% Res Furnace - NEW'!AT29+'Res .95+% Res Furnace - Replace'!AU29+'Programmable Thermostats'!AU29+'Comm 95+ Furnace - New'!AU29+'Comm 95+% Furnace - Replace'!AU29+Custom!AU29+'Energy Audits'!AU29,0) -> 14038 | AW29: =+ROUND('Res .95+% Res Furnace - NEW'!AV29+'Res .95+% Res Furnace - Replace'!AW29+'Programmable Thermostats'!AW29+'Comm 95+ Furnace - New'!AW29+'Comm 95+% Furnace - Replace'!AW29+Custom!AW29+'Energy Audits'!AW29,0) -> 2566 | AZ29: 47253 | BB29: =+ROUND('Res .95+% Res Furnace - NEW'!BA29+'Res .95+% Res Furnace - Replace'!BB29+'Programmable Thermostats'!BB29+'Comm 95+ Furnace - New'!BB29+'Comm 95+% Furnace - Replace'!BB29+Custom!BB29+'Energy Audits'!BB29,0) -> 0 | BC29: =+ROUND('Res .95+% Res Furnace - NEW'!BB29+'Res .95+% Res Furnace - Replace'!BC29+'Programmable Thermostats'!BC29+'Comm 95+ Furnace - New'!BC29+'Comm 95+% Furnace - Replace'!BC29+Custom!BC29+'Energy Audits'!BC29,0) -> 0 | BD29: 0 | BE29: 47253 | BH29: 2031 | BI29: =+ROUND('Res .95+% Res Furnace - NEW'!BH29+'Res .95+% Res Furnace - Replace'!BI29+'Programmable Thermostats'!BI29+'Comm 95+ Furnace - New'!BI29+'Comm 95+% Furnace - Replace'!BI29+Custom!BI29,0) -> 0 | BJ29: 4869 | BL29: =+ROUND('Res .95+% Res Furnace - NEW'!BK29+'Res .95+% Res Furnace - Replace'!BL29+'Programmable Thermostats'!BL29+'Comm 95+ Furnace - New'!BL29+'Comm 95+% Furnace - Replace'!BL29+Custom!BL29+'Energy Audits'!BL29,0) -> 55689 | BN29: =+ROUND('Res .95+% Res Furnace - NEW'!BM29+'Res .95+% Res Furnace - Replace'!BN29+'Programmable Thermostats'!BN29+'Comm 95+ Furnace - New'!BN29+'Comm 95+% Furnace - Replace'!BN29+Custom!BN29+'Energy Audits'!BN29,0) -> 82119 | BP29: 137808 | BR29: =+ROUND('Res .95+% Res Furnace - NEW'!BQ29+'Res .95+% Res Furnace - Replace'!BR29+'Programmable Thermostats'!BR29+'Comm 95+ Furnace - New'!BR29+'Comm 95+% Furnace - Replace'!BR29+Custom!BR29+'Energy Audits'!BR29,0) -> 0 | BT29: 137808 | BW29: 2031 | BX29: 22466 | BY29: 8183 | BZ29: 14038 | CA29: 44687 | CC29: 0 | CD29: 0 | CE29: 0 | CG29: 44687
E30: 23) Number of Participants = | F30: =+'Total Program'!F30+'Energy Audits'!F30 -> 691 | J30: 18 | L30: 2032 | M30: =+ROUND('Res .95+% Res Furnace - NEW'!M30+'Res .95+% Res Furnace - Replace'!M30+'Programmable Thermostats'!M30+'Comm 95+ Furnace - New'!M30+'Comm 95+% Furnace - Replace'!M30+Custom!M30+'Energy Audits'!M30,0) -> 4869 | O30: =+ROUND('Res .95+% Res Furnace - NEW'!O30+'Res .95+% Res Furnace - Replace'!O30+'Programmable Thermostats'!O30+'Comm 95+ Furnace - New'!O30+'Comm 95+% Furnace - Replace'!O30+Custom!O30+'Energy Audits'!O30,0) -> 23254 | Q30: =+ROUND('Res .95+% Res Furnace - NEW'!Q30+'Res .95+% Res Furnace - Replace'!Q30+'Programmable Thermostats'!Q30+'Comm 95+ Furnace - New'!Q30+'Comm 95+% Furnace - Replace'!Q30+Custom!Q30+'Energy Audits'!Q30,0) -> 0 | R30: 23254 | S30: =+ROUND('Res .95+% Res Furnace - NEW'!S30+'Res .95+% Res Furnace - Replace'!S30+'Programmable Thermostats'!S30+'Comm 95+ Furnace - New'!S30+'Comm 95+% Furnace - Replace'!S30+Custom!S30+'Energy Audits'!S30,0) -> 49 | U30: =+ROUND('Res .95+% Res Furnace - NEW'!U30+'Res .95+% Res Furnace - Replace'!U30+'Programmable Thermostats'!U30+'Comm 95+ Furnace - New'!U30+'Comm 95+% Furnace - Replace'!U30+Custom!U30+'Energy Audits'!U30,0) -> 8279 | V30: 31533 | X30: =+ROUND('Res .95+% Res Furnace - NEW'!X30+'Res .95+% Res Furnace - Replace'!X30+'Programmable Thermostats'!X30+'Comm 95+ Furnace - New'!X30+'Comm 95+% Furnace - Replace'!X30+Custom!X30+'Energy Audits'!X30,0) -> 11184 | Y30: =+ROUND('Res .95+% Res Furnace - NEW'!Y30+'Res .95+% Res Furnace - Replace'!Y30+'Programmable Thermostats'!Y30+'Comm 95+ Furnace - New'!Y30+'Comm 95+% Furnace - Replace'!Y30+Custom!Y30+'Energy Audits'!Y30,0) -> 0 | Z30: =+ROUND('Res .95+% Res Furnace - NEW'!Z30+'Res .95+% Res Furnace - Replace'!Z30+'Programmable Thermostats'!Z30+'Comm 95+ Furnace - New'!Z30+'Comm 95+% Furnace - Replace'!Z30+Custom!Z30+'Energy Audits'!Z30,0) -> 0 | AA30: 11184 | AB30: 20349 | AE30: 2032 | AF30: 23254 | AG30: 8279 | AH30: 31533 | AJ30: 0 | AK30: 0 | AL30: 0 | AN30: 31533 | AQ30: 2032 | AR30: 23254 | AS30: 8279 | AU30: =+ROUND('Res .95+% Res Furnace - NEW'!AT30+'Res .95+% Res Furnace - Replace'!AU30+'Programmable Thermostats'!AU30+'Comm 95+ Furnace - New'!AU30+'Comm 95+% Furnace - Replace'!AU30+Custom!AU30+'Energy Audits'!AU30,0) -> 14364 | AW30: =+ROUND('Res .95+% Res Furnace - NEW'!AV30+'Res .95+% Res Furnace - Replace'!AW30+'Programmable Thermostats'!AW30+'Comm 95+ Furnace - New'!AW30+'Comm 95+% Furnace - Replace'!AW30+Custom!AW30+'Energy Audits'!AW30,0) -> 2625 | AZ30: 48522 | BB30: =+ROUND('Res .95+% Res Furnace - NEW'!BA30+'Res .95+% Res Furnace - Replace'!BB30+'Programmable Thermostats'!BB30+'Comm 95+ Furnace - New'!BB30+'Comm 95+% Furnace - Replace'!BB30+Custom!BB30+'Energy Audits'!BB30,0) -> 0 | BC30: =+ROUND('Res .95+% Res Furnace - NEW'!BB30+'Res .95+% Res Furnace - Replace'!BC30+'Programmable Thermostats'!BC30+'Comm 95+ Furnace - New'!BC30+'Comm 95+% Furnace - Replace'!BC30+Custom!BC30+'Energy Audits'!BC30,0) -> 0 | BD30: 0 | BE30: 48522 | BH30: 2032 | BI30: =+ROUND('Res .95+% Res Furnace - NEW'!BH30+'Res .95+% Res Furnace - Replace'!BI30+'Programmable Thermostats'!BI30+'Comm 95+ Furnace - New'!BI30+'Comm 95+% Furnace - Replace'!BI30+Custom!BI30,0) -> 0 | BJ30: 4869 | BL30: =+ROUND('Res .95+% Res Furnace - NEW'!BK30+'Res .95+% Res Furnace - Replace'!BL30+'Programmable Thermostats'!BL30+'Comm 95+ Furnace - New'!BL30+'Comm 95+% Furnace - Replace'!BL30+Custom!BL30+'Energy Audits'!BL30,0) -> 57639 | BN30: =+ROUND('Res .95+% Res Furnace - NEW'!BM30+'Res .95+% Res Furnace - Replace'!BN30+'Programmable Thermostats'!BN30+'Comm 95+ Furnace - New'!BN30+'Comm 95+% Furnace - Replace'!BN30+Custom!BN30+'Energy Audits'!BN30,0) -> 84730 | BP30: 142369 | BR30: =+ROUND('Res .95+% Res Furnace - NEW'!BQ30+'Res .95+% Res Furnace - Replace'!BR30+'Programmable Thermostats'!BR30+'Comm 95+ Furnace - New'!BR30+'Comm 95+% Furnace - Replace'!BR30+Custom!BR30+'Energy Audits'!BR30,0) -> 0 | BT30: 142369 | BW30: 2032 | BX30: 23254 | BY30: 8279 | BZ30: 14364 | CA30: 45897 | CC30: 0 | CD30: 0 | CE30: 0 | CG30: 45897 | DB30: =$J18 -> 6
A31: 8) Non-Gas Fuel Loss Factor | J31: 19 | L31: 2033 | M31: =+ROUND('Res .95+% Res Furnace - NEW'!M31+'Res .95+% Res Furnace - Replace'!M31+'Programmable Thermostats'!M31+'Comm 95+ Furnace - New'!M31+'Comm 95+% Furnace - Replace'!M31+Custom!M31+'Energy Audits'!M31,0) -> 4869 | O31: =+ROUND('Res .95+% Res Furnace - NEW'!O31+'Res .95+% Res Furnace - Replace'!O31+'Programmable Thermostats'!O31+'Comm 95+ Furnace - New'!O31+'Comm 95+% Furnace - Replace'!O31+Custom!O31+'Energy Audits'!O31,0) -> 24067 | Q31: =+ROUND('Res .95+% Res Furnace - NEW'!Q31+'Res .95+% Res Furnace - Replace'!Q31+'Programmable Thermostats'!Q31+'Comm 95+ Furnace - New'!Q31+'Comm 95+% Furnace - Replace'!Q31+Custom!Q31+'Energy Audits'!Q31,0) -> 0 | R31: 24067 | S31: =+ROUND('Res .95+% Res Furnace - NEW'!S31+'Res .95+% Res Furnace - Replace'!S31+'Programmable Thermostats'!S31+'Comm 95+ Furnace - New'!S31+'Comm 95+% Furnace - Replace'!S31+Custom!S31+'Energy Audits'!S31,0) -> 49 | U31: =+ROUND('Res .95+% Res Furnace - NEW'!U31+'Res .95+% Res Furnace - Replace'!U31+'Programmable Thermostats'!U31+'Comm 95+ Furnace - New'!U31+'Comm 95+% Furnace - Replace'!U31+Custom!U31+'Energy Audits'!U31,0) -> 8328 | V31: 32395 | X31: =+ROUND('Res .95+% Res Furnace - NEW'!X31+'Res .95+% Res Furnace - Replace'!X31+'Programmable Thermostats'!X31+'Comm 95+ Furnace - New'!X31+'Comm 95+% Furnace - Replace'!X31+Custom!X31+'Energy Audits'!X31,0) -> 11578 | Y31: =+ROUND('Res .95+% Res Furnace - NEW'!Y31+'Res .95+% Res Furnace - Replace'!Y31+'Programmable Thermostats'!Y31+'Comm 95+ Furnace - New'!Y31+'Comm 95+% Furnace - Replace'!Y31+Custom!Y31+'Energy Audits'!Y31,0) -> 0 | Z31: =+ROUND('Res .95+% Res Furnace - NEW'!Z31+'Res .95+% Res Furnace - Replace'!Z31+'Programmable Thermostats'!Z31+'Comm 95+ Furnace - New'!Z31+'Comm 95+% Furnace - Replace'!Z31+Custom!Z31+'Energy Audits'!Z31,0) -> 0 | AA31: 11578 | AB31: 20817 | AE31: 2033 | AF31: 24067 | AG31: 8328 | AH31: 32395 | AJ31: 0 | AK31: 0 | AL31: 0 | AN31: 32395 | AQ31: 2033 | AR31: 24067 | AS31: 8328 | AU31: =+ROUND('Res .95+% Res Furnace - NEW'!AT31+'Res .95+% Res Furnace - Replace'!AU31+'Programmable Thermostats'!AU31+'Comm 95+ Furnace - New'!AU31+'Comm 95+% Furnace - Replace'!AU31+Custom!AU31+'Energy Audits'!AU31,0) -> 15017 | AW31: =+ROUND('Res .95+% Res Furnace - NEW'!AV31+'Res .95+% Res Furnace - Replace'!AW31+'Programmable Thermostats'!AW31+'Comm 95+ Furnace - New'!AW31+'Comm 95+% Furnace - Replace'!AW31+Custom!AW31+'Energy Audits'!AW31,0) -> 2688 | AZ31: 50100 | BB31: =+ROUND('Res .95+% Res Furnace - NEW'!BA31+'Res .95+% Res Furnace - Replace'!BB31+'Programmable Thermostats'!BB31+'Comm 95+ Furnace - New'!BB31+'Comm 95+% Furnace - Replace'!BB31+Custom!BB31+'Energy Audits'!BB31,0) -> 0 | BC31: =+ROUND('Res .95+% Res Furnace - NEW'!BB31+'Res .95+% Res Furnace - Replace'!BC31+'Programmable Thermostats'!BC31+'Comm 95+ Furnace - New'!BC31+'Comm 95+% Furnace - Replace'!BC31+Custom!BC31+'Energy Audits'!BC31,0) -> 0 | BD31: 0 | BE31: 50100 | BH31: 2033 | BI31: =+ROUND('Res .95+% Res Furnace - NEW'!BH31+'Res .95+% Res Furnace - Replace'!BI31+'Programmable Thermostats'!BI31+'Comm 95+ Furnace - New'!BI31+'Comm 95+% Furnace - Replace'!BI31+Custom!BI31,0) -> 0 | BJ31: 4869 | BL31: =+ROUND('Res .95+% Res Furnace - NEW'!BK31+'Res .95+% Res Furnace - Replace'!BL31+'Programmable Thermostats'!BL31+'Comm 95+ Furnace - New'!BL31+'Comm 95+% Furnace - Replace'!BL31+Custom!BL31+'Energy Audits'!BL31,0) -> 59657 | BN31: =+ROUND('Res .95+% Res Furnace - NEW'!BM31+'Res .95+% Res Furnace - Replace'!BN31+'Programmable Thermostats'!BN31+'Comm 95+ Furnace - New'!BN31+'Comm 95+% Furnace - Replace'!BN31+Custom!BN31+'Energy Audits'!BN31,0) -> 87985 | BP31: 147642 | BR31: =+ROUND('Res .95+% Res Furnace - NEW'!BQ31+'Res .95+% Res Furnace - Replace'!BR31+'Programmable Thermostats'!BR31+'Comm 95+ Furnace - New'!BR31+'Comm 95+% Furnace - Replace'!BR31+Custom!BR31+'Energy Audits'!BR31,0) -> 0 | BT31: 147642 | BW31: 2033 | BX31: 24067 | BY31: 8328 | BZ31: 15017 | CA31: 47412 | CC31: 0 | CD31: 0 | CE31: 0 | CG31: 47412 | DB31: =$J19 -> 7
E32: 24) Total Annual Dk Saved = | F32: =+'Total Program'!F32+'Energy Audits'!F32 -> 6604 | J32: 20 | L32: 2034 | M32: =+ROUND('Res .95+% Res Furnace - NEW'!M32+'Res .95+% Res Furnace - Replace'!M32+'Programmable Thermostats'!M32+'Comm 95+ Furnace - New'!M32+'Comm 95+% Furnace - Replace'!M32+Custom!M32+'Energy Audits'!M32,0) -> 4869 | O32: =+ROUND('Res .95+% Res Furnace - NEW'!O32+'Res .95+% Res Furnace - Replace'!O32+'Programmable Thermostats'!O32+'Comm 95+ Furnace - New'!O32+'Comm 95+% Furnace - Replace'!O32+Custom!O32+'Energy Audits'!O32,0) -> 24910 | Q32: =+ROUND('Res .95+% Res Furnace - NEW'!Q32+'Res .95+% Res Furnace - Replace'!Q32+'Programmable Thermostats'!Q32+'Comm 95+ Furnace - New'!Q32+'Comm 95+% Furnace - Replace'!Q32+Custom!Q32+'Energy Audits'!Q32,0) -> 0 | R32: 24910 | S32: =+ROUND('Res .95+% Res Furnace - NEW'!S32+'Res .95+% Res Furnace - Replace'!S32+'Programmable Thermostats'!S32+'Comm 95+ Furnace - New'!S32+'Comm 95+% Furnace - Replace'!S32+Custom!S32+'Energy Audits'!S32,0) -> 49 | U32: =+ROUND('Res .95+% Res Furnace - NEW'!U32+'Res .95+% Res Furnace - Replace'!U32+'Programmable Thermostats'!U32+'Comm 95+ Furnace - New'!U32+'Comm 95+% Furnace - Replace'!U32+Custom!U32+'Energy Audits'!U32,0) -> 8426 | V32: 33336 | X32: =+ROUND('Res .95+% Res Furnace - NEW'!X32+'Res .95+% Res Furnace - Replace'!X32+'Programmable Thermostats'!X32+'Comm 95+ Furnace - New'!X32+'Comm 95+% Furnace - Replace'!X32+Custom!X32+'Energy Audits'!X32,0) -> 11981 | Y32: =+ROUND('Res .95+% Res Furnace - NEW'!Y32+'Res .95+% Res Furnace - Replace'!Y32+'Programmable Thermostats'!Y32+'Comm 95+ Furnace - New'!Y32+'Comm 95+% Furnace - Replace'!Y32+Custom!Y32+'Energy Audits'!Y32,0) -> 0 | Z32: =+ROUND('Res .95+% Res Furnace - NEW'!Z32+'Res .95+% Res Furnace - Replace'!Z32+'Programmable Thermostats'!Z32+'Comm 95+ Furnace - New'!Z32+'Comm 95+% Furnace - Replace'!Z32+Custom!Z32+'Energy Audits'!Z32,0) -> 0 | AA32: 11981 | AB32: 21355 | AE32: 2034 | AF32: 24910 | AG32: 8426 | AH32: 33336 | AJ32: 0 | AK32: 0 | AL32: 0 | AN32: 33336 | AQ32: 2034 | AR32: 24910 | AS32: 8426 | AU32: =+ROUND('Res .95+% Res Furnace - NEW'!AT32+'Res .95+% Res Furnace - Replace'!AU32+'Programmable Thermostats'!AU32+'Comm 95+ Furnace - New'!AU32+'Comm 95+% Furnace - Replace'!AU32+Custom!AU32+'Energy Audits'!AU32,0) -> 15344 | AW32: =+ROUND('Res .95+% Res Furnace - NEW'!AV32+'Res .95+% Res Furnace - Replace'!AW32+'Programmable Thermostats'!AW32+'Comm 95+ Furnace - New'!AW32+'Comm 95+% Furnace - Replace'!AW32+Custom!AW32+'Energy Audits'!AW32,0) -> 2747 | AZ32: 51427 | BB32: =+ROUND('Res .95+% Res Furnace - NEW'!BA32+'Res .95+% Res Furnace - Replace'!BB32+'Programmable Thermostats'!BB32+'Comm 95+ Furnace - New'!BB32+'Comm 95+% Furnace - Replace'!BB32+Custom!BB32+'Energy Audits'!BB32,0) -> 0 | BC32: =+ROUND('Res .95+% Res Furnace - NEW'!BB32+'Res .95+% Res Furnace - Replace'!BC32+'Programmable Thermostats'!BC32+'Comm 95+ Furnace - New'!BC32+'Comm 95+% Furnace - Replace'!BC32+Custom!BC32+'Energy Audits'!BC32,0) -> 0 | BD32: 0 | BE32: 51427 | BH32: 2034 | BI32: =+ROUND('Res .95+% Res Furnace - NEW'!BH32+'Res .95+% Res Furnace - Replace'!BI32+'Programmable Thermostats'!BI32+'Comm 95+ Furnace - New'!BI32+'Comm 95+% Furnace - Replace'!BI32+Custom!BI32,0) -> 0 | BJ32: 4869 | BL32: =+ROUND('Res .95+% Res Furnace - NEW'!BK32+'Res .95+% Res Furnace - Replace'!BL32+'Programmable Thermostats'!BL32+'Comm 95+ Furnace - New'!BL32+'Comm 95+% Furnace - Replace'!BL32+Custom!BL32+'Energy Audits'!BL32,0) -> 61743 | BN32: =+ROUND('Res .95+% Res Furnace - NEW'!BM32+'Res .95+% Res Furnace - Replace'!BN32+'Programmable Thermostats'!BN32+'Comm 95+ Furnace - New'!BN32+'Comm 95+% Furnace - Replace'!BN32+Custom!BN32+'Energy Audits'!BN32,0) -> 90925 | BP32: 152668 | BR32: =+ROUND('Res .95+% Res Furnace - NEW'!BQ32+'Res .95+% Res Furnace - Replace'!BR32+'Programmable Thermostats'!BR32+'Comm 95+ Furnace - New'!BR32+'Comm 95+% Furnace - Replace'!BR32+Custom!BR32+'Energy Audits'!BR32,0) -> 0 | BT32: 152668 | BW32: 2034 | BX32: 24910 | BY32: 8426 | BZ32: 15344 | CA32: 48680 | CC32: 0 | CD32: 0 | CE32: 0 | CG32: 48680 | DB32: =$J20 -> 8
A33: 9) Gas Environmental Damage Factor = | J33: 21 | L33: 2035 | M33: =+ROUND('Res .95+% Res Furnace - NEW'!M33+'Res .95+% Res Furnace - Replace'!M33+'Programmable Thermostats'!M33+'Comm 95+ Furnace - New'!M33+'Comm 95+% Furnace - Replace'!M33+Custom!M33+'Energy Audits'!M33,0) -> 4869 | O33: =+ROUND('Res .95+% Res Furnace - NEW'!O33+'Res .95+% Res Furnace - Replace'!O33+'Programmable Thermostats'!O33+'Comm 95+ Furnace - New'!O33+'Comm 95+% Furnace - Replace'!O33+Custom!O33+'Energy Audits'!O33,0) -> 25781 | Q33: =+ROUND('Res .95+% Res Furnace - NEW'!Q33+'Res .95+% Res Furnace - Replace'!Q33+'Programmable Thermostats'!Q33+'Comm 95+ Furnace - New'!Q33+'Comm 95+% Furnace - Replace'!Q33+Custom!Q33+'Energy Audits'!Q33,0) -> 0 | R33: 25781 | S33: =+ROUND('Res .95+% Res Furnace - NEW'!S33+'Res .95+% Res Furnace - Replace'!S33+'Programmable Thermostats'!S33+'Comm 95+ Furnace - New'!S33+'Comm 95+% Furnace - Replace'!S33+Custom!S33+'Energy Audits'!S33,0) -> 49 | U33: =+ROUND('Res .95+% Res Furnace - NEW'!U33+'Res .95+% Res Furnace - Replace'!U33+'Programmable Thermostats'!U33+'Comm 95+ Furnace - New'!U33+'Comm 95+% Furnace - Replace'!U33+Custom!U33+'Energy Audits'!U33,0) -> 8523 | V33: 34304 | X33: =+ROUND('Res .95+% Res Furnace - NEW'!X33+'Res .95+% Res Furnace - Replace'!X33+'Programmable Thermostats'!X33+'Comm 95+ Furnace - New'!X33+'Comm 95+% Furnace - Replace'!X33+Custom!X33+'Energy Audits'!X33,0) -> 12403 | Y33: =+ROUND('Res .95+% Res Furnace - NEW'!Y33+'Res .95+% Res Furnace - Replace'!Y33+'Programmable Thermostats'!Y33+'Comm 95+ Furnace - New'!Y33+'Comm 95+% Furnace - Replace'!Y33+Custom!Y33+'Energy Audits'!Y33,0) -> 0 | Z33: =+ROUND('Res .95+% Res Furnace - NEW'!Z33+'Res .95+% Res Furnace - Replace'!Z33+'Programmable Thermostats'!Z33+'Comm 95+ Furnace - New'!Z33+'Comm 95+% Furnace - Replace'!Z33+Custom!Z33+'Energy Audits'!Z33,0) -> 0 | AA33: 12403 | AB33: 21901 | AE33: 2035 | AF33: 25781 | AG33: 8523 | AH33: 34304 | AJ33: 0 | AK33: 0 | AL33: 0 | AN33: 34304 | AQ33: 2035 | AR33: 25781 | AS33: 8523 | AU33: =+ROUND('Res .95+% Res Furnace - NEW'!AT33+'Res .95+% Res Furnace - Replace'!AU33+'Programmable Thermostats'!AU33+'Comm 95+ Furnace - New'!AU33+'Comm 95+% Furnace - Replace'!AU33+Custom!AU33+'Energy Audits'!AU33,0) -> 15998 | AW33: =+ROUND('Res .95+% Res Furnace - NEW'!AV33+'Res .95+% Res Furnace - Replace'!AW33+'Programmable Thermostats'!AW33+'Comm 95+ Furnace - New'!AW33+'Comm 95+% Furnace - Replace'!AW33+Custom!AW33+'Energy Audits'!AW33,0) -> 2809 | AZ33: 53111 | BB33: =+ROUND('Res .95+% Res Furnace - NEW'!BA33+'Res .95+% Res Furnace - Replace'!BB33+'Programmable Thermostats'!BB33+'Comm 95+ Furnace - New'!BB33+'Comm 95+% Furnace - Replace'!BB33+Custom!BB33+'Energy Audits'!BB33,0) -> 0 | BC33: =+ROUND('Res .95+% Res Furnace - NEW'!BB33+'Res .95+% Res Furnace - Replace'!BC33+'Programmable Thermostats'!BC33+'Comm 95+ Furnace - New'!BC33+'Comm 95+% Furnace - Replace'!BC33+Custom!BC33+'Energy Audits'!BC33,0) -> 0 | BD33: 0 | BE33: 53111 | BH33: 2035 | BI33: =+ROUND('Res .95+% Res Furnace - NEW'!BH33+'Res .95+% Res Furnace - Replace'!BI33+'Programmable Thermostats'!BI33+'Comm 95+ Furnace - New'!BI33+'Comm 95+% Furnace - Replace'!BI33+Custom!BI33,0) -> 0 | BJ33: 4869 | BL33: =+ROUND('Res .95+% Res Furnace - NEW'!BK33+'Res .95+% Res Furnace - Replace'!BL33+'Programmable Thermostats'!BL33+'Comm 95+ Furnace - New'!BL33+'Comm 95+% Furnace - Replace'!BL33+Custom!BL33+'Energy Audits'!BL33,0) -> 63905 | BN33: =+ROUND('Res .95+% Res Furnace - NEW'!BM33+'Res .95+% Res Furnace - Replace'!BN33+'Programmable Thermostats'!BN33+'Comm 95+ Furnace - New'!BN33+'Comm 95+% Furnace - Replace'!BN33+Custom!BN33+'Energy Audits'!BN33,0) -> 94179 | BP33: 158084 | BR33: =+ROUND('Res .95+% Res Furnace - NEW'!BQ33+'Res .95+% Res Furnace - Replace'!BR33+'Programmable Thermostats'!BR33+'Comm 95+ Furnace - New'!BR33+'Comm 95+% Furnace - Replace'!BR33+Custom!BR33+'Energy Audits'!BR33,0) -> 0 | BT33: 158084 | BW33: 2035 | BX33: 25781 | BY33: 8523 | BZ33: 15998 | CA33: 50302 | CC33: 0 | CD33: 0 | CE33: 0 | CG33: 50302
A34: Escalation Rate = | E34: 25) Incentive/Participant = | J34: 22 | L34: 2036 | M34: =+ROUND('Res .95+% Res Furnace - NEW'!M34+'Res .95+% Res Furnace - Replace'!M34+'Programmable Thermostats'!M34+'Comm 95+ Furnace - New'!M34+'Comm 95+% Furnace - Replace'!M34+Custom!M34+'Energy Audits'!M34,0) -> 0 | O34: =+ROUND('Res .95+% Res Furnace - NEW'!O34+'Res .95+% Res Furnace - Replace'!O34+'Programmable Thermostats'!O34+'Comm 95+ Furnace - New'!O34+'Comm 95+% Furnace - Replace'!O34+Custom!O34+'Energy Audits'!O34,0) -> 0 | Q34: =+ROUND('Res .95+% Res Furnace - NEW'!Q34+'Res .95+% Res Furnace - Replace'!Q34+'Programmable Thermostats'!Q34+'Comm 95+ Furnace - New'!Q34+'Comm 95+% Furnace - Replace'!Q34+Custom!Q34+'Energy Audits'!Q34,0) -> 0 | R34: 0 | S34: =+ROUND('Res .95+% Res Furnace - NEW'!S34+'Res .95+% Res Furnace - Replace'!S34+'Programmable Thermostats'!S34+'Comm 95+ Furnace - New'!S34+'Comm 95+% Furnace - Replace'!S34+Custom!S34+'Energy Audits'!S34,0) -> 0 | U34: =+ROUND('Res .95+% Res Furnace - NEW'!U34+'Res .95+% Res Furnace - Replace'!U34+'Programmable Thermostats'!U34+'Comm 95+ Furnace - New'!U34+'Comm 95+% Furnace - Replace'!U34+Custom!U34+'Energy Audits'!U34,0) -> 0 | V34: 0 | X34: =+ROUND('Res .95+% Res Furnace - NEW'!X34+'Res .95+% Res Furnace - Replace'!X34+'Programmable Thermostats'!X34+'Comm 95+ Furnace - New'!X34+'Comm 95+% Furnace - Replace'!X34+Custom!X34+'Energy Audits'!X34,0) -> 0 | Y34: =+ROUND('Res .95+% Res Furnace - NEW'!Y34+'Res .95+% Res Furnace - Replace'!Y34+'Programmable Thermostats'!Y34+'Comm 95+ Furnace - New'!Y34+'Comm 95+% Furnace - Replace'!Y34+Custom!Y34+'Energy Audits'!Y34,0) -> 0 | Z34: =+ROUND('Res .95+% Res Furnace - NEW'!Z34+'Res .95+% Res Furnace - Replace'!Z34+'Programmable Thermostats'!Z34+'Comm 95+ Furnace - New'!Z34+'Comm 95+% Furnace - Replace'!Z34+Custom!Z34+'Energy Audits'!Z34,0) -> 0 | AA34: 0 | AB34: 0 | AE34: 2036 | AF34: 0 | AG34: 0 | AH34: 0 | AJ34: 0 | AK34: 0 | AL34: 0 | AN34: 0 | AQ34: 2036 | AR34: 0 | AS34: 0 | AU34: =+ROUND('Res .95+% Res Furnace - NEW'!AT34+'Res .95+% Res Furnace - Replace'!AU34+'Programmable Thermostats'!AU34+'Comm 95+ Furnace - New'!AU34+'Comm 95+% Furnace - Replace'!AU34+Custom!AU34+'Energy Audits'!AU34,0) -> 0 | AW34: =+ROUND('Res .95+% Res Furnace - NEW'!AV34+'Res .95+% Res Furnace - Replace'!AW34+'Programmable Thermostats'!AW34+'Comm 95+ Furnace - New'!AW34+'Comm 95+% Furnace - Replace'!AW34+Custom!AW34+'Energy Audits'!AW34,0) -> 0 | AZ34: 0 | BB34: =+ROUND('Res .95+% Res Furnace - NEW'!BA34+'Res .95+% Res Furnace - Replace'!BB34+'Programmable Thermostats'!BB34+'Comm 95+ Furnace - New'!BB34+'Comm 95+% Furnace - Replace'!BB34+Custom!BB34+'Energy Audits'!BB34,0) -> 0 | BC34: =+ROUND('Res .95+% Res Furnace - NEW'!BB34+'Res .95+% Res Furnace - Replace'!BC34+'Programmable Thermostats'!BC34+'Comm 95+ Furnace - New'!BC34+'Comm 95+% Furnace - Replace'!BC34+Custom!BC34+'Energy Audits'!BC34,0) -> 0 | BD34: 0 | BE34: 0 | BH34: 2036 | BI34: =+ROUND('Res .95+% Res Furnace - NEW'!BH34+'Res .95+% Res Furnace - Replace'!BI34+'Programmable Thermostats'!BI34+'Comm 95+ Furnace - New'!BI34+'Comm 95+% Furnace - Replace'!BI34+Custom!BI34,0) -> 0 | BJ34: 0 | BL34: =+ROUND('Res .95+% Res Furnace - NEW'!BK34+'Res .95+% Res Furnace - Replace'!BL34+'Programmable Thermostats'!BL34+'Comm 95+ Furnace - New'!BL34+'Comm 95+% Furnace - Replace'!BL34+Custom!BL34+'Energy Audits'!BL34,0) -> 0 | BN34: =+ROUND('Res .95+% Res Furnace - NEW'!BM34+'Res .95+% Res Furnace - Replace'!BN34+'Programmable Thermostats'!BN34+'Comm 95+ Furnace - New'!BN34+'Comm 95+% Furnace - Replace'!BN34+Custom!BN34+'Energy Audits'!BN34,0) -> 0 | BP34: 0 | BR34: =+ROUND('Res .95+% Res Furnace - NEW'!BQ34+'Res .95+% Res Furnace - Replace'!BR34+'Programmable Thermostats'!BR34+'Comm 95+ Furnace - New'!BR34+'Comm 95+% Furnace - Replace'!BR34+Custom!BR34+'Energy Audits'!BR34,0) -> 0 | BT34: 0 | BW34: 2036 | BX34: 0 | BY34: 0 | BZ34: 0 | CA34: 0 | CC34: 0 | CD34: 0 | CE34: 0 | CG34: 0
J35: 23 | L35: 2037 | M35: =+ROUND('Res .95+% Res Furnace - NEW'!M35+'Res .95+% Res Furnace - Replace'!M35+'Programmable Thermostats'!M35+'Comm 95+ Furnace - New'!M35+'Comm 95+% Furnace - Replace'!M35+Custom!M35+'Energy Audits'!M35,0) -> 0 | O35: =+ROUND('Res .95+% Res Furnace - NEW'!O35+'Res .95+% Res Furnace - Replace'!O35+'Programmable Thermostats'!O35+'Comm 95+ Furnace - New'!O35+'Comm 95+% Furnace - Replace'!O35+Custom!O35+'Energy Audits'!O35,0) -> 0 | Q35: =+ROUND('Res .95+% Res Furnace - NEW'!Q35+'Res .95+% Res Furnace - Replace'!Q35+'Programmable Thermostats'!Q35+'Comm 95+ Furnace - New'!Q35+'Comm 95+% Furnace - Replace'!Q35+Custom!Q35+'Energy Audits'!Q35,0) -> 0 | R35: 0 | S35: =+ROUND('Res .95+% Res Furnace - NEW'!S35+'Res .95+% Res Furnace - Replace'!S35+'Programmable Thermostats'!S35+'Comm 95+ Furnace - New'!S35+'Comm 95+% Furnace - Replace'!S35+Custom!S35+'Energy Audits'!S35,0) -> 0 | U35: =+ROUND('Res .95+% Res Furnace - NEW'!U35+'Res .95+% Res Furnace - Replace'!U35+'Programmable Thermostats'!U35+'Comm 95+ Furnace - New'!U35+'Comm 95+% Furnace - Replace'!U35+Custom!U35+'Energy Audits'!U35,0) -> 0 | V35: 0 | X35: =+ROUND('Res .95+% Res Furnace - NEW'!X35+'Res .95+% Res Furnace - Replace'!X35+'Programmable Thermostats'!X35+'Comm 95+ Furnace - New'!X35+'Comm 95+% Furnace - Replace'!X35+Custom!X35+'Energy Audits'!X35,0) -> 0 | Y35: =+ROUND('Res .95+% Res Furnace - NEW'!Y35+'Res .95+% Res Furnace - Replace'!Y35+'Programmable Thermostats'!Y35+'Comm 95+ Furnace - New'!Y35+'Comm 95+% Furnace - Replace'!Y35+Custom!Y35+'Energy Audits'!Y35,0) -> 0 | Z35: =+ROUND('Res .95+% Res Furnace - NEW'!Z35+'Res .95+% Res Furnace - Replace'!Z35+'Programmable Thermostats'!Z35+'Comm 95+ Furnace - New'!Z35+'Comm 95+% Furnace - Replace'!Z35+Custom!Z35+'Energy Audits'!Z35,0) -> 0 | AA35: 0 | AB35: 0 | AE35: 2037 | AF35: =+R35 -> 0 | AG35: =+U35 -> 0 | AH35: =+AG35+AF35 -> 0 | AJ35: =ROUND(Y35,0) -> 0 | AK35: =ROUND(Z35,0) -> 0 | AL35: =SUM(AJ35:AK35) -> 0 | AN35: =+AH35-AL35 -> 0 | AQ35: 2037 | AR35: =AF35 -> 0 | AS35: =+AG35 -> 0 | AU35: =+ROUND('Res .95+% Res Furnace - NEW'!AT35+'Res .95+% Res Furnace - Replace'!AU35+'Programmable Thermostats'!AU35+'Comm 95+ Furnace - New'!AU35+'Comm 95+% Furnace - Replace'!AU35+Custom!AU35+'Energy Audits'!AU35,0) -> 0 | AW35: =+ROUND('Res .95+% Res Furnace - NEW'!AV35+'Res .95+% Res Furnace - Replace'!AW35+'Programmable Thermostats'!AW35+'Comm 95+ Furnace - New'!AW35+'Comm 95+% Furnace - Replace'!AW35+Custom!AW35+'Energy Audits'!AW35,0) -> 0 | AZ35: =ROUND(AR35+AS35+AU35+AW35+AY35,0) -> 0 | BB35: =+ROUND('Res .95+% Res Furnace - NEW'!BA35+'Res .95+% Res Furnace - Replace'!BB35+'Programmable Thermostats'!BB35+'Comm 95+ Furnace - New'!BB35+'Comm 95+% Furnace - Replace'!BB35+Custom!BB35+'Energy Audits'!BB35,0) -> 0 | BC35: =+ROUND('Res .95+% Res Furnace - NEW'!BB35+'Res .95+% Res Furnace - Replace'!BC35+'Programmable Thermostats'!BC35+'Comm 95+ Furnace - New'!BC35+'Comm 95+% Furnace - Replace'!BC35+Custom!BC35+'Energy Audits'!BC35,0) -> 0 | BD35: =BB35+BC35 -> 0 | BE35: =AZ35-BD35 -> 0 | BH35: 2037 | BI35: =+ROUND('Res .95+% Res Furnace - NEW'!BH35+'Res .95+% Res Furnace - Replace'!BI35+'Programmable Thermostats'!BI35+'Comm 95+ Furnace - New'!BI35+'Comm 95+% Furnace - Replace'!BI35+Custom!BI35,0) -> 0 | BJ35: 0 | BL35: =+ROUND('Res .95+% Res Furnace - NEW'!BK35+'Res .95+% Res Furnace - Replace'!BL35+'Programmable Thermostats'!BL35+'Comm 95+ Furnace - New'!BL35+'Comm 95+% Furnace - Replace'!BL35+Custom!BL35+'Energy Audits'!BL35,0) -> 0 | BN35: =+ROUND('Res .95+% Res Furnace - NEW'!BM35+'Res .95+% Res Furnace - Replace'!BN35+'Programmable Thermostats'!BN35+'Comm 95+ Furnace - New'!BN35+'Comm 95+% Furnace - Replace'!BN35+Custom!BN35+'Energy Audits'!BN35,0) -> 0 | BP35: =BI35+BL35+BN35+BO35 -> 0 | BR35: =+ROUND('Res .95+% Res Furnace - NEW'!BQ35+'Res .95+% Res Furnace - Replace'!BR35+'Programmable Thermostats'!BR35+'Comm 95+ Furnace - New'!BR35+'Comm 95+% Furnace - Replace'!BR35+Custom!BR35+'Energy Audits'!BR35,0) -> 0 | BT35: 0 | BW35: 2037 | BX35: 0 | BY35: =U35 -> 0 | BZ35: =AU35 -> 0 | CA35: =SUM(BX35:BZ35) -> 0 | CC35: =BB35 -> 0 | CD35: =BC35 -> 0 | CE35: =SUM(CC35:CD35) -> 0 | CG35: 0 | DB35: =$J21 -> 9
A36: 10) Non Gas Fuel Environmental Damage Factor = | E36: 26) Distribution Delivery Charge
A37: Escalation Rate = | K37: Total = | M37: =SUM(M14:M35) -> 120260 | V37: =SUM(V14:V35) -> 647612 | AA37: =SUM(AA14:AA35) -> 364170 | AB37: =SUM(AB14:AB35) -> 283442 | AD37: Total = | AH37: =SUM(AH14:AH35) -> 647612 | AL37: =SUM(AL14:AL35) -> 156614 | AN37: =SUM(AN14:AN35) -> 490998 | AP37: Total = | AZ37: =SUM(AZ14:AZ35) -> 937301 | BD37: =SUM(BD14:BD35) -> 257632 | BE37: =SUM(BE14:BE35) -> 679669 | BG37: Total = | BJ37: =SUM(BJ14:BJ35) -> 120260 | BP37: =SUM(BP14:BP35) -> 2639295 | BR37: =SUM(BR14:BR35) -> 239758 | BT37: =SUM(BT14:BT35) -> 2399537 | BZ37: Total = | CA37: =SUM(CA14:CA35) -> 881693 | CE37: =SUM(CE14:CE35) -> 257632 | CG37: =SUM(CG14:CG35) -> 624061 | DB37: =$J22 -> 10
E38: 27) Effective Income Tax Rate = | T38: NPV = | V38: =ROUND(V14+NPV($C$41,V15:V35),0) -> 353677 | AA38: =ROUND(AA14+NPV($C$41,AA15:AA35),0) -> 267429 | AB38: =ROUND(AB14+NPV($C$41,AB15:AB35),0) -> 86248 | AG38: NPV = | AH38: =ROUND(AH14+NPV($C$41,AH15:AH35),0) -> 353677 | AL38: =ROUND(AL14+NPV($C$41,AL15:AL35),0) -> 156614 | AN38: =+AH38-AL38 -> 197063 | AW38: NPV = | AZ38: =ROUND(AZ14+NPV($C$43,AZ15:AZ35),0) -> 673974 | BD38: =ROUND(BD14+NPV($C$43,BD15:BD35),0) -> 257632 | BE38: =AZ38-BD38 -> 416342 | BN38: NPV = | BP38: =ROUND(BP14+NPV($C$39,BP15:BP35),0) -> 1217460 | BR38: =ROUND(BR14+NPV($C$39,BR15:BR35),0) -> 239758 | BT38: =ROUND(BT14+NPV($C$39,BT15:BT35),0) -> 977702 | BZ38: NPV = | CA38: =ROUND(CA14+NPV($C$41,CA15:CA35),0) -> 474317 | CE38: =ROUND(CE14+NPV($C$41,CE15:CE35),0) -> 257632 | CG38: =ROUND(CG14+NPV($C$41,CG15:CG35),0) -> 216685
A39: 11) Participant Discount Rate = | C39: =+'Gas Input Table Summary'!D26 -> 0.1 | E39: (Federal & State Taxes)
K40: Total NPV = | N40: =AB38 -> 86248 | AD40: Total NPV = | AG40: =AN38 -> 197063 | AP40: Total NPV = | AS40: =BE38 -> 416342 | BG40: Total NPV = | BJ40: =BT38 -> 977702 | BV40: Total NPV = | BY40: =CG38 -> 216685 | DB40: =$J23 -> 11
A41: 12) Utility Discount Rate = | C41: =+'Gas Input Table Summary'!D27 -> 0.07216 | E41: Test Results | F41: NPV | G41: B/C | K41: Benefit/Cost Ratio = | N41: =ROUND(V38/AA38,2) -> 1.32 | AD41: Benefit/Cost Ratio = | AG41: =ROUND(AH38/AL38,2) -> 2.26 | AP41: Benefit/Cost Ratio = | AS41: =ROUND(AZ38/BD38,2) -> 2.62 | BG41: Benefit/Cost Ratio = | BJ41: =ROUND(BP38/BR38,20) -> 5.077870186 | BV41: Benefit/Cost Ratio = | BY41: =ROUND(CA38/CE38,2) -> 1.84 | DB41: =$J24 -> 12
E42: Ratepayer Impact Measure Test | F42: =N40 -> 86248 | G42: =N41 -> 1.32 | DB42: =$J25 -> 13
A43: 13) Societal Discount Rate = | C43: =+'Gas Input Table Summary'!D28 -> 0.0356 | E43: Utility Cost Test | F43: =AG40 -> 197063 | G43: =AG41 -> 2.26 | BG43: Worksheet Calculations | BV43: Worksheet Calculations | DB43: =$J26 -> 14
E44: Societal Test | F44: =AS40 -> 416342 | G44: =AS41 -> 2.62 | J44: Worksheet Calculations | AD44: Worksheet Calculations | AP44: Worksheet Calculations | BG44: (A) | BH44: = Table 1 (N) | BV44: (A) | BW44: = Table 1 (F)
A45: 14) General Input Data Year = | C45: =+'Gas Input Table Summary'!D29 -> 2014 | E45: Participant Test | F45: =BJ40 -> 977702 | G45: =BJ41 -> 5.077870186 | J45: (A) | K45: = Average Dk/Participant Saved (21) x Number of Participants (23) for Project Life (20) | T45: (I) | U45: = (G) x (H) | AD45: (A) | AE45: = Table 1 (F) | AP45: (A) | AQ45: = Table 1 (F) | AW45: (H) | AZ45: = Table 2 (F) | BG45: (B) | BH45: = Table 1 (A) | BV45: (B) | BW45: = Table 1 (I)
E46: Total Resource Cost Test | F46: =BY40 -> 216685 | G46: =BY41 -> 1.84 | J46: (B) | K46: = Commodity Cost (3) escalated | T46: (J) | U46: = (F) + (I) | AD46: (B) | AE46: = Table 1 (I) | AP46: (G) | AQ46: = Table 1 (I) | AW46: (I) | AZ46: = Direct Part. Costs (17) x No. of Part. (23) - Table 1 (N) | BG46: (C) | BH46: = Retail Rate (1) escalated. | BV46: (C) | BW46: = Table 3 (D)
A47: 15) Project Analysis Year 1 = | C47: 2016 | J47: (C) | K47: = (A) x (B) | T47: (K) | U47: = Distribution Delivery Charge (26) escalated. | AD47: (C) | AE47: = Table 1 (J) | AP47: (C) | AQ47: = Non-Gas Fuel Cost (7), adjusted for losses (8), escalated.. | AW47: (J) | AZ47: = (H) + (I) | BG47: (D) | BH47: =(B) x (C) | BV47: (D) | BW47: = (A) + (B) + (C)
J48: (D) | K48: = Variable O&M Cost (6), escalated | T48: (L) | U48: = (A) x (K) x (1-Inverse of Tax Rate (27) | AD48: (D) | AE48: = Table 1 (M) | AP48: (D) | AQ48: = (C) x [Avg. Non-Gas Fuel Units/Part.Saved (22) x No. of Part. (23) | AW48: (K) | AZ48: = (G) - (J) | BG48: (E) | BH48: = Non-Gas Fuel Retail Rate (2), escalated. | BV48: (E) | BW48: = Table 3 (H)
J49: (E) | K49: = (A) x (D) | T49: (M) | U49: = Admin & Operating Costs (16a) | AD49: (E) | AE49: = Table 1 (N) | AP49: (E) | AQ49: = Gas Environmental Damage Factor (9), escalated | BG49: (F) | BH49: = (E) x [Avg. Non-Gas Fuel Units/Part.Saved (22) x No. of Part. (23) | BV49: (F) | BW49: = Table 3 (I) | DB49: =$J27 -> 15
J50: (F) | K50: = (C) + (E) | T50: (N) | U50: = Incentive Costs (16b) | AD50: (F) | AE50: = (D) + (E) | AP50: (F) | AQ50: = Table 1 (A) x (E) | BG50: (G) | BH50: = (A) + (D) + (F) | BV50: (G) | BW50: = (E) + (F) | DB50: =$J28 -> 16
J51: (G) | K51: = (A) x Peak Reduction Factor (5) | T51: (O) | U51: = (L) + (M) + (N) | AD51: (G) | AE51: = (C) - (F) | AP51: (G) | AQ51: = (A) + (B) + (D) + (F) | BG51: (H) | BH51: = Direct Participant Costs (17) x Number of Participants (23) | BV51: (H) | BW51: = (D) - (G) | DB51: =$J29 -> 17
J52: (H) | K52: = Demand Cost (4) escalated. | T52: (P) | U52: = (J) - (O) | BG52: (I) | BH52: = (G) - (H)

Sheet Res .95+% Res Furnace - NEW
A1: NATURAL GAS CONSERVATION PROGRAMS/DEMAND-SIDE MANAGEMENT | K1: Table 1 | AC1: Table 2 | AO1: Table 3 | BF1: Table 4 | BU1: Table 5
A2: BEN/COST ANALYSIS FOR GAS CONSERVATION | K2: Ratepayer Impact Measure Test | AC2: Utility Cost Test | AO2: Societal Test | BF2: Participant Test | BU2: Total Resource Cost Test
A4: Company: | B4: Montana-Dakota Utilities Co. | K4: Company: | M4: =B4 -> Montana-Dakota Utilities Co. | AC4: Company: | AE4: =B4 -> Montana-Dakota Utilities Co. | AO4: Company: | AQ4: =AE4 -> Montana-Dakota Utilities Co. | BG4: Company: | BH4: =AQ4 -> Montana-Dakota Utilities Co. | BV4: Company: | BW4: =BH4 -> Montana-Dakota Utilities Co.
A5: Project: | B5: Residential 95+% AFUE Furnace - New | K5: Project: | M5: =$B$5 -> Residential 95+% AFUE Furnace - New | AC5: Project: | AE5: =$B$5 -> Residential 95+% AFUE Furnace - New | AO5: Project: | AQ5: =$B$5 -> Residential 95+% AFUE Furnace - New | BG5: Project: | BH5: =$B$5 -> Residential 95+% AFUE Furnace - New | BV5: Project: | BW5: =$B$5 -> Residential 95+% AFUE Furnace - New
A6: Program Years: | B6: =+'Total Program'!B6 -> 2017 Actual
N7: Benefits | X7: Costs | AE7: Benefits | AI7: Costs | AQ7: Benefits | BA7: Costs | BH7: Benefits | BQ7: Costs | BW7: Benefits | CB7: Costs
A8: Input Data | F8: 2017 | AB8: Annual | AM8: Annual | AS8: Non-Gas | BD8: Annual | BS8: Annual | CF8: Annual
M9: Total | N9: Gas | O9: Gas | P9: Variable | Q9: Variable | R9: Total | S9: Peak Dk | T9: Demand | U9: Total | W9: Distribution | Y9: Program | AA9: Total | AB9: Benefits | AE9: Total | AF9: Total | AG9: Annual | AI9: Program | AK9: Utility | AM9: Benefits | AQ9: Total | AR9: Total | AS9: Energy | AT9: Non-Gas | AU9: Environmental | AV9: Environmental | AY9: Annual | BA9: Utility | BB9: Participants' | BC9: Annual | BD9: Benefits | BI9: Total | BK9: Gas | BL9: Non-Gas | BM9: Non-Gas | BO9: Total | BQ9: Direct | BS9: Benefits | BW9: Total | BX9: Total | BY9: Non-Gas | BZ9: Total | CB9: Utility | CC9: Participants' | CF9: Benefits
A10: 1) Retail Rate ($/Dk) = | C10: =+'Gas Input Table Summary'!$D$7 -> 6.21 | E10: 16) Utility Project Costs | M10: Energy | N10: Commodity | O10: Commodity | P10: O & M | Q10: O & M | R10: Energy | S10: Demand | T10: Savings | U10: Demand | V10: Total | W10: Delivery | X10: Lost | Y10: Admin | Z10: Incentive | AA10: Program | AB10: Less | AE10: Energy | AF10: Demand | AG10: Total | AI10: Admin | AJ10: Incentive | AK10: Program | AM10: Less | AQ10: Energy | AR10: Demand | AS10: Savings | AT10: Energy | AU10: Damage | AV10: Damage | AY10: Total | BA10: Program | BB10: Costs Net | BC10: Total | BD10: Less | BH10: Incentives | BI10: Energy | BJ10: Retail | BK10: Bill | BL10: Fuel | BM10: Energy | BO10: Annual | BQ10: Participant | BS10: Less | BW10: Energy | BX10: Demand | BY10: Energy | BZ10: Annual | CB10: Program | CC10: Costs Net | CD10: Total | CF10: Less
A11: Escalation Rate = | C11: =+'Gas Input Table Summary'!$D$8 -> 0.035 | E11: 16a) Administrative & Operating Costs = | F11: =+'Total Program Inputs'!K10 -> 3366 | J11: t | M11: Reduction | N11: Cost/Dk | O11: Savings | P11: Cost/Dk | Q11: Savings | R11: Savings | S11: Reduction | T11: Per Unit | U11: Savings | V11: Savings | W11: Charge | X11: Margin | Y11: Costs | Z11: Costs | AA11: Costs | AB11: Costs | AE11: Savings | AF11: Savings | AG11: Savings | AI11: Costs | AJ11: Costs | AK11: Costs | AM11: Costs | AQ11: Savings | AR11: Savings | AS11: ($/Part.) | AT11: Savings | AU11: Savings/Dk | AV11: Savings | AY11: Savings | BA11: Costs | BB11: of Rebate | BC11: Costs | BD11: Costs | BH11: Received | BI11: Reduction | BJ11: Rate | BK11: Savings | BL11: Retail Rate | BM11: Savings | BO11: Benefits | BQ11: Costs | BS11: Costs | BW11: Savings | BX11: Savings | BY11: Savings | BZ11: Benefits | CB11: Costs | CC11: of Rebate | CD11: Costs | CF11: Costs
E12: 16b) Incentive Costs = | F12: =+'Total Program Inputs'!G10 -> 57600 | L12: Year | M12: (A) | N12: (B) | O12: (C) | P12: (D) | Q12: (E) | R12: (F) | S12: (G) | T12: (H) | U12: (I) | V12: (J) | W12: (K) | X12: (L) | Y12: (M) | Z12: (N) | AA12: (O) | AB12: (P) | AD12: Year | AE12: (A) | AF12: (B) | AG12: (C) | AI12: (D) | AJ12: (E) | AK12: (F) | AM12: (G) | AP12: Year | AQ12: (A) | AR12: (B) | AS12: (C) | AT12: (D) | AU12: (E) | AV12: (F) | AY12: (G) | BA12: (H) | BB12: (I) | BC12: (J) | BD12: (K) | BG12: Year | BH12: (A) | BI12: (B) | BJ12: (C) | BK12: (D) | BL12: (E) | BM12: (F) | BO12: (G) | BQ12: (H) | BS12: (I) | BV12: Year | BW12: (A) | BX12: (B) | BY12: (C) | BZ12: (D) | CB12: (E) | CC12: (F) | CD12: (G) | CF12: (H)
A13: 2) Non-Gas Fuel Retail Rate ($/Fuel Unit) = | C13: =+'Gas Input Table Summary'!$D$9 -> 0.13546 | E13: 16c) Total Utility Project Costs = | F13: =SUM(F11:F12) -> 60966
A14: Escalation Rate = | C14: =+'Gas Input Table Summary'!$D$10 -> 0.035 | J14: =$C$47-$C$45 -> 3 | L14: =$C$47 -> 2017 | M14: =ROUND(IF($C$47+$F$23>L14,F25*F30,0),0) -> 1418 | N14: =ROUND($C$17*(1),3) -> 2.571 | O14: =ROUND(M14*N14,0) -> 3646 | P14: =ROUND($C$25*(1+$C$26)^J14,3) -> 0 | Q14: =ROUND(M14*P14,0) -> 0 | R14: =O14+Q14 -> 3646 | S14: =ROUND(M14*$C$23,1) -> 14.2 | T14: =ROUND($C$20*(1),0) -> 142 | U14: =ROUND(S14*T14,0) -> 2016 | V14: =ROUND(+U14+R14,0) -> 5662 | W14: =ROUND($F$36*(1+$C$11)^J14,3) -> 2.097 | X14: =ROUND((1-$F$38)*(W14*M14),0) -> 1933 | Y14: =ROUND($F$11,0) -> 3366 | Z14: =ROUND($F$12,0) -> 57600 | AA14: =SUM(X14:Z14) -> 62899 | AB14: =V14-AA14 -> -57237 | AD14: =$C$47 -> 2017 | AE14: =+R14 -> 3646 | AF14: =+U14 -> 2016 | AG14: =+AF14+AE14 -> 5662 | AI14: =ROUND(Y14,0) -> 3366 | AJ14: =ROUND(Z14,0) -> 57600 | AK14: =SUM(AI14:AJ14) -> 60966 | AM14: =+AG14-AK14 -> -55304 | AP14: =$C$47 -> 2017 | AQ14: =AE14 -> 3646 | AR14: =+AF14 -> 2016 | AS14: =ROUND(($C$28/(1-$C$31))*(1+$C$29)^J14,3) -> 0.025 | AT14: =ROUND(IF($C$47+$F$23>$AP14,$F$30*$F$27,0)*AS14,0) -> 3514 | AU14: =ROUND($C$33*(1+$C$34)^J14,3) -> 0.375 | AV14: =ROUND(AU14*M14,0) -> 532 | AY14: =ROUND(AQ14+AR14+AT14+AV14+AX14,0) -> 9708 | BA14: =ROUND($F$13,0) -> 60966 | BB14: =ROUND((F15*F30)-Z14,0) -> 384 | BC14: =BA14+BB14 -> 61350 | BD14: =AY14-BC14 -> -51642 | BG14: =$C$47 -> 2017 | BH14: =+F12 -> 57600 | BI14: =+M14 -> 1418 | BJ14: =ROUND($C$10*(1+$C$11)^J14,3) -> 6.885 | BK14: =ROUND(BI14*BJ14,0) -> 9763 | BL14: =ROUND($C$13*(1+$C$14)^J14,3) -> 0.15 | BM14: =ROUND(IF($C$47+$F$23>$BG14,$F$30*$F$27,0)*BL14,0) -> 21082 | BO14: =BH14+BK14+BM14+BN14 -> 88445 | BQ14: =ROUND(F15*F30,0) -> 57984 | BS14: =BO14-BQ14 -> 30461 | BV14: =$C$47 -> 2017 | BW14: =$R14 -> 3646 | BX14: =U14 -> 2016 | BY14: =AT14 -> 3514 | BZ14: =SUM(BW14:BY14) -> 9176 | CB14: =BA14 -> 60966 | CC14: =BB14 -> 384 | CD14: =SUM(CB14:CC14) -> 61350 | CF14: =BZ14-CD14 -> -52174
A15: Non-Gas Fuel Units (ie. kWh,Gallons, etc) = | C15: =+'Gas Input Table Summary'!$D$11 -> Kwh | E15: 17) Direct Participant Costs ($/Part.) = | F15: =ROUND('Database Inputs'!K10,0) -> 302 | J15: =J14+1 -> 4 | L15: =L14+1 -> 2018 | M15: =ROUND(IF($C$47+$F$23>L15,$F$25*$F$30,0)+IF($C$48+$G$23>L15,$G$25*$G$30,0),0) -> 1418 | N15: =ROUND($C$17*(1+$C$18)^J14,3) -> 2.851 | O15: 4043 | P15: 0 | Q15: =ROUND(M15*P15,0) -> 0 | R15: 4043 | S15: =ROUND(M15*$C$23,1) -> 14.2 | T15: =ROUND($C$20*(1+$C$21)^J14,0) -> 146 | U15: =ROUND(S15*T15,0) -> 2073 | V15: =ROUND(+U15+R15,0) -> 6116 | W15: 2.17 | X15: 2000 | Y15: =ROUND($G$11,0) -> 0 | Z15: =ROUND($G$12,0) -> 0 | AA15: 2000 | AB15: 4116 | AD15: =AD14+1 -> 2018 | AE15: 4043 | AF15: 2073 | AG15: =+AF15+AE15 -> 6116 | AI15: 0 | AJ15: 0 | AK15: 0 | AM15: 6116 | AP15: =AP14+1 -> 2018 | AQ15: 4043 | AR15: 2073 | AS15: 0.026 | AT15: =ROUND((IF($C$47+$F$23>$AP15,$F$27*$F$30,0)+IF($C$48+$G$23>AP15,$G$27*$G$30,0))*AS15,0) -> 3654 | AU15: 0.383 | AV15: 543 | AY15: =ROUND(AQ15+AR15+AT15+AV15+AX15,0) -> 10313 | BA15: =ROUND($G$13,0) -> 0 | BB15: =ROUND(($G$15*$G$30)-$Z$15,0) -> 0 | BC15: =BA15+BB15 -> 0 | BD15: 10313 | BG15: =BG14+1 -> 2018 | BH15: =+G12 -> 0 | BI15: 1418 | BJ15: 7.126 | BK15: =ROUND(BI15*BJ15,0) -> 10105 | BL15: 0.155 | BM15: =ROUND((IF($C$47+$F$23>BG15,$F$27*$F$30,0)+IF($C$48+$G$23>BG15,$G$27*$G$30,0))*BL15,0) -> 21784 | BO15: 31889 | BQ15: =ROUND($G$15*$G$30,0) -> 0 | BS15: =BO15-BQ15 -> 31889 | BV15: =BV14+1 -> 2018 | BW15: 4043 | BX15: 2073 | BY15: =AT15 -> 3654 | BZ15: =SUM(BW15:BY15) -> 9770 | CB15: =BA15 -> 0 | CC15: 0 | CD15: =SUM(CB15:CC15) -> 0 | CF15: =BZ15-CD15 -> 9770
J16: 5 | L16: 2019 | M16: =ROUND(IF($C$47+$F$23>L16,$F$25*$F$30,0)+IF($C$48+$G$23>L16,$G$25*$G$30,0)+IF($C$49+$H$23>L16,$H$25*$H$30,0),0) -> 1418 | N16: =ROUND($C$17*(1+$C$18)^J15,3) -> 2.95 | O16: 4183 | P16: 0 | Q16: 0 | R16: 4183 | S16: 14.2 | T16: =ROUND($C$20*(1+$C$21)^J15,0) -> 148 | U16: =ROUND(S16*T16,0) -> 2102 | V16: 6285 | W16: 2.246 | X16: 2070 | Y16: =ROUND($H$11,0) -> 0 | Z16: =ROUND($H$12,0) -> 0 | AA16: 2070 | AB16: 4215 | AD16: 2019 | AE16: 4183 | AF16: 2102 | AG16: =+AF16+AE16 -> 6285 | AI16: 0 | AJ16: 0 | AK16: 0 | AM16: 6285 | AP16: 2019 | AQ16: 4183 | AR16: 2102 | AS16: 0.027 | AT16: =ROUND((IF($C$47+$F$23>$AP16,$F$27*$F$30,0)+IF($C$48+$G$23>AP16,$G$27*$G$30,0)+IF($C$49+$H$23>AP16,$H$27*$H$30,0))*AS16,0) -> 3795 | AU16: 0.392 | AV16: 556 | AY16: 10636 | BA16: =ROUND($H$13,0) -> 0 | BB16: =ROUND(($H$15*$H$30)-$Z$16,0) -> 0 | BC16: 0 | BD16: 10636 | BG16: 2019 | BH16: =ROUND(H12,0) -> 0 | BI16: 1418 | BJ16: 7.376 | BK16: =ROUND(BI16*BJ16,0) -> 10459 | BL16: 0.161 | BM16: =ROUND((IF($C$47+$F$23>BG16,$F$27*$F$30,0)+IF($C$49+$H$23>BG16,$H$27*$H$30,0)+IF($C$48+$G$23>BG16,$G$27*$G$30,0))*BL16,0) -> 22628 | BO16: 33087 | BQ16: =ROUND($H$15*$H$30,0) -> 0 | BS16: 33087 | BV16: 2019 | BW16: 4183 | BX16: 2102 | BY16: 3795 | BZ16: 10080 | CB16: 0 | CC16: 0 | CD16: 0 | CF16: =BZ16-CD16 -> 10080
A17: 3) Commodity Cost ($/Dk) = | C17: =+'Gas Input Table Summary'!$D$12 -> 2.571 | E17: 18) Participant Non-Energy Costs (Annual $/Part.) = | F17: =+'Gas Input Table Summary'!$D$35 -> 0 | J17: 6 | L17: 2020 | M17: =ROUND(IF($C$47+$F$23>L17,$F$25*$F$30,0)+IF($C$48+$G$23>L17,$G$25*$G$30,0)+IF($C$49+$H$23>L17,$H$25*$H$30,0),0) -> 1418 | N17: 3.054 | O17: 4331 | P17: 0 | Q17: 0 | R17: 4331 | S17: 14.2 | T17: 149 | U17: 2116 | V17: 6447 | W17: 2.325 | X17: 2143 | Y17: 0 | Z17: 0 | AA17: 2143 | AB17: 4304 | AD17: 2020 | AE17: 4331 | AF17: 2116 | AG17: 6447 | AI17: 0 | AJ17: 0 | AK17: 0 | AM17: 6447 | AP17: 2020 | AQ17: 4331 | AR17: 2116 | AS17: 0.028 | AT17: 3935 | AU17: 0.401 | AV17: 569 | AY17: 10951 | BA17: 0 | BB17: 0 | BC17: 0 | BD17: 10951 | BG17: 2020 | BH17: 0 | BI17: 1418 | BJ17: 7.634 | BK17: 10825 | BL17: 0.167 | BM17: =ROUND((IF($C$47+$F$23>BG17,$F$27*$F$30,0)+IF($C$49+$H$23>BG17,$H$27*$H$30,0)+IF($C$48+$G$23>BG17,$G$27*$G$30,0))*BL17,0) -> 23471 | BO17: 34296 | BQ17: =+BB17 -> 0 | BS17: 34296 | BV17: 2020 | BW17: 4331 | BX17: 2116 | BY17: 3935 | BZ17: 10382 | CB17: 0 | CC17: 0 | CD17: 0 | CF17: 10382
A18: Escalation Rate = | C18: =+'Gas Input Table Summary'!$D$13 -> 0.035 | E18: Escalation Rate = | F18: =+'Gas Input Table Summary'!$D$38 -> 0 | J18: 7 | L18: 2021 | M18: 1418 | N18: 3.16 | O18: 4481 | P18: 0 | Q18: 0 | R18: 4481 | S18: 14.2 | T18: 151 | U18: 2144 | V18: 6625 | W18: 2.406 | X18: 2218 | Y18: 0 | Z18: 0 | AA18: 2218 | AB18: 4407 | AD18: 2021 | AE18: 4481 | AF18: 2144 | AG18: 6625 | AI18: 0 | AJ18: 0 | AK18: 0 | AM18: 6625 | AP18: 2021 | AQ18: 4481 | AR18: 2144 | AS18: 0.029 | AT18: 4076 | AU18: 0.41 | AV18: 581 | AY18: 11282 | BA18: 0 | BB18: 0 | BC18: 0 | BD18: 11282 | BG18: 2021 | BH18: 0 | BI18: 1418 | BJ18: 7.901 | BK18: 11204 | BL18: 0.172 | BM18: 24174 | BO18: 35378 | BQ18: 0 | BS18: 35378 | BV18: 2021 | BW18: 4481 | BX18: 2144 | BY18: 4076 | BZ18: 10701 | CB18: 0 | CC18: 0 | CD18: 0 | CF18: 10701 | DA18: t
J19: 8 | L19: 2022 | M19: 1418 | N19: 3.271 | O19: 4638 | P19: 0 | Q19: 0 | R19: 4638 | S19: 14.2 | T19: 152 | U19: 2158 | V19: 6796 | W19: 2.49 | X19: 2295 | Y19: 0 | Z19: 0 | AA19: 2295 | AB19: 4501 | AD19: 2022 | AE19: 4638 | AF19: 2158 | AG19: 6796 | AI19: 0 | AJ19: 0 | AK19: 0 | AM19: 6796 | AP19: 2022 | AQ19: 4638 | AR19: 2158 | AS19: 0.03 | AT19: 4216 | AU19: 0.42 | AV19: 596 | AY19: 11608 | BA19: 0 | BB19: 0 | BC19: 0 | BD19: 11608 | BG19: 2022 | BH19: 0 | BI19: 1418 | BJ19: 8.177 | BK19: 11595 | BL19: 0.178 | BM19: 25017 | BO19: 36612 | BQ19: 0 | BS19: 36612 | BV19: 2022 | BW19: 4638 | BX19: 2158 | BY19: 4216 | BZ19: 11012 | CB19: 0 | CC19: 0 | CD19: 0 | CF19: 11012
A20: 4) Demand Cost ($/Unit/Yr) = | C20: =+'Gas Input Table Summary'!$D$14 -> 141.95 | E20: 19) Participant Non-Energy Savings (Annual $/Part) = | F20: =+'Gas Input Table Summary'!$D$41 -> 0 | J20: 9 | L20: 2023 | M20: 1418 | N20: 3.386 | O20: 4801 | P20: 0 | Q20: 0 | R20: 4801 | S20: 14.2 | T20: 154 | U20: 2187 | V20: 6988 | W20: 2.577 | X20: 2375 | Y20: 0 | Z20: 0 | AA20: 2375 | AB20: 4613 | AD20: 2023 | AE20: 4801 | AF20: 2187 | AG20: 6988 | AI20: 0 | AJ20: 0 | AK20: 0 | AM20: 6988 | AP20: 2023 | AQ20: 4801 | AR20: 2187 | AS20: 0.031 | AT20: 4357 | AU20: 0.429 | AV20: 608 | AY20: 11953 | BA20: 0 | BB20: 0 | BC20: 0 | BD20: 11953 | BG20: 2023 | BH20: 0 | BI20: 1418 | BJ20: 8.464 | BK20: 12002 | BL20: 0.185 | BM20: 26001 | BO20: 38003 | BQ20: 0 | BS20: 38003 | BV20: 2023 | BW20: 4801 | BX20: 2187 | BY20: 4357 | BZ20: 11345 | CB20: 0 | CC20: 0 | CD20: 0 | CF20: 11345
A21: Escalation Rate = | C21: =+'Gas Input Table Summary'!$D$15 -> 0.01 | E21: Escalation Rate = | F21: =+'Gas Input Table Summary'!$D$44 -> 0 | J21: 10 | L21: 2024 | M21: 1418 | N21: 3.504 | O21: 4969 | P21: 0 | Q21: 0 | R21: 4969 | S21: 14.2 | T21: 155 | U21: 2201 | V21: 7170 | W21: 2.667 | X21: 2458 | Y21: 0 | Z21: 0 | AA21: 2458 | AB21: 4712 | AD21: 2024 | AE21: 4969 | AF21: 2201 | AG21: 7170 | AI21: 0 | AJ21: 0 | AK21: 0 | AM21: 7170 | AP21: 2024 | AQ21: 4969 | AR21: 2201 | AS21: 0.032 | AT21: 4497 | AU21: 0.439 | AV21: 623 | AY21: 12290 | BA21: 0 | BB21: 0 | BC21: 0 | BD21: 12290 | BG21: 2024 | BH21: 0 | BI21: 1418 | BJ21: 8.76 | BK21: 12422 | BL21: 0.191 | BM21: 26844 | BO21: 39266 | BQ21: 0 | BS21: 39266 | BV21: 2024 | BW21: 4969 | BX21: 2201 | BY21: 4497 | BZ21: 11667 | CB21: 0 | CC21: 0 | CD21: 0 | CF21: 11667 | DA21: =$J14 -> 3
J22: 11 | L22: 2025 | M22: 1418 | N22: 3.627 | O22: 5143 | P22: 0 | Q22: 0 | R22: 5143 | S22: 14.2 | T22: 157 | U22: 2229 | V22: 7372 | W22: 2.761 | X22: 2545 | Y22: 0 | Z22: 0 | AA22: 2545 | AB22: 4827 | AD22: 2025 | AE22: 5143 | AF22: 2229 | AG22: 7372 | AI22: 0 | AJ22: 0 | AK22: 0 | AM22: 7372 | AP22: 2025 | AQ22: 5143 | AR22: 2229 | AS22: 0.033 | AT22: 4638 | AU22: 0.449 | AV22: 637 | AY22: 12647 | BA22: 0 | BB22: 0 | BC22: 0 | BD22: 12647 | BG22: 2025 | BH22: 0 | BI22: 1418 | BJ22: 9.066 | BK22: 12856 | BL22: 0.198 | BM22: 27828 | BO22: 40684 | BQ22: 0 | BS22: 40684 | BV22: 2025 | BW22: 5143 | BX22: 2229 | BY22: 4638 | BZ22: 12010 | CB22: 0 | CC22: 0 | CD22: 0 | CF22: 12010 | DA22: =$J15 -> 4
A23: 5) Peak Reduction Factor = | C23: =+'Gas Input Table Summary'!$D$16 -> 0.01 | E23: 20) Project Life (Years) = | F23: =ROUND('Database Inputs'!D10,0) -> 20 | J23: 12 | L23: 2026 | M23: 1418 | N23: 3.754 | O23: 5323 | P23: 0 | Q23: 0 | R23: 5323 | S23: 14.2 | T23: 158 | U23: 2244 | V23: 7567 | W23: 2.857 | X23: 2633 | Y23: 0 | Z23: 0 | AA23: 2633 | AB23: 4934 | AD23: 2026 | AE23: 5323 | AF23: 2244 | AG23: 7567 | AI23: 0 | AJ23: 0 | AK23: 0 | AM23: 7567 | AP23: 2026 | AQ23: 5323 | AR23: 2244 | AS23: 0.035 | AT23: 4919 | AU23: 0.46 | AV23: 652 | AY23: 13138 | BA23: 0 | BB23: 0 | BC23: 0 | BD23: 13138 | BG23: 2026 | BH23: 0 | BI23: 1418 | BJ23: 9.384 | BK23: 13307 | BL23: 0.205 | BM23: 28812 | BO23: 42119 | BQ23: 0 | BS23: 42119 | BV23: 2026 | BW23: 5323 | BX23: 2244 | BY23: 4919 | BZ23: 12486 | CB23: 0 | CC23: 0 | CD23: 0 | CF23: 12486 | DA23: =$J16 -> 5
J24: 13 | L24: 2027 | M24: 1418 | N24: 3.885 | O24: 5509 | P24: 0 | Q24: 0 | R24: 5509 | S24: 14.2 | T24: 160 | U24: 2272 | V24: 7781 | W24: 2.957 | X24: 2725 | Y24: 0 | Z24: 0 | AA24: 2725 | AB24: 5056 | AD24: 2027 | AE24: 5509 | AF24: 2272 | AG24: 7781 | AI24: 0 | AJ24: 0 | AK24: 0 | AM24: 7781 | AP24: 2027 | AQ24: 5509 | AR24: 2272 | AS24: 0.036 | AT24: 5060 | AU24: 0.47 | AV24: 666 | AY24: 13507 | BA24: 0 | BB24: 0 | BC24: 0 | BD24: 13507 | BG24: 2027 | BH24: 0 | BI24: 1418 | BJ24: 9.712 | BK24: 13772 | BL24: 0.212 | BM24: 29795 | BO24: 43567 | BQ24: 0 | BS24: 43567 | BV24: 2027 | BW24: 5509 | BX24: 2272 | BY24: 5060 | BZ24: 12841 | CB24: 0 | CC24: 0 | CD24: 0 | CF24: 12841 | DA24: =$J17 -> 6
A25: 6) Variable O&M ($/Dk) = | C25: =+'Gas Input Table Summary'!$D$17 -> 0 | E25: 21) Avg. Dk/Part. Saved = | F25: =+ROUND(F32/F30,3) -> 7.385 | J25: 14 | L25: 2028 | M25: 1418 | N25: 4.021 | O25: 5702 | P25: 0 | Q25: 0 | R25: 5702 | S25: 14.2 | T25: 162 | U25: 2300 | V25: 8002 | W25: 3.061 | X25: 2821 | Y25: 0 | Z25: 0 | AA25: 2821 | AB25: 5181 | AD25: 2028 | AE25: 5702 | AF25: 2300 | AG25: 8002 | AI25: 0 | AJ25: 0 | AK25: 0 | AM25: 8002 | AP25: 2028 | AQ25: 5702 | AR25: 2300 | AS25: 0.037 | AT25: 5200 | AU25: 0.481 | AV25: 682 | AY25: 13884 | BA25: 0 | BB25: 0 | BC25: 0 | BD25: 13884 | BG25: 2028 | BH25: 0 | BI25: 1418 | BJ25: 10.052 | BK25: 14254 | BL25: 0.219 | BM25: 30779 | BO25: 45033 | BQ25: 0 | BS25: 45033 | BV25: 2028 | BW25: 5702 | BX25: 2300 | BY25: 5200 | BZ25: 13202 | CB25: 0 | CC25: 0 | CD25: 0 | CF25: 13202
A26: Escalation Rate = | C26: =+'Gas Input Table Summary'!$D$18 -> 0 | J26: 15 | L26: 2029 | M26: 1418 | N26: 4.162 | O26: 5902 | P26: 0 | Q26: 0 | R26: 5902 | S26: 14.2 | T26: 163 | U26: 2315 | V26: 8217 | W26: 3.168 | X26: 2920 | Y26: 0 | Z26: 0 | AA26: 2920 | AB26: 5297 | AD26: 2029 | AE26: 5902 | AF26: 2315 | AG26: 8217 | AI26: 0 | AJ26: 0 | AK26: 0 | AM26: 8217 | AP26: 2029 | AQ26: 5902 | AR26: 2315 | AS26: 0.038 | AT26: 5341 | AU26: 0.492 | AV26: 698 | AY26: 14256 | BA26: 0 | BB26: 0 | BC26: 0 | BD26: 14256 | BG26: 2029 | BH26: 0 | BI26: 1418 | BJ26: 10.404 | BK26: 14753 | BL26: 0.227 | BM26: 31903 | BO26: 46656 | BQ26: 0 | BS26: 46656 | BV26: 2029 | BW26: 5902 | BX26: 2315 | BY26: 5341 | BZ26: 13558 | CB26: 0 | CC26: 0 | CD26: 0 | CF26: 13558
E27: 22) Avg Non-Gas Fuel Units/Part. Saved = | F27: =+'Database Inputs'!H10 -> 732 | J27: 16 | L27: 2030 | M27: 1418 | N27: 4.307 | O27: 6107 | P27: 0 | Q27: 0 | R27: 6107 | S27: 14.2 | T27: 165 | U27: 2343 | V27: 8450 | W27: 3.279 | X27: 3022 | Y27: 0 | Z27: 0 | AA27: 3022 | AB27: 5428 | AD27: 2030 | AE27: 6107 | AF27: 2343 | AG27: 8450 | AI27: 0 | AJ27: 0 | AK27: 0 | AM27: 8450 | AP27: 2030 | AQ27: 6107 | AR27: 2343 | AS27: 0.04 | AT27: 5622 | AU27: 0.504 | AV27: 715 | AY27: 14787 | BA27: 0 | BB27: 0 | BC27: 0 | BD27: 14787 | BG27: 2030 | BH27: 0 | BI27: 1418 | BJ27: 10.768 | BK27: 15269 | BL27: 0.235 | BM27: 33028 | BO27: 48297 | BQ27: 0 | BS27: 48297 | BV27: 2030 | BW27: 6107 | BX27: 2343 | BY27: 5622 | BZ27: 14072 | CB27: 0 | CC27: 0 | CD27: 0 | CF27: 14072
A28: 7) Non-Gas Fuel Cost ($/Fuel Unit) = | C28: =+'Gas Input Table Summary'!$D$19 -> 0.02174 | E28: 22a) Avg Additional Non-Gas Fuel Units/ Part. Used = | F28: 0 | J28: 17 | L28: 2031 | M28: 1418 | N28: 4.458 | O28: 6321 | P28: 0 | Q28: 0 | R28: 6321 | S28: 14.2 | T28: 166 | U28: 2357 | V28: 8678 | W28: 3.394 | X28: 3128 | Y28: 0 | Z28: 0 | AA28: 3128 | AB28: 5550 | AD28: 2031 | AE28: 6321 | AF28: 2357 | AG28: 8678 | AI28: 0 | AJ28: 0 | AK28: 0 | AM28: 8678 | AP28: 2031 | AQ28: 6321 | AR28: 2357 | AS28: 0.041 | AT28: 5762 | AU28: 0.515 | AV28: 730 | AY28: 15170 | BA28: 0 | BB28: 0 | BC28: 0 | BD28: 15170 | BG28: 2031 | BH28: 0 | BI28: 1418 | BJ28: 11.145 | BK28: 15804 | BL28: 0.243 | BM28: 34152 | BO28: 49956 | BQ28: 0 | BS28: 49956 | BV28: 2031 | BW28: 6321 | BX28: 2357 | BY28: 5762 | BZ28: 14440 | CB28: 0 | CC28: 0 | CD28: 0 | CF28: 14440
A29: Escalation Rate = | C29: =+'Gas Input Table Summary'!$D$20 -> 0.035 | J29: 18 | L29: 2032 | M29: 1418 | N29: 4.614 | O29: 6543 | P29: 0 | Q29: 0 | R29: 6543 | S29: 14.2 | T29: 168 | U29: 2386 | V29: 8929 | W29: 3.513 | X29: 3238 | Y29: 0 | Z29: 0 | AA29: 3238 | AB29: 5691 | AD29: 2032 | AE29: 6543 | AF29: 2386 | AG29: 8929 | AI29: 0 | AJ29: 0 | AK29: 0 | AM29: 8929 | AP29: 2032 | AQ29: 6543 | AR29: 2386 | AS29: 0.043 | AT29: 6043 | AU29: 0.527 | AV29: 747 | AY29: 15719 | BA29: 0 | BB29: 0 | BC29: 0 | BD29: 15719 | BG29: 2032 | BH29: 0 | BI29: 1418 | BJ29: 11.535 | BK29: 16357 | BL29: 0.252 | BM29: 35417 | BO29: 51774 | BQ29: 0 | BS29: 51774 | BV29: 2032 | BW29: 6543 | BX29: 2386 | BY29: 6043 | BZ29: 14972 | CB29: 0 | CC29: 0 | CD29: 0 | CF29: 14972
E30: 23) Number of Participants = | F30: =+'Total Program Inputs'!C10 -> 192 | J30: 19 | L30: 2033 | M30: 1418 | N30: 4.776 | O30: 6772 | P30: 0 | Q30: 0 | R30: 6772 | S30: 14.2 | T30: 170 | U30: 2414 | V30: 9186 | W30: 3.635 | X30: 3350 | Y30: 0 | Z30: 0 | AA30: 3350 | AB30: 5836 | AD30: 2033 | AE30: 6772 | AF30: 2414 | AG30: 9186 | AI30: 0 | AJ30: 0 | AK30: 0 | AM30: 9186 | AP30: 2033 | AQ30: 6772 | AR30: 2414 | AS30: 0.044 | AT30: 6184 | AU30: 0.539 | AV30: 764 | AY30: 16134 | BA30: 0 | BB30: 0 | BC30: 0 | BD30: 16134 | BG30: 2033 | BH30: 0 | BI30: 1418 | BJ30: 11.939 | BK30: 16930 | BL30: 0.26 | BM30: 36541 | BO30: 53471 | BQ30: 0 | BS30: 53471 | BV30: 2033 | BW30: 6772 | BX30: 2414 | BY30: 6184 | BZ30: 15370 | CB30: 0 | CC30: 0 | CD30: 0 | CF30: 15370 | DA30: =$J18 -> 7
A31: 8) Non-Gas Fuel Loss Factor | C31: =+'Gas Input Table Summary'!$D$21 -> 0.051 | J31: 20 | L31: 2034 | M31: 1418 | N31: 4.943 | O31: 7009 | P31: 0 | Q31: 0 | R31: 7009 | S31: 14.2 | T31: 171 | U31: 2428 | V31: 9437 | W31: 3.763 | X31: 3468 | Y31: 0 | Z31: 0 | AA31: 3468 | AB31: 5969 | AD31: 2034 | AE31: 7009 | AF31: 2428 | AG31: 9437 | AI31: 0 | AJ31: 0 | AK31: 0 | AM31: 9437 | AP31: 2034 | AQ31: 7009 | AR31: 2428 | AS31: 0.046 | AT31: 6465 | AU31: 0.552 | AV31: 783 | AY31: 16685 | BA31: 0 | BB31: 0 | BC31: 0 | BD31: 16685 | BG31: 2034 | BH31: 0 | BI31: 1418 | BJ31: 12.357 | BK31: 17522 | BL31: 0.27 | BM31: 37947 | BO31: 55469 | BQ31: 0 | BS31: 55469 | BV31: 2034 | BW31: 7009 | BX31: 2428 | BY31: 6465 | BZ31: 15902 | CB31: 0 | CC31: 0 | CD31: 0 | CF31: 15902 | DA31: =$J19 -> 8
E32: 24) Total Annual Dk Saved = | F32: =+'Total Program Inputs'!E10 -> 1418 | J32: 21 | L32: 2035 | M32: 1418 | N32: 5.116 | O32: 7254 | P32: 0 | Q32: 0 | R32: 7254 | S32: 14.2 | T32: 173 | U32: 2457 | V32: 9711 | W32: 3.894 | X32: 3589 | Y32: 0 | Z32: 0 | AA32: 3589 | AB32: 6122 | AD32: 2035 | AE32: 7254 | AF32: 2457 | AG32: 9711 | AI32: 0 | AJ32: 0 | AK32: 0 | AM32: 9711 | AP32: 2035 | AQ32: 7254 | AR32: 2457 | AS32: 0.047 | AT32: 6606 | AU32: 0.564 | AV32: 800 | AY32: 17117 | BA32: 0 | BB32: 0 | BC32: 0 | BD32: 17117 | BG32: 2035 | BH32: 0 | BI32: 1418 | BJ32: 12.789 | BK32: 18135 | BL32: 0.279 | BM32: 39212 | BO32: 57347 | BQ32: 0 | BS32: 57347 | BV32: 2035 | BW32: 7254 | BX32: 2457 | BY32: 6606 | BZ32: 16317 | CB32: 0 | CC32: 0 | CD32: 0 | CF32: 16317 | DA32: =$J20 -> 9
A33: 9) Gas Environmental Damage Factor = | C33: =+'Gas Input Table Summary'!$D$22 -> 0.35 | J33: 22 | L33: 2036 | M33: 1418 | N33: 5.295 | O33: 7508 | P33: 0 | Q33: 0 | R33: 7508 | S33: 14.2 | T33: 175 | U33: 2485 | V33: 9993 | W33: 4.031 | X33: 3715 | Y33: 0 | Z33: 0 | AA33: 3715 | AB33: 6278 | AD33: 2036 | AE33: 7508 | AF33: 2485 | AG33: 9993 | AI33: 0 | AJ33: 0 | AK33: 0 | AM33: 9993 | AP33: 2036 | AQ33: 7508 | AR33: 2485 | AS33: 0.049 | AT33: 6887 | AU33: 0.577 | AV33: 818 | AY33: 17698 | BA33: 0 | BB33: 0 | BC33: 0 | BD33: 17698 | BG33: 2036 | BH33: 0 | BI33: 1418 | BJ33: 13.237 | BK33: 18770 | BL33: 0.289 | BM33: 40617 | BO33: 59387 | BQ33: 0 | BS33: 59387 | BV33: 2036 | BW33: 7508 | BX33: 2485 | BY33: 6887 | BZ33: 16880 | CB33: 0 | CC33: 0 | CD33: 0 | CF33: 16880
A34: Escalation Rate = | C34: =+'Gas Input Table Summary'!$D$23 -> 0.023 | E34: 25) Incentive/Participant = | F34: =+ROUND(F12/F30,0) -> 300 | J34: 23 | L34: 2037 | M34: 0 | N34: 5.48 | O34: 0 | P34: 0 | Q34: 0 | R34: 0 | S34: 0 | T34: 177 | U34: 0 | V34: 0 | W34: 4.172 | X34: 0 | Y34: 0 | Z34: 0 | AA34: 0 | AB34: 0 | AD34: 2037 | AE34: 0 | AF34: 0 | AG34: 0 | AI34: 0 | AJ34: 0 | AK34: 0 | AM34: 0 | AP34: 2037 | AQ34: 0 | AR34: 0 | AS34: 0.051 | AT34: 0 | AU34: 0.59 | AV34: 0 | AY34: 0 | BA34: 0 | BB34: 0 | BC34: 0 | BD34: 0 | BG34: 2037 | BH34: 0 | BI34: 0 | BJ34: 13.7 | BK34: 0 | BL34: 0.299 | BM34: 0 | BO34: 0 | BQ34: 0 | BS34: 0 | BV34: 2037 | BW34: 0 | BX34: 0 | BY34: 0 | BZ34: 0 | CB34: 0 | CC34: 0 | CD34: 0 | CF34: 0
DA35: =$J21 -> 10
A36: 10) Non Gas Fuel Environmental Damage Factor = | C36: =+'Gas Input Table Summary'!$D$24 -> 0 | E36: 26) Distribution Delivery Charge | F36: =+'Gas Input Table Summary'!$D$58 -> 1.891 | K36: Total = | M36: =SUM(M14:M34) -> 28360 | V36: =SUM(V14:V34) -> 155412 | AA36: =SUM(AA14:AA34) -> 115612 | AB36: =SUM(AB14:AB34) -> 39800 | AC36: Total = | AG36: =SUM(AG14:AG34) -> 155412 | AK36: =SUM(AK14:AK34) -> 60966 | AM36: =SUM(AM14:AM34) -> 94446 | AO36: Total = | AY36: =SUM(AY14:AY34) -> 269483 | BC36: =SUM(BC14:BC34) -> 61350 | BD36: =SUM(BD14:BD34) -> 208133 | BF36: Total = | BI36: =SUM(BI14:BI34) -> 28360 | BO36: =SUM(BO14:BO34) -> 930736 | BQ36: =SUM(BQ14:BQ34) -> 57984 | BS36: =SUM(BS14:BS34) -> 872752 | BY36: Total = | BZ36: =SUM(BZ14:BZ34) -> 256183 | CD36: =SUM(CD14:CD34) -> 61350 | CF36: =SUM(CF14:CF34) -> 194833
A37: Escalation Rate = | C37: =+'Gas Input Table Summary'!$D$25 -> 0 | T37: NPV = | V37: =ROUND(V14+NPV($C$41,V15:V34),0) -> 81455 | AA37: =ROUND(AA14+NPV($C$41,AA15:AA34),0) -> 89185 | AB37: =ROUND(AB14+NPV($C$41,AB15:AB34),0) -> -7730 | AF37: NPV = | AG37: =ROUND(AG14+NPV($C$41,AG15:AG34),0) -> 81455 | AK37: =ROUND(AK14+NPV($C$41,AK15:AK34),0) -> 60966 | AM37: =+AG37-AK37 -> 20489 | AV37: NPV = | AY37: =ROUND(AY14+NPV($C$43,AY15:AY34),0) -> 190427 | BC37: =ROUND(BC14+NPV($C$43,BC15:BC34),0) -> 61350 | BD37: =AY37-BC37 -> 129077 | BM37: NPV = | BO37: =ROUND(BO14+NPV($C$39,BO15:BO34),0) -> 425509 | BQ37: =ROUND(BQ14+NPV($C$39,BQ15:BQ34),0) -> 57984 | BS37: =ROUND(BS14+NPV($C$39,BS15:BS34),0) -> 367525 | BY37: NPV = | BZ37: =ROUND(BZ14+NPV($C$41,BZ15:BZ34),0) -> 133390 | CD37: =ROUND(CD14+NPV($C$41,CD15:CD34),0) -> 61350 | CF37: =ROUND(CF14+NPV($C$41,CF15:CF34),0) -> 72040 | DA37: =$J22 -> 11
E38: 27) Effective Income Tax Rate = | F38: =+'Gas Input Table Summary'!$D$59 -> 0.35
A39: 11) Participant Discount Rate = | C39: =+'Gas Input Table Summary'!$D$26 -> 0.1 | E39: (Federal & State Taxes) | K39: Total NPV = | N39: =AB37 -> -7730 | AC39: Total NPV = | AF39: =AM37 -> 20489 | AO39: Total NPV = | AR39: =BD37 -> 129077 | BF39: Total NPV = | BI39: =BS37 -> 367525 | BU39: Total NPV = | BX39: =CF37 -> 72040
K40: Benefit/Cost Ratio = | N40: =ROUND(V37/AA37,2) -> 0.91 | AC40: Benefit/Cost Ratio = | AF40: =ROUND(AG37/AK37,2) -> 1.34 | AO40: Benefit/Cost Ratio = | AR40: =ROUND(AY37/BC37,2) -> 3.1 | BF40: Benefit/Cost Ratio = | BI40: =ROUND(BO37/BQ37,20) -> 7.338386451 | BU40: Benefit/Cost Ratio = | BX40: =ROUND(BZ37/CD37,2) -> 2.17 | DA40: =$J23 -> 12
A41: 12) Utility Discount Rate = | C41: =+'Gas Input Table Summary'!$D$27 -> 0.07216 | E41: Test Results | F41: NPV | G41: B/C | DA41: =$J24 -> 13
E42: Ratepayer Impact Measure Test | F42: =N39 -> -7730 | G42: =N40 -> 0.91 | DA42: =$J25 -> 14
A43: 13) Societal Discount Rate = | C43: =+'Gas Input Table Summary'!$D$28 -> 0.0356 | E43: Utility Cost Test | F43: =AF39 -> 20489 | G43: =AF40 -> 1.34 | J43: Worksheet Calculations | AC43: Worksheet Calculations | AO43: Worksheet Calculations | BF43: Worksheet Calculations | BU43: Worksheet Calculations | DA43: =$J26 -> 15
E44: Societal Test | F44: =AR39 -> 129077 | G44: =AR40 -> 3.1 | J44: (A) | K44: = Average Dk/Participant Saved (21) x Number of Participants (23) for Project Life (20) | T44: (I) | U44: = (G) x (H) | AC44: (A) | AD44: = Table 1 (F) | AO44: (A) | AP44: = Table 1 (F) | AV44: (H) | AY44: = Table 2 (F) | BF44: (A) | BG44: = Table 1 (N) | BU44: (A) | BV44: = Table 1 (F)
A45: 14) General Input Data Year = | C45: =+'Total Program'!C45 -> 2014 | E45: Participant Test | F45: =BI39 -> 367525 | G45: =BI40 -> 7.338386451 | J45: (B) | K45: = Commodity Cost (3) escalated | T45: (J) | U45: = (F) + (I) | AC45: (B) | AD45: = Table 1 (I) | AO45: (G) | AP45: = Table 1 (I) | AV45: (I) | AY45: = Direct Part. Costs (17) x No. of Part. (23) - Table 1 (N) | BF45: (B) | BG45: = Table 1 (A) | BU45: (B) | BV45: = Table 1 (I)
E46: Total Resource Cost Test | F46: =BX39 -> 72040 | G46: =BX40 -> 2.17 | J46: (C) | K46: = (A) x (B) | T46: (K) | U46: = Distribution Delivery Charge (26) escalated. | AC46: (C) | AD46: = Table 1 (J) | AO46: (C) | AP46: = Non-Gas Fuel Cost (7), adjusted for losses (8), escalated.. | AV46: (J) | AY46: = (H) + (I) | BF46: (C) | BG46: = Retail Rate (1) escalated. | BU46: (C) | BV46: = Table 3 (D)
A47: 15) Project Analysis Year 1 = | C47: 2017 | J47: (D) | K47: = Variable O&M Cost (6), escalated | T47: (L) | U47: = (A) x (K) x (1-Inverse of Tax Rate (27) | AC47: (D) | AD47: = Table 1 (M) | AO47: (D) | AP47: = (C) x [Avg. Non-Gas Fuel Units/Part.Saved (22) x No. of Part. (23) | AV47: (K) | AY47: = (G) - (J) | BF47: (D) | BG47: =(B) x (C) | BU47: (D) | BV47: = (A) + (B) + (C)
J48: (E) | K48: = (A) x (D) | T48: (M) | U48: = Admin & Operating Costs (16a) | AC48: (E) | AD48: = Table 1 (N) | AO48: (E) | AP48: = Gas Environmental Damage Factor (9), escalated | BF48: (E) | BG48: = Non-Gas Fuel Retail Rate (2), escalated. | BU48: (E) | BV48: = Table 3 (H)
J49: (F) | K49: = (C) + (E) | T49: (N) | U49: = Incentive Costs (16b) | AC49: (F) | AD49: = (D) + (E) | AO49: (F) | AP49: = Table 1 (A) x (E) | BF49: (F) | BG49: = (E) x [Avg. Non-Gas Fuel Units/Part.Saved (22) x No. of Part. (23) | BU49: (F) | BV49: = Table 3 (I) | DA49: =$J27 -> 16
J50: (G) | K50: = (A) x Peak Reduction Factor (5) | T50: (O) | U50: = (L) + (M) + (N) | AC50: (G) | AD50: = (C) - (F) | AO50: (G) | AP50: = (A) + (B) + (D) + (F) | BF50: (G) | BG50: = (A) + (D) + (F) | BU50: (G) | BV50: = (E) + (F) | DA50: =$J28 -> 17
J51: (H) | K51: = Demand Cost (4) escalated. | T51: (P) | U51: = (J) - (O) | BF51: (H) | BG51: = Direct Participant Costs (17) x Number of Participants (23) | BU51: (H) | BV51: = (D) - (G) | DA51: =$J29 -> 18
BF52: (I) | BG52: = (G) - (H)

Sheet Res .95+% Res Furnace - Replace
A1: NATURAL GAS CONSERVATION PROGRAMS/DEMAND-SIDE MANAGEMENT | K1: Table 1 | AD1: Table 2 | AP1: Table 3 | BG1: Table 4 | BV1: Table 5
A2: BEN/COST ANALYSIS FOR GAS CONSERVATION | K2: Ratepayer Impact Measure Test | AD2: Utility Cost Test | AP2: Societal Test | BG2: Participant Test | BV2: Total Resource Cost Test
A4: Company: | B4: Montana-Dakota Utilities Co. | K4: Company: | M4: =B4 -> Montana-Dakota Utilities Co. | AD4: Company: | AF4: =B4 -> Montana-Dakota Utilities Co. | AP4: Company: | AR4: =AF4 -> Montana-Dakota Utilities Co. | BH4: Company: | BI4: =AR4 -> Montana-Dakota Utilities Co. | BW4: Company: | BX4: =BI4 -> Montana-Dakota Utilities Co.
A5: Project: | B5: Residential 95+% AFUE Furnace - Replacement | K5: Project: | M5: =$B$5 -> Residential 95+% AFUE Furnace - Replacement | AD5: Project: | AF5: =$B$5 -> Residential 95+% AFUE Furnace - Replacement | AP5: Project: | AR5: =$B$5 -> Residential 95+% AFUE Furnace - Replacement | BH5: Project: | BI5: =$B$5 -> Residential 95+% AFUE Furnace - Replacement | BW5: Project: | BX5: =$B$5 -> Residential 95+% AFUE Furnace - Replacement
A6: Program Years: | B6: =+'Res .95+% Res Furnace - NEW'!B6 -> 2017 Actual
N7: Benefits | X7: Costs | AF7: Benefits | AJ7: Costs | AR7: Benefits | BB7: Costs | BI7: Benefits | BR7: Costs | BX7: Benefits | CC7: Costs
A8: Input Data | F8: 2017 | AB8: Annual | AN8: Annual | AT8: Non-Gas | BE8: Annual | BT8: Annual | CG8: Annual
M9: Total | N9: Gas | O9: Gas | P9: Variable | Q9: Variable | R9: Total | S9: Peak Dk | T9: Demand | U9: Total | W9: Distribution | Y9: Program | AA9: Total | AB9: Benefits | AF9: Total | AG9: Total | AH9: Annual | AJ9: Program | AL9: Utility | AN9: Benefits | AR9: Total | AS9: Total | AT9: Energy | AU9: Non-Gas | AV9: Environmental | AW9: Environmental | AZ9: Annual | BB9: Utility | BC9: Participants' | BD9: Annual | BE9: Benefits | BJ9: Total | BL9: Gas | BM9: Non-Gas | BN9: Non-Gas | BP9: Total | BR9: Direct | BT9: Benefits | BX9: Total | BY9: Total | BZ9: Non-Gas | CA9: Total | CC9: Utility | CD9: Participants' | CG9: Benefits
A10: 1) Retail Rate ($/Dk) = | C10: =+'Gas Input Table Summary'!$D$7 -> 6.21 | E10: 16) Utility Project Costs | M10: Energy | N10: Commodity | O10: Commodity | P10: O & M | Q10: O & M | R10: Energy | S10: Demand | T10: Savings | U10: Demand | V10: Total | W10: Delivery | X10: Lost | Y10: Admin | Z10: Incentive | AA10: Program | AB10: Less | AF10: Energy | AG10: Demand | AH10: Total | AJ10: Admin | AK10: Incentive | AL10: Program | AN10: Less | AR10: Energy | AS10: Demand | AT10: Savings | AU10: Energy | AV10: Damage | AW10: Damage | AZ10: Total | BB10: Program | BC10: Costs Net | BD10: Total | BE10: Less | BI10: Incentives | BJ10: Energy | BK10: Retail | BL10: Bill | BM10: Fuel | BN10: Energy | BP10: Annual | BR10: Participant | BT10: Less | BX10: Energy | BY10: Demand | BZ10: Energy | CA10: Annual | CC10: Program | CD10: Costs Net | CE10: Total | CG10: Less
A11: Escalation Rate = | C11: =+'Gas Input Table Summary'!$D$8 -> 0.035 | E11: 16a) Administrative & Operating Costs = | F11: =+'Total Program Inputs'!K11 -> 4224 | J11: t | M11: Reduction | N11: Cost/Dk | O11: Savings | P11: Cost/Dk | Q11: Savings | R11: Savings | S11: Reduction | T11: Per Unit | U11: Savings | V11: Savings | W11: Charge | X11: Margin | Y11: Costs | Z11: Costs | AA11: Costs | AB11: Costs | AF11: Savings | AG11: Savings | AH11: Savings | AJ11: Costs | AK11: Costs | AL11: Costs | AN11: Costs | AR11: Savings | AS11: Savings | AT11: ($/Part.) | AU11: Savings | AV11: Savings/Dk | AW11: Savings | AZ11: Savings | BB11: Costs | BC11: of Rebate | BD11: Costs | BE11: Costs | BI11: Received | BJ11: Reduction | BK11: Rate | BL11: Savings | BM11: Retail Rate | BN11: Savings | BP11: Benefits | BR11: Costs | BT11: Costs | BX11: Savings | BY11: Savings | BZ11: Savings | CA11: Benefits | CC11: Costs | CD11: of Rebate | CE11: Costs | CG11: Costs
E12: 16b) Incentive Costs = | F12: =+'Total Program Inputs'!G11 -> 72300 | L12: Year | M12: (A) | N12: (B) | O12: (C) | P12: (D) | Q12: (E) | R12: (F) | S12: (G) | T12: (H) | U12: (I) | V12: (J) | W12: (K) | X12: (L) | Y12: (M) | Z12: (N) | AA12: (O) | AB12: (P) | AE12: Year | AF12: (A) | AG12: (B) | AH12: (C) | AJ12: (D) | AK12: (E) | AL12: (F) | AN12: (G) | AQ12: Year | AR12: (A) | AS12: (B) | AT12: (C) | AU12: (D) | AV12: (E) | AW12: (F) | AZ12: (G) | BB12: (H) | BC12: (I) | BD12: (J) | BE12: (K) | BH12: Year | BI12: (A) | BJ12: (B) | BK12: (C) | BL12: (D) | BM12: (E) | BN12: (F) | BP12: (G) | BR12: (H) | BT12: (I) | BW12: Year | BX12: (A) | BY12: (B) | BZ12: (C) | CA12: (D) | CC12: (E) | CD12: (F) | CE12: (G) | CG12: (H)
A13: 2) Non-Gas Fuel Retail Rate ($/Fuel Unit) = | C13: =+'Gas Input Table Summary'!$D$9 -> 0.13546 | E13: 16c) Total Utility Project Costs = | F13: =SUM(F11:F12) -> 76524
A14: Escalation Rate = | C14: =+'Gas Input Table Summary'!$D$10 -> 0.035 | J14: =$C$47-$C$45 -> 3 | L14: =$C$47 -> 2017 | M14: =ROUND(IF($C$47+$F$23>L14,F25*F30,0),0) -> 3170 | N14: =ROUND($C$17*(1),3) -> 2.571 | O14: =ROUND(M14*N14,0) -> 8150 | P14: =ROUND($C$25*(1+$C$26)^J14,3) -> 0 | Q14: =ROUND(M14*P14,0) -> 0 | R14: =O14+Q14 -> 8150 | S14: =ROUND(M14*$C$23,1) -> 31.7 | T14: =ROUND($C$20*(1),0) -> 142 | U14: =ROUND(S14*T14,0) -> 4501 | V14: =ROUND(+U14+R14,0) -> 12651 | W14: =ROUND($F$36*(1+$C$11)^J14,3) -> 2.097 | X14: =ROUND((1-$F$38)*(W14*M14),0) -> 4321 | Y14: =ROUND($F$11,0) -> 4224 | Z14: =ROUND($F$12,0) -> 72300 | AA14: =SUM(X14:Z14) -> 80845 | AB14: =V14-AA14 -> -68194 | AE14: =$C$47 -> 2017 | AF14: =+R14 -> 8150 | AG14: =+U14 -> 4501 | AH14: =+AG14+AF14 -> 12651 | AJ14: =ROUND(Y14,0) -> 4224 | AK14: =ROUND(Z14,0) -> 72300 | AL14: =SUM(AJ14:AK14) -> 76524 | AN14: =+AH14-AL14 -> -63873 | AQ14: =$C$47 -> 2017 | AR14: =AF14 -> 8150 | AS14: =+AG14 -> 4501 | AT14: =ROUND(($C$28/(1-$C$31))*(1+$C$29)^J14,3) -> 0.025 | AU14: =ROUND(IF($C$47+$F$23>$AQ14,$F$30*$F$27,0)*AT14,0) -> 4410 | AV14: =ROUND($C$33*(1+$C$34)^J14,3) -> 0.375 | AW14: =ROUND(AV14*M14,0) -> 1189 | AZ14: =ROUND(AR14+AS14+AU14+AW14+AY14,0) -> 18250 | BB14: =ROUND($F$13,0) -> 76524 | BC14: =ROUND((F15*F30)-Z14,0) -> 84350 | BD14: =BB14+BC14 -> 160874 | BE14: =AZ14-BD14 -> -142624 | BH14: =$C$47 -> 2017 | BI14: =+F12 -> 72300 | BJ14: =+M14 -> 3170 | BK14: =ROUND($C$10*(1+$C$11)^J14,3) -> 6.885 | BL14: =ROUND(BJ14*BK14,0) -> 21825 | BM14: =ROUND($C$13*(1+$C$14)^J14,3) -> 0.15 | BN14: =ROUND(IF($C$47+$F$23>$BH14,$F$30*$F$27,0)*BM14,0) -> 26462 | BP14: =BI14+BL14+BN14+BO14 -> 120587 | BR14: =ROUND(F15*F30,0) -> 156650 | BT14: =BP14-BR14 -> -36063 | BW14: =$C$47 -> 2017 | BX14: =$R14 -> 8150 | BY14: =U14 -> 4501 | BZ14: =AU14 -> 4410 | CA14: =SUM(BX14:BZ14) -> 17061 | CC14: =BB14 -> 76524 | CD14: =BC14 -> 84350 | CE14: =SUM(CC14:CD14) -> 160874 | CG14: =CA14-CE14 -> -143813
A15: Non-Gas Fuel Units (ie. kWh,Gallons, etc) = | C15: =+'Gas Input Table Summary'!$D$11 -> Kwh | E15: 17) Direct Participant Costs ($/Part.) = | F15: =ROUND('Database Inputs'!K11,0) -> 650 | J15: =J14+1 -> 4 | L15: =L14+1 -> 2018 | M15: =ROUND(IF($C$47+$F$23>L15,$F$25*$F$30,0)+IF($C$48+$G$23>L15,$G$25*$G$30,0),0) -> 3170 | N15: =ROUND($C$17*(1+$C$18)^J14,3) -> 2.851 | O15: 9038 | P15: 0 | Q15: =ROUND(M15*P15,0) -> 0 | R15: 9038 | S15: 31.7 | T15: =ROUND($C$20*(1+$C$21)^J14,0) -> 146 | U15: =ROUND(S15*T15,0) -> 4628 | V15: =ROUND(+U15+R15,0) -> 13666 | W15: 2.17 | X15: 4471 | Y15: =ROUND($G$11,0) -> 0 | Z15: =ROUND($G$12,0) -> 0 | AA15: 4471 | AB15: 9195 | AE15: =AE14+1 -> 2018 | AF15: 9038 | AG15: 4628 | AH15: =+AG15+AF15 -> 13666 | AJ15: =ROUND(Y15,0) -> 0 | AK15: 0 | AL15: 0 | AN15: 13666 | AQ15: =AQ14+1 -> 2018 | AR15: 9038 | AS15: 4628 | AT15: 0.026 | AU15: =ROUND((IF($C$47+$F$23>$AQ15,$F$27*$F$30,0)+IF($C$48+$G$23>AQ15,$G$27*$G$30,0))*AT15,0) -> 4587 | AV15: 0.383 | AW15: 1214 | AZ15: =ROUND(AR15+AS15+AU15+AW15+AY15,0) -> 19467 | BB15: =ROUND($G$13,0) -> 0 | BC15: =ROUND(($G$15*$G$30)-$Z$15,0) -> 0 | BD15: =BB15+BC15 -> 0 | BE15: 19467 | BH15: =BH14+1 -> 2018 | BI15: =+G12 -> 0 | BJ15: 3170 | BK15: 7.126 | BL15: =ROUND(BJ15*BK15,0) -> 22589 | BM15: 0.155 | BN15: =ROUND((IF($C$47+$F$23>BH15,$F$27*$F$30,0)+IF($C$48+$G$23>BH15,$G$27*$G$30,0))*BM15,0) -> 27344 | BP15: 49933 | BR15: =ROUND($G$15*$G$30,0) -> 0 | BT15: =BP15-BR15 -> 49933 | BW15: =BW14+1 -> 2018 | BX15: 9038 | BY15: =U15 -> 4628 | BZ15: =AU15 -> 4587 | CA15: =SUM(BX15:BZ15) -> 18253 | CC15: =BB15 -> 0 | CD15: 0 | CE15: =SUM(CC15:CD15) -> 0 | CG15: =CA15-CE15 -> 18253
J16: 5 | L16: 2019 | M16: =ROUND(IF($C$47+$F$23>L16,$F$25*$F$30,0)+IF($C$48+$G$23>L16,$G$25*$G$30,0)+IF($C$49+$H$23>L16,$H$25*$H$30,0),0) -> 3170 | N16: =ROUND($C$17*(1+$C$18)^J15,3) -> 2.95 | O16: 9352 | P16: 0 | Q16: 0 | R16: 9352 | S16: 31.7 | T16: =ROUND($C$20*(1+$C$21)^J15,0) -> 148 | U16: =ROUND(S16*T16,0) -> 4692 | V16: 14044 | W16: 2.246 | X16: 4628 | Y16: =ROUND($H$11,0) -> 0 | Z16: =ROUND($H$12,0) -> 0 | AA16: 4628 | AB16: 9416 | AE16: 2019 | AF16: 9352 | AG16: 4692 | AH16: =+AG16+AF16 -> 14044 | AJ16: 0 | AK16: 0 | AL16: 0 | AN16: 14044 | AQ16: 2019 | AR16: 9352 | AS16: 4692 | AT16: 0.027 | AU16: =ROUND((IF($C$47+$F$23>$AQ16,$F$27*$F$30,0)+IF($C$48+$G$23>AQ16,$G$27*$G$30,0)+IF($C$49+$H$23>AQ16,$H$27*$H$30,0))*AT16,0) -> 4763 | AV16: 0.392 | AW16: 1243 | AZ16: 20050 | BB16: =ROUND($H$13,0) -> 0 | BC16: =ROUND(($H$15*$H$30)-$Z$16,0) -> 0 | BD16: 0 | BE16: 20050 | BH16: 2019 | BI16: =ROUND(H12,0) -> 0 | BJ16: 3170 | BK16: 7.376 | BL16: =ROUND(BJ16*BK16,0) -> 23382 | BM16: 0.161 | BN16: =ROUND((IF($C$47+$F$23>BH16,$F$27*$F$30,0)+IF($C$49+$H$23>BH16,$H$27*$H$30,0)+IF($C$48+$G$23>BH16,$G$27*$G$30,0))*BM16,0) -> 28402 | BP16: 51784 | BR16: =ROUND($H$15*$H$30,0) -> 0 | BT16: 51784 | BW16: 2019 | BX16: 9352 | BY16: 4692 | BZ16: 4763 | CA16: 18807 | CC16: 0 | CD16: 0 | CE16: 0 | CG16: =CA16-CE16 -> 18807
A17: 3) Commodity Cost ($/Dk) = | C17: =+'Gas Input Table Summary'!$D$12 -> 2.571 | E17: 18) Participant Non-Energy Costs (Annual $/Part.) = | F17: =+'Gas Input Table Summary'!$D$35 -> 0 | J17: 6 | L17: 2020 | M17: =ROUND(IF($C$47+$F$23>L17,$F$25*$F$30,0)+IF($C$48+$G$23>L17,$G$25*$G$30,0)+IF($C$49+$H$23>L17,$H$25*$H$30,0),0) -> 3170 | N17: 3.054 | O17: 9681 | P17: 0 | Q17: 0 | R17: 9681 | S17: 31.7 | T17: 149 | U17: 4723 | V17: 14404 | W17: 2.325 | X17: 4791 | Y17: 0 | Z17: 0 | AA17: 4791 | AB17: 9613 | AE17: 2020 | AF17: 9681 | AG17: 4723 | AH17: 14404 | AJ17: 0 | AK17: 0 | AL17: 0 | AN17: 14404 | AQ17: 2020 | AR17: 9681 | AS17: 4723 | AT17: 0.028 | AU17: =ROUND((IF($C$47+$F$23>$AQ17,$F$27*$F$30,0)+IF($C$48+$G$23>AQ17,$G$27*$G$30,0)+IF($C$49+$H$23>AQ17,$H$27*$H$30,0))*AT17,0) -> 4940 | AV17: 0.401 | AW17: 1271 | AZ17: 20615 | BB17: 0 | BC17: 0 | BD17: 0 | BE17: 20615 | BH17: 2020 | BI17: 0 | BJ17: 3170 | BK17: 7.634 | BL17: 24200 | BM17: 0.167 | BN17: =ROUND((IF($C$47+$F$23>BH17,$F$27*$F$30,0)+IF($C$49+$H$23>BH17,$H$27*$H$30,0)+IF($C$48+$G$23>BH17,$G$27*$G$30,0))*BM17,0) -> 29461 | BP17: 53661 | BR17: =+BC17 -> 0 | BT17: 53661 | BW17: 2020 | BX17: 9681 | BY17: 4723 | BZ17: 4940 | CA17: 19344 | CC17: 0 | CD17: 0 | CE17: 0 | CG17: 19344
A18: Escalation Rate = | C18: =+'Gas Input Table Summary'!$D$13 -> 0.035 | E18: Escalation Rate = | F18: =+'Gas Input Table Summary'!$D$38 -> 0 | J18: 7 | L18: 2021 | M18: 3170 | N18: 3.16 | O18: 10017 | P18: 0 | Q18: 0 | R18: 10017 | S18: 31.7 | T18: 151 | U18: 4787 | V18: 14804 | W18: 2.406 | X18: 4958 | Y18: 0 | Z18: 0 | AA18: 4958 | AB18: 9846 | AE18: 2021 | AF18: 10017 | AG18: 4787 | AH18: 14804 | AJ18: 0 | AK18: 0 | AL18: 0 | AN18: 14804 | AQ18: 2021 | AR18: 10017 | AS18: 4787 | AT18: 0.029 | AU18: 5116 | AV18: 0.41 | AW18: 1300 | AZ18: 21220 | BB18: 0 | BC18: 0 | BD18: 0 | BE18: 21220 | BH18: 2021 | BI18: 0 | BJ18: 3170 | BK18: 7.901 | BL18: 25046 | BM18: 0.172 | BN18: 30343 | BP18: 55389 | BR18: 0 | BT18: 55389 | BW18: 2021 | BX18: 10017 | BY18: 4787 | BZ18: 5116 | CA18: 19920 | CC18: 0 | CD18: 0 | CE18: 0 | CG18: 19920 | DB18: t
J19: 8 | L19: 2022 | M19: 3170 | N19: 3.271 | O19: 10369 | P19: 0 | Q19: 0 | R19: 10369 | S19: 31.7 | T19: 152 | U19: 4818 | V19: 15187 | W19: 2.49 | X19: 5131 | Y19: 0 | Z19: 0 | AA19: 5131 | AB19: 10056 | AE19: 2022 | AF19: 10369 | AG19: 4818 | AH19: 15187 | AJ19: 0 | AK19: 0 | AL19: 0 | AN19: 15187 | AQ19: 2022 | AR19: 10369 | AS19: 4818 | AT19: 0.03 | AU19: 5292 | AV19: 0.42 | AW19: 1331 | AZ19: 21810 | BB19: 0 | BC19: 0 | BD19: 0 | BE19: 21810 | BH19: 2022 | BI19: 0 | BJ19: 3170 | BK19: 8.177 | BL19: 25921 | BM19: 0.178 | BN19: 31401 | BP19: 57322 | BR19: 0 | BT19: 57322 | BW19: 2022 | BX19: 10369 | BY19: 4818 | BZ19: 5292 | CA19: 20479 | CC19: 0 | CD19: 0 | CE19: 0 | CG19: 20479
A20: 4) Demand Cost ($/Unit/Yr) = | C20: =+'Gas Input Table Summary'!$D$14 -> 141.95 | E20: 19) Participant Non-Energy Savings (Annual $/Part) = | F20: =+'Gas Input Table Summary'!$D$41 -> 0 | J20: 9 | L20: 2023 | M20: 3170 | N20: 3.386 | O20: 10734 | P20: 0 | Q20: 0 | R20: 10734 | S20: 31.7 | T20: 154 | U20: 4882 | V20: 15616 | W20: 2.577 | X20: 5310 | Y20: 0 | Z20: 0 | AA20: 5310 | AB20: 10306 | AE20: 2023 | AF20: 10734 | AG20: 4882 | AH20: 15616 | AJ20: 0 | AK20: 0 | AL20: 0 | AN20: 15616 | AQ20: 2023 | AR20: 10734 | AS20: 4882 | AT20: 0.031 | AU20: 5469 | AV20: 0.429 | AW20: 1360 | AZ20: 22445 | BB20: 0 | BC20: 0 | BD20: 0 | BE20: 22445 | BH20: 2023 | BI20: 0 | BJ20: 3170 | BK20: 8.464 | BL20: 26831 | BM20: 0.185 | BN20: 32636 | BP20: 59467 | BR20: 0 | BT20: 59467 | BW20: 2023 | BX20: 10734 | BY20: 4882 | BZ20: 5469 | CA20: 21085 | CC20: 0 | CD20: 0 | CE20: 0 | CG20: 21085
A21: Escalation Rate = | C21: =+'Gas Input Table Summary'!$D$15 -> 0.01 | E21: Escalation Rate = | F21: =+'Gas Input Table Summary'!$D$44 -> 0 | J21: 10 | L21: 2024 | M21: 3170 | N21: 3.504 | O21: 11108 | P21: 0 | Q21: 0 | R21: 11108 | S21: 31.7 | T21: 155 | U21: 4914 | V21: 16022 | W21: 2.667 | X21: 5495 | Y21: 0 | Z21: 0 | AA21: 5495 | AB21: 10527 | AE21: 2024 | AF21: 11108 | AG21: 4914 | AH21: 16022 | AJ21: 0 | AK21: 0 | AL21: 0 | AN21: 16022 | AQ21: 2024 | AR21: 11108 | AS21: 4914 | AT21: 0.032 | AU21: 5645 | AV21: 0.439 | AW21: 1392 | AZ21: 23059 | BB21: 0 | BC21: 0 | BD21: 0 | BE21: 23059 | BH21: 2024 | BI21: 0 | BJ21: 3170 | BK21: 8.76 | BL21: 27769 | BM21: 0.191 | BN21: 33695 | BP21: 61464 | BR21: 0 | BT21: 61464 | BW21: 2024 | BX21: 11108 | BY21: 4914 | BZ21: 5645 | CA21: 21667 | CC21: 0 | CD21: 0 | CE21: 0 | CG21: 21667 | DB21: =$J14 -> 3
J22: 11 | L22: 2025 | M22: 3170 | N22: 3.627 | O22: 11498 | P22: 0 | Q22: 0 | R22: 11498 | S22: 31.7 | T22: 157 | U22: 4977 | V22: 16475 | W22: 2.761 | X22: 5689 | Y22: 0 | Z22: 0 | AA22: 5689 | AB22: 10786 | AE22: 2025 | AF22: 11498 | AG22: 4977 | AH22: 16475 | AJ22: 0 | AK22: 0 | AL22: 0 | AN22: 16475 | AQ22: 2025 | AR22: 11498 | AS22: 4977 | AT22: 0.033 | AU22: 5822 | AV22: 0.449 | AW22: 1423 | AZ22: 23720 | BB22: 0 | BC22: 0 | BD22: 0 | BE22: 23720 | BH22: 2025 | BI22: 0 | BJ22: 3170 | BK22: 9.066 | BL22: 28739 | BM22: 0.198 | BN22: 34930 | BP22: 63669 | BR22: 0 | BT22: 63669 | BW22: 2025 | BX22: 11498 | BY22: 4977 | BZ22: 5822 | CA22: 22297 | CC22: 0 | CD22: 0 | CE22: 0 | CG22: 22297 | DB22: =$J15 -> 4
A23: 5) Peak Reduction Factor = | C23: =+'Gas Input Table Summary'!$D$16 -> 0.01 | E23: 20) Project Life (Years) = | F23: =ROUND('Database Inputs'!D11,0) -> 20 | J23: 12 | L23: 2026 | M23: 3170 | N23: 3.754 | O23: 11900 | P23: 0 | Q23: 0 | R23: 11900 | S23: 31.7 | T23: 158 | U23: 5009 | V23: 16909 | W23: 2.857 | X23: 5887 | Y23: 0 | Z23: 0 | AA23: 5887 | AB23: 11022 | AE23: 2026 | AF23: 11900 | AG23: 5009 | AH23: 16909 | AJ23: 0 | AK23: 0 | AL23: 0 | AN23: 16909 | AQ23: 2026 | AR23: 11900 | AS23: 5009 | AT23: 0.035 | AU23: 6174 | AV23: 0.46 | AW23: 1458 | AZ23: 24541 | BB23: 0 | BC23: 0 | BD23: 0 | BE23: 24541 | BH23: 2026 | BI23: 0 | BJ23: 3170 | BK23: 9.384 | BL23: 29747 | BM23: 0.205 | BN23: 36164 | BP23: 65911 | BR23: 0 | BT23: 65911 | BW23: 2026 | BX23: 11900 | BY23: 5009 | BZ23: 6174 | CA23: 23083 | CC23: 0 | CD23: 0 | CE23: 0 | CG23: 23083 | DB23: =$J16 -> 5
J24: 13 | L24: 2027 | M24: 3170 | N24: 3.885 | O24: 12315 | P24: 0 | Q24: 0 | R24: 12315 | S24: 31.7 | T24: 160 | U24: 5072 | V24: 17387 | W24: 2.957 | X24: 6093 | Y24: 0 | Z24: 0 | AA24: 6093 | AB24: 11294 | AE24: 2027 | AF24: 12315 | AG24: 5072 | AH24: 17387 | AJ24: 0 | AK24: 0 | AL24: 0 | AN24: 17387 | AQ24: 2027 | AR24: 12315 | AS24: 5072 | AT24: 0.036 | AU24: 6351 | AV24: 0.47 | AW24: 1490 | AZ24: 25228 | BB24: 0 | BC24: 0 | BD24: 0 | BE24: 25228 | BH24: 2027 | BI24: 0 | BJ24: 3170 | BK24: 9.712 | BL24: 30787 | BM24: 0.212 | BN24: 37399 | BP24: 68186 | BR24: 0 | BT24: 68186 | BW24: 2027 | BX24: 12315 | BY24: 5072 | BZ24: 6351 | CA24: 23738 | CC24: 0 | CD24: 0 | CE24: 0 | CG24: 23738 | DB24: =$J17 -> 6
A25: 6) Variable O&M ($/Dk) = | C25: =+'Gas Input Table Summary'!$D$17 -> 0 | E25: 21) Avg. Dk/Part. Saved = | F25: =+ROUND(F32/F30,3) -> 13.154 | J25: 14 | L25: 2028 | M25: 3170 | N25: 4.021 | O25: 12747 | P25: 0 | Q25: 0 | R25: 12747 | S25: 31.7 | T25: 162 | U25: 5135 | V25: 17882 | W25: 3.061 | X25: 6307 | Y25: 0 | Z25: 0 | AA25: 6307 | AB25: 11575 | AE25: 2028 | AF25: 12747 | AG25: 5135 | AH25: 17882 | AJ25: 0 | AK25: 0 | AL25: 0 | AN25: 17882 | AQ25: 2028 | AR25: 12747 | AS25: 5135 | AT25: 0.037 | AU25: 6527 | AV25: 0.481 | AW25: 1525 | AZ25: 25934 | BB25: 0 | BC25: 0 | BD25: 0 | BE25: 25934 | BH25: 2028 | BI25: 0 | BJ25: 3170 | BK25: 10.052 | BL25: 31865 | BM25: 0.219 | BN25: 38634 | BP25: 70499 | BR25: 0 | BT25: 70499 | BW25: 2028 | BX25: 12747 | BY25: 5135 | BZ25: 6527 | CA25: 24409 | CC25: 0 | CD25: 0 | CE25: 0 | CG25: 24409
A26: Escalation Rate = | C26: =+'Gas Input Table Summary'!$D$18 -> 0 | J26: 15 | L26: 2029 | M26: 3170 | N26: 4.162 | O26: 13194 | P26: 0 | Q26: 0 | R26: 13194 | S26: 31.7 | T26: 163 | U26: 5167 | V26: 18361 | W26: 3.168 | X26: 6528 | Y26: 0 | Z26: 0 | AA26: 6528 | AB26: 11833 | AE26: 2029 | AF26: 13194 | AG26: 5167 | AH26: 18361 | AJ26: 0 | AK26: 0 | AL26: 0 | AN26: 18361 | AQ26: 2029 | AR26: 13194 | AS26: 5167 | AT26: 0.038 | AU26: 6704 | AV26: 0.492 | AW26: 1560 | AZ26: 26625 | BB26: 0 | BC26: 0 | BD26: 0 | BE26: 26625 | BH26: 2029 | BI26: 0 | BJ26: 3170 | BK26: 10.404 | BL26: 32981 | BM26: 0.227 | BN26: 40046 | BP26: 73027 | BR26: 0 | BT26: 73027 | BW26: 2029 | BX26: 13194 | BY26: 5167 | BZ26: 6704 | CA26: 25065 | CC26: 0 | CD26: 0 | CE26: 0 | CG26: 25065
E27: 22) Avg Non-Gas Fuel Units/Part. Saved = | F27: =+'Database Inputs'!H11 -> 732 | J27: 16 | L27: 2030 | M27: 3170 | N27: 4.307 | O27: 13653 | P27: 0 | Q27: 0 | R27: 13653 | S27: 31.7 | T27: 165 | U27: 5231 | V27: 18884 | W27: 3.279 | X27: 6756 | Y27: 0 | Z27: 0 | AA27: 6756 | AB27: 12128 | AE27: 2030 | AF27: 13653 | AG27: 5231 | AH27: 18884 | AJ27: 0 | AK27: 0 | AL27: 0 | AN27: 18884 | AQ27: 2030 | AR27: 13653 | AS27: 5231 | AT27: 0.04 | AU27: 7056 | AV27: 0.504 | AW27: 1598 | AZ27: 27538 | BB27: 0 | BC27: 0 | BD27: 0 | BE27: 27538 | BH27: 2030 | BI27: 0 | BJ27: 3170 | BK27: 10.768 | BL27: 34135 | BM27: 0.235 | BN27: 41457 | BP27: 75592 | BR27: 0 | BT27: 75592 | BW27: 2030 | BX27: 13653 | BY27: 5231 | BZ27: 7056 | CA27: 25940 | CC27: 0 | CD27: 0 | CE27: 0 | CG27: 25940
A28: 7) Non-Gas Fuel Cost ($/Fuel Unit) = | C28: =+'Gas Input Table Summary'!$D$19 -> 0.02174 | E28: 22a) Avg Additional Non-Gas Fuel Units/ Part. Used = | F28: 0 | J28: 17 | L28: 2031 | M28: 3170 | N28: 4.458 | O28: 14132 | P28: 0 | Q28: 0 | R28: 14132 | S28: 31.7 | T28: 166 | U28: 5262 | V28: 19394 | W28: 3.394 | X28: 6993 | Y28: 0 | Z28: 0 | AA28: 6993 | AB28: 12401 | AE28: 2031 | AF28: 14132 | AG28: 5262 | AH28: 19394 | AJ28: 0 | AK28: 0 | AL28: 0 | AN28: 19394 | AQ28: 2031 | AR28: 14132 | AS28: 5262 | AT28: 0.041 | AU28: 7233 | AV28: 0.515 | AW28: 1633 | AZ28: 28260 | BB28: 0 | BC28: 0 | BD28: 0 | BE28: 28260 | BH28: 2031 | BI28: 0 | BJ28: 3170 | BK28: 11.145 | BL28: 35330 | BM28: 0.243 | BN28: 42868 | BP28: 78198 | BR28: 0 | BT28: 78198 | BW28: 2031 | BX28: 14132 | BY28: 5262 | BZ28: 7233 | CA28: 26627 | CC28: 0 | CD28: 0 | CE28: 0 | CG28: 26627
A29: Escalation Rate = | C29: =+'Gas Input Table Summary'!$D$20 -> 0.035 | J29: 18 | L29: 2032 | M29: 3170 | N29: 4.614 | O29: 14626 | P29: 0 | Q29: 0 | R29: 14626 | S29: 31.7 | T29: 168 | U29: 5326 | V29: 19952 | W29: 3.513 | X29: 7239 | Y29: 0 | Z29: 0 | AA29: 7239 | AB29: 12713 | AE29: 2032 | AF29: 14626 | AG29: 5326 | AH29: 19952 | AJ29: 0 | AK29: 0 | AL29: 0 | AN29: 19952 | AQ29: 2032 | AR29: 14626 | AS29: 5326 | AT29: 0.043 | AU29: 7586 | AV29: 0.527 | AW29: 1671 | AZ29: 29209 | BB29: 0 | BC29: 0 | BD29: 0 | BE29: 29209 | BH29: 2032 | BI29: 0 | BJ29: 3170 | BK29: 11.535 | BL29: 36566 | BM29: 0.252 | BN29: 44456 | BP29: 81022 | BR29: 0 | BT29: 81022 | BW29: 2032 | BX29: 14626 | BY29: 5326 | BZ29: 7586 | CA29: 27538 | CC29: 0 | CD29: 0 | CE29: 0 | CG29: 27538
E30: 23) Number of Participants = | F30: =+'Total Program Inputs'!C11 -> 241 | J30: 19 | L30: 2033 | M30: 3170 | N30: 4.776 | O30: 15140 | P30: 0 | Q30: 0 | R30: 15140 | S30: 31.7 | T30: 170 | U30: 5389 | V30: 20529 | W30: 3.635 | X30: 7490 | Y30: 0 | Z30: 0 | AA30: 7490 | AB30: 13039 | AE30: 2033 | AF30: 15140 | AG30: 5389 | AH30: 20529 | AJ30: 0 | AK30: 0 | AL30: 0 | AN30: 20529 | AQ30: 2033 | AR30: 15140 | AS30: 5389 | AT30: 0.044 | AU30: 7762 | AV30: 0.539 | AW30: 1709 | AZ30: 30000 | BB30: 0 | BC30: 0 | BD30: 0 | BE30: 30000 | BH30: 2033 | BI30: 0 | BJ30: 3170 | BK30: 11.939 | BL30: 37847 | BM30: 0.26 | BN30: 45867 | BP30: 83714 | BR30: 0 | BT30: 83714 | BW30: 2033 | BX30: 15140 | BY30: 5389 | BZ30: 7762 | CA30: 28291 | CC30: 0 | CD30: 0 | CE30: 0 | CG30: 28291 | DB30: =$J18 -> 7
A31: 8) Non-Gas Fuel Loss Factor | C31: =+'Gas Input Table Summary'!$D$21 -> 0.051 | J31: 20 | L31: 2034 | M31: 3170 | N31: 4.943 | O31: 15669 | P31: 0 | Q31: 0 | R31: 15669 | S31: 31.7 | T31: 171 | U31: 5421 | V31: 21090 | W31: 3.763 | X31: 7754 | Y31: 0 | Z31: 0 | AA31: 7754 | AB31: 13336 | AE31: 2034 | AF31: 15669 | AG31: 5421 | AH31: 21090 | AJ31: 0 | AK31: 0 | AL31: 0 | AN31: 21090 | AQ31: 2034 | AR31: 15669 | AS31: 5421 | AT31: 0.046 | AU31: 8115 | AV31: 0.552 | AW31: 1750 | AZ31: 30955 | BB31: 0 | BC31: 0 | BD31: 0 | BE31: 30955 | BH31: 2034 | BI31: 0 | BJ31: 3170 | BK31: 12.357 | BL31: 39172 | BM31: 0.27 | BN31: 47631 | BP31: 86803 | BR31: 0 | BT31: 86803 | BW31: 2034 | BX31: 15669 | BY31: 5421 | BZ31: 8115 | CA31: 29205 | CC31: 0 | CD31: 0 | CE31: 0 | CG31: 29205 | DB31: =$J19 -> 8
E32: 24) Total Annual Dk Saved = | F32: =+'Total Program Inputs'!E11 -> 3170 | J32: 21 | L32: 2035 | M32: 3170 | N32: 5.116 | O32: 16218 | P32: 0 | Q32: 0 | R32: 16218 | S32: 31.7 | T32: 173 | U32: 5484 | V32: 21702 | W32: 3.894 | X32: 8024 | Y32: 0 | Z32: 0 | AA32: 8024 | AB32: 13678 | AE32: 2035 | AF32: 16218 | AG32: 5484 | AH32: 21702 | AJ32: 0 | AK32: 0 | AL32: 0 | AN32: 21702 | AQ32: 2035 | AR32: 16218 | AS32: 5484 | AT32: 0.047 | AU32: 8291 | AV32: 0.564 | AW32: 1788 | AZ32: 31781 | BB32: 0 | BC32: 0 | BD32: 0 | BE32: 31781 | BH32: 2035 | BI32: 0 | BJ32: 3170 | BK32: 12.789 | BL32: 40541 | BM32: 0.279 | BN32: 49219 | BP32: 89760 | BR32: 0 | BT32: 89760 | BW32: 2035 | BX32: 16218 | BY32: 5484 | BZ32: 8291 | CA32: 29993 | CC32: 0 | CD32: 0 | CE32: 0 | CG32: 29993 | DB32: =$J20 -> 9
A33: 9) Gas Environmental Damage Factor = | C33: =+'Gas Input Table Summary'!$D$22 -> 0.35 | J33: 22 | L33: 2036 | M33: 3170 | N33: 5.295 | O33: 16785 | P33: 0 | Q33: 0 | R33: 16785 | S33: 31.7 | T33: 175 | U33: 5548 | V33: 22333 | W33: 4.031 | X33: 8306 | Y33: 0 | Z33: 0 | AA33: 8306 | AB33: 14027 | AE33: 2036 | AF33: 16785 | AG33: 5548 | AH33: 22333 | AJ33: 0 | AK33: 0 | AL33: 0 | AN33: 22333 | AQ33: 2036 | AR33: 16785 | AS33: 5548 | AT33: 0.049 | AU33: 8644 | AV33: 0.577 | AW33: 1829 | AZ33: 32806 | BB33: 0 | BC33: 0 | BD33: 0 | BE33: 32806 | BH33: 2036 | BI33: 0 | BJ33: 3170 | BK33: 13.237 | BL33: 41961 | BM33: 0.289 | BN33: 50983 | BP33: 92944 | BR33: 0 | BT33: 92944 | BW33: 2036 | BX33: 16785 | BY33: 5548 | BZ33: 8644 | CA33: 30977 | CC33: 0 | CD33: 0 | CE33: 0 | CG33: 30977
A34: Escalation Rate = | C34: =+'Gas Input Table Summary'!$D$23 -> 0.023 | E34: 25) Incentive/Participant = | F34: =+ROUND(F12/F30,0) -> 300 | J34: 23 | L34: 2037 | M34: 0 | N34: 5.48 | O34: 0 | P34: 0 | Q34: 0 | R34: 0 | S34: 0 | T34: 177 | U34: 0 | V34: 0 | W34: 4.172 | X34: 0 | Y34: 0 | Z34: 0 | AA34: 0 | AB34: 0 | AE34: 2037 | AF34: 0 | AG34: 0 | AH34: 0 | AJ34: 0 | AK34: 0 | AL34: 0 | AN34: 0 | AQ34: 2037 | AR34: 0 | AS34: 0 | AT34: 0.051 | AU34: 0 | AV34: 0.59 | AW34: 0 | AZ34: 0 | BB34: 0 | BC34: 0 | BD34: 0 | BE34: 0 | BH34: 2037 | BI34: 0 | BJ34: 0 | BK34: 13.7 | BL34: 0 | BM34: 0.299 | BN34: 0 | BP34: 0 | BR34: 0 | BT34: 0 | BW34: 2037 | BX34: 0 | BY34: 0 | BZ34: 0 | CA34: 0 | CC34: 0 | CD34: 0 | CE34: 0 | CG34: 0
DB35: =$J21 -> 10
A36: 10) Non Gas Fuel Environmental Damage Factor = | C36: =+'Gas Input Table Summary'!$D$24 -> 0 | E36: 26) Distribution Delivery Charge | F36: =+'Gas Input Table Summary'!D58 -> 1.891 | K36: Total = | M36: =SUM(M14:M34) -> 63400 | V36: =SUM(V14:V34) -> 347292 | AA36: =SUM(AA14:AA34) -> 198695 | AB36: =SUM(AB14:AB34) -> 148597 | AD36: Total = | AH36: =SUM(AH14:AH34) -> 347292 | AL36: =SUM(AL14:AL34) -> 76524 | AN36: =SUM(AN14:AN34) -> 270768 | AP36: Total = | AZ36: =SUM(AZ14:AZ34) -> 503513 | BD36: =SUM(BD14:BD34) -> 160874 | BE36: =SUM(BE14:BE34) -> 342639 | BG36: Total = | BJ36: =SUM(BJ14:BJ34) -> 63400 | BP36: =SUM(BP14:BP34) -> 1438932 | BR36: =SUM(BR14:BR34) -> 156650 | BT36: =SUM(BT14:BT34) -> 1282282 | BZ36: Total = | CA36: =SUM(CA14:CA34) -> 473779 | CE36: =SUM(CE14:CE34) -> 160874 | CG36: =SUM(CG14:CG34) -> 312905
A37: Escalation Rate = | C37: =+'Gas Input Table Summary'!$D$25 -> 0 | T37: NPV = | V37: =ROUND(V14+NPV($C$41,V15:V34),0) -> 182020 | AA37: =ROUND(AA14+NPV($C$41,AA15:AA34),0) -> 139611 | AB37: =ROUND(AB14+NPV($C$41,AB15:AB34),0) -> 42408 | AG37: NPV = | AH37: =ROUND(AH14+NPV($C$41,AH15:AH34),0) -> 182020 | AL37: =ROUND(AL14+NPV($C$41,AL15:AL34),0) -> 76524 | AN37: =+AH37-AL37 -> 105496 | AW37: NPV = | AZ37: =ROUND(AZ14+NPV($C$43,AZ15:AZ34),0) -> 356189 | BD37: =ROUND(BD14+NPV($C$43,BD15:BD34),0) -> 160874 | BE37: =AZ37-BD37 -> 195315 | BN37: NPV = | BP37: =ROUND(BP14+NPV($C$39,BP15:BP34),0) -> 648165 | BR37: =ROUND(BR14+NPV($C$39,BR15:BR34),0) -> 156650 | BT37: =ROUND(BT14+NPV($C$39,BT15:BT34),0) -> 491515 | BZ37: NPV = | CA37: =ROUND(CA14+NPV($C$41,CA15:CA34),0) -> 247208 | CE37: =ROUND(CE14+NPV($C$41,CE15:CE34),0) -> 160874 | CG37: =ROUND(CG14+NPV($C$41,CG15:CG34),0) -> 86334 | DB37: =$J22 -> 11
E38: 27) Effective Income Tax Rate = | F38: =+'Gas Input Table Summary'!D59 -> 0.35
A39: 11) Participant Discount Rate = | C39: =+'Gas Input Table Summary'!$D$26 -> 0.1 | E39: (Federal & State Taxes) | K39: Total NPV = | N39: =AB37 -> 42408 | AD39: Total NPV = | AG39: =AN37 -> 105496 | AP39: Total NPV = | AS39: =BE37 -> 195315 | BG39: Total NPV = | BJ39: =BT37 -> 491515 | BV39: Total NPV = | BY39: =CG37 -> 86334
K40: Benefit/Cost Ratio = | N40: =ROUND(V37/AA37,2) -> 1.3 | AD40: Benefit/Cost Ratio = | AG40: =ROUND(AH37/AL37,2) -> 2.38 | AP40: Benefit/Cost Ratio = | AS40: =ROUND(AZ37/BD37,2) -> 2.21 | BG40: Benefit/Cost Ratio = | BJ40: =ROUND(BP37/BR37,20) -> 4.137663581 | BV40: Benefit/Cost Ratio = | BY40: =ROUND(CA37/CE37,2) -> 1.54 | DB40: =$J23 -> 12
A41: 12) Utility Discount Rate = | C41: =+'Gas Input Table Summary'!$D$27 -> 0.07216 | E41: Test Results | F41: NPV | G41: B/C | DB41: =$J24 -> 13
E42: Ratepayer Impact Measure Test | F42: =N39 -> 42408 | G42: =N40 -> 1.3 | DB42: =$J25 -> 14
A43: 13) Societal Discount Rate = | C43: =+'Gas Input Table Summary'!$D$28 -> 0.0356 | E43: Utility Cost Test | F43: =AG39 -> 105496 | G43: =AG40 -> 2.38 | J43: Worksheet Calculations | AD43: Worksheet Calculations | AP43: Worksheet Calculations | BG43: Worksheet Calculations | BV43: Worksheet Calculations | DB43: =$J26 -> 15
E44: Societal Test | F44: =AS39 -> 195315 | G44: =AS40 -> 2.21 | J44: (A) | K44: = Average Dk/Participant Saved (21) x Number of Participants (23) for Project Life (20) | T44: (I) | U44: = (G) x (H) | AD44: (A) | AE44: = Table 1 (F) | AP44: (A) | AQ44: = Table 1 (F) | AW44: (H) | AZ44: = Table 2 (F) | BG44: (A) | BH44: = Table 1 (N) | BV44: (A) | BW44: = Table 1 (F)
A45: 14) General Input Data Year = | C45: =+'Res .95+% Res Furnace - NEW'!C45 -> 2014 | E45: Participant Test | F45: =BJ39 -> 491515 | G45: =BJ40 -> 4.137663581 | J45: (B) | K45: = Commodity Cost (3) escalated | T45: (J) | U45: = (F) + (I) | AD45: (B) | AE45: = Table 1 (I) | AP45: (G) | AQ45: = Table 1 (I) | AW45: (I) | AZ45: = Direct Part. Costs (17) x No. of Part. (23) - Table 1 (N) | BG45: (B) | BH45: = Table 1 (A) | BV45: (B) | BW45: = Table 1 (I)
E46: Total Resource Cost Test | F46: =BY39 -> 86334 | G46: =BY40 -> 1.54 | J46: (C) | K46: = (A) x (B) | T46: (K) | U46: = Distribution Delivery Charge (26) escalated. | AD46: (C) | AE46: = Table 1 (J) | AP46: (C) | AQ46: = Non-Gas Fuel Cost (7), adjusted for losses (8), escalated.. | AW46: (J) | AZ46: = (H) + (I) | BG46: (C) | BH46: = Retail Rate (1) escalated. | BV46: (C) | BW46: = Table 3 (D)
A47: 15) Project Analysis Year 1 = | C47: =+'Res .95+% Res Furnace - NEW'!C47 -> 2017 | J47: (D) | K47: = Variable O&M Cost (6), escalated | T47: (L) | U47: = (A) x (K) x (1-Inverse of Tax Rate (27) | AD47: (D) | AE47: = Table 1 (M) | AP47: (D) | AQ47: = (C) x [Avg. Non-Gas Fuel Units/Part.Saved (22) x No. of Part. (23) | AW47: (K) | AZ47: = (G) - (J) | BG47: (D) | BH47: =(B) x (C) | BV47: (D) | BW47: = (A) + (B) + (C)
J48: (E) | K48: = (A) x (D) | T48: (M) | U48: = Admin & Operating Costs (16a) | AD48: (E) | AE48: = Table 1 (N) | AP48: (E) | AQ48: = Gas Environmental Damage Factor (9), escalated | BG48: (E) | BH48: = Non-Gas Fuel Retail Rate (2), escalated. | BV48: (E) | BW48: = Table 3 (H)
J49: (F) | K49: = (C) + (E) | T49: (N) | U49: = Incentive Costs (16b) | AD49: (F) | AE49: = (D) + (E) | AP49: (F) | AQ49: = Table 1 (A) x (E) | BG49: (F) | BH49: = (E) x [Avg. Non-Gas Fuel Units/Part.Saved (22) x No. of Part. (23) | BV49: (F) | BW49: = Table 3 (I) | DB49: =$J27 -> 16
J50: (G) | K50: = (A) x Peak Reduction Factor (5) | T50: (O) | U50: = (L) + (M) + (N) | AD50: (G) | AE50: = (C) - (F) | AP50: (G) | AQ50: = (A) + (B) + (D) + (F) | BG50: (G) | BH50: = (A) + (D) + (F) | BV50: (G) | BW50: = (E) + (F) | DB50: =$J28 -> 17
J51: (H) | K51: = Demand Cost (4) escalated. | T51: (P) | U51: = (J) - (O) | BG51: (H) | BH51: = Direct Participant Costs (17) x Number of Participants (23) | BV51: (H) | BW51: = (D) - (G) | DB51: =$J29 -> 18
BG52: (I) | BH52: = (G) - (H)

Sheet Programmable Thermostats
A1: NATURAL GAS CONSERVATION PROGRAMS/DEMAND-SIDE MANAGEMENT | K1: Table 1 | AD1: Table 2 | AP1: Table 3 | BG1: Table 4 | BV1: Table 5
A2: BEN/COST ANALYSIS FOR GAS CONSERVATION | K2: Ratepayer Impact Measure Test | AD2: Utility Cost Test | AP2: Societal Test | BG2: Participant Test | BV2: Total Resource Cost Test
A4: Company: | B4: Montana-Dakota Utilities Co. | K4: Company: | M4: =B4 -> Montana-Dakota Utilities Co. | AD4: Company: | AF4: =B4 -> Montana-Dakota Utilities Co. | AP4: Company: | AR4: =AF4 -> Montana-Dakota Utilities Co. | BH4: Company: | BI4: =AR4 -> Montana-Dakota Utilities Co. | BW4: Company: | BX4: =BI4 -> Montana-Dakota Utilities Co.
A5: Project: | B5: ='Database Inputs'!A12 -> Programmable Thermostats | K5: Project: | M5: =$B$5 -> Programmable Thermostats | AD5: Project: | AF5: =$B$5 -> Programmable Thermostats | AP5: Project: | AR5: =$B$5 -> Programmable Thermostats | BH5: Project: | BI5: =$B$5 -> Programmable Thermostats | BW5: Project: | BX5: =$B$5 -> Programmable Thermostats
A6: Program Years: | B6: =+'Res .95+% Res Furnace - Replace'!B6 -> 2017 Actual
N7: Benefits | X7: Costs | AF7: Benefits | AJ7: Costs | AR7: Benefits | BB7: Costs | BI7: Benefits | BR7: Costs | BX7: Benefits | CC7: Costs
A8: Input Data | F8: 2017 | AB8: Annual | AN8: Annual | AT8: Non-Gas | BE8: Annual | BT8: Annual | CG8: Annual
M9: Total | N9: Gas | O9: Gas | P9: Variable | Q9: Variable | R9: Total | S9: Peak Dk | T9: Demand | U9: Total | W9: Distribution | Y9: Program | AA9: Total | AB9: Benefits | AF9: Total | AG9: Total | AH9: Annual | AJ9: Program | AL9: Utility | AN9: Benefits | AR9: Total | AS9: Total | AT9: Energy | AU9: Non-Gas | AV9: Environmental | AW9: Environmental | AZ9: Annual | BB9: Utility | BC9: Participants' | BD9: Annual | BE9: Benefits | BJ9: Total | BL9: Gas | BM9: Non-Gas | BN9: Non-Gas | BP9: Total | BR9: Direct | BT9: Benefits | BX9: Total | BY9: Total | BZ9: Non-Gas | CA9: Total | CC9: Utility | CD9: Participants' | CG9: Benefits
A10: 1) Retail Rate ($/Dk) = | C10: =+'Gas Input Table Summary'!$D$7 -> 6.21 | E10: 16) Utility Project Costs | M10: Energy | N10: Commodity | O10: Commodity | P10: O & M | Q10: O & M | R10: Energy | S10: Demand | T10: Savings | U10: Demand | V10: Total | W10: Delivery | X10: Lost | Y10: Admin | Z10: Incentive | AA10: Program | AB10: Less | AF10: Energy | AG10: Demand | AH10: Total | AJ10: Admin | AK10: Incentive | AL10: Program | AN10: Less | AR10: Energy | AS10: Demand | AT10: Savings | AU10: Energy | AV10: Damage | AW10: Damage | AZ10: Total | BB10: Program | BC10: Costs Net | BD10: Total | BE10: Less | BI10: Incentives | BJ10: Energy | BK10: Retail | BL10: Bill | BM10: Fuel | BN10: Energy | BP10: Annual | BR10: Participant | BT10: Less | BX10: Energy | BY10: Demand | BZ10: Energy | CA10: Annual | CC10: Program | CD10: Costs Net | CE10: Total | CG10: Less
A11: Escalation Rate = | C11: =+'Gas Input Table Summary'!$D$8 -> 0.035 | E11: 16a) Administrative & Operating Costs = | F11: =+'Total Program Inputs'!K12 -> 253 | J11: t | M11: Reduction | N11: Cost/Dk | O11: Savings | P11: Cost/Dk | Q11: Savings | R11: Savings | S11: Reduction | T11: Per Unit | U11: Savings | V11: Savings | W11: Charge | X11: Margin | Y11: Costs | Z11: Costs | AA11: Costs | AB11: Costs | AF11: Savings | AG11: Savings | AH11: Savings | AJ11: Costs | AK11: Costs | AL11: Costs | AN11: Costs | AR11: Savings | AS11: Savings | AT11: ($/Part.) | AU11: Savings | AV11: Savings/Dk | AW11: Savings | AZ11: Savings | BB11: Costs | BC11: of Rebate | BD11: Costs | BE11: Costs | BI11: Received | BJ11: Reduction | BK11: Rate | BL11: Savings | BM11: Retail Rate | BN11: Savings | BP11: Benefits | BR11: Costs | BT11: Costs | BX11: Savings | BY11: Savings | BZ11: Savings | CA11: Benefits | CC11: Costs | CD11: of Rebate | CE11: Costs | CG11: Costs
E12: 16b) Incentive Costs = | F12: =+'Total Program Inputs'!G12 -> 4340 | L12: Year | M12: (A) | N12: (B) | O12: (C) | P12: (D) | Q12: (E) | R12: (F) | S12: (G) | T12: (H) | U12: (I) | V12: (J) | W12: (K) | X12: (L) | Y12: (M) | Z12: (N) | AA12: (O) | AB12: (P) | AE12: Year | AF12: (A) | AG12: (B) | AH12: (C) | AJ12: (D) | AK12: (E) | AL12: (F) | AN12: (G) | AQ12: Year | AR12: (A) | AS12: (B) | AT12: (C) | AU12: (D) | AV12: (E) | AW12: (F) | AZ12: (G) | BB12: (H) | BC12: (I) | BD12: (J) | BE12: (K) | BH12: Year | BI12: (A) | BJ12: (B) | BK12: (C) | BL12: (D) | BM12: (E) | BN12: (F) | BP12: (G) | BR12: (H) | BT12: (I) | BW12: Year | BX12: (A) | BY12: (B) | BZ12: (C) | CA12: (D) | CC12: (E) | CD12: (F) | CE12: (G) | CG12: (H)
A13: 2) Non-Gas Fuel Retail Rate ($/Fuel Unit) = | C13: =+'Gas Input Table Summary'!$D$9 -> 0.13546 | E13: 16c) Total Utility Project Costs = | F13: =SUM(F11:F12) -> 4593
A14: Escalation Rate = | C14: =+'Gas Input Table Summary'!$D$10 -> 0.035 | J14: =$C$47-$C$45 -> 3 | L14: =$C$47 -> 2017 | M14: =ROUND(IF($C$47+$F$23>L14,F25*F30,0),0) -> 629 | N14: =ROUND($C$17*(1),3) -> 2.571 | O14: =ROUND(M14*N14,0) -> 1617 | P14: =ROUND($C$25*(1+$C$26)^J14,3) -> 0 | Q14: =ROUND(M14*P14,0) -> 0 | R14: =O14+Q14 -> 1617 | S14: =ROUND(M14*$C$23,1) -> 6.3 | T14: =ROUND($C$20*(1),0) -> 142 | U14: =ROUND(S14*T14,0) -> 895 | V14: =ROUND(+U14+R14,0) -> 2512 | W14: =ROUND($F$36*(1+$C$11)^J14,3) -> 2.097 | X14: =ROUND((1-$F$38)*(W14*M14),0) -> 857 | Y14: =ROUND($F$11,0) -> 253 | Z14: =ROUND($F$12,0) -> 4340 | AA14: =SUM(X14:Z14) -> 5450 | AB14: =V14-AA14 -> -2938 | AE14: =$C$47 -> 2017 | AF14: =+R14 -> 1617 | AG14: =+U14 -> 895 | AH14: =+AG14+AF14 -> 2512 | AJ14: =ROUND(Y14,0) -> 253 | AK14: =ROUND(Z14,0) -> 4340 | AL14: =SUM(AJ14:AK14) -> 4593 | AN14: =+AH14-AL14 -> -2081 | AQ14: =$C$47 -> 2017 | AR14: =AF14 -> 1617 | AS14: =+AG14 -> 895 | AT14: =ROUND(($C$28/(1-$C$31))*(1+$C$29)^J14,3) -> 0.025 | AU14: =ROUND(IF($C$47+$F$23>$AQ14,$F$30*$F$27,0)*AT14,0) -> 0 | AV14: =ROUND($C$33*(1+$C$34)^J14,3) -> 0.375 | AW14: =ROUND(AV14*M14,0) -> 236 | AZ14: =ROUND(AR14+AS14+AU14+AW14+AY14,0) -> 2748 | BB14: =ROUND($F$13,0) -> 4593 | BC14: =ROUND((F15*F30)-Z14,0) -> 8680 | BD14: =BB14+BC14 -> 13273 | BE14: =AZ14-BD14 -> -10525 | BH14: =$C$47 -> 2017 | BI14: =+F12 -> 4340 | BJ14: =+M14 -> 629 | BK14: =ROUND($C$10*(1+$C$11)^J14,3) -> 6.885 | BL14: =ROUND(BJ14*BK14,0) -> 4331 | BM14: =ROUND($C$13*(1+$C$14)^J14,3) -> 0.15 | BN14: =ROUND(IF($C$47+$F$23>$BH14,$F$30*$F$27,0)*BM14,0) -> 0 | BP14: =BI14+BL14+BN14+BO14 -> 8671 | BR14: =ROUND(F15*F30,0) -> 13020 | BT14: =BP14-BR14 -> -4349 | BW14: =$C$47 -> 2017 | BX14: =$R14 -> 1617 | BY14: =U14 -> 895 | BZ14: =AU14 -> 0 | CA14: =SUM(BX14:BZ14) -> 2512 | CC14: =BB14 -> 4593 | CD14: =BC14 -> 8680 | CE14: =SUM(CC14:CD14) -> 13273 | CG14: =CA14-CE14 -> -10761
A15: Non-Gas Fuel Units (ie. kWh,Gallons, etc) = | C15: =+'Gas Input Table Summary'!$D$11 -> Kwh | E15: 17) Direct Participant Costs ($/Part.) = | F15: =ROUND('Database Inputs'!K12,0) -> 60 | J15: =J14+1 -> 4 | L15: =L14+1 -> 2018 | M15: =ROUND(IF($C$47+$F$23>L15,$F$25*$F$30,0)+IF($C$48+$G$23>L15,$G$25*$G$30,0),0) -> 629 | N15: =ROUND($C$17*(1+$C$18)^J14,3) -> 2.851 | O15: 1793 | P15: 0 | Q15: =ROUND(M15*P15,0) -> 0 | R15: 1793 | S15: 6.3 | T15: =ROUND($C$20*(1+$C$21)^J14,0) -> 146 | U15: =ROUND(S15*T15,0) -> 920 | V15: =ROUND(+U15+R15,0) -> 2713 | W15: 2.17 | X15: 887 | Y15: =ROUND($G$11,0) -> 0 | Z15: =ROUND($G$12,0) -> 0 | AA15: 887 | AB15: 1826 | AE15: =AE14+1 -> 2018 | AF15: 1793 | AG15: 920 | AH15: =+AG15+AF15 -> 2713 | AJ15: =ROUND(Y15,0) -> 0 | AK15: 0 | AL15: 0 | AN15: 2713 | AQ15: =AQ14+1 -> 2018 | AR15: 1793 | AS15: 920 | AT15: 0.026 | AU15: =ROUND((IF($C$47+$F$23>$AQ15,$F$27*$F$30,0)+IF($C$48+$G$23>AQ15,$G$27*$G$30,0))*AT15,0) -> 0 | AV15: 0.383 | AW15: 241 | AZ15: =ROUND(AR15+AS15+AU15+AW15+AY15,0) -> 2954 | BB15: =ROUND($G$13,0) -> 0 | BC15: =ROUND(($G$15*$G$30)-$Z$15,0) -> 0 | BD15: =BB15+BC15 -> 0 | BE15: 2954 | BH15: =BH14+1 -> 2018 | BI15: =+G12 -> 0 | BJ15: 629 | BK15: 7.126 | BL15: =ROUND(BJ15*BK15,0) -> 4482 | BM15: 0.155 | BN15: =ROUND((IF($C$47+$F$23>BH15,$F$27*$F$30,0)+IF($C$48+$G$23>BH15,$G$27*$G$30,0))*BM15,0) -> 0 | BP15: 4482 | BR15: =ROUND($G$15*$G$30,0) -> 0 | BT15: =BP15-BR15 -> 4482 | BW15: =BW14+1 -> 2018 | BX15: 1793 | BY15: =U15 -> 920 | BZ15: =AU15 -> 0 | CA15: =SUM(BX15:BZ15) -> 2713 | CC15: =BB15 -> 0 | CD15: 0 | CE15: =SUM(CC15:CD15) -> 0 | CG15: =CA15-CE15 -> 2713
J16: 5 | L16: 2019 | M16: =ROUND(IF($C$47+$F$23>L16,$F$25*$F$30,0)+IF($C$48+$G$23>L16,$G$25*$G$30,0)+IF($C$49+$H$23>L16,$H$25*$H$30,0),0) -> 629 | N16: =ROUND($C$17*(1+$C$18)^J15,3) -> 2.95 | O16: 1856 | P16: 0 | Q16: 0 | R16: 1856 | S16: 6.3 | T16: =ROUND($C$20*(1+$C$21)^J15,0) -> 148 | U16: =ROUND(S16*T16,0) -> 932 | V16: 2788 | W16: 2.246 | X16: 918 | Y16: =ROUND($H$11,0) -> 0 | Z16: =ROUND($H$12,0) -> 0 | AA16: 918 | AB16: 1870 | AE16: 2019 | AF16: 1856 | AG16: 932 | AH16: =+AG16+AF16 -> 2788 | AJ16: 0 | AK16: 0 | AL16: 0 | AN16: 2788 | AQ16: 2019 | AR16: 1856 | AS16: 932 | AT16: 0.027 | AU16: =ROUND((IF($C$47+$F$23>$AQ16,$F$27*$F$30,0)+IF($C$48+$G$23>AQ16,$G$27*$G$30,0)+IF($C$49+$H$23>AQ16,$H$27*$H$30,0))*AT16,0) -> 0 | AV16: 0.392 | AW16: 247 | AZ16: 3035 | BB16: =ROUND($H$13,0) -> 0 | BC16: =ROUND(($H$15*$H$30)-$Z$16,0) -> 0 | BD16: 0 | BE16: 3035 | BH16: 2019 | BI16: =ROUND(H12,0) -> 0 | BJ16: 629 | BK16: 7.376 | BL16: =ROUND(BJ16*BK16,0) -> 4640 | BM16: 0.161 | BN16: =ROUND((IF($C$47+$F$23>BH16,$F$27*$F$30,0)+IF($C$49+$H$23>BH16,$H$27*$H$30,0)+IF($C$48+$G$23>BH16,$G$27*$G$30,0))*BM16,0) -> 0 | BP16: 4640 | BR16: =ROUND($H$15*$H$30,0) -> 0 | BT16: 4640 | BW16: 2019 | BX16: 1856 | BY16: 932 | BZ16: 0 | CA16: 2788 | CC16: 0 | CD16: 0 | CE16: 0 | CG16: =CA16-CE16 -> 2788
A17: 3) Commodity Cost ($/Dk) = | C17: =+'Gas Input Table Summary'!$D$12 -> 2.571 | E17: 18) Participant Non-Energy Costs (Annual $/Part.) = | F17: =+'Gas Input Table Summary'!D35 -> 0 | J17: 6 | L17: 2020 | M17: =ROUND(IF($C$47+$F$23>L17,$F$25*$F$30,0)+IF($C$48+$G$23>L17,$G$25*$G$30,0)+IF($C$49+$H$23>L17,$H$25*$H$30,0),0) -> 629 | N17: 3.054 | O17: 1921 | P17: 0 | Q17: 0 | R17: 1921 | S17: 6.3 | T17: 149 | U17: 939 | V17: 2860 | W17: 2.325 | X17: 951 | Y17: 0 | Z17: 0 | AA17: 951 | AB17: 1909 | AE17: 2020 | AF17: 1921 | AG17: 939 | AH17: 2860 | AJ17: 0 | AK17: 0 | AL17: 0 | AN17: 2860 | AQ17: 2020 | AR17: 1921 | AS17: 939 | AT17: 0.028 | AU17: =ROUND((IF($C$47+$F$23>$AQ17,$F$27*$F$30,0)+IF($C$48+$G$23>AQ17,$G$27*$G$30,0)+IF($C$49+$H$23>AQ17,$H$27*$H$30,0))*AT17,0) -> 0 | AV17: 0.401 | AW17: 252 | AZ17: 3112 | BB17: 0 | BC17: 0 | BD17: 0 | BE17: 3112 | BH17: 2020 | BI17: 0 | BJ17: 629 | BK17: 7.634 | BL17: 4802 | BM17: 0.167 | BN17: =ROUND((IF($C$47+$F$23>BH17,$F$27*$F$30,0)+IF($C$49+$H$23>BH17,$H$27*$H$30,0)+IF($C$48+$G$23>BH17,$G$27*$G$30,0))*BM17,0) -> 0 | BP17: 4802 | BR17: =+BC17 -> 0 | BT17: 4802 | BW17: 2020 | BX17: 1921 | BY17: 939 | BZ17: 0 | CA17: 2860 | CC17: 0 | CD17: 0 | CE17: 0 | CG17: 2860
A18: Escalation Rate = | C18: =+'Gas Input Table Summary'!$D$13 -> 0.035 | E18: Escalation Rate = | F18: =+'Gas Input Table Summary'!D38 -> 0 | J18: 7 | L18: 2021 | M18: 629 | N18: 3.16 | O18: 1988 | P18: 0 | Q18: 0 | R18: 1988 | S18: 6.3 | T18: 151 | U18: 951 | V18: 2939 | W18: 2.406 | X18: 984 | Y18: 0 | Z18: 0 | AA18: 984 | AB18: 1955 | AE18: 2021 | AF18: 1988 | AG18: 951 | AH18: 2939 | AJ18: 0 | AK18: 0 | AL18: 0 | AN18: 2939 | AQ18: 2021 | AR18: 1988 | AS18: 951 | AT18: 0.029 | AU18: 0 | AV18: 0.41 | AW18: 258 | AZ18: 3197 | BB18: 0 | BC18: 0 | BD18: 0 | BE18: 3197 | BH18: 2021 | BI18: 0 | BJ18: 629 | BK18: 7.901 | BL18: 4970 | BM18: 0.172 | BN18: 0 | BP18: 4970 | BR18: 0 | BT18: 4970 | BW18: 2021 | BX18: 1988 | BY18: 951 | BZ18: 0 | CA18: 2939 | CC18: 0 | CD18: 0 | CE18: 0 | CG18: 2939 | DB18: t
J19: 8 | L19: 2022 | M19: 629 | N19: 3.271 | O19: 2057 | P19: 0 | Q19: 0 | R19: 2057 | S19: 6.3 | T19: 152 | U19: 958 | V19: 3015 | W19: 2.49 | X19: 1018 | Y19: 0 | Z19: 0 | AA19: 1018 | AB19: 1997 | AE19: 2022 | AF19: 2057 | AG19: 958 | AH19: 3015 | AJ19: 0 | AK19: 0 | AL19: 0 | AN19: 3015 | AQ19: 2022 | AR19: 2057 | AS19: 958 | AT19: 0.03 | AU19: 0 | AV19: 0.42 | AW19: 264 | AZ19: 3279 | BB19: 0 | BC19: 0 | BD19: 0 | BE19: 3279 | BH19: 2022 | BI19: 0 | BJ19: 629 | BK19: 8.177 | BL19: 5143 | BM19: 0.178 | BN19: 0 | BP19: 5143 | BR19: 0 | BT19: 5143 | BW19: 2022 | BX19: 2057 | BY19: 958 | BZ19: 0 | CA19: 3015 | CC19: 0 | CD19: 0 | CE19: 0 | CG19: 3015
A20: 4) Demand Cost ($/Unit/Yr) = | C20: =+'Gas Input Table Summary'!$D$14 -> 141.95 | E20: 19) Participant Non-Energy Savings (Annual $/Part) = | F20: =+'Gas Input Table Summary'!D41 -> 0 | J20: 9 | L20: 2023 | M20: 629 | N20: 3.386 | O20: 2130 | P20: 0 | Q20: 0 | R20: 2130 | S20: 6.3 | T20: 154 | U20: 970 | V20: 3100 | W20: 2.577 | X20: 1054 | Y20: 0 | Z20: 0 | AA20: 1054 | AB20: 2046 | AE20: 2023 | AF20: 2130 | AG20: 970 | AH20: 3100 | AJ20: 0 | AK20: 0 | AL20: 0 | AN20: 3100 | AQ20: 2023 | AR20: 2130 | AS20: 970 | AT20: 0.031 | AU20: 0 | AV20: 0.429 | AW20: 270 | AZ20: 3370 | BB20: 0 | BC20: 0 | BD20: 0 | BE20: 3370 | BH20: 2023 | BI20: 0 | BJ20: 629 | BK20: 8.464 | BL20: 5324 | BM20: 0.185 | BN20: 0 | BP20: 5324 | BR20: 0 | BT20: 5324 | BW20: 2023 | BX20: 2130 | BY20: 970 | BZ20: 0 | CA20: 3100 | CC20: 0 | CD20: 0 | CE20: 0 | CG20: 3100
A21: Escalation Rate = | C21: =+'Gas Input Table Summary'!$D$15 -> 0.01 | E21: Escalation Rate = | F21: =+'Gas Input Table Summary'!D44 -> 0 | J21: 10 | L21: 2024 | M21: 629 | N21: 3.504 | O21: 2204 | P21: 0 | Q21: 0 | R21: 2204 | S21: 6.3 | T21: 155 | U21: 977 | V21: 3181 | W21: 2.667 | X21: 1090 | Y21: 0 | Z21: 0 | AA21: 1090 | AB21: 2091 | AE21: 2024 | AF21: 2204 | AG21: 977 | AH21: 3181 | AJ21: 0 | AK21: 0 | AL21: 0 | AN21: 3181 | AQ21: 2024 | AR21: 2204 | AS21: 977 | AT21: 0.032 | AU21: 0 | AV21: 0.439 | AW21: 276 | AZ21: 3457 | BB21: 0 | BC21: 0 | BD21: 0 | BE21: 3457 | BH21: 2024 | BI21: 0 | BJ21: 629 | BK21: 8.76 | BL21: 5510 | BM21: 0.191 | BN21: 0 | BP21: 5510 | BR21: 0 | BT21: 5510 | BW21: 2024 | BX21: 2204 | BY21: 977 | BZ21: 0 | CA21: 3181 | CC21: 0 | CD21: 0 | CE21: 0 | CG21: 3181 | DB21: =$J14 -> 3
J22: 11 | L22: 2025 | M22: 629 | N22: 3.627 | O22: 2281 | P22: 0 | Q22: 0 | R22: 2281 | S22: 6.3 | T22: 157 | U22: 989 | V22: 3270 | W22: 2.761 | X22: 1129 | Y22: 0 | Z22: 0 | AA22: 1129 | AB22: 2141 | AE22: 2025 | AF22: 2281 | AG22: 989 | AH22: 3270 | AJ22: 0 | AK22: 0 | AL22: 0 | AN22: 3270 | AQ22: 2025 | AR22: 2281 | AS22: 989 | AT22: 0.033 | AU22: 0 | AV22: 0.449 | AW22: 282 | AZ22: 3552 | BB22: 0 | BC22: 0 | BD22: 0 | BE22: 3552 | BH22: 2025 | BI22: 0 | BJ22: 629 | BK22: 9.066 | BL22: 5703 | BM22: 0.198 | BN22: 0 | BP22: 5703 | BR22: 0 | BT22: 5703 | BW22: 2025 | BX22: 2281 | BY22: 989 | BZ22: 0 | CA22: 3270 | CC22: 0 | CD22: 0 | CE22: 0 | CG22: 3270 | DB22: =$J15 -> 4
A23: 5) Peak Reduction Factor = | C23: =+'Gas Input Table Summary'!$D$16 -> 0.01 | E23: 20) Project Life (Years) = | F23: =ROUND('Database Inputs'!D12,0) -> 10 | J23: 12 | L23: 2026 | M23: 629 | N23: 3.754 | O23: 2361 | P23: 0 | Q23: 0 | R23: 2361 | S23: 6.3 | T23: 158 | U23: 995 | V23: 3356 | W23: 2.857 | X23: 1168 | Y23: 0 | Z23: 0 | AA23: 1168 | AB23: 2188 | AE23: 2026 | AF23: 2361 | AG23: 995 | AH23: 3356 | AJ23: 0 | AK23: 0 | AL23: 0 | AN23: 3356 | AQ23: 2026 | AR23: 2361 | AS23: 995 | AT23: 0.035 | AU23: 0 | AV23: 0.46 | AW23: 289 | AZ23: 3645 | BB23: 0 | BC23: 0 | BD23: 0 | BE23: 3645 | BH23: 2026 | BI23: 0 | BJ23: 629 | BK23: 9.384 | BL23: 5903 | BM23: 0.205 | BN23: 0 | BP23: 5903 | BR23: 0 | BT23: 5903 | BW23: 2026 | BX23: 2361 | BY23: 995 | BZ23: 0 | CA23: 3356 | CC23: 0 | CD23: 0 | CE23: 0 | CG23: 3356 | DB23: =$J16 -> 5
J24: 13 | L24: 2027 | M24: 0 | N24: 3.885 | O24: 0 | P24: 0 | Q24: 0 | R24: 0 | S24: 0 | T24: 160 | U24: 0 | V24: 0 | W24: 2.957 | X24: 0 | Y24: 0 | Z24: 0 | AA24: 0 | AB24: 0 | AE24: 2027 | AF24: 0 | AG24: 0 | AH24: 0 | AJ24: 0 | AK24: 0 | AL24: 0 | AN24: 0 | AQ24: 2027 | AR24: 0 | AS24: 0 | AT24: 0.036 | AU24: 0 | AV24: 0.47 | AW24: 0 | AZ24: 0 | BB24: 0 | BC24: 0 | BD24: 0 | BE24: 0 | BH24: 2027 | BI24: 0 | BJ24: 0 | BK24: 9.712 | BL24: 0 | BM24: 0.212 | BN24: 0 | BP24: 0 | BR24: 0 | BT24: 0 | BW24: 2027 | BX24: 0 | BY24: 0 | BZ24: 0 | CA24: 0 | CC24: 0 | CD24: 0 | CE24: 0 | CG24: 0 | DB24: =$J17 -> 6
A25: 6) Variable O&M ($/Dk) = | C25: =+'Gas Input Table Summary'!$D$17 -> 0 | E25: 21) Avg. Dk/Part. Saved = | F25: =+ROUND(F32/F30,3) -> 2.899 | J25: 14 | L25: 2028 | M25: 0 | N25: 4.021 | O25: 0 | P25: 0 | Q25: 0 | R25: 0 | S25: 0 | T25: 162 | U25: 0 | V25: 0 | W25: 3.061 | X25: 0 | Y25: 0 | Z25: 0 | AA25: 0 | AB25: 0 | AE25: 2028 | AF25: 0 | AG25: 0 | AH25: 0 | AJ25: 0 | AK25: 0 | AL25: 0 | AN25: 0 | AQ25: 2028 | AR25: 0 | AS25: 0 | AT25: 0.037 | AU25: 0 | AV25: 0.481 | AW25: 0 | AZ25: 0 | BB25: 0 | BC25: 0 | BD25: 0 | BE25: 0 | BH25: 2028 | BI25: 0 | BJ25: 0 | BK25: 10.052 | BL25: 0 | BM25: 0.219 | BN25: 0 | BP25: 0 | BR25: 0 | BT25: 0 | BW25: 2028 | BX25: 0 | BY25: 0 | BZ25: 0 | CA25: 0 | CC25: 0 | CD25: 0 | CE25: 0 | CG25: 0
A26: Escalation Rate = | C26: =+'Gas Input Table Summary'!$D$18 -> 0 | J26: 15 | L26: 2029 | M26: 0 | N26: 4.162 | O26: 0 | P26: 0 | Q26: 0 | R26: 0 | S26: 0 | T26: 163 | U26: 0 | V26: 0 | W26: 3.168 | X26: 0 | Y26: 0 | Z26: 0 | AA26: 0 | AB26: 0 | AE26: 2029 | AF26: 0 | AG26: 0 | AH26: 0 | AJ26: 0 | AK26: 0 | AL26: 0 | AN26: 0 | AQ26: 2029 | AR26: 0 | AS26: 0 | AT26: 0.038 | AU26: 0 | AV26: 0.492 | AW26: 0 | AZ26: 0 | BB26: 0 | BC26: 0 | BD26: 0 | BE26: 0 | BH26: 2029 | BI26: 0 | BJ26: 0 | BK26: 10.404 | BL26: 0 | BM26: 0.227 | BN26: 0 | BP26: 0 | BR26: 0 | BT26: 0 | BW26: 2029 | BX26: 0 | BY26: 0 | BZ26: 0 | CA26: 0 | CC26: 0 | CD26: 0 | CE26: 0 | CG26: 0
E27: 22) Avg Non-Gas Fuel Units/Part. Saved = | F27: =+'Database Inputs'!H12 -> 0 | J27: 16 | L27: 2030 | M27: 0 | N27: 4.307 | O27: 0 | P27: 0 | Q27: 0 | R27: 0 | S27: 0 | T27: 165 | U27: 0 | V27: 0 | W27: 3.279 | X27: 0 | Y27: 0 | Z27: 0 | AA27: 0 | AB27: 0 | AE27: 2030 | AF27: 0 | AG27: 0 | AH27: 0 | AJ27: 0 | AK27: 0 | AL27: 0 | AN27: 0 | AQ27: 2030 | AR27: 0 | AS27: 0 | AT27: 0.04 | AU27: 0 | AV27: 0.504 | AW27: 0 | AZ27: 0 | BB27: 0 | BC27: 0 | BD27: 0 | BE27: 0 | BH27: 2030 | BI27: 0 | BJ27: 0 | BK27: 10.768 | BL27: 0 | BM27: 0.235 | BN27: 0 | BP27: 0 | BR27: 0 | BT27: 0 | BW27: 2030 | BX27: 0 | BY27: 0 | BZ27: 0 | CA27: 0 | CC27: 0 | CD27: 0 | CE27: 0 | CG27: 0
A28: 7) Non-Gas Fuel Cost ($/Fuel Unit) = | C28: =+'Gas Input Table Summary'!$D$19 -> 0.02174 | E28: 22a) Avg Additional Non-Gas Fuel Units/ Part. Used = | F28: 0 | J28: 17 | L28: 2031 | M28: 0 | N28: 4.458 | O28: 0 | P28: 0 | Q28: 0 | R28: 0 | S28: 0 | T28: 166 | U28: 0 | V28: 0 | W28: 3.394 | X28: 0 | Y28: 0 | Z28: 0 | AA28: 0 | AB28: 0 | AE28: 2031 | AF28: 0 | AG28: 0 | AH28: 0 | AJ28: 0 | AK28: 0 | AL28: 0 | AN28: 0 | AQ28: 2031 | AR28: 0 | AS28: 0 | AT28: 0.041 | AU28: 0 | AV28: 0.515 | AW28: 0 | AZ28: 0 | BB28: 0 | BC28: 0 | BD28: 0 | BE28: 0 | BH28: 2031 | BI28: 0 | BJ28: 0 | BK28: 11.145 | BL28: 0 | BM28: 0.243 | BN28: 0 | BP28: 0 | BR28: 0 | BT28: 0 | BW28: 2031 | BX28: 0 | BY28: 0 | BZ28: 0 | CA28: 0 | CC28: 0 | CD28: 0 | CE28: 0 | CG28: 0
A29: Escalation Rate = | C29: =+'Gas Input Table Summary'!$D$20 -> 0.035 | J29: 18 | L29: 2032 | M29: 0 | N29: 4.614 | O29: 0 | P29: 0 | Q29: 0 | R29: 0 | S29: 0 | T29: 168 | U29: 0 | V29: 0 | W29: 3.513 | X29: 0 | Y29: 0 | Z29: 0 | AA29: 0 | AB29: 0 | AE29: 2032 | AF29: 0 | AG29: 0 | AH29: 0 | AJ29: 0 | AK29: 0 | AL29: 0 | AN29: 0 | AQ29: 2032 | AR29: 0 | AS29: 0 | AT29: 0.043 | AU29: 0 | AV29: 0.527 | AW29: 0 | AZ29: 0 | BB29: 0 | BC29: 0 | BD29: 0 | BE29: 0 | BH29: 2032 | BI29: 0 | BJ29: 0 | BK29: 11.535 | BL29: 0 | BM29: 0.252 | BN29: 0 | BP29: 0 | BR29: 0 | BT29: 0 | BW29: 2032 | BX29: 0 | BY29: 0 | BZ29: 0 | CA29: 0 | CC29: 0 | CD29: 0 | CE29: 0 | CG29: 0
E30: 23) Number of Participants = | F30: =+'Total Program Inputs'!C12 -> 217 | J30: 19 | L30: 2033 | M30: 0 | N30: 4.776 | O30: 0 | P30: 0 | Q30: 0 | R30: 0 | S30: 0 | T30: 170 | U30: 0 | V30: 0 | W30: 3.635 | X30: 0 | Y30: 0 | Z30: 0 | AA30: 0 | AB30: 0 | AE30: 2033 | AF30: 0 | AG30: 0 | AH30: 0 | AJ30: 0 | AK30: 0 | AL30: 0 | AN30: 0 | AQ30: 2033 | AR30: 0 | AS30: 0 | AT30: 0.044 | AU30: 0 | AV30: 0.539 | AW30: 0 | AZ30: 0 | BB30: 0 | BC30: 0 | BD30: 0 | BE30: 0 | BH30: 2033 | BI30: 0 | BJ30: 0 | BK30: 11.939 | BL30: 0 | BM30: 0.26 | BN30: 0 | BP30: 0 | BR30: 0 | BT30: 0 | BW30: 2033 | BX30: 0 | BY30: 0 | BZ30: 0 | CA30: 0 | CC30: 0 | CD30: 0 | CE30: 0 | CG30: 0 | DB30: =$J18 -> 7
A31: 8) Non-Gas Fuel Loss Factor | C31: =+'Gas Input Table Summary'!$D$21 -> 0.051 | J31: 20 | L31: 2034 | M31: 0 | N31: 4.943 | O31: 0 | P31: 0 | Q31: 0 | R31: 0 | S31: 0 | T31: 171 | U31: 0 | V31: 0 | W31: 3.763 | X31: 0 | Y31: 0 | Z31: 0 | AA31: 0 | AB31: 0 | AE31: 2034 | AF31: 0 | AG31: 0 | AH31: 0 | AJ31: 0 | AK31: 0 | AL31: 0 | AN31: 0 | AQ31: 2034 | AR31: 0 | AS31: 0 | AT31: 0.046 | AU31: 0 | AV31: 0.552 | AW31: 0 | AZ31: 0 | BB31: 0 | BC31: 0 | BD31: 0 | BE31: 0 | BH31: 2034 | BI31: 0 | BJ31: 0 | BK31: 12.357 | BL31: 0 | BM31: 0.27 | BN31: 0 | BP31: 0 | BR31: 0 | BT31: 0 | BW31: 2034 | BX31: 0 | BY31: 0 | BZ31: 0 | CA31: 0 | CC31: 0 | CD31: 0 | CE31: 0 | CG31: 0 | DB31: =$J19 -> 8
E32: 24) Total Annual Dk Saved = | F32: =+'Total Program Inputs'!E12 -> 629 | J32: 21 | L32: 2035 | M32: 0 | N32: 5.116 | O32: 0 | P32: 0 | Q32: 0 | R32: 0 | S32: 0 | T32: 173 | U32: 0 | V32: 0 | W32: 3.894 | X32: 0 | Y32: 0 | Z32: 0 | AA32: 0 | AB32: 0 | AE32: 2035 | AF32: 0 | AG32: 0 | AH32: 0 | AJ32: 0 | AK32: 0 | AL32: 0 | AN32: 0 | AQ32: 2035 | AR32: 0 | AS32: 0 | AT32: 0.047 | AU32: 0 | AV32: 0.564 | AW32: 0 | AZ32: 0 | BB32: 0 | BC32: 0 | BD32: 0 | BE32: 0 | BH32: 2035 | BI32: 0 | BJ32: 0 | BK32: 12.789 | BL32: 0 | BM32: 0.279 | BN32: 0 | BP32: 0 | BR32: 0 | BT32: 0 | BW32: 2035 | BX32: 0 | BY32: 0 | BZ32: 0 | CA32: 0 | CC32: 0 | CD32: 0 | CE32: 0 | CG32: 0 | DB32: =$J20 -> 9
A33: 9) Gas Environmental Damage Factor = | C33: =+'Gas Input Table Summary'!$D$22 -> 0.35 | J33: 22 | L33: 2036 | M33: 0 | N33: 5.295 | O33: 0 | P33: 0 | Q33: 0 | R33: 0 | S33: 0 | T33: 175 | U33: 0 | V33: 0 | W33: 4.031 | X33: 0 | Y33: 0 | Z33: 0 | AA33: 0 | AB33: 0 | AE33: 2036 | AF33: 0 | AG33: 0 | AH33: 0 | AJ33: 0 | AK33: 0 | AL33: 0 | AN33: 0 | AQ33: 2036 | AR33: 0 | AS33: 0 | AT33: 0.049 | AU33: 0 | AV33: 0.577 | AW33: 0 | AZ33: 0 | BB33: 0 | BC33: 0 | BD33: 0 | BE33: 0 | BH33: 2036 | BI33: 0 | BJ33: 0 | BK33: 13.237 | BL33: 0 | BM33: 0.289 | BN33: 0 | BP33: 0 | BR33: 0 | BT33: 0 | BW33: 2036 | BX33: 0 | BY33: 0 | BZ33: 0 | CA33: 0 | CC33: 0 | CD33: 0 | CE33: 0 | CG33: 0
A34: Escalation Rate = | C34: =+'Gas Input Table Summary'!$D$23 -> 0.023 | E34: 25) Incentive/Participant = | F34: =+ROUND(F12/F30,0) -> 20 | J34: 23 | L34: 2037 | M34: 0 | N34: 5.48 | O34: 0 | P34: 0 | Q34: 0 | R34: 0 | S34: 0 | T34: 177 | U34: 0 | V34: 0 | W34: 4.172 | X34: 0 | Y34: 0 | Z34: 0 | AA34: 0 | AB34: 0 | AE34: 2037 | AF34: 0 | AG34: 0 | AH34: 0 | AJ34: 0 | AK34: 0 | AL34: 0 | AN34: 0 | AQ34: 2037 | AR34: 0 | AS34: 0 | AT34: 0.051 | AU34: 0 | AV34: 0.59 | AW34: 0 | AZ34: 0 | BB34: 0 | BC34: 0 | BD34: 0 | BE34: 0 | BH34: 2037 | BI34: 0 | BJ34: 0 | BK34: 13.7 | BL34: 0 | BM34: 0.299 | BN34: 0 | BP34: 0 | BR34: 0 | BT34: 0 | BW34: 2037 | BX34: 0 | BY34: 0 | BZ34: 0 | CA34: 0 | CC34: 0 | CD34: 0 | CE34: 0 | CG34: 0
DB35: =$J21 -> 10
A36: 10) Non Gas Fuel Environmental Damage Factor = | C36: =+'Gas Input Table Summary'!$D$24 -> 0 | E36: 26) Distribution Delivery Charge | F36: =+'Gas Input Table Summary'!D58 -> 1.891 | K36: Total = | M36: =SUM(M14:M34) -> 6290 | V36: =SUM(V14:V34) -> 29734 | AA36: =SUM(AA14:AA34) -> 14649 | AB36: =SUM(AB14:AB34) -> 15085 | AD36: Total = | AH36: =SUM(AH14:AH34) -> 29734 | AL36: =SUM(AL14:AL34) -> 4593 | AN36: =SUM(AN14:AN34) -> 25141 | AP36: Total = | AZ36: =SUM(AZ14:AZ34) -> 32349 | BD36: =SUM(BD14:BD34) -> 13273 | BE36: =SUM(BE14:BE34) -> 19076 | BG36: Total = | BJ36: =SUM(BJ14:BJ34) -> 6290 | BP36: =SUM(BP14:BP34) -> 55148 | BR36: =SUM(BR14:BR34) -> 13020 | BT36: =SUM(BT14:BT34) -> 42128 | BZ36: Total = | CA36: =SUM(CA14:CA34) -> 29734 | CE36: =SUM(CE14:CE34) -> 13273 | CG36: =SUM(CG14:CG34) -> 16461
A37: Escalation Rate = | C37: =+'Gas Input Table Summary'!$D$25 -> 0 | T37: NPV = | V37: =ROUND(V14+NPV($C$41,V15:V34),0) -> 21800 | AA37: =ROUND(AA14+NPV($C$41,AA15:AA34),0) -> 11944 | AB37: =ROUND(AB14+NPV($C$41,AB15:AB34),0) -> 9856 | AG37: NPV = | AH37: =ROUND(AH14+NPV($C$41,AH15:AH34),0) -> 21800 | AL37: =ROUND(AL14+NPV($C$41,AL15:AL34),0) -> 4593 | AN37: =+AH37-AL37 -> 17207 | AW37: NPV = | AZ37: =ROUND(AZ14+NPV($C$43,AZ15:AZ34),0) -> 27548 | BD37: =ROUND(BD14+NPV($C$43,BD15:BD34),0) -> 13273 | BE37: =AZ37-BD37 -> 14275 | BN37: NPV = | BP37: =ROUND(BP14+NPV($C$39,BP15:BP34),0) -> 37773 | BR37: =ROUND(BR14+NPV($C$39,BR15:BR34),0) -> 13020 | BT37: =ROUND(BT14+NPV($C$39,BT15:BT34),0) -> 24753 | BZ37: NPV = | CA37: =ROUND(CA14+NPV($C$41,CA15:CA34),0) -> 21800 | CE37: =ROUND(CE14+NPV($C$41,CE15:CE34),0) -> 13273 | CG37: =ROUND(CG14+NPV($C$41,CG15:CG34),0) -> 8527 | DB37: =$J22 -> 11
E38: 27) Effective Income Tax Rate = | F38: =+'Gas Input Table Summary'!D59 -> 0.35
A39: 11) Participant Discount Rate = | C39: =+'Gas Input Table Summary'!$D$26 -> 0.1 | E39: (Federal & State Taxes) | K39: Total NPV = | N39: =AB37 -> 9856 | AD39: Total NPV = | AG39: =AN37 -> 17207 | AP39: Total NPV = | AS39: =BE37 -> 14275 | BG39: Total NPV = | BJ39: =BT37 -> 24753 | BV39: Total NPV = | BY39: =CG37 -> 8527
